Workbook

Sheet Aylık Yİ-ÜFE (hidden)
E1: Yurt İçi Üretici Fiyat Endeksi (2003=100) | F1: Yurt İçi Üretici Fiyat Endeksi (2003=100)
A2: 2005 | B2: Ocak | C2: 2005-Ocak | D2: 2005-1 | E2: 114.83 | F2: 114.83
A3: 2005 | B3: Şubat | C3: 2005-Şubat | D3: 2005-2 | E3: 114.81 | F3: 114.81
A4: 2005 | B4: Mart | C4: 2005-Mart | D4: 2005-3 | E4: 117.25 | F4: 117.25
A5: 2005 | B5: Nisan | C5: 2005-Nisan | D5: 2005-4 | E5: 119.62 | F5: 119.62
A6: 2005 | B6: Mayıs | C6: 2005-Mayıs | D6: 2005-5 | E6: 119.23 | F6: 119.23
A7: 2005 | B7: Haziran | C7: 2005-Haziran | D7: 2005-6 | E7: 119.64 | F7: 119.64
A8: 2005 | B8: Temmuz | C8: 2005-Temmuz | D8: 2005-7 | E8: 119.33 | F8: 119.33
A9: 2005 | B9: Ağustos | C9: 2005-Ağustos | D9: 2005-8 | E9: 121.4 | F9: 121.4
A10: 2005 | B10: Eylül | C10: 2005-Eylül | D10: 2005-9 | E10: 123.4 | F10: 123.4
A11: 2005 | B11: Ekim | C11: 2005-Ekim | D11: 2005-10 | E11: 124.22 | F11: 124.22
A12: 2005 | B12: Kasım | C12: 2005-Kasım | D12: 2005-11 | E12: 121.4 | F12: 121.4
A13: 2005 | B13: Aralık | C13: 2005-Aralık | D13: 2005-12 | E13: 121.14 | F13: 121.14
A14: 2006 | B14: Ocak | C14: 2006-Ocak | D14: 2006-1 | E14: 123.51 | F14: 123.51
A15: 2006 | B15: Şubat | C15: 2006-Şubat | D15: 2006-2 | E15: 123.83 | F15: 123.83
A16: 2006 | B16: Mart | C16: 2006-Mart | D16: 2006-3 | E16: 124.14 | F16: 124.14
A17: 2006 | B17: Nisan | C17: 2006-Nisan | D17: 2006-4 | E17: 126.54 | F17: 126.54
A18: 2006 | B18: Mayıs | C18: 2006-Mayıs | D18: 2006-5 | E18: 130.05 | F18: 130.05
A19: 2006 | B19: Haziran | C19: 2006-Haziran | D19: 2006-6 | E19: 135.28 | F19: 135.28
A20: 2006 | B20: Temmuz | C20: 2006-Temmuz | D20: 2006-7 | E20: 136.45 | F20: 136.45
A21: 2006 | B21: Ağustos | C21: 2006-Ağustos | D21: 2006-8 | E21: 135.43 | F21: 135.43
A22: 2006 | B22: Eylül | C22: 2006-Eylül | D22: 2006-9 | E22: 135.11 | F22: 135.11
A23: 2006 | B23: Ekim | C23: 2006-Ekim | D23: 2006-10 | E23: 135.73 | F23: 135.73
A24: 2006 | B24: Kasım | C24: 2006-Kasım | D24: 2006-11 | E24: 135.33 | F24: 135.33
A25: 2006 | B25: Aralık | C25: 2006-Aralık | D25: 2006-12 | E25: 135.16 | F25: 135.16
A26: 2007 | B26: Ocak | C26: 2007-Ocak | D26: 2007-1 | E26: 135.09 | F26: 135.09
A27: 2007 | B27: Şubat | C27: 2007-Şubat | D27: 2007-2 | E27: 136.37 | F27: 136.37
A28: 2007 | B28: Mart | C28: 2007-Mart | D28: 2007-3 | E28: 137.7 | F28: 137.7
A29: 2007 | B29: Nisan | C29: 2007-Nisan | D29: 2007-4 | E29: 138.8 | F29: 138.8
A30: 2007 | B30: Mayıs | C30: 2007-Mayıs | D30: 2007-5 | E30: 139.34 | F30: 139.34
A31: 2007 | B31: Haziran | C31: 2007-Haziran | D31: 2007-6 | E31: 139.19 | F31: 139.19
A32: 2007 | B32: Temmuz | C32: 2007-Temmuz | D32: 2007-7 | E32: 139.28 | F32: 139.28
A33: 2007 | B33: Ağustos | C33: 2007-Ağustos | D33: 2007-8 | E33: 140.47 | F33: 140.47
A34: 2007 | B34: Eylül | C34: 2007-Eylül | D34: 2007-9 | E34: 141.9 | F34: 141.9
A35: 2007 | B35: Ekim | C35: 2007-Ekim | D35: 2007-10 | E35: 141.71 | F35: 141.71
A36: 2007 | B36: Kasım | C36: 2007-Kasım | D36: 2007-11 | E36: 142.98 | F36: 142.98
A37: 2007 | B37: Aralık | C37: 2007-Aralık | D37: 2007-12 | E37: 143.19 | F37: 143.19
A38: 2008 | B38: Ocak | C38: 2008-Ocak | D38: 2008-1 | E38: 143.8 | F38: 143.8
A39: 2008 | B39: Şubat | C39: 2008-Şubat | D39: 2008-2 | E39: 147.48 | F39: 147.48
A40: 2008 | B40: Mart | C40: 2008-Mart | D40: 2008-3 | E40: 152.16 | F40: 152.16
A41: 2008 | B41: Nisan | C41: 2008-Nisan | D41: 2008-4 | E41: 159 | F41: 159
A42: 2008 | B42: Mayıs | C42: 2008-Mayıs | D42: 2008-5 | E42: 162.37 | F42: 162.37
A43: 2008 | B43: Haziran | C43: 2008-Haziran | D43: 2008-6 | E43: 162.9 | F43: 162.9
A44: 2008 | B44: Temmuz | C44: 2008-Temmuz | D44: 2008-7 | E44: 164.93 | F44: 164.93
A45: 2008 | B45: Ağustos | C45: 2008-Ağustos | D45: 2008-8 | E45: 161.07 | F45: 161.07
A46: 2008 | B46: Eylül | C46: 2008-Eylül | D46: 2008-9 | E46: 159.63 | F46: 159.63
A47: 2008 | B47: Ekim | C47: 2008-Ekim | D47: 2008-10 | E47: 160.54 | F47: 160.54
A48: 2008 | B48: Kasım | C48: 2008-Kasım | D48: 2008-11 | E48: 160.49 | F48: 160.49
A49: 2008 | B49: Aralık | C49: 2008-Aralık | D49: 2008-12 | E49: 154.8 | F49: 154.8
A50: 2009 | B50: Ocak | C50: 2009-Ocak | D50: 2009-1 | E50: 155.16 | F50: 155.16
A51: 2009 | B51: Şubat | C51: 2009-Şubat | D51: 2009-2 | E51: 156.97 | F51: 156.97
A52: 2009 | B52: Mart | C52: 2009-Mart | D52: 2009-3 | E52: 157.43 | F52: 157.43
A53: 2009 | B53: Nisan | C53: 2009-Nisan | D53: 2009-4 | E53: 158.45 | F53: 158.45
A54: 2009 | B54: Mayıs | C54: 2009-Mayıs | D54: 2009-5 | E54: 158.37 | F54: 158.37
A55: 2009 | B55: Haziran | C55: 2009-Haziran | D55: 2009-6 | E55: 159.86 | F55: 159.86
A56: 2009 | B56: Temmuz | C56: 2009-Temmuz | D56: 2009-7 | E56: 158.74 | F56: 158.74
A57: 2009 | B57: Ağustos | C57: 2009-Ağustos | D57: 2009-8 | E57: 159.4 | F57: 159.4
A58: 2009 | B58: Eylül | C58: 2009-Eylül | D58: 2009-9 | E58: 160.38 | F58: 160.38
A59: 2009 | B59: Ekim | C59: 2009-Ekim | D59: 2009-10 | E59: 160.84 | F59: 160.84
A60: 2009 | B60: Kasım | C60: 2009-Kasım | D60: 2009-11 | E60: 162.92 | F60: 162.92
A61: 2009 | B61: Aralık | C61: 2009-Aralık | D61: 2009-12 | E61: 163.98 | F61: 163.98
A62: 2010 | B62: Ocak | C62: 2010-Ocak | D62: 2010-1 | E62: 164.94 | F62: 164.94
A63: 2010 | B63: Şubat | C63: 2010-Şubat | D63: 2010-2 | E63: 167.68 | F63: 167.68
A64: 2010 | B64: Mart | C64: 2010-Mart | D64: 2010-3 | E64: 170.94 | F64: 170.94
A65: 2010 | B65: Nisan | C65: 2010-Nisan | D65: 2010-4 | E65: 174.96 | F65: 174.96
A66: 2010 | B66: Mayıs | C66: 2010-Mayıs | D66: 2010-5 | E66: 172.95 | F66: 172.95
A67: 2010 | B67: Haziran | C67: 2010-Haziran | D67: 2010-6 | E67: 172.08 | F67: 172.08
A68: 2010 | B68: Temmuz | C68: 2010-Temmuz | D68: 2010-7 | E68: 171.81 | F68: 171.81
A69: 2010 | B69: Ağustos | C69: 2010-Ağustos | D69: 2010-8 | E69: 173.79 | F69: 173.79
A70: 2010 | B70: Eylül | C70: 2010-Eylül | D70: 2010-9 | E70: 174.67 | F70: 174.67
A71: 2010 | B71: Ekim | C71: 2010-Ekim | D71: 2010-10 | E71: 176.78 | F71: 176.78
A72: 2010 | B72: Kasım | C72: 2010-Kasım | D72: 2010-11 | E72: 176.23 | F72: 176.23
A73: 2010 | B73: Aralık | C73: 2010-Aralık | D73: 2010-12 | E73: 178.54 | F73: 178.54
A74: 2011 | B74: Ocak | C74: 2011-Ocak | D74: 2011-1 | E74: 182.75 | F74: 182.75
A75: 2011 | B75: Şubat | C75: 2011-Şubat | D75: 2011-2 | E75: 185.9 | F75: 185.9
A76: 2011 | B76: Mart | C76: 2011-Mart | D76: 2011-3 | E76: 188.17 | F76: 188.17
A77: 2011 | B77: Nisan | C77: 2011-Nisan | D77: 2011-4 | E77: 189.32 | F77: 189.32
A78: 2011 | B78: Mayıs | C78: 2011-Mayıs | D78: 2011-5 | E78: 189.61 | F78: 189.61
A79: 2011 | B79: Haziran | C79: 2011-Haziran | D79: 2011-6 | E79: 189.62 | F79: 189.62
A80: 2011 | B80: Temmuz | C80: 2011-Temmuz | D80: 2011-7 | E80: 189.57 | F80: 189.57
A81: 2011 | B81: Ağustos | C81: 2011-Ağustos | D81: 2011-8 | E81: 192.91 | F81: 192.91
A82: 2011 | B82: Eylül | C82: 2011-Eylül | D82: 2011-9 | E82: 195.89 | F82: 195.89
A83: 2011 | B83: Ekim | C83: 2011-Ekim | D83: 2011-10 | E83: 199.03 | F83: 199.03
A84: 2011 | B84: Kasım | C84: 2011-Kasım | D84: 2011-11 | E84: 200.32 | F84: 200.32
A85: 2011 | B85: Aralık | C85: 2011-Aralık | D85: 2011-12 | E85: 202.33 | F85: 202.33
A86: 2012 | B86: Ocak | C86: 2012-Ocak | D86: 2012-1 | E86: 203.1 | F86: 203.1
A87: 2012 | B87: Şubat | C87: 2012-Şubat | D87: 2012-2 | E87: 202.91 | F87: 202.91
A88: 2012 | B88: Mart | C88: 2012-Mart | D88: 2012-3 | E88: 203.64 | F88: 203.64
A89: 2012 | B89: Nisan | C89: 2012-Nisan | D89: 2012-4 | E89: 203.81 | F89: 203.81
A90: 2012 | B90: Mayıs | C90: 2012-Mayıs | D90: 2012-5 | E90: 204.89 | F90: 204.89
A91: 2012 | B91: Haziran | C91: 2012-Haziran | D91: 2012-6 | E91: 201.83 | F91: 201.83
A92: 2012 | B92: Temmuz | C92: 2012-Temmuz | D92: 2012-7 | E92: 201.2 | F92: 201.2
A93: 2012 | B93: Ağustos | C93: 2012-Ağustos | D93: 2012-8 | E93: 201.71 | F93: 201.71
A94: 2012 | B94: Eylül | C94: 2012-Eylül | D94: 2012-9 | E94: 203.79 | F94: 203.79
A95: 2012 | B95: Ekim | C95: 2012-Ekim | D95: 2012-10 | E95: 204.15 | F95: 204.15
A96: 2012 | B96: Kasım | C96: 2012-Kasım | D96: 2012-11 | E96: 207.54 | F96: 207.54
A97: 2012 | B97: Aralık | C97: 2012-Aralık | D97: 2012-12 | E97: 207.29 | F97: 207.29
A98: 2013 | B98: Ocak | C98: 2013-Ocak | D98: 2013-1 | E98: 206.91 | F98: 206.91
A99: 2013 | B99: Şubat | C99: 2013-Şubat | D99: 2013-2 | E99: 206.65 | F99: 206.65
A100: 2013 | B100: Mart | C100: 2013-Mart | D100: 2013-3 | E100: 208.33 | F100: 208.33
A101: 2013 | B101: Nisan | C101: 2013-Nisan | D101: 2013-4 | E101: 207.27 | F101: 207.27
A102: 2013 | B102: Mayıs | C102: 2013-Mayıs | D102: 2013-5 | E102: 209.34 | F102: 209.34
A103: 2013 | B103: Haziran | C103: 2013-Haziran | D103: 2013-6 | E103: 212.39 | F103: 212.39
A104: 2013 | B104: Temmuz | C104: 2013-Temmuz | D104: 2013-7 | E104: 214.5 | F104: 214.5
A105: 2013 | B105: Ağustos | C105: 2013-Ağustos | D105: 2013-8 | E105: 214.59 | F105: 214.59
A106: 2013 | B106: Eylül | C106: 2013-Eylül | D106: 2013-9 | E106: 216.48 | F106: 216.48
A107: 2013 | B107: Ekim | C107: 2013-Ekim | D107: 2013-10 | E107: 217.97 | F107: 217.97
A108: 2013 | B108: Kasım | C108: 2013-Kasım | D108: 2013-11 | E108: 219.31 | F108: 219.31
A109: 2013 | B109: Aralık | C109: 2013-Aralık | D109: 2013-12 | E109: 221.74 | F109: 221.74
A110: 2014 | B110: Ocak | C110: 2014-Ocak | D110: 2014-1 | E110: 229.1 | F110: 229.1
A111: 2014 | B111: Şubat | C111: 2014-Şubat | D111: 2014-2 | E111: 232.27 | F111: 232.27
A112: 2014 | B112: Mart | C112: 2014-Mart | D112: 2014-3 | E112: 233.98 | F112: 233.98
A113: 2014 | B113: Nisan | C113: 2014-Nisan | D113: 2014-4 | E113: 234.18 | F113: 234.18
A114: 2014 | B114: Mayıs | C114: 2014-Mayıs | D114: 2014-5 | E114: 232.96 | F114: 232.96
A115: 2014 | B115: Haziran | C115: 2014-Haziran | D115: 2014-6 | E115: 233.09 | F115: 233.09
A116: 2014 | B116: Temmuz | C116: 2014-Temmuz | D116: 2014-7 | E116: 234.79 | F116: 234.79
A117: 2014 | B117: Ağustos | C117: 2014-Ağustos | D117: 2014-8 | E117: 235.78 | F117: 235.78
A118: 2014 | B118: Eylül | C118: 2014-Eylül | D118: 2014-9 | E118: 237.79 | F118: 237.79
A119: 2014 | B119: Ekim | C119: 2014-Ekim | D119: 2014-10 | E119: 239.97 | F119: 239.97
A120: 2014 | B120: Kasım | C120: 2014-Kasım | D120: 2014-11 | E120: 237.65 | F120: 237.65
A121: 2014 | B121: Aralık | C121: 2014-Aralık | D121: 2014-12 | E121: 235.84 | F121: 235.84
A122: 2015 | B122: Ocak | C122: 2015-Ocak | D122: 2015-1 | E122: 236.61 | F122: 236.61
A123: 2015 | B123: Şubat | C123: 2015-Şubat | D123: 2015-2 | E123: 239.46 | F123: 239.46
A124: 2015 | B124: Mart | C124: 2015-Mart | D124: 2015-3 | E124: 241.97 | F124: 241.97
A125: 2015 | B125: Nisan | C125: 2015-Nisan | D125: 2015-4 | E125: 245.42 | F125: 245.42
A126: 2015 | B126: Mayıs | C126: 2015-Mayıs | D126: 2015-5 | E126: 248.15 | F126: 248.15
A127: 2015 | B127: Haziran | C127: 2015-Haziran | D127: 2015-6 | E127: 248.78 | F127: 248.78
A128: 2015 | B128: Temmuz | C128: 2015-Temmuz | D128: 2015-7 | E128: 247.99 | F128: 247.99
A129: 2015 | B129: Ağustos | C129: 2015-Ağustos | D129: 2015-8 | E129: 250.43 | F129: 250.43
A130: 2015 | B130: Eylül | C130: 2015-Eylül | D130: 2015-9 | E130: 254.25 | F130: 254.25
A131: 2015 | B131: Ekim | C131: 2015-Ekim | D131: 2015-10 | E131: 253.74 | F131: 253.74
A132: 2015 | B132: Kasım | C132: 2015-Kasım | D132: 2015-11 | E132: 250.13 | F132: 250.13
A133: 2015 | B133: Aralık | C133: 2015-Aralık | D133: 2015-12 | E133: 249.31 | F133: 249.31
A134: 2016 | B134: Ocak | C134: 2016-Ocak | D134: 2016-1 | E134: 250.67 | F134: 250.67
A135: 2016 | B135: Şubat | C135: 2016-Şubat | D135: 2016-2 | E135: 250.16 | F135: 250.16
A136: 2016 | B136: Mart | C136: 2016-Mart | D136: 2016-3 | E136: 251.17 | F136: 251.17
A137: 2016 | B137: Nisan | C137: 2016-Nisan | D137: 2016-4 | E137: 252.47 | F137: 252.47
A138: 2016 | B138: Mayıs | C138: 2016-Mayıs | D138: 2016-5 | E138: 256.21 | F138: 256.21
A139: 2016 | B139: Haziran | C139: 2016-Haziran | D139: 2016-6 | E139: 257.27 | F139: 257.27
A140: 2016 | B140: Temmuz | C140: 2016-Temmuz | D140: 2016-7 | E140: 257.81 | F140: 257.81
A141: 2016 | B141: Ağustos | C141: 2016-Ağustos | D141: 2016-8 | E141: 258.01 | F141: 258.01
A142: 2016 | B142: Eylül | C142: 2016-Eylül | D142: 2016-9 | E142: 258.77 | F142: 258.77
A143: 2016 | B143: Ekim | C143: 2016-Ekim | D143: 2016-10 | E143: 260.94 | F143: 260.94
A144: 2016 | B144: Kasım | C144: 2016-Kasım | D144: 2016-11 | E144: 266.16 | F144: 266.16
A145: 2016 | B145: Aralık | C145: 2016-Aralık | D145: 2016-12 | E145: 274.09 | F145: 274.09
A146: 2017 | B146: Ocak | C146: 2017-Ocak | D146: 2017-1 | E146: 284.99 | F146: 284.99
A147: 2017 | B147: Şubat | C147: 2017-Şubat | D147: 2017-2 | E147: 288.59 | F147: 288.59
A148: 2017 | B148: Mart | C148: 2017-Mart | D148: 2017-3 | E148: 291.58 | F148: 291.58
A149: 2017 | B149: Nisan | C149: 2017-Nisan | D149: 2017-4 | E149: 293.79 | F149: 293.79
A150: 2017 | B150: Mayıs | C150: 2017-Mayıs | D150: 2017-5 | E150: 295.31 | F150: 295.31
A151: 2017 | B151: Haziran | C151: 2017-Haziran | D151: 2017-6 | E151: 295.52 | F151: 295.52
A152: 2017 | B152: Temmuz | C152: 2017-Temmuz | D152: 2017-7 | E152: 297.65 | F152: 297.65
A153: 2017 | B153: Ağustos | C153: 2017-Ağustos | D153: 2017-8 | E153: 300.18 | F153: 300.18
A154: 2017 | B154: Eylül | C154: 2017-Eylül | D154: 2017-9 | E154: 300.9 | F154: 300.9
A155: 2017 | B155: Ekim | C155: 2017-Ekim | D155: 2017-10 | E155: 306.04 | F155: 306.04
A156: 2017 | B156: Kasım | C156: 2017-Kasım | D156: 2017-11 | E156: 312.21 | F156: 312.21
A157: 2017 | B157: Aralık | C157: 2017-Aralık | D157: 2017-12 | E157: 316.48 | F157: 316.48
A158: 2018 | B158: Ocak | C158: 2018-Ocak | D158: 2018-1 | E158: 319.6 | F158: 319.6
A159: 2018 | B159: Şubat | C159: 2018-Şubat | D159: 2018-2 | E159: 328.17 | F159: 328.17
A160: 2018 | B160: Mart | C160: 2018-Mart | D160: 2018-3 | E160: 333.21 | F160: 333.21
A161: 2018 | B161: Nisan | C161: 2018-Nisan | D161: 2018-4 | E161: 341.88 | F161: 341.88
A162: 2018 | B162: Mayıs | C162: 2018-Mayıs | D162: 2018-5 | E162: 354.85 | F162: 354.85
A163: 2018 | B163: Haziran | C163: 2018-Haziran | D163: 2018-6 | E163: 365.6 | F163: 365.6
A164: 2018 | B164: Temmuz | C164: 2018-Temmuz | D164: 2018-7 | E164: 372.06 | F164: 372.06
A165: 2018 | B165: Ağustos | C165: 2018-Ağustos | D165: 2018-8 | E165: 396.62 | F165: 396.62
A166: 2018 | B166: Eylül | C166: 2018-Eylül | D166: 2018-9 | E166: 439.78 | F166: 439.78
A167: 2018 | B167: Ekim | C167: 2018-Ekim | D167: 2018-10 | E167: 443.78 | F167: 443.78
A168: 2018 | B168: Kasım | C168: 2018-Kasım | D168: 2018-11 | E168: 432.55 | F168: 432.55
A169: 2018 | B169: Aralık | C169: 2018-Aralık | D169: 2018-12 | E169: 422.94 | F169: 422.94
A170: 2019 | B170: Ocak | C170: 2019-Ocak | D170: 2019-1 | E170: 424.86 | F170: 424.86
A171: 2019 | B171: Şubat | C171: 2019-Şubat | D171: 2019-2 | E171: 425.26 | F171: 425.26
A172: 2019 | B172: Mart | C172: 2019-Mart | D172: 2019-3 | E172: 431.98 | F172: 431.98
A173: 2019 | B173: Nisan | C173: 2019-Nisan | D173: 2019-4 | E173: 444.85 | F173: 444.85
A174: 2019 | B174: Mayıs | C174: 2019-Mayıs | D174: 2019-5 | E174: 456.74 | F174: 456.74
A175: 2019 | B175: Haziran | C175: 2019-Haziran | D175: 2019-6 | E175: 457.16 | F175: 457.16
A176: 2019 | B176: Temmuz | C176: 2019-Temmuz | D176: 2019-7 | E176: 452.63 | F176: 452.63
A177: 2019 | B177: Ağustos | C177: 2019-Ağustos | D177: 2019-8 | E177: 449.96 | F177: 449.96
A178: 2019 | B178: Eylül | C178: 2019-Eylül | D178: 2019-9 | E178: 450.55 | F178: 450.55
A179: 2019 | B179: Ekim | C179: 2019-Ekim | D179: 2019-10 | E179: 451.31 | F179: 451.31
A180: 2019 | B180: Kasım | C180: 2019-Kasım | D180: 2019-11 | E180: 450.97 | F180: 450.97
A181: 2019 | B181: Aralık | C181: 2019-Aralık | D181: 2019-12 | E181: 454.08 | F181: 454.08
A182: 2020 | B182: Ocak | C182: 2020-Ocak | D182: 2020-1 | E182: 462.42 | F182: 462.42
A183: 2020 | B183: Şubat | C183: 2020-Şubat | D183: 2020-2 | E183: 464.64 | F183: 464.64
A184: 2020 | B184: Mart | C184: 2020-Mart | D184: 2020-3 | E184: 468.69 | F184: 468.69
A185: 2020 | B185: Nisan | C185: 2020-Nisan | D185: 2020-4 | E185: 474.69 | F185: 474.69
A186: 2020 | B186: Mayıs | C186: 2020-Mayıs | D186: 2020-5 | E186: 482.02 | F186: 482.02
A187: 2020 | B187: Haziran | C187: 2020-Haziran | D187: 2020-6 | E187: 485.37 | F187: 485.37
A188: 2020 | B188: Temmuz | C188: 2020-Temmuz | D188: 2020-7 | E188: 490.33 | F188: 490.33
A189: 2020 | B189: Ağustos | C189: 2020-Ağustos | D189: 2020-8 | E189: 501.85 | F189: 501.85
A190: 2020 | B190: Eylül | C190: 2020-Eylül | D190: 2020-9 | E190: 515.13 | F190: 515.13
A191: 2020 | B191: Ekim | C191: 2020-Ekim | D191: 2020-10 | E191: 533.44 | F191: 533.44
A192: 2020 | B192: Kasım | C192: 2020-Kasım | D192: 2020-11 | E192: 555.18 | F192: 555.18
A193: 2020 | B193: Aralık | C193: 2020-Aralık | D193: 2020-12 | E193: 568.27 | F193: 568.27
A194: 2021 | B194: Ocak | C194: 2021-Ocak | D194: 2021-1 | E194: 583.38 | F194: 583.38
A195: 2021 | B195: Şubat | C195: 2021-Şubat | D195: 2021-2 | E195: 590.52 | F195: 590.52
A196: 2021 | B196: Mart | C196: 2021-Mart | D196: 2021-3 | E196: 614.93 | F196: 614.93
A197: 2021 | B197: Nisan | C197: 2021-Nisan | D197: 2021-4 | E197: 641.63 | F197: 641.63
A198: 2021 | B198: Mayıs | C198: 2021-Mayıs | D198: 2021-5 | E198: 666.79 | F198: 666.79
A199: 2021 | B199: Haziran | C199: 2021-Haziran | D199: 2021-6 | E199: 693.54 | F199: 693.54
A200: 2021 | B200: Temmuz | C200: 2021-Temmuz | D200: 2021-7 | E200: 710.61 | F200: 710.61
... 17 more rows

Sheet DOLDURULMASI GEREKEN TABLO
C1: Amortismana tabi olmayan gayrimenkul (boş arazi ve boş arsalar)
C2: Amortismana tabi gayrimenkul (gayrimenkullerin mütemmim cüzüleri ve teferruatı dahil) | E2: 250- Arazi ve Arsalar | G2: ÖNEMLİ NOT: * 31.12.2021 VE ÖNCESİNDE BİLANÇODA BULUNAN VARLIKLAR LİSTEYE ALINMALIDIR. / 2022 YILINDA EDİNİLEN VARLIKLAR LİSTEYE ALINMAMALIDIR. ** AMORTİSMAN SÜRESİNİ DOLDURMUŞ OLANLAR LİSTEYE ALINMAMALIDIR. *** GEÇİCİ 32 İÇİN; İLK YILDAN SONRAKİ VE MALİYETE EKLENMİŞ OLAN KREDİ FAİZLERİ İLE KUR FARKLARI PARÇALI YENİDEN DEĞERLEMEYE TABİ TUTULUR. İLGİLİ MALİYET UNSURU AKTİFLEŞTİRİLDİĞİ TARİH İKTİSAP TARİHİ ALANINA YAZILACAK VE AYRI BİR İKTİSADİ KIYMET OLARAK DEĞERLENDİRİLECEKTİR. MÜK.298 Ç İÇİN BU TÜR MALİYET UNSURLARINDAN İLK YIL DIŞINDAKİ YILLARDA MALİYETE ATILANLAR İKTİSAP DEĞERİNDEN TENZİL EDİLMELİDİR. **** GEÇİCİ 32 İÇİN : İNŞA OLUNAN BİNALARDA, ARSA MALİYETİ ARSANIN AKTİFLEŞTİRİLDİĞİ, DİĞER MALİYET UNSURLARI İSE BİNANIN AKTİFLEŞTİRİLDİĞİ TARİH İKTİSAP TARİHİ ALANINA AYRI AYRI YAZILACAKTIR. *****GEÇİCİ 31/1 VEYA GEÇİCİ 31/7 YE GÖRE YENİDEN DEĞERLEME YAPILMIŞ OLMASI HALİNDE, TAŞINMAZ VEYA ATİK'İN İKTİSAP DEĞERİ SÜTÜNUNDAKİ HÜCRELERE BU YENİDEN DEĞERLEMELER SONRASI OLUŞAN YENİ DEĞERLERİNE YER VERİLMELİDİR.
C3: Tesis ve arazi düzenlemeleri (tarım işletmelerinde vücuda getirilen meyvalık, dutluk, fındıklık,zeytinlik ve güllüklerle incir bahçeleri ve bağlar gibi tarım tesisleri dahil) | E3: 251- Yer altı Yerüstü Düzenleri
C4: Makinalar | E4: 252- Binalar
C5: Gemiler | E5: 253- Tesis Makine ve Cihazlar
C6: Taşıtlar | E6: 254- Taşıtlar
A7: ALIM | C7: Gayrimenkul iktisadi kıymetler (İmtiyaz hakları, patent, formül, dizayn, örnek kalıp, teknik bilgi, format, telif hakkı ve benzeri kalemler, lisans, kullanım hakkı ve izni veya devlet kurum ve kuruluşları tarafından verilen işletme hakkı gibi diğer haklar ve bunarın benzerleri) | E7: 255- Demirbaşlar
A8: TARİHİ | C8: Demirbaşlar | E8: 256- Diğer Maddi Duran Varlıklar
C9: Özel Maliyet Bedelleri | E9: 260- Haklar
C10: Diğer amortismana tabi iktisadi kıymetler (şerefiye, aktifleştirien ilk tesis ve taazzuv giderleri, araştırma -geiştirme harcamaları, sinema filimleri gibi) | E10: 261- Şerefiye
E11: 262- Kuruluş Ve Örgütlenme Giderleri
E12: 263- Araştırma ve Geliştirme Giderleri
E13: 264- Özel Maliyetler
E14: 267- Diğer Maddi Olmayan Duran Varlıklar
E15: 271- Arama Giderleri | I15: AMORTİSMANA TABİ DEĞİL
E16: 272- Hazırlık Ve Geliştirme Giderleri | G16: 2022 HARİÇ | I16: NORMAL AMORTİSMAN | J16: EVET | K16: EVET | L16: EVET | M16: EVET | O16: EVET
E17: 277- Diğer Özel Tükenmeye Tabi Varlıklar | G17: ÖMRÜNÜ TAMAMLAYANLAR HARİÇ | I17: AZALAN BAKİYELERE GÖRE AMORTİSMAN | J17: HAYIR | K17: HAYIR | L17: HAYIR | M17: HAYIR | O17: HAYIR
B19: SIRA NO | C19: İKTİSADİ KIYMETİN NİTELİĞİ (*) | D19: İKTİSADİ KIYMETİN ADI | E19: MUHASEBE ANA HESAP KODU | F19: EKONOMİK ÖMRÜ | G19: İKTİSAPTARİHİ | H19: TAŞINMAZ VEYA ATİK İN İKTİSAP DEĞERİ | I19: AMORTİSMAN YÖNTEMİ | J19: KIST AMORTİSMANA TABİ Mİ | K19: 7144 SAYILI KANUNA GÖRE VUK GEÇİCİ 31 / 1 YD YAPILMIŞ MIDIR? | L19: 7326 SAYILI KANUNA GÖRE VUK GEÇİCİ 31 / 7 YD YAPILMIŞ MIDIR? | M19: GEÇİCİ 32 YE GÖRE YENİDEN DEĞERLEME YAPILACAK MIDIR? | N19: İLK YIL MALİYETE EKLENENLER HARİÇ DİĞER YILLARA İLİŞKİN KATLANILAN KUR FARKI VE FAİZ GİDERLERİNDEN İKTİSADİ KIYMETİN MALİYETİNE EKLENMİŞ OLAN TUTAR (TENZİL EDİLMESİ GEREKMEKTEDİR) | O19: MÜK. 298 Ç YAPILACAK MIDIR?
A21: 2006-06-23 | B21: 1 | C21: Makinalar | D21: Kesim Makinası | E21: 253- Tesis Makine ve Cihazlar | F21: 10 | G21: 2013-12-18 | H21: 419572.51 | I21: AZALAN BAKİYELERE GÖRE AMORTİSMAN | J21: HAYIR | K21: HAYIR | L21: HAYIR | M21: EVET | N21: 0 | O21: EVET
A22: 2006-08-02 | B22: 2 | C22: Taşıtlar | D22: Otomobil | E22: 254- Taşıtlar | F22: 5 | G22: 2018-05-18 | H22: 1000000 | I22: AZALAN BAKİYELERE GÖRE AMORTİSMAN | J22: EVET | K22: EVET | L22: EVET | M22: EVET | N22: 0 | O22: EVET
A23: 2011-07-08 | B23: 3 | C23: Demirbaşlar | D23: Cep Telofonu Araç Kiti | E23: 255- Demirbaşlar | F23: 3 | G23: 2019-09-01 | H23: 3000 | I23: AZALAN BAKİYELERE GÖRE AMORTİSMAN | J23: EVET | K23: HAYIR | L23: HAYIR | M23: EVET | N23: 0 | O23: EVET
A24: 2008-10-09 | B24: 4 | C24: Demirbaşlar | D24: Masa | E24: 255- Demirbaşlar | F24: 5 | G24: 2021-12-10 | H24: 10000 | I24: NORMAL AMORTİSMAN | J24: HAYIR | K24: HAYIR | L24: HAYIR | M24: EVET | N24: 0 | O24: EVET
A25: 2000-01-01 | B25: 5 | C25: Amortismana tabi olmayan gayrimenkul (boş arazi ve boş arsalar) | D25: Arsa | E25: 250- Arazi ve Arsalar | F25: SONSUZ | G25: 2020-10-10 | H25: 10000000 | I25: AMORTİSMANA TABİ DEĞİL | J25: HAYIR | K25: HAYIR | L25: HAYIR | M25: EVET | N25: 0 | O25: HAYIR
A26: 2016-11-04 | B26: 6 | C26: Amortismana tabi gayrimenkul (gayrimenkullerin mütemmim cüzüleri ve teferruatı dahil) | D26: daire | E26: 252- Binalar | F26: 33 | G26: 2016-06-03 | H26: 501545.22 | I26: NORMAL AMORTİSMAN | J26: HAYIR | K26: HAYIR | L26: HAYIR | M26: EVET | N26: 0 | O26: EVET
A27: 2016-11-10 | B27: 7 | C27: Demirbaşlar | D27: Cep Telofonu Araç Kiti | E27: 255- Demirbaşlar | F27: 3 | G27: 2021-08-05 | H27: 10000 | I27: AZALAN BAKİYELERE GÖRE AMORTİSMAN | J27: HAYIR | K27: HAYIR | L27: HAYIR | M27: EVET | N27: 0 | O27: EVET
A28: 2016-11-18 | B28: 8 | C28: Demirbaşlar | D28: Bilgisayar | E28: 255- Demirbaşlar | F28: 5 | G28: 2019-01-20 | H28: 20000 | I28: AZALAN BAKİYELERE GÖRE AMORTİSMAN | J28: HAYIR | K28: HAYIR | L28: HAYIR | M28: EVET | N28: 0 | O28: EVET
A29: 2016-11-30 | B29: 9
A30: 2016-11-30 | B30: 10
A31: 2016-11-30 | B31: 11
A32: 2016-11-30 | B32: 12
A33: 2016-12-05 | B33: 13
A34: 2016-12-05 | B34: 14
A35: 2017-02-04 | B35: 15
A36: 2017-02-28 | B36: 16
A37: 2001-01-01 | B37: 17
A38: 2017-04-07 | B38: 18
A39: 2017-10-17 | B39: 19
A40: 2018-05-28 | B40: 20
A41: 2018-05-28 | B41: 21
A42: 2018-05-25 | B42: 22
A43: 2018-05-31 | B43: 23
A44: 2018-05-31 | B44: 24
A45: 2019-10-01 | B45: 25
A46: 2019-10-09 | B46: 26
A47: 2019-10-12 | B47: 27
A48: 2001-01-01 | B48: 28
A49: 2006-01-01 | B49: 29
A50: 2006-01-01 | B50: 30
A51: 2018-06-26 | B51: 31
A52: 2018-08-02 | B52: 32
A53: 2018-08-03 | B53: 33
A54: 2018-08-03 | B54: 34
A55: 2018-07-31 | B55: 35
A56: 2018-08-27 | B56: 36
A57: 2018-09-13 | B57: 37
A58: 2018-09-21 | B58: 38
A59: 2019-05-15 | B59: 39
A60: 2019-09-14 | B60: 40
A61: 2019-09-15 | B61: 41
A62: 2019-09-24 | B62: 42
A63: 2019-10-01 | B63: 43
A64: 2019-10-15 | B64: 44
A65: 2020-05-29 | B65: 45
A66: 2020-07-13 | B66: 46
A67: 2020-07-20 | B67: 47
A68: 2020-07-16 | B68: 48
A69: 2020-07-22 | B69: 49
A70: 2020-07-30 | B70: 50
A71: 2020-07-30 | B71: 51
A72: 2020-08-24 | B72: 52
A73: 2020-10-14 | B73: 53
A74: 2021-01-22 | B74: 54
A75: 2021-03-31 | B75: 55
A76: 2021-03-31 | B76: 56
A77: 2021-06-09 | B77: 57
A78: 2021-10-20 | B78: 58
A79: 2021-11-09 | B79: 59
A80: 2021-11-20 | B80: 60
A81: 2021-11-26 | B81: 61
A82: 2021-12-17 | B82: 62
A83: 2021-12-24 | B83: 63
A84: 2021-12-25 | B84: 64
B85: 65
B86: 66
B87: 67
B88: 68
B89: 69
B90: 70
B91: 71
B92: 72
B93: 73
B94: 74
B95: 75
B96: 76
B97: 77
B98: 78
B99: 79
B100: 80
B101: 81
B102: 82
B103: 83
B104: 84
B105: 85
B106: 86
A107: 2013-09-30 | B107: 87
A108: 2013-09-30 | B108: 88
A109: 2014-07-18 | B109: 89
A110: 2014-08-11 | B110: 90
A111: 2014-08-11 | B111: 91
A112: 2014-08-11 | B112: 92
A113: 2014-08-11 | B113: 93
A114: 2014-08-11 | B114: 94
A115: 2014-08-11 | B115: 95
A116: 2014-08-11 | B116: 96
A117: 2014-08-11 | B117: 97
A118: 2014-08-11 | B118: 98
A119: 2014-08-11 | B119: 99
A120: 2014-08-11 | B120: 100
A121: 2014-08-11 | B121: 101
A122: 2014-08-11 | B122: 102
A123: 2014-08-11 | B123: 103
A124: 2014-08-11 | B124: 104
A125: 2014-08-11 | B125: 105
A126: 2014-08-11 | B126: 106
A127: 2014-08-11 | B127: 107
A128: 2014-08-11 | B128: 108
A129: 2014-09-04 | B129: 109
A130: 2014-09-04 | B130: 110
A131: 2014-09-04 | B131: 111
A132: 2014-09-04 | B132: 112
A133: 2014-09-04 | B133: 113
A134: 2014-09-04 | B134: 114
A135: 2014-09-04 | B135: 115
A136: 2014-09-04 | B136: 116
A137: 2014-09-04 | B137: 117
A138: 2014-09-04 | B138: 118
A139: 2014-09-04 | B139: 119
A140: 2014-09-04 | B140: 120
A141: 2014-09-04 | B141: 121
A142: 2014-09-04 | B142: 122
A143: 2014-09-04 | B143: 123
A144: 2014-09-04 | B144: 124
A145: 2014-09-04 | B145: 125
A146: 2014-09-04 | B146: 126
A147: 2014-09-04 | B147: 127
A148: 2014-09-04 | B148: 128
A149: 2014-09-04 | B149: 129
A150: 2014-09-04 | B150: 130
A151: 2014-09-04 | B151: 131
A152: 2014-09-04 | B152: 132
A153: 2014-07-02 | B153: 133
A154: 2014-07-02 | B154: 134
A155: 2014-07-02 | B155: 135
A156: 2014-07-02 | B156: 136
A157: 2014-07-02 | B157: 137
A158: 2014-07-11 | B158: 138
A159: 2014-07-11 | B159: 139
A160: 2014-10-17 | B160: 140
A161: 2014-10-17 | B161: 141
A162: 2014-10-28 | B162: 142
A163: 2014-10-28 | B163: 143
A164: 2014-10-28 | B164: 144
A165: 2014-10-28 | B165: 145
A166: 2014-10-28 | B166: 146
A167: 2014-10-28 | B167: 147
A168: 2014-10-28 | B168: 148
A169: 2014-10-28 | B169: 149
A170: 2014-10-28 | B170: 150
A171: 2014-10-28 | B171: 151
A172: 2014-10-28 | B172: 152
A173: 2014-10-28 | B173: 153
A174: 2014-10-28 | B174: 154
A175: 2014-10-28 | B175: 155
A176: 2014-10-28 | B176: 156
A177: 2014-10-28 | B177: 157
A178: 2014-10-28 | B178: 158
A179: 2014-10-28 | B179: 159
A180: 2014-10-28 | B180: 160
A181: 2014-10-03 | B181: 161
A182: 2014-10-03 | B182: 162
A183: 2014-10-03 | B183: 163
A184: 2014-10-03 | B184: 164
A185: 2014-10-03 | B185: 165
A186: 2014-10-03 | B186: 166
A187: 2014-10-03 | B187: 167
A188: 2014-10-03 | B188: 168
A189: 2014-10-03 | B189: 169
A190: 2014-10-03 | B190: 170
A191: 2014-10-03 | B191: 171
A192: 2014-10-03 | B192: 172
A193: 2014-10-03 | B193: 173
A194: 2014-10-03 | B194: 174
A195: 2014-10-03 | B195: 175
A196: 2014-10-03 | B196: 176
A197: 2014-10-03 | B197: 177
A198: 2014-10-03 | B198: 178
A199: 2014-10-03 | B199: 179
A200: 2014-10-03 | B200: 180
A201: 2014-10-03 | B201: 181
A202: 2014-10-03 | B202: 182
... 9818 more rows

Sheet YD HESAPLAMA TABLOSU
BI2: NET DEĞER ARTIŞLARI TOPLAMI (GEÇİCİ 32 VE MÜK 298 Ç TOPLAMI)
B3: ÖÖNEMLİ NOT: * 31.12.2021 VE ÖNCESİNDE BİLANÇODA BULUNAN VARLIKLAR LİSTEYE ALINMALIDIR. / 2022 YILINDA EDİNİLEN VARLIKLAR LİSTEYE ALINMAMALIDIR. ** AMORTİSMAN SÜRESİNİ DOLDURMUŞ OLANLAR LİSTEYE ALINMAMALIDIR. *** GEÇİCİ 32 İÇİN; İLK YILDAN SONRAKİ VE MALİYETE EKLENMİŞ OLAN KREDİ FAİZLERİ İLE KUR FARKLARI PARÇALI YENİDEN DEĞERLEMEYE TABİ TUTULUR. İLGİLİ MALİYET UNSURU AKTİFLEŞTİRİLDİĞİ TARİH İKTİSAP TARİHİ ALANINA YAZILACAK VE AYRI BİR İKTİSADİ KIYMET OLARAK DEĞERLENDİRİLECEKTİR. MÜK.298 Ç İÇİN BU TÜR MALİYET UNSURLARINDAN İLK YIL DIŞINDAKİ YILLARDA MALİYETE ATILANLAR İKTİSAP DEĞERİNDEN TENZİL EDİLMELİDİR. **** GEÇİCİ 32 İÇİN : İNŞA OLUNAN BİNALARDA, ARSA MALİYETİ ARSANIN AKTİFLEŞTİRİLDİĞİ, DİĞER MALİYET UNSURLARI İSE BİNANIN AKTİFLEŞTİRİLDİĞİ TARİH İKTİSAP TARİHİ ALANINA AYRI AYRI YAZILACAKTIR. *****GEÇİCİ 31 /6 VEYA GEÇİCİ 31/7 YE GÖRE YENİDEN DEĞERLEME YAPILMIŞ OLMASI HALİNDE, TAŞINMAZ VEYA ATİK'İN İKTİSAP DEĞERİ SÜTÜNUNDAKİ HÜCRELERE BU YENİDEN DEĞERLEMELER SONRASI OLUŞAN YENİ DEĞERLERİNE YER VERİLMELİDİR. | J3: =SUM(J7:J10006) -> 11964117.73 | Q3: =SUM(Q7:Q10006) -> 1217195.148 | T3: =SUM(T7:T10006) -> 11964117.73 | U3: =SUM(U7:U10006) -> 1217195.148 | V3: =SUM(V7:V10006) -> 10746922.58 | AC3: =SUM(AC7:AC10006) -> 23826334.22 | AD3: =SUM(AD7:AD10006) -> 3122224.751 | AE3: =SUM(AE7:AE10006) -> 20704109.47 | AF3: =SUM(AF7:AF3006) -> 11862216.49 | AG3: =SUM(AG7:AG10006) -> 1905029.604 | AH3: =SUM(AH7:AH10006) -> 9957186.89 | AI3: =SUM(AI7:AI10006) -> 199143.7378 | AM3: =SUM(AM7:AM10006) -> 15413434.22 | AN3: =SUM(AN7:AN10006) -> 0 | AO3: =SUM(AO7:AO10006) -> 3122224.751 | AP3: 12291209.47 | AQ3: 22068168.92 | AR3: 6960375.638 | AS3: 15107793.28 | AT3: 6654734.691 | AU3: 3838150.887 | AV3: 2816583.805 | AW3: 917872.5434 | BE3: =SUM(BE7:BE10006) -> 12773770.7 | BF3: =SUM(BF7:BF10006) -> 2937967.26 | BI3: =AV3+AH3 -> 12773770.7
B4: GEÇİCİ 32 YE GÖRE YAPILAN YD SONUCU (31.12.2021 TARİHİNE KADAR OLAN ESKALASYON İÇİN) | AM4: 31.12.2022 DE YAPILAN MÜK 298 Ç SONUCU (31.12.2021 TARİHLİ BİLANÇODAKİ YD TABİ VARLIKLARIN YD İŞLEMİNE TABİ TUTULMASI ) | AY4: AMORTİSMAN GİDER ETKİSİ VE KALAN ÖMÜR ANALİZİ | BI4: TOPLAM OLUMLU VERGİ ETKİSİ
B5: SIRA NO | C5: İKTİSADİ KIYMETİN ADI | D5: MUHASEBE ANA HESAP KODU | E5: EKONOMİK ÖMRÜ (YIL) | F5: AMORTİSMAN ORANI YILIK | G5: İKTİSAP TARİHİ | H5: HESAPLAMADA DİKKATE ALINACAK TARİH | I5: İKTİSAP TARİHİ KONTROLÜ | J5: TAŞINMAZ VEYA ATİK İN İKTİSAP DEĞERİ | K5: AMORTİSMAN YÖNTEMİ | L5: KIST AMORTİSMANA TABİ Mİ (SADECE BİNEK OTOMOBİLLER) | M5: AMORTİSMAN HESABI İÇİN GEÇEN SÜRE (GÜN) (31.12.2021 TARİHİNE KADAR) | N5: NORMAL AMORTİSMAN SÜRESİ (YIL OLARAK) | O5: KIST AMORTİSMAN SÜRESİ YIL OLARAK | P5: HESAPLAMALARDA DİKKATE ALINAN AMORTİSMAN SÜRESİ YIL SÜRESİ | Q5: 31.12.2021 TARİHİ İTİBARİYLE AYRILMASI GEREKEN AMORTİSMAN TUTARI (AYRILMAMIŞ OLANLAR DAHİL) | R5: 7144 SAYILI KANUNA GÖRE VUK GEÇİCİ 31 / 1 YD YAPILMIŞ MIDIR? | S5: 7326 SAYILI KANUNA GÖRE VUK GEÇİCİ 31 / 7 YD YAPILMIŞ MIDIR? | T5: GEÇİCİ 32 YD ÖNCESİ | W5: YENİDEN DEĞERLEME ORANININ HESABI | AB5: GEÇİCİ 32 YE GÖRE YENİDEN DEĞERLEME YAPILACAK MIDIR? | AC5: GEÇİCİ 32 YD SONRASI | AF5: MALİYET TE ORTAYA ÇIKAN ARTIŞ | AG5: AMORTİSMANDA ORTAYA ÇIKAN ARTIŞ | AH5: NET DEĞER ARTIŞI GEÇİCİ 32 NEDENİYLE FAZLA AYRILABİLECEK TOPLAM AMORTİSMAN TUTARI | AI5: GEÇİCİ 32 VERGİ TUTARI | AM5: 298 Ç YD ÖNCESİ | AQ5: 298 Ç YD SONRASI | AT5: MALİYET TE ORTAYA ÇIKAN ARTIŞ | AU5: AMORTİSMANDA ORTAYA ÇIKAN ARTIŞ | AV5: NET DEĞER ARTIŞI 298 Ç NEDENİYLE FAZLA AYRILABİLECEK TOPLAM AMORTİSMAN TUTARI | AW5: 2022 YILI SONUNDA AYRILMASI GEREKEN AMORTİSMAN TUTARI | AY5: AMORTİSMAN AYRILACAK TARİH | AZ5: İKTİSAP TARİHİ | BA5: AMORTİSMAN İÇİN GEÇEN SÜRE (TAM AMORTİSMAN) | BB5: AMORTİSMAN İÇİN GEÇEN SÜRE (KIST AMORTİSMAN SÜRESİ) | BC5: HESAPLAMADA DİKKATE ALINACAK SÜRE (KIST VEYA NORMAL DURUMUNA GÖRE) | BD5: 2022 VE SONRASI AMORTİSMAN DÖNEMİ SAYISI | BE5: KALAN YILLAR İÇİN TOPLAM GİDER ETKİSİ (GEÇİCİ 32 VE 298 Ç NEDENİYLE FAZLA AYRILABİLECEK TOPLAM AMORTİSMAN TUTARI | BF5: TOPLAM VERGİ ETKİSİ (KALAN YILLAR İÇİN) | BI5: =BI3*23/100 -> 2937967.26
T6: YD ÖNCESİ MALİYET BEDELİ | U6: 31.12.2021 TARİHİ İTİBARİYLE AMORTİSMAN TUTARI | V6: NET AKTİF DEĞERİ | W6: BAŞLANGIÇ AYI | X6: BAŞLANGIÇ AYI ENDEKSİ | Y6: BİTİŞ AYI | Z6: BİTİŞ AYI ENDEKSİ | AA6: YD ORANI | AC6: YD SONRASI MALİYET BEDELİ | AD6: 31.12.2021 TARİHİ İTİBARİYLE AMORTİSMAN TUTARI (YD SONRASI) | AE6: NET AKTİF DEĞERİ (YD SONRASI) | AK6: BOŞ ARAZİ VE ARSA UYARISI | AL6: MÜK.298 Ç YAPILACAK MIDIR? | AM6: YD ÖNCESİ MALİYET BEDELİ | AN6: İLK YIL MALİYETE EKLENENLER HARİÇ DİĞER YILLARA İLİŞKİN KATLANILAN KUR FARKI VE FAİZ GİDERLERİNDEN İKTİSADİ KIYMETİN MALİYETİNE EKLENMİŞ OLAN TUTAR (TENZİL EDİLMESİ GEREKMEKTEDİR) | AO6: YD ÖNCESİ AYRILMIŞ SAYILAN AMORTİSMAN TUTARI (31.12.2021 E KADAR OLAN DÖNEM İÇİN) | AP6: YD ÖNCESİ NET AKTİF DEĞERİ | AQ6: YD SONRASI MALİYET BEDELİ | AR6: YD SONRASI AMORTİSMAN TUTARI (31.12.2021 İTİBARİYLE HESAPLANAN AMORTİSMAN TUTARININ YENİDEN DEĞERLENMİŞ HALİ) | AS6: YD SONRASI NET AKTİF DEĞERİ
B7: 1 | C7: ='DOLDURULMASI GEREKEN TABLO'!D21 -> Kesim Makinası | D7: ='DOLDURULMASI GEREKEN TABLO'!E21 -> 253- Tesis Makine ve Cihazlar | E7: ='DOLDURULMASI GEREKEN TABLO'!F21 -> 10 | F7: =IFERROR(IF(K7="AZALAN BAKİYELERE GÖRE AMORTİSMAN",MIN(1/E7,1/4),1/E7),0) -> 0.1 | G7: ='DOLDURULMASI GEREKEN TABLO'!G21 -> 2013-12-18 | H7: 2021-12-31 | I7: =IF(G7>44561,"2022 YILINDA İKTİSAP EDİLEN İÇİN GEÇİCİ 32 YE GÖRE 2022 YILINDA YD YAPILAMAZ","TARİH UYUMLU") -> TARİH UYUMLU | J7: ='DOLDURULMASI GEREKEN TABLO'!H21 -> 419572.51 | K7: ='DOLDURULMASI GEREKEN TABLO'!I21 -> AZALAN BAKİYELERE GÖRE AMORTİSMAN | L7: ='DOLDURULMASI GEREKEN TABLO'!J21 -> HAYIR | M7: =(H7-G7)+1 -> 2936 | N7: =MIN(YEAR(H7)-YEAR(G7)+1,E7) -> 9 | O7: =MIN(((YEAR(H7)-YEAR(G7))*12+(MONTH(H7)-MONTH(G7))+1)/12,E7) -> 8.083333333 | P7: =MIN(IF(L7="HAYIR",N7,O7),E7) -> 9 | Q7: =IF(D7="250- Arazi ve Arsalar",0,IF(N7=E7,J7,IF(AND(K7="NORMAL AMORTİSMAN",L7="HAYIR"),J7*F7*N7,IF(AND(K7="NORMAL AMORTİSMAN",L7="EVET"),J7*F7*O7,IF(AND(K7="AZALAN BAKİYELERE GÖRE AMORTİSMAN",L7="HAYIR",E7<=4), VDB(J7,0,4,0,N7,2,TRUE),IF(AND(K7="AZALAN BAKİYELERE GÖRE AMORTİSMAN",L7="HAYIR",AND(E7>4,N7<E7)), VDB(J7,0,E7,0,N7,2,TRUE),IF(AND(K7="AZALAN BAKİYELERE GÖRE AMORTİSMAN",L7="EVET",N7=1),(DDB(J7,0,IF(E7<=4,4,E7),1,2)/12)*(12-MONTH(G7)+1),IF(AND(K7="AZALAN BAKİYELERE GÖRE AMORTİSMAN",L7="EVET",N7=2),(DDB(J7,0,IF(E7<=4,4,E7),1,2)/12)*(12-MONTH(G7)+1)+DDB(J7,0,IF(E7<=4,4,E7),2,2),IF(AND(K7="AZALAN BAKİYELERE GÖRE AMORTİSMAN",L7="EVET",N7=3),(DDB(J7,0,IF(E7<=4,4,E7),1,2)/12)*(12-MONTH(G7)+1)+DDB(J7,0,IF(E7<=4,4,E7),2,2)+DDB(J7,0,IF(E7<=4,4,E7),3,2),IF(AND(K7="AZALAN BAKİYELERE GÖRE AMORTİSMAN",L7="EVET",N7=4),(DDB(J7,0,IF(E7<=4,4,E7),1,2)/12)*(12-MONTH(G7)+1)+DDB(J7,0,IF(E7<=4,4,E7),2,2)+DDB(J7,0,IF(E7<=4,4,E7),3,2)+DDB(J7,0,IF(E7<=4,4,E7),4,2),IF(AND(K7="AZALAN BAKİYELERE GÖRE AMORTİSMAN",L7="EVET",N7>=5),J7,"HATA"))))))))))) -> 363258.441 | R7: ='DOLDURULMASI GEREKEN TABLO'!K21 -> HAYIR | S7: ='DOLDURULMASI GEREKEN TABLO'!L21 -> HAYIR | T7: =J7 -> 419572.51 | U7: =Q7 -> 363258.441 | V7: =T7-U7 -> 56314.06902 | W7: =IF(AND(R7="EVET",S7="EVET"),"2021-6",IF(AND(R7="HAYIR",S7="EVET"),"2021-6",IF(AND(R7="EVET",S7="HAYIR"),"2018-5",IF(AND(R7="HAYIR",S7="HAYIR"),IF(AND(G7<=38352,R7="HAYIR",S7="HAYIR"),"2005-1",IF(MONTH(G7)+1=13,CONCATENATE(YEAR(G7)+1,"-",MONTH(G7)-11),CONCATENATE(YEAR(G7),"-",MONTH(G7)+1))))))) -> 2014-1 | X7: =IFERROR(VLOOKUP(W7,'Aylık Yİ-ÜFE'!$D$1:$E$217,2,0),0) -> 229.1 | Y7: 2021-12 | Z7: =VLOOKUP(Y7,'Aylık Yİ-ÜFE'!$D$1:$E$217,2,1) -> 1022.25 | AA7: =IFERROR(TRUNC(Z7/X7,5),0) -> 4.46202 | AB7: ='DOLDURULMASI GEREKEN TABLO'!M21 -> EVET | AC7: =MAX(IF(AB7="EVET",T7*AA7,T7),T7) -> 1872140.931 | AD7: =MAX(IF(AB7="EVET",U7*AA7,U7),U7) -> 1620866.429 | AE7: =AC7-AD7 -> 251274.5023 | AF7: =IFERROR(IF(AC7-T7<0,0,AC7-T7),0) -> 1452568.421 | AG7: =IFERROR(IF(AD7-U7<0,0,AD7-U7),0) -> 1257607.988 | AH7: =IFERROR(IF((AF7-AG7)<0,0,(AF7-AG7)),0) -> 194960.4332 | AI7: =IFERROR(AH7*2/100,0) -> 3899.208665 | AK7: =IF(D7="250- Arazi ve Arsalar","BOŞ ARAZİ VE ARSALAR MÜK.298 Ç YE GÖRE YD YAPILAMAZ","YD YAPILABİLİR") -> YD YAPILABİLİR | AL7: ='DOLDURULMASI GEREKEN TABLO'!O21 -> EVET | AM7: =IF(AK7="BOŞ ARAZİ VE ARSALAR MÜK.298 Ç YE GÖRE YD YAPILAMAZ",T7,AC7) -> 1872140.931 | AN7: ='DOLDURULMASI GEREKEN TABLO'!N21 -> 0 | AO7: =AD7 -> 1620866.429 | AP7: =AM7-AO7 -> 251274.5023 | AQ7: =IF(AND(AK7="YD YAPILABİLİR",AL7="EVET"),(AM7-AN7)*2.2293,AM7-AN7) -> 4173563.778 | AR7: =IFERROR(IF(AND(AK7="YD YAPILABİLİR",AL7="EVET"),AO7*2.2293,AO7),0) -> 3613397.53 | AS7: =AQ7-AR7 -> 560166.2479 | AT7: =AQ7-AM7 -> 2301422.847 | AU7: =AR7-AO7 -> 1992531.101 | AV7: =IF(AT7-AU7<0,0,AT7-AU7) -> 308891.7456 | AW7: =IF(K7="NORMAL AMORTİSMAN",AQ7*F7,IF(AND(K7="AZALAN BAKİYELERE GÖRE AMORTİSMAN",BC7<E7), DDB(AQ7,0,IF(E7<=4,4,E7),BC7,2),IF(AND(K7="AZALAN BAKİYELERE GÖRE AMORTİSMAN",BC7=E7),AQ7-AR7))) -> 560166.2479 | AY7: 2022-12-31 | AZ7: =G7 -> 2013-12-18 | BA7: =MIN(YEAR(AY7)-YEAR(AZ7)+1,E7) -> 10 | BB7: =MIN(((YEAR(AY7)-YEAR(G7))*12+(MONTH(AY7)-MONTH(G7))+1)/12,E7) -> 9.083333333 | BC7: =IF(L7="HAYIR",BA7,BB7) -> 10 | BD7: =IFERROR(ROUNDDOWN(E7-BC7,0)+1,0) -> 1 | BE7: =(AV7+AH7) -> 503852.1789 | BF7: =IFERROR(BE7*23/100,0) -> 115886.0011
B8: 2 | C8: ='DOLDURULMASI GEREKEN TABLO'!D22 -> Otomobil | D8: ='DOLDURULMASI GEREKEN TABLO'!E22 -> 254- Taşıtlar | E8: ='DOLDURULMASI GEREKEN TABLO'!F22 -> 5 | F8: =IFERROR(IF(K8="AZALAN BAKİYELERE GÖRE AMORTİSMAN",MIN(1/E8,1/4),1/E8),0) -> 0.2 | G8: ='DOLDURULMASI GEREKEN TABLO'!G22 -> 2018-05-18 | H8: 2021-12-31 | I8: =IF(G8>44561,"2022 YILINDA İKTİSAP EDİLEN İÇİN GEÇİCİ 32 YE GÖRE 2022 YILINDA YD YAPILAMAZ","TARİH UYUMLU") -> TARİH UYUMLU | J8: ='DOLDURULMASI GEREKEN TABLO'!H22 -> 1000000 | K8: ='DOLDURULMASI GEREKEN TABLO'!I22 -> AZALAN BAKİYELERE GÖRE AMORTİSMAN | L8: ='DOLDURULMASI GEREKEN TABLO'!J22 -> EVET | M8: =(H8-G8)+1 -> 1324 | N8: =MIN(YEAR(H8)-YEAR(G8)+1,E8) -> 4 | O8: =MIN(((YEAR(H8)-YEAR(G8))*12+(MONTH(H8)-MONTH(G8))+1)/12,E8) -> 3.666666667 | P8: =MIN(IF(L8="HAYIR",N8,O8),E8) -> 3.666666667 | Q8: =IF(D8="250- Arazi ve Arsalar",0,IF(N8=E8,J8,IF(AND(K8="NORMAL AMORTİSMAN",L8="HAYIR"),J8*F8*N8,IF(AND(K8="NORMAL AMORTİSMAN",L8="EVET"),J8*F8*O8,IF(AND(K8="AZALAN BAKİYELERE GÖRE AMORTİSMAN",L8="HAYIR",E8<=4), VDB(J8,0,4,0,N8,2,TRUE),IF(AND(K8="AZALAN BAKİYELERE GÖRE AMORTİSMAN",L8="HAYIR",AND(E8>4,N8<E8)), VDB(J8,0,E8,0,N8,2,TRUE),IF(AND(K8="AZALAN BAKİYELERE GÖRE AMORTİSMAN",L8="EVET",N8=1),(DDB(J8,0,IF(E8<=4,4,E8),1,2)/12)*(12-MONTH(G8)+1),IF(AND(K8="AZALAN BAKİYELERE GÖRE AMORTİSMAN",L8="EVET",N8=2),(DDB(J8,0,IF(E8<=4,4,E8),1,2)/12)*(12-MONTH(G8)+1)+DDB(J8,0,IF(E8<=4,4,E8),2,2),IF(AND(K8="AZALAN BAKİYELERE GÖRE AMORTİSMAN",L8="EVET",N8=3),(DDB(J8,0,IF(E8<=4,4,E8),1,2)/12)*(12-MONTH(G8)+1)+DDB(J8,0,IF(E8<=4,4,E8),2,2)+DDB(J8,0,IF(E8<=4,4,E8),3,2),IF(AND(K8="AZALAN BAKİYELERE GÖRE AMORTİSMAN",L8="EVET",N8=4),(DDB(J8,0,IF(E8<=4,4,E8),1,2)/12)*(12-MONTH(G8)+1)+DDB(J8,0,IF(E8<=4,4,E8),2,2)+DDB(J8,0,IF(E8<=4,4,E8),3,2)+DDB(J8,0,IF(E8<=4,4,E8),4,2),IF(AND(K8="AZALAN BAKİYELERE GÖRE AMORTİSMAN",L8="EVET",N8>=5),J8,"HATA"))))))))))) -> 737066.6667 | R8: ='DOLDURULMASI GEREKEN TABLO'!K22 -> EVET | S8: ='DOLDURULMASI GEREKEN TABLO'!L22 -> EVET | T8: 1000000 | U8: =Q8 -> 737066.6667 | V8: =T8-U8 -> 262933.3333 | W8: =IF(AND(R8="EVET",S8="EVET"),"2021-6",IF(AND(R8="HAYIR",S8="EVET"),"2021-6",IF(AND(R8="EVET",S8="HAYIR"),"2018-5",IF(AND(R8="HAYIR",S8="HAYIR"),IF(AND(G8<=38352,R8="HAYIR",S8="HAYIR"),"2005-1",IF(MONTH(G8)+1=13,CONCATENATE(YEAR(G8)+1,"-",MONTH(G8)-11),CONCATENATE(YEAR(G8),"-",MONTH(G8)+1))))))) -> 2021-6 | X8: =IFERROR(VLOOKUP(W8,'Aylık Yİ-ÜFE'!$D$1:$E$217,2,0),0) -> 693.54 | Y8: 2021-12 | Z8: =VLOOKUP(Y8,'Aylık Yİ-ÜFE'!$D$1:$E$217,2,1) -> 1022.25 | AA8: =IFERROR(TRUNC(Z8/X8,5),0) -> 1.47395 | AB8: ='DOLDURULMASI GEREKEN TABLO'!M22 -> EVET | AC8: =MAX(IF(AB8="EVET",T8*AA8,T8),T8) -> 1473950 | AD8: =MAX(IF(AB8="EVET",U8*AA8,U8),U8) -> 1086399.413 | AE8: =AC8-AD8 -> 387550.5867 | AF8: =IFERROR(IF(AC8-T8<0,0,AC8-T8),0) -> 473950 | AG8: =IFERROR(IF(AD8-U8<0,0,AD8-U8),0) -> 349332.7467 | AH8: =IFERROR(IF((AF8-AG8)<0,0,(AF8-AG8)),0) -> 124617.2533 | AI8: =IFERROR(AH8*2/100,0) -> 2492.345067 | AK8: YD YAPILABİLİR | AL8: ='DOLDURULMASI GEREKEN TABLO'!O22 -> EVET | AM8: 1473950 | AN8: ='DOLDURULMASI GEREKEN TABLO'!N22 -> 0 | AO8: =AD8 -> 1086399.413 | AP8: =AM8-AO8 -> 387550.5867 | AQ8: =IF(AND(AK8="YD YAPILABİLİR",AL8="EVET"),(AM8-AN8)*2.2293,AM8-AN8) -> 3285876.735 | AR8: =IFERROR(IF(AND(AK8="YD YAPILABİLİR",AL8="EVET"),AO8*2.2293,AO8),0) -> 2421910.212 | AS8: =AQ8-AR8 -> 863966.5229 | AT8: =AQ8-AM8 -> 1811926.735 | AU8: =AR8-AO8 -> 1335510.799 | AV8: =IF(AT8-AU8<0,0,AT8-AU8) -> 476415.9362 | AW8: =IF(K8="NORMAL AMORTİSMAN",AQ8*F8,IF(AND(K8="AZALAN BAKİYELERE GÖRE AMORTİSMAN",BC8<E8), DDB(AQ8,0,IF(E8<=4,4,E8),BC8,2),IF(AND(K8="AZALAN BAKİYELERE GÖRE AMORTİSMAN",BC8=E8),AQ8-AR8))) -> 201960.2239 | AY8: 2022-12-31 | AZ8: =G8 -> 2018-05-18 | BA8: =MIN(YEAR(AY8)-YEAR(G8)+1,E8) -> 5 | BB8: 4.666666667 | BC8: =IF(L8="HAYIR",BA8,BB8) -> 4.666666667 | BD8: =IFERROR(ROUNDDOWN(E8-BC8,0)+1,0) -> 1 | BE8: =(AV8+AH8) -> 601033.1895 | BF8: =IFERROR(BE8*23/100,0) -> 138237.6336
B9: 3 | C9: ='DOLDURULMASI GEREKEN TABLO'!D23 -> Cep Telofonu Araç Kiti | D9: ='DOLDURULMASI GEREKEN TABLO'!E23 -> 255- Demirbaşlar | E9: ='DOLDURULMASI GEREKEN TABLO'!F23 -> 3 | F9: 0.25 | G9: ='DOLDURULMASI GEREKEN TABLO'!G23 -> 2019-09-01 | H9: 2021-12-31 | I9: =IF(G9>44561,"2022 YILINDA İKTİSAP EDİLEN İÇİN GEÇİCİ 32 YE GÖRE 2022 YILINDA YD YAPILAMAZ","TARİH UYUMLU") -> TARİH UYUMLU | J9: ='DOLDURULMASI GEREKEN TABLO'!H23 -> 3000 | K9: ='DOLDURULMASI GEREKEN TABLO'!I23 -> AZALAN BAKİYELERE GÖRE AMORTİSMAN | L9: ='DOLDURULMASI GEREKEN TABLO'!J23 -> EVET | M9: 853 | N9: 3 | O9: 2.333333333 | P9: =MIN(IF(L9="HAYIR",N9,O9),E9) -> 2.333333333 | Q9: 3000 | R9: ='DOLDURULMASI GEREKEN TABLO'!K23 -> HAYIR | S9: ='DOLDURULMASI GEREKEN TABLO'!L23 -> HAYIR | T9: 3000 | U9: =Q9 -> 3000 | V9: =T9-U9 -> 0 | W9: 2019-10 | X9: =IFERROR(VLOOKUP(W9,'Aylık Yİ-ÜFE'!$D$1:$E$217,2,0),0) -> 451.31 | Y9: 2021-12 | Z9: =VLOOKUP(Y9,'Aylık Yİ-ÜFE'!$D$1:$E$217,2,1) -> 1022.25 | AA9: =IFERROR(TRUNC(Z9/X9,5),0) -> 2.26507 | AB9: ='DOLDURULMASI GEREKEN TABLO'!M23 -> EVET | AC9: 6795.21 | AD9: 6795.21 | AE9: =AC9-AD9 -> 0 | AF9: 3795.21 | AG9: 3795.21 | AH9: 0 | AI9: 0 | AK9: YD YAPILABİLİR | AL9: ='DOLDURULMASI GEREKEN TABLO'!O23 -> EVET | AM9: 6795.21 | AN9: ='DOLDURULMASI GEREKEN TABLO'!N23 -> 0 | AO9: 6795.21 | AP9: =AM9-AO9 -> 0 | AQ9: 15148.56165 | AR9: =IFERROR(IF(AND(AK9="YD YAPILABİLİR",AL9="EVET"),AO9*2.2293,AO9),0) -> 15148.56165 | AS9: =AQ9-AR9 -> 0 | AT9: =AQ9-AM9 -> 8353.351653 | AU9: =AR9-AO9 -> 8353.351653 | AV9: =IF(AT9-AU9<0,0,AT9-AU9) -> 0 | AW9: 0 | AY9: 2022-12-31 | AZ9: 2019-09-01 | BA9: =MIN(YEAR(AY9)-YEAR(G9)+1,E9) -> 3 | BB9: 3 | BC9: 3 | BD9: 1 | BE9: 0 | BF9: 0
B10: 4 | C10: ='DOLDURULMASI GEREKEN TABLO'!D24 -> Masa | D10: ='DOLDURULMASI GEREKEN TABLO'!E24 -> 255- Demirbaşlar | E10: ='DOLDURULMASI GEREKEN TABLO'!F24 -> 5 | F10: 0.2 | G10: ='DOLDURULMASI GEREKEN TABLO'!G24 -> 2021-12-10 | H10: 2021-12-31 | I10: TARİH UYUMLU | J10: ='DOLDURULMASI GEREKEN TABLO'!H24 -> 10000 | K10: ='DOLDURULMASI GEREKEN TABLO'!I24 -> NORMAL AMORTİSMAN | L10: ='DOLDURULMASI GEREKEN TABLO'!J24 -> HAYIR | M10: 22 | N10: 1 | O10: 0.08333333333 | P10: =MIN(IF(L10="HAYIR",N10,O10),E10) -> 1 | Q10: 2000 | R10: ='DOLDURULMASI GEREKEN TABLO'!K24 -> HAYIR | S10: ='DOLDURULMASI GEREKEN TABLO'!L24 -> HAYIR | T10: 10000 | U10: 2000 | V10: 8000 | W10: 2022-1 | X10: =IFERROR(VLOOKUP(W10,'Aylık Yİ-ÜFE'!$D$1:$E$217,2,0),0) -> 1129.03 | Y10: 2021-12 | Z10: =VLOOKUP(Y10,'Aylık Yİ-ÜFE'!$D$1:$E$217,2,1) -> 1022.25 | AA10: 0.90542 | AB10: ='DOLDURULMASI GEREKEN TABLO'!M24 -> EVET | AC10: 10000 | AD10: 2000 | AE10: 8000 | AF10: 0 | AG10: 0 | AH10: 0 | AI10: 0 | AK10: YD YAPILABİLİR | AL10: ='DOLDURULMASI GEREKEN TABLO'!O24 -> EVET | AM10: 10000 | AN10: ='DOLDURULMASI GEREKEN TABLO'!N24 -> 0 | AO10: 2000 | AP10: 8000 | AQ10: 22293 | AR10: 4458.6 | AS10: 17834.4 | AT10: 12293 | AU10: 2458.6 | AV10: 9834.4 | AW10: 4458.6 | AY10: 2022-12-31 | AZ10: 2021-12-10 | BA10: 2 | BB10: 1.083333333 | BC10: 2 | BD10: 4 | BE10: 9834.4 | BF10: 2261.912
B11: 5 | C11: ='DOLDURULMASI GEREKEN TABLO'!D25 -> Arsa | D11: ='DOLDURULMASI GEREKEN TABLO'!E25 -> 250- Arazi ve Arsalar | E11: ='DOLDURULMASI GEREKEN TABLO'!F25 -> SONSUZ | F11: 0 | G11: ='DOLDURULMASI GEREKEN TABLO'!G25 -> 2020-10-10 | H11: 2021-12-31 | I11: TARİH UYUMLU | J11: ='DOLDURULMASI GEREKEN TABLO'!H25 -> 10000000 | K11: ='DOLDURULMASI GEREKEN TABLO'!I25 -> AMORTİSMANA TABİ DEĞİL | L11: ='DOLDURULMASI GEREKEN TABLO'!J25 -> HAYIR | M11: 448 | N11: 2 | O11: 1.25 | P11: 2 | Q11: 0 | R11: ='DOLDURULMASI GEREKEN TABLO'!K25 -> HAYIR | S11: ='DOLDURULMASI GEREKEN TABLO'!L25 -> HAYIR | T11: 10000000 | U11: 0 | V11: 10000000 | W11: 2020-11 | X11: =IFERROR(VLOOKUP(W11,'Aylık Yİ-ÜFE'!$D$1:$E$217,2,0),0) -> 555.18 | Y11: 2021-12 | Z11: =VLOOKUP(Y11,'Aylık Yİ-ÜFE'!$D$1:$E$217,2,1) -> 1022.25 | AA11: 1.84129 | AB11: ='DOLDURULMASI GEREKEN TABLO'!M25 -> EVET | AC11: 18412900 | AD11: 0 | AE11: 18412900 | AF11: 8412900 | AG11: 0 | AH11: 8412900 | AI11: 168258 | AK11: BOŞ ARAZİ VE ARSALAR MÜK.298 Ç YE GÖRE YD YAPILAMAZ | AL11: ='DOLDURULMASI GEREKEN TABLO'!O25 -> HAYIR | AM11: 10000000 | AN11: ='DOLDURULMASI GEREKEN TABLO'!N25 -> 0 | AO11: 0 | AP11: 10000000 | AQ11: 10000000 | AR11: 0 | AS11: 10000000 | AT11: 0 | AU11: 0 | AV11: 0 | AW11: FALSE | AY11: 2022-12-31 | AZ11: 2020-10-10 | BA11: 3 | BB11: 2.25 | BC11: 3 | BD11: =IFERROR(ROUNDDOWN(E11-BC11,0)+1,0) -> 0 | BE11: =(AV11+AH11) -> 8412900 | BF11: 1934967
B12: 6 | C12: ='DOLDURULMASI GEREKEN TABLO'!D26 -> daire | D12: ='DOLDURULMASI GEREKEN TABLO'!E26 -> 252- Binalar | E12: ='DOLDURULMASI GEREKEN TABLO'!F26 -> 33 | F12: 0.0303030303 | G12: ='DOLDURULMASI GEREKEN TABLO'!G26 -> 2016-06-03 | H12: 2021-12-31 | I12: TARİH UYUMLU | J12: ='DOLDURULMASI GEREKEN TABLO'!H26 -> 501545.22 | K12: ='DOLDURULMASI GEREKEN TABLO'!I26 -> NORMAL AMORTİSMAN | L12: ='DOLDURULMASI GEREKEN TABLO'!J26 -> HAYIR | M12: 2038 | N12: 6 | O12: 5.583333333 | P12: 6 | Q12: 91190.04 | R12: ='DOLDURULMASI GEREKEN TABLO'!K26 -> HAYIR | S12: ='DOLDURULMASI GEREKEN TABLO'!L26 -> HAYIR | T12: 501545.22 | U12: 91190.04 | V12: 410355.18 | W12: 2016-7 | X12: =IFERROR(VLOOKUP(W12,'Aylık Yİ-ÜFE'!$D$1:$E$217,2,0),0) -> 257.81 | Y12: 2021-12 | Z12: =VLOOKUP(Y12,'Aylık Yİ-ÜFE'!$D$1:$E$217,2,1) -> 1022.25 | AA12: 3.96512 | AB12: ='DOLDURULMASI GEREKEN TABLO'!M26 -> EVET | AC12: 1988686.983 | AD12: 361579.4514 | AE12: 1627107.531 | AF12: 1487141.763 | AG12: 270389.4114 | AH12: 1216752.351 | AI12: 24335.04703 | AK12: YD YAPILABİLİR | AL12: ='DOLDURULMASI GEREKEN TABLO'!O26 -> EVET | AM12: 1988686.983 | AN12: ='DOLDURULMASI GEREKEN TABLO'!N26 -> 0 | AO12: 361579.4514 | AP12: 1627107.531 | AQ12: 4433379.891 | AR12: 806069.071 | AS12: 3627310.82 | AT12: 2444692.908 | AU12: 444489.6196 | AV12: 2000203.288 | AW12: 134344.8452 | AY12: 2022-12-31 | AZ12: 2016-06-03 | BA12: 7 | BB12: 6.583333333 | BC12: 7 | BD12: 27 | BE12: 3216955.64 | BF12: 739899.7971
B13: 7 | C13: ='DOLDURULMASI GEREKEN TABLO'!D27 -> Cep Telofonu Araç Kiti | D13: ='DOLDURULMASI GEREKEN TABLO'!E27 -> 255- Demirbaşlar | E13: ='DOLDURULMASI GEREKEN TABLO'!F27 -> 3 | F13: 0.25 | G13: ='DOLDURULMASI GEREKEN TABLO'!G27 -> 2021-08-05 | H13: 2021-12-31 | I13: TARİH UYUMLU | J13: ='DOLDURULMASI GEREKEN TABLO'!H27 -> 10000 | K13: ='DOLDURULMASI GEREKEN TABLO'!I27 -> AZALAN BAKİYELERE GÖRE AMORTİSMAN | L13: ='DOLDURULMASI GEREKEN TABLO'!J27 -> HAYIR | M13: 149 | N13: 1 | O13: 0.4166666667 | P13: 1 | Q13: 5000 | R13: ='DOLDURULMASI GEREKEN TABLO'!K27 -> HAYIR | S13: ='DOLDURULMASI GEREKEN TABLO'!L27 -> HAYIR | T13: 10000 | U13: 5000 | V13: 5000 | W13: 2021-9 | X13: =IFERROR(VLOOKUP(W13,'Aylık Yİ-ÜFE'!$D$1:$E$217,2,0),0) -> 741.58 | Y13: 2021-12 | Z13: =VLOOKUP(Y13,'Aylık Yİ-ÜFE'!$D$1:$E$217,2,1) -> 1022.25 | AA13: 1.37847 | AB13: ='DOLDURULMASI GEREKEN TABLO'!M27 -> EVET | AC13: 13784.7 | AD13: 6892.35 | AE13: 6892.35 | AF13: 3784.7 | AG13: 1892.35 | AH13: 1892.35 | AI13: 37.847 | AK13: YD YAPILABİLİR | AL13: ='DOLDURULMASI GEREKEN TABLO'!O27 -> EVET | AM13: 13784.7 | AN13: ='DOLDURULMASI GEREKEN TABLO'!N27 -> 0 | AO13: 6892.35 | AP13: 6892.35 | AQ13: 30730.23171 | AR13: 15365.11586 | AS13: 15365.11586 | AT13: 16945.53171 | AU13: 8472.765855 | AV13: 8472.765855 | AW13: 7682.557928 | AY13: 2022-12-31 | AZ13: 2021-08-05 | BA13: 2 | BB13: 1.416666667 | BC13: 2 | BD13: 2 | BE13: 10365.11586 | BF13: 2383.976647
B14: 8 | C14: ='DOLDURULMASI GEREKEN TABLO'!D28 -> Bilgisayar | D14: ='DOLDURULMASI GEREKEN TABLO'!E28 -> 255- Demirbaşlar | E14: ='DOLDURULMASI GEREKEN TABLO'!F28 -> 5 | F14: 0.2 | G14: ='DOLDURULMASI GEREKEN TABLO'!G28 -> 2019-01-20 | H14: 2021-12-31 | I14: TARİH UYUMLU | J14: ='DOLDURULMASI GEREKEN TABLO'!H28 -> 20000 | K14: ='DOLDURULMASI GEREKEN TABLO'!I28 -> AZALAN BAKİYELERE GÖRE AMORTİSMAN | L14: ='DOLDURULMASI GEREKEN TABLO'!J28 -> HAYIR | M14: 1077 | N14: 3 | O14: 3 | P14: 3 | Q14: 15680 | R14: ='DOLDURULMASI GEREKEN TABLO'!K28 -> HAYIR | S14: ='DOLDURULMASI GEREKEN TABLO'!L28 -> HAYIR | T14: 20000 | U14: 15680 | V14: 4320 | W14: 2019-2 | X14: =IFERROR(VLOOKUP(W14,'Aylık Yİ-ÜFE'!$D$1:$E$217,2,0),0) -> 425.26 | Y14: 2021-12 | Z14: =VLOOKUP(Y14,'Aylık Yİ-ÜFE'!$D$1:$E$217,2,1) -> 1022.25 | AA14: 2.40382 | AB14: ='DOLDURULMASI GEREKEN TABLO'!M28 -> EVET | AC14: 48076.4 | AD14: 37691.8976 | AE14: 10384.5024 | AF14: 28076.4 | AG14: 22011.8976 | AH14: 6064.5024 | AI14: 121.290048 | AK14: YD YAPILABİLİR | AL14: ='DOLDURULMASI GEREKEN TABLO'!O28 -> EVET | AM14: 48076.4 | AN14: ='DOLDURULMASI GEREKEN TABLO'!N28 -> 0 | AO14: 37691.8976 | AP14: 10384.5024 | AQ14: 107176.7185 | AR14: 84026.54732 | AS14: 23150.1712 | AT14: 59100.31852 | AU14: 46334.64972 | AV14: 12765.6688 | AW14: =IF(K14="NORMAL AMORTİSMAN",AQ14*F14,IF(AND(K14="AZALAN BAKİYELERE GÖRE AMORTİSMAN",BC14<E14), DDB(AQ14,0,IF(E14<=4,4,E14),BC14,2),IF(AND(K14="AZALAN BAKİYELERE GÖRE AMORTİSMAN",BC14=E14),AQ14-AR14))) -> 9260.06848 | AY14: 2022-12-31 | AZ14: 2019-01-20 | BA14: 4 | BB14: 4 | BC14: 4 | BD14: 2 | BE14: 18830.1712 | BF14: 4330.939376
B15: 9 | C15: ='DOLDURULMASI GEREKEN TABLO'!D29 -> 0 | D15: ='DOLDURULMASI GEREKEN TABLO'!E29 -> 0 | E15: ='DOLDURULMASI GEREKEN TABLO'!F29 -> 0 | F15: 0 | G15: ='DOLDURULMASI GEREKEN TABLO'!G29 -> 00:00:00 | H15: 2021-12-31 | I15: TARİH UYUMLU | J15: ='DOLDURULMASI GEREKEN TABLO'!H29 -> 0 | K15: ='DOLDURULMASI GEREKEN TABLO'!I29 -> 0 | L15: ='DOLDURULMASI GEREKEN TABLO'!J29 -> 0 | M15: 44562 | N15: 0 | O15: 0 | P15: 0 | Q15: 0 | R15: ='DOLDURULMASI GEREKEN TABLO'!K29 -> 0 | S15: ='DOLDURULMASI GEREKEN TABLO'!L29 -> 0 | T15: 0 | U15: 0 | V15: 0 | W15: FALSE | X15: =IFERROR(VLOOKUP(W15,'Aylık Yİ-ÜFE'!$D$1:$E$217,2,0),0) -> 0 | Y15: 2021-12 | Z15: =VLOOKUP(Y15,'Aylık Yİ-ÜFE'!$D$1:$E$217,2,1) -> 1022.25 | AA15: 0 | AB15: ='DOLDURULMASI GEREKEN TABLO'!M29 -> 0 | AC15: 0 | AD15: 0 | AE15: 0 | AF15: 0 | AG15: 0 | AH15: 0 | AI15: 0 | AK15: YD YAPILABİLİR | AL15: ='DOLDURULMASI GEREKEN TABLO'!O29 -> 0 | AM15: 0 | AN15: ='DOLDURULMASI GEREKEN TABLO'!N29 -> 0 | AO15: 0 | AP15: 0 | AQ15: 0 | AR15: 0 | AS15: 0 | AT15: 0 | AU15: 0 | AV15: 0 | AW15: =IF(K15="NORMAL AMORTİSMAN",AQ15*F15,IF(AND(K15="AZALAN BAKİYELERE GÖRE AMORTİSMAN",BC15<E15), DDB(AQ15,0,IF(E15<=4,4,E15),BC15,2),IF(AND(K15="AZALAN BAKİYELERE GÖRE AMORTİSMAN",BC15=E15),AQ15-AR15))) -> FALSE | AY15: 2022-12-31 | AZ15: 00:00:00 | BA15: 0 | BB15: 0 | BC15: 0 | BD15: 1 | BE15: 0 | BF15: 0
B16: 10 | C16: ='DOLDURULMASI GEREKEN TABLO'!D30 -> 0 | D16: ='DOLDURULMASI GEREKEN TABLO'!E30 -> 0 | E16: ='DOLDURULMASI GEREKEN TABLO'!F30 -> 0 | F16: 0 | G16: ='DOLDURULMASI GEREKEN TABLO'!G30 -> 00:00:00 | H16: 2021-12-31 | I16: TARİH UYUMLU | J16: ='DOLDURULMASI GEREKEN TABLO'!H30 -> 0 | K16: ='DOLDURULMASI GEREKEN TABLO'!I30 -> 0 | L16: ='DOLDURULMASI GEREKEN TABLO'!J30 -> 0 | M16: 44562 | N16: 0 | O16: 0 | P16: 0 | Q16: 0 | R16: ='DOLDURULMASI GEREKEN TABLO'!K30 -> 0 | S16: ='DOLDURULMASI GEREKEN TABLO'!L30 -> 0 | T16: 0 | U16: 0 | V16: 0 | W16: FALSE | X16: =IFERROR(VLOOKUP(W16,'Aylık Yİ-ÜFE'!$D$1:$E$217,2,0),0) -> 0 | Y16: 2021-12 | Z16: =VLOOKUP(Y16,'Aylık Yİ-ÜFE'!$D$1:$E$217,2,1) -> 1022.25 | AA16: 0 | AB16: ='DOLDURULMASI GEREKEN TABLO'!M30 -> 0 | AC16: 0 | AD16: 0 | AE16: 0 | AF16: 0 | AG16: 0 | AH16: 0 | AI16: 0 | AK16: YD YAPILABİLİR | AL16: ='DOLDURULMASI GEREKEN TABLO'!O30 -> 0 | AM16: 0 | AN16: ='DOLDURULMASI GEREKEN TABLO'!N30 -> 0 | AO16: 0 | AP16: 0 | AQ16: 0 | AR16: 0 | AS16: 0 | AT16: 0 | AU16: 0 | AV16: 0 | AW16: FALSE | AY16: 2022-12-31 | AZ16: 00:00:00 | BA16: 0 | BB16: 0 | BC16: 0 | BD16: 1 | BE16: 0 | BF16: 0
B17: 11 | C17: ='DOLDURULMASI GEREKEN TABLO'!D31 -> 0 | D17: ='DOLDURULMASI GEREKEN TABLO'!E31 -> 0 | E17: ='DOLDURULMASI GEREKEN TABLO'!F31 -> 0 | F17: 0 | G17: ='DOLDURULMASI GEREKEN TABLO'!G31 -> 00:00:00 | H17: 2021-12-31 | I17: TARİH UYUMLU | J17: ='DOLDURULMASI GEREKEN TABLO'!H31 -> 0 | K17: ='DOLDURULMASI GEREKEN TABLO'!I31 -> 0 | L17: ='DOLDURULMASI GEREKEN TABLO'!J31 -> 0 | M17: 44562 | N17: 0 | O17: 0 | P17: 0 | Q17: 0 | R17: ='DOLDURULMASI GEREKEN TABLO'!K31 -> 0 | S17: ='DOLDURULMASI GEREKEN TABLO'!L31 -> 0 | T17: 0 | U17: 0 | V17: 0 | W17: FALSE | X17: =IFERROR(VLOOKUP(W17,'Aylık Yİ-ÜFE'!$D$1:$E$217,2,0),0) -> 0 | Y17: 2021-12 | Z17: =VLOOKUP(Y17,'Aylık Yİ-ÜFE'!$D$1:$E$217,2,1) -> 1022.25 | AA17: 0 | AB17: ='DOLDURULMASI GEREKEN TABLO'!M31 -> 0 | AC17: 0 | AD17: 0 | AE17: 0 | AF17: 0 | AG17: 0 | AH17: 0 | AI17: 0 | AK17: YD YAPILABİLİR | AL17: ='DOLDURULMASI GEREKEN TABLO'!O31 -> 0 | AM17: 0 | AN17: ='DOLDURULMASI GEREKEN TABLO'!N31 -> 0 | AO17: 0 | AP17: 0 | AQ17: 0 | AR17: 0 | AS17: 0 | AT17: 0 | AU17: 0 | AV17: 0 | AW17: FALSE | AY17: 2022-12-31 | AZ17: 00:00:00 | BA17: 0 | BB17: 0 | BC17: 0 | BD17: 1 | BE17: 0 | BF17: 0
B18: 12 | C18: ='DOLDURULMASI GEREKEN TABLO'!D32 -> 0 | D18: ='DOLDURULMASI GEREKEN TABLO'!E32 -> 0 | E18: ='DOLDURULMASI GEREKEN TABLO'!F32 -> 0 | F18: 0 | G18: ='DOLDURULMASI GEREKEN TABLO'!G32 -> 00:00:00 | H18: 2021-12-31 | I18: TARİH UYUMLU | J18: ='DOLDURULMASI GEREKEN TABLO'!H32 -> 0 | K18: ='DOLDURULMASI GEREKEN TABLO'!I32 -> 0 | L18: ='DOLDURULMASI GEREKEN TABLO'!J32 -> 0 | M18: 44562 | N18: 0 | O18: 0 | P18: 0 | Q18: 0 | R18: ='DOLDURULMASI GEREKEN TABLO'!K32 -> 0 | S18: ='DOLDURULMASI GEREKEN TABLO'!L32 -> 0 | T18: 0 | U18: 0 | V18: 0 | W18: FALSE | X18: =IFERROR(VLOOKUP(W18,'Aylık Yİ-ÜFE'!$D$1:$E$217,2,0),0) -> 0 | Y18: 2021-12 | Z18: =VLOOKUP(Y18,'Aylık Yİ-ÜFE'!$D$1:$E$217,2,1) -> 1022.25 | AA18: 0 | AB18: ='DOLDURULMASI GEREKEN TABLO'!M32 -> 0 | AC18: 0 | AD18: 0 | AE18: 0 | AF18: 0 | AG18: 0 | AH18: 0 | AI18: 0 | AK18: YD YAPILABİLİR | AL18: ='DOLDURULMASI GEREKEN TABLO'!O32 -> 0 | AM18: 0 | AN18: ='DOLDURULMASI GEREKEN TABLO'!N32 -> 0 | AO18: 0 | AP18: 0 | AQ18: 0 | AR18: 0 | AS18: 0 | AT18: 0 | AU18: 0 | AV18: 0 | AW18: FALSE | AY18: 2022-12-31 | AZ18: 00:00:00 | BA18: 0 | BB18: 0 | BC18: 0 | BD18: 1 | BE18: 0 | BF18: 0
B19: 13 | C19: ='DOLDURULMASI GEREKEN TABLO'!D33 -> 0 | D19: ='DOLDURULMASI GEREKEN TABLO'!E33 -> 0 | E19: ='DOLDURULMASI GEREKEN TABLO'!F33 -> 0 | F19: 0 | G19: ='DOLDURULMASI GEREKEN TABLO'!G33 -> 00:00:00 | H19: 2021-12-31 | I19: TARİH UYUMLU | J19: ='DOLDURULMASI GEREKEN TABLO'!H33 -> 0 | K19: ='DOLDURULMASI GEREKEN TABLO'!I33 -> 0 | L19: ='DOLDURULMASI GEREKEN TABLO'!J33 -> 0 | M19: 44562 | N19: 0 | O19: 0 | P19: 0 | Q19: 0 | R19: ='DOLDURULMASI GEREKEN TABLO'!K33 -> 0 | S19: ='DOLDURULMASI GEREKEN TABLO'!L33 -> 0 | T19: 0 | U19: 0 | V19: 0 | W19: FALSE | X19: =IFERROR(VLOOKUP(W19,'Aylık Yİ-ÜFE'!$D$1:$E$217,2,0),0) -> 0 | Y19: 2021-12 | Z19: =VLOOKUP(Y19,'Aylık Yİ-ÜFE'!$D$1:$E$217,2,1) -> 1022.25 | AA19: 0 | AB19: ='DOLDURULMASI GEREKEN TABLO'!M33 -> 0 | AC19: 0 | AD19: 0 | AE19: 0 | AF19: 0 | AG19: 0 | AH19: 0 | AI19: 0 | AK19: YD YAPILABİLİR | AL19: ='DOLDURULMASI GEREKEN TABLO'!O33 -> 0 | AM19: 0 | AN19: ='DOLDURULMASI GEREKEN TABLO'!N33 -> 0 | AO19: 0 | AP19: 0 | AQ19: 0 | AR19: 0 | AS19: 0 | AT19: 0 | AU19: 0 | AV19: 0 | AW19: FALSE | AY19: 2022-12-31 | AZ19: 00:00:00 | BA19: 0 | BB19: 0 | BC19: 0 | BD19: 1 | BE19: 0 | BF19: 0
B20: 14 | C20: ='DOLDURULMASI GEREKEN TABLO'!D34 -> 0 | D20: ='DOLDURULMASI GEREKEN TABLO'!E34 -> 0 | E20: ='DOLDURULMASI GEREKEN TABLO'!F34 -> 0 | F20: 0 | G20: ='DOLDURULMASI GEREKEN TABLO'!G34 -> 00:00:00 | H20: 2021-12-31 | I20: TARİH UYUMLU | J20: ='DOLDURULMASI GEREKEN TABLO'!H34 -> 0 | K20: ='DOLDURULMASI GEREKEN TABLO'!I34 -> 0 | L20: ='DOLDURULMASI GEREKEN TABLO'!J34 -> 0 | M20: 44562 | N20: 0 | O20: 0 | P20: 0 | Q20: 0 | R20: ='DOLDURULMASI GEREKEN TABLO'!K34 -> 0 | S20: ='DOLDURULMASI GEREKEN TABLO'!L34 -> 0 | T20: 0 | U20: 0 | V20: 0 | W20: FALSE | X20: =IFERROR(VLOOKUP(W20,'Aylık Yİ-ÜFE'!$D$1:$E$217,2,0),0) -> 0 | Y20: 2021-12 | Z20: =VLOOKUP(Y20,'Aylık Yİ-ÜFE'!$D$1:$E$217,2,1) -> 1022.25 | AA20: 0 | AB20: ='DOLDURULMASI GEREKEN TABLO'!M34 -> 0 | AC20: 0 | AD20: 0 | AE20: 0 | AF20: 0 | AG20: 0 | AH20: 0 | AI20: 0 | AK20: YD YAPILABİLİR | AL20: ='DOLDURULMASI GEREKEN TABLO'!O34 -> 0 | AM20: 0 | AN20: ='DOLDURULMASI GEREKEN TABLO'!N34 -> 0 | AO20: 0 | AP20: 0 | AQ20: 0 | AR20: 0 | AS20: 0 | AT20: 0 | AU20: 0 | AV20: 0 | AW20: FALSE | AY20: 2022-12-31 | AZ20: 00:00:00 | BA20: 0 | BB20: 0 | BC20: 0 | BD20: 1 | BE20: 0 | BF20: 0
B21: 15 | C21: ='DOLDURULMASI GEREKEN TABLO'!D35 -> 0 | D21: ='DOLDURULMASI GEREKEN TABLO'!E35 -> 0 | E21: ='DOLDURULMASI GEREKEN TABLO'!F35 -> 0 | F21: 0 | G21: ='DOLDURULMASI GEREKEN TABLO'!G35 -> 00:00:00 | H21: 2021-12-31 | I21: TARİH UYUMLU | J21: ='DOLDURULMASI GEREKEN TABLO'!H35 -> 0 | K21: ='DOLDURULMASI GEREKEN TABLO'!I35 -> 0 | L21: ='DOLDURULMASI GEREKEN TABLO'!J35 -> 0 | M21: 44562 | N21: 0 | O21: 0 | P21: 0 | Q21: 0 | R21: ='DOLDURULMASI GEREKEN TABLO'!K35 -> 0 | S21: ='DOLDURULMASI GEREKEN TABLO'!L35 -> 0 | T21: 0 | U21: 0 | V21: 0 | W21: FALSE | X21: =IFERROR(VLOOKUP(W21,'Aylık Yİ-ÜFE'!$D$1:$E$217,2,0),0) -> 0 | Y21: 2021-12 | Z21: =VLOOKUP(Y21,'Aylık Yİ-ÜFE'!$D$1:$E$217,2,1) -> 1022.25 | AA21: 0 | AB21: ='DOLDURULMASI GEREKEN TABLO'!M35 -> 0 | AC21: 0 | AD21: 0 | AE21: 0 | AF21: 0 | AG21: 0 | AH21: 0 | AI21: 0 | AK21: YD YAPILABİLİR | AL21: ='DOLDURULMASI GEREKEN TABLO'!O35 -> 0 | AM21: 0 | AN21: ='DOLDURULMASI GEREKEN TABLO'!N35 -> 0 | AO21: 0 | AP21: 0 | AQ21: 0 | AR21: 0 | AS21: 0 | AT21: 0 | AU21: 0 | AV21: 0 | AW21: FALSE | AY21: 2022-12-31 | AZ21: 00:00:00 | BA21: 0 | BB21: 0 | BC21: 0 | BD21: 1 | BE21: 0 | BF21: 0
B22: 16 | C22: ='DOLDURULMASI GEREKEN TABLO'!D36 -> 0 | D22: ='DOLDURULMASI GEREKEN TABLO'!E36 -> 0 | E22: ='DOLDURULMASI GEREKEN TABLO'!F36 -> 0 | F22: 0 | G22: ='DOLDURULMASI GEREKEN TABLO'!G36 -> 00:00:00 | H22: 2021-12-31 | I22: TARİH UYUMLU | J22: ='DOLDURULMASI GEREKEN TABLO'!H36 -> 0 | K22: ='DOLDURULMASI GEREKEN TABLO'!I36 -> 0 | L22: ='DOLDURULMASI GEREKEN TABLO'!J36 -> 0 | M22: 44562 | N22: 0 | O22: 0 | P22: 0 | Q22: 0 | R22: ='DOLDURULMASI GEREKEN TABLO'!K36 -> 0 | S22: ='DOLDURULMASI GEREKEN TABLO'!L36 -> 0 | T22: 0 | U22: 0 | V22: 0 | W22: FALSE | X22: =IFERROR(VLOOKUP(W22,'Aylık Yİ-ÜFE'!$D$1:$E$217,2,0),0) -> 0 | Y22: 2021-12 | Z22: =VLOOKUP(Y22,'Aylık Yİ-ÜFE'!$D$1:$E$217,2,1) -> 1022.25 | AA22: 0 | AB22: ='DOLDURULMASI GEREKEN TABLO'!M36 -> 0 | AC22: 0 | AD22: 0 | AE22: 0 | AF22: 0 | AG22: 0 | AH22: 0 | AI22: 0 | AK22: YD YAPILABİLİR | AL22: ='DOLDURULMASI GEREKEN TABLO'!O36 -> 0 | AM22: 0 | AN22: ='DOLDURULMASI GEREKEN TABLO'!N36 -> 0 | AO22: 0 | AP22: 0 | AQ22: 0 | AR22: 0 | AS22: 0 | AT22: 0 | AU22: 0 | AV22: 0 | AW22: FALSE | AY22: 2022-12-31 | AZ22: 00:00:00 | BA22: 0 | BB22: 0 | BC22: 0 | BD22: 1 | BE22: 0 | BF22: 0
B23: 17 | C23: ='DOLDURULMASI GEREKEN TABLO'!D37 -> 0 | D23: ='DOLDURULMASI GEREKEN TABLO'!E37 -> 0 | E23: ='DOLDURULMASI GEREKEN TABLO'!F37 -> 0 | F23: 0 | G23: ='DOLDURULMASI GEREKEN TABLO'!G37 -> 00:00:00 | H23: 2021-12-31 | I23: TARİH UYUMLU | J23: ='DOLDURULMASI GEREKEN TABLO'!H37 -> 0 | K23: ='DOLDURULMASI GEREKEN TABLO'!I37 -> 0 | L23: ='DOLDURULMASI GEREKEN TABLO'!J37 -> 0 | M23: 44562 | N23: 0 | O23: 0 | P23: 0 | Q23: 0 | R23: ='DOLDURULMASI GEREKEN TABLO'!K37 -> 0 | S23: ='DOLDURULMASI GEREKEN TABLO'!L37 -> 0 | T23: 0 | U23: 0 | V23: 0 | W23: FALSE | X23: =IFERROR(VLOOKUP(W23,'Aylık Yİ-ÜFE'!$D$1:$E$217,2,0),0) -> 0 | Y23: 2021-12 | Z23: =VLOOKUP(Y23,'Aylık Yİ-ÜFE'!$D$1:$E$217,2,1) -> 1022.25 | AA23: 0 | AB23: ='DOLDURULMASI GEREKEN TABLO'!M37 -> 0 | AC23: 0 | AD23: 0 | AE23: 0 | AF23: 0 | AG23: 0 | AH23: 0 | AI23: 0 | AK23: YD YAPILABİLİR | AL23: ='DOLDURULMASI GEREKEN TABLO'!O37 -> 0 | AM23: 0 | AN23: ='DOLDURULMASI GEREKEN TABLO'!N37 -> 0 | AO23: 0 | AP23: 0 | AQ23: 0 | AR23: 0 | AS23: 0 | AT23: 0 | AU23: 0 | AV23: 0 | AW23: FALSE | AY23: 2022-12-31 | AZ23: 00:00:00 | BA23: 0 | BB23: 0 | BC23: 0 | BD23: 1 | BE23: 0 | BF23: 0
B24: 18 | C24: ='DOLDURULMASI GEREKEN TABLO'!D38 -> 0 | D24: ='DOLDURULMASI GEREKEN TABLO'!E38 -> 0 | E24: ='DOLDURULMASI GEREKEN TABLO'!F38 -> 0 | F24: 0 | G24: ='DOLDURULMASI GEREKEN TABLO'!G38 -> 00:00:00 | H24: 2021-12-31 | I24: TARİH UYUMLU | J24: ='DOLDURULMASI GEREKEN TABLO'!H38 -> 0 | K24: ='DOLDURULMASI GEREKEN TABLO'!I38 -> 0 | L24: ='DOLDURULMASI GEREKEN TABLO'!J38 -> 0 | M24: 44562 | N24: 0 | O24: 0 | P24: 0 | Q24: 0 | R24: ='DOLDURULMASI GEREKEN TABLO'!K38 -> 0 | S24: ='DOLDURULMASI GEREKEN TABLO'!L38 -> 0 | T24: 0 | U24: 0 | V24: 0 | W24: FALSE | X24: =IFERROR(VLOOKUP(W24,'Aylık Yİ-ÜFE'!$D$1:$E$217,2,0),0) -> 0 | Y24: 2021-12 | Z24: =VLOOKUP(Y24,'Aylık Yİ-ÜFE'!$D$1:$E$217,2,1) -> 1022.25 | AA24: 0 | AB24: ='DOLDURULMASI GEREKEN TABLO'!M38 -> 0 | AC24: 0 | AD24: 0 | AE24: 0 | AF24: 0 | AG24: 0 | AH24: 0 | AI24: 0 | AK24: YD YAPILABİLİR | AL24: ='DOLDURULMASI GEREKEN TABLO'!O38 -> 0 | AM24: 0 | AN24: ='DOLDURULMASI GEREKEN TABLO'!N38 -> 0 | AO24: 0 | AP24: 0 | AQ24: 0 | AR24: 0 | AS24: 0 | AT24: 0 | AU24: 0 | AV24: 0 | AW24: FALSE | AY24: 2022-12-31 | AZ24: 00:00:00 | BA24: 0 | BB24: 0 | BC24: 0 | BD24: 1 | BE24: 0 | BF24: 0
B25: 19 | C25: ='DOLDURULMASI GEREKEN TABLO'!D39 -> 0 | D25: ='DOLDURULMASI GEREKEN TABLO'!E39 -> 0 | E25: ='DOLDURULMASI GEREKEN TABLO'!F39 -> 0 | F25: 0 | G25: ='DOLDURULMASI GEREKEN TABLO'!G39 -> 00:00:00 | H25: 2021-12-31 | I25: TARİH UYUMLU | J25: ='DOLDURULMASI GEREKEN TABLO'!H39 -> 0 | K25: ='DOLDURULMASI GEREKEN TABLO'!I39 -> 0 | L25: ='DOLDURULMASI GEREKEN TABLO'!J39 -> 0 | M25: 44562 | N25: 0 | O25: 0 | P25: 0 | Q25: 0 | R25: ='DOLDURULMASI GEREKEN TABLO'!K39 -> 0 | S25: ='DOLDURULMASI GEREKEN TABLO'!L39 -> 0 | T25: 0 | U25: 0 | V25: 0 | W25: FALSE | X25: =IFERROR(VLOOKUP(W25,'Aylık Yİ-ÜFE'!$D$1:$E$217,2,0),0) -> 0 | Y25: 2021-12 | Z25: =VLOOKUP(Y25,'Aylık Yİ-ÜFE'!$D$1:$E$217,2,1) -> 1022.25 | AA25: 0 | AB25: ='DOLDURULMASI GEREKEN TABLO'!M39 -> 0 | AC25: 0 | AD25: 0 | AE25: 0 | AF25: 0 | AG25: 0 | AH25: 0 | AI25: 0 | AK25: YD YAPILABİLİR | AL25: ='DOLDURULMASI GEREKEN TABLO'!O39 -> 0 | AM25: 0 | AN25: ='DOLDURULMASI GEREKEN TABLO'!N39 -> 0 | AO25: 0 | AP25: 0 | AQ25: 0 | AR25: 0 | AS25: 0 | AT25: 0 | AU25: 0 | AV25: 0 | AW25: FALSE | AY25: 2022-12-31 | AZ25: 00:00:00 | BA25: 0 | BB25: 0 | BC25: 0 | BD25: 1 | BE25: 0 | BF25: 0
B26: 20 | C26: ='DOLDURULMASI GEREKEN TABLO'!D40 -> 0 | D26: ='DOLDURULMASI GEREKEN TABLO'!E40 -> 0 | E26: ='DOLDURULMASI GEREKEN TABLO'!F40 -> 0 | F26: 0 | G26: ='DOLDURULMASI GEREKEN TABLO'!G40 -> 00:00:00 | H26: 2021-12-31 | I26: TARİH UYUMLU | J26: ='DOLDURULMASI GEREKEN TABLO'!H40 -> 0 | K26: ='DOLDURULMASI GEREKEN TABLO'!I40 -> 0 | L26: ='DOLDURULMASI GEREKEN TABLO'!J40 -> 0 | M26: 44562 | N26: 0 | O26: 0 | P26: 0 | Q26: 0 | R26: ='DOLDURULMASI GEREKEN TABLO'!K40 -> 0 | S26: ='DOLDURULMASI GEREKEN TABLO'!L40 -> 0 | T26: 0 | U26: 0 | V26: 0 | W26: FALSE | X26: =IFERROR(VLOOKUP(W26,'Aylık Yİ-ÜFE'!$D$1:$E$217,2,0),0) -> 0 | Y26: 2021-12 | Z26: =VLOOKUP(Y26,'Aylık Yİ-ÜFE'!$D$1:$E$217,2,1) -> 1022.25 | AA26: 0 | AB26: ='DOLDURULMASI GEREKEN TABLO'!M40 -> 0 | AC26: 0 | AD26: 0 | AE26: 0 | AF26: 0 | AG26: 0 | AH26: 0 | AI26: 0 | AK26: YD YAPILABİLİR | AL26: ='DOLDURULMASI GEREKEN TABLO'!O40 -> 0 | AM26: 0 | AN26: ='DOLDURULMASI GEREKEN TABLO'!N40 -> 0 | AO26: 0 | AP26: 0 | AQ26: 0 | AR26: 0 | AS26: 0 | AT26: 0 | AU26: 0 | AV26: 0 | AW26: FALSE | AY26: 2022-12-31 | AZ26: 00:00:00 | BA26: 0 | BB26: 0 | BC26: 0 | BD26: 1 | BE26: 0 | BF26: 0
B27: 21 | C27: ='DOLDURULMASI GEREKEN TABLO'!D41 -> 0 | D27: ='DOLDURULMASI GEREKEN TABLO'!E41 -> 0 | E27: ='DOLDURULMASI GEREKEN TABLO'!F41 -> 0 | F27: 0 | G27: ='DOLDURULMASI GEREKEN TABLO'!G41 -> 00:00:00 | H27: 2021-12-31 | I27: TARİH UYUMLU | J27: ='DOLDURULMASI GEREKEN TABLO'!H41 -> 0 | K27: ='DOLDURULMASI GEREKEN TABLO'!I41 -> 0 | L27: ='DOLDURULMASI GEREKEN TABLO'!J41 -> 0 | M27: 44562 | N27: 0 | O27: 0 | P27: 0 | Q27: 0 | R27: ='DOLDURULMASI GEREKEN TABLO'!K41 -> 0 | S27: ='DOLDURULMASI GEREKEN TABLO'!L41 -> 0 | T27: 0 | U27: 0 | V27: 0 | W27: FALSE | X27: =IFERROR(VLOOKUP(W27,'Aylık Yİ-ÜFE'!$D$1:$E$217,2,0),0) -> 0 | Y27: 2021-12 | Z27: =VLOOKUP(Y27,'Aylık Yİ-ÜFE'!$D$1:$E$217,2,1) -> 1022.25 | AA27: 0 | AB27: ='DOLDURULMASI GEREKEN TABLO'!M41 -> 0 | AC27: 0 | AD27: 0 | AE27: 0 | AF27: 0 | AG27: 0 | AH27: 0 | AI27: 0 | AK27: YD YAPILABİLİR | AL27: ='DOLDURULMASI GEREKEN TABLO'!O41 -> 0 | AM27: 0 | AN27: ='DOLDURULMASI GEREKEN TABLO'!N41 -> 0 | AO27: 0 | AP27: 0 | AQ27: 0 | AR27: 0 | AS27: 0 | AT27: 0 | AU27: 0 | AV27: 0 | AW27: FALSE | AY27: 2022-12-31 | AZ27: 00:00:00 | BA27: 0 | BB27: 0 | BC27: 0 | BD27: 1 | BE27: 0 | BF27: 0
B28: 22 | C28: ='DOLDURULMASI GEREKEN TABLO'!D42 -> 0 | D28: ='DOLDURULMASI GEREKEN TABLO'!E42 -> 0 | E28: ='DOLDURULMASI GEREKEN TABLO'!F42 -> 0 | F28: 0 | G28: ='DOLDURULMASI GEREKEN TABLO'!G42 -> 00:00:00 | H28: 2021-12-31 | I28: TARİH UYUMLU | J28: ='DOLDURULMASI GEREKEN TABLO'!H42 -> 0 | K28: ='DOLDURULMASI GEREKEN TABLO'!I42 -> 0 | L28: ='DOLDURULMASI GEREKEN TABLO'!J42 -> 0 | M28: 44562 | N28: 0 | O28: 0 | P28: 0 | Q28: 0 | R28: ='DOLDURULMASI GEREKEN TABLO'!K42 -> 0 | S28: ='DOLDURULMASI GEREKEN TABLO'!L42 -> 0 | T28: 0 | U28: 0 | V28: 0 | W28: FALSE | X28: =IFERROR(VLOOKUP(W28,'Aylık Yİ-ÜFE'!$D$1:$E$217,2,0),0) -> 0 | Y28: 2021-12 | Z28: =VLOOKUP(Y28,'Aylık Yİ-ÜFE'!$D$1:$E$217,2,1) -> 1022.25 | AA28: 0 | AB28: ='DOLDURULMASI GEREKEN TABLO'!M42 -> 0 | AC28: 0 | AD28: 0 | AE28: 0 | AF28: 0 | AG28: 0 | AH28: 0 | AI28: 0 | AK28: YD YAPILABİLİR | AL28: ='DOLDURULMASI GEREKEN TABLO'!O42 -> 0 | AM28: 0 | AN28: ='DOLDURULMASI GEREKEN TABLO'!N42 -> 0 | AO28: 0 | AP28: 0 | AQ28: 0 | AR28: 0 | AS28: 0 | AT28: 0 | AU28: 0 | AV28: 0 | AW28: FALSE | AY28: 2022-12-31 | AZ28: 00:00:00 | BA28: 0 | BB28: 0 | BC28: 0 | BD28: 1 | BE28: 0 | BF28: 0
B29: 23 | C29: ='DOLDURULMASI GEREKEN TABLO'!D43 -> 0 | D29: ='DOLDURULMASI GEREKEN TABLO'!E43 -> 0 | E29: ='DOLDURULMASI GEREKEN TABLO'!F43 -> 0 | F29: 0 | G29: ='DOLDURULMASI GEREKEN TABLO'!G43 -> 00:00:00 | H29: 2021-12-31 | I29: TARİH UYUMLU | J29: ='DOLDURULMASI GEREKEN TABLO'!H43 -> 0 | K29: ='DOLDURULMASI GEREKEN TABLO'!I43 -> 0 | L29: ='DOLDURULMASI GEREKEN TABLO'!J43 -> 0 | M29: 44562 | N29: 0 | O29: 0 | P29: 0 | Q29: 0 | R29: ='DOLDURULMASI GEREKEN TABLO'!K43 -> 0 | S29: ='DOLDURULMASI GEREKEN TABLO'!L43 -> 0 | T29: 0 | U29: 0 | V29: 0 | W29: FALSE | X29: =IFERROR(VLOOKUP(W29,'Aylık Yİ-ÜFE'!$D$1:$E$217,2,0),0) -> 0 | Y29: 2021-12 | Z29: =VLOOKUP(Y29,'Aylık Yİ-ÜFE'!$D$1:$E$217,2,1) -> 1022.25 | AA29: 0 | AB29: ='DOLDURULMASI GEREKEN TABLO'!M43 -> 0 | AC29: 0 | AD29: 0 | AE29: 0 | AF29: 0 | AG29: 0 | AH29: 0 | AI29: 0 | AK29: YD YAPILABİLİR | AL29: ='DOLDURULMASI GEREKEN TABLO'!O43 -> 0 | AM29: 0 | AN29: ='DOLDURULMASI GEREKEN TABLO'!N43 -> 0 | AO29: 0 | AP29: 0 | AQ29: 0 | AR29: 0 | AS29: 0 | AT29: 0 | AU29: 0 | AV29: 0 | AW29: FALSE | AY29: 2022-12-31 | AZ29: 00:00:00 | BA29: 0 | BB29: 0 | BC29: 0 | BD29: 1 | BE29: 0 | BF29: 0
B30: 24 | C30: ='DOLDURULMASI GEREKEN TABLO'!D44 -> 0 | D30: ='DOLDURULMASI GEREKEN TABLO'!E44 -> 0 | E30: ='DOLDURULMASI GEREKEN TABLO'!F44 -> 0 | F30: 0 | G30: ='DOLDURULMASI GEREKEN TABLO'!G44 -> 00:00:00 | H30: 2021-12-31 | I30: TARİH UYUMLU | J30: ='DOLDURULMASI GEREKEN TABLO'!H44 -> 0 | K30: ='DOLDURULMASI GEREKEN TABLO'!I44 -> 0 | L30: ='DOLDURULMASI GEREKEN TABLO'!J44 -> 0 | M30: 44562 | N30: 0 | O30: 0 | P30: 0 | Q30: 0 | R30: ='DOLDURULMASI GEREKEN TABLO'!K44 -> 0 | S30: ='DOLDURULMASI GEREKEN TABLO'!L44 -> 0 | T30: 0 | U30: 0 | V30: 0 | W30: FALSE | X30: =IFERROR(VLOOKUP(W30,'Aylık Yİ-ÜFE'!$D$1:$E$217,2,0),0) -> 0 | Y30: 2021-12 | Z30: =VLOOKUP(Y30,'Aylık Yİ-ÜFE'!$D$1:$E$217,2,1) -> 1022.25 | AA30: 0 | AB30: ='DOLDURULMASI GEREKEN TABLO'!M44 -> 0 | AC30: 0 | AD30: 0 | AE30: 0 | AF30: 0 | AG30: 0 | AH30: 0 | AI30: 0 | AK30: YD YAPILABİLİR | AL30: ='DOLDURULMASI GEREKEN TABLO'!O44 -> 0 | AM30: 0 | AN30: ='DOLDURULMASI GEREKEN TABLO'!N44 -> 0 | AO30: 0 | AP30: 0 | AQ30: 0 | AR30: 0 | AS30: 0 | AT30: 0 | AU30: 0 | AV30: 0 | AW30: FALSE | AY30: 2022-12-31 | AZ30: 00:00:00 | BA30: 0 | BB30: 0 | BC30: 0 | BD30: 1 | BE30: 0 | BF30: 0
B31: 25 | C31: ='DOLDURULMASI GEREKEN TABLO'!D45 -> 0 | D31: ='DOLDURULMASI GEREKEN TABLO'!E45 -> 0 | E31: ='DOLDURULMASI GEREKEN TABLO'!F45 -> 0 | F31: 0 | G31: ='DOLDURULMASI GEREKEN TABLO'!G45 -> 00:00:00 | H31: 2021-12-31 | I31: TARİH UYUMLU | J31: ='DOLDURULMASI GEREKEN TABLO'!H45 -> 0 | K31: ='DOLDURULMASI GEREKEN TABLO'!I45 -> 0 | L31: ='DOLDURULMASI GEREKEN TABLO'!J45 -> 0 | M31: 44562 | N31: 0 | O31: 0 | P31: 0 | Q31: 0 | R31: ='DOLDURULMASI GEREKEN TABLO'!K45 -> 0 | S31: ='DOLDURULMASI GEREKEN TABLO'!L45 -> 0 | T31: 0 | U31: 0 | V31: 0 | W31: FALSE | X31: =IFERROR(VLOOKUP(W31,'Aylık Yİ-ÜFE'!$D$1:$E$217,2,0),0) -> 0 | Y31: 2021-12 | Z31: =VLOOKUP(Y31,'Aylık Yİ-ÜFE'!$D$1:$E$217,2,1) -> 1022.25 | AA31: 0 | AB31: ='DOLDURULMASI GEREKEN TABLO'!M45 -> 0 | AC31: 0 | AD31: 0 | AE31: 0 | AF31: 0 | AG31: 0 | AH31: 0 | AI31: 0 | AK31: YD YAPILABİLİR | AL31: ='DOLDURULMASI GEREKEN TABLO'!O45 -> 0 | AM31: 0 | AN31: ='DOLDURULMASI GEREKEN TABLO'!N45 -> 0 | AO31: 0 | AP31: 0 | AQ31: 0 | AR31: 0 | AS31: 0 | AT31: 0 | AU31: 0 | AV31: 0 | AW31: FALSE | AY31: 2022-12-31 | AZ31: 00:00:00 | BA31: 0 | BB31: 0 | BC31: 0 | BD31: 1 | BE31: 0 | BF31: 0
B32: 26 | C32: ='DOLDURULMASI GEREKEN TABLO'!D46 -> 0 | D32: ='DOLDURULMASI GEREKEN TABLO'!E46 -> 0 | E32: ='DOLDURULMASI GEREKEN TABLO'!F46 -> 0 | F32: 0 | G32: ='DOLDURULMASI GEREKEN TABLO'!G46 -> 00:00:00 | H32: 2021-12-31 | I32: TARİH UYUMLU | J32: ='DOLDURULMASI GEREKEN TABLO'!H46 -> 0 | K32: ='DOLDURULMASI GEREKEN TABLO'!I46 -> 0 | L32: ='DOLDURULMASI GEREKEN TABLO'!J46 -> 0 | M32: 44562 | N32: 0 | O32: 0 | P32: 0 | Q32: 0 | R32: ='DOLDURULMASI GEREKEN TABLO'!K46 -> 0 | S32: ='DOLDURULMASI GEREKEN TABLO'!L46 -> 0 | T32: 0 | U32: 0 | V32: 0 | W32: FALSE | X32: =IFERROR(VLOOKUP(W32,'Aylık Yİ-ÜFE'!$D$1:$E$217,2,0),0) -> 0 | Y32: 2021-12 | Z32: =VLOOKUP(Y32,'Aylık Yİ-ÜFE'!$D$1:$E$217,2,1) -> 1022.25 | AA32: 0 | AB32: ='DOLDURULMASI GEREKEN TABLO'!M46 -> 0 | AC32: 0 | AD32: 0 | AE32: 0 | AF32: 0 | AG32: 0 | AH32: 0 | AI32: 0 | AK32: YD YAPILABİLİR | AL32: ='DOLDURULMASI GEREKEN TABLO'!O46 -> 0 | AM32: 0 | AN32: ='DOLDURULMASI GEREKEN TABLO'!N46 -> 0 | AO32: 0 | AP32: 0 | AQ32: 0 | AR32: 0 | AS32: 0 | AT32: 0 | AU32: 0 | AV32: 0 | AW32: FALSE | AY32: 2022-12-31 | AZ32: 00:00:00 | BA32: 0 | BB32: 0 | BC32: 0 | BD32: 1 | BE32: 0 | BF32: 0
B33: 27 | C33: ='DOLDURULMASI GEREKEN TABLO'!D47 -> 0 | D33: ='DOLDURULMASI GEREKEN TABLO'!E47 -> 0 | E33: ='DOLDURULMASI GEREKEN TABLO'!F47 -> 0 | F33: 0 | G33: ='DOLDURULMASI GEREKEN TABLO'!G47 -> 00:00:00 | H33: 2021-12-31 | I33: TARİH UYUMLU | J33: ='DOLDURULMASI GEREKEN TABLO'!H47 -> 0 | K33: ='DOLDURULMASI GEREKEN TABLO'!I47 -> 0 | L33: ='DOLDURULMASI GEREKEN TABLO'!J47 -> 0 | M33: 44562 | N33: 0 | O33: 0 | P33: 0 | Q33: 0 | R33: ='DOLDURULMASI GEREKEN TABLO'!K47 -> 0 | S33: ='DOLDURULMASI GEREKEN TABLO'!L47 -> 0 | T33: 0 | U33: 0 | V33: 0 | W33: FALSE | X33: =IFERROR(VLOOKUP(W33,'Aylık Yİ-ÜFE'!$D$1:$E$217,2,0),0) -> 0 | Y33: 2021-12 | Z33: =VLOOKUP(Y33,'Aylık Yİ-ÜFE'!$D$1:$E$217,2,1) -> 1022.25 | AA33: 0 | AB33: ='DOLDURULMASI GEREKEN TABLO'!M47 -> 0 | AC33: 0 | AD33: 0 | AE33: 0 | AF33: 0 | AG33: 0 | AH33: 0 | AI33: 0 | AK33: YD YAPILABİLİR | AL33: ='DOLDURULMASI GEREKEN TABLO'!O47 -> 0 | AM33: 0 | AN33: ='DOLDURULMASI GEREKEN TABLO'!N47 -> 0 | AO33: 0 | AP33: 0 | AQ33: 0 | AR33: 0 | AS33: 0 | AT33: 0 | AU33: 0 | AV33: 0 | AW33: FALSE | AY33: 2022-12-31 | AZ33: 00:00:00 | BA33: 0 | BB33: 0 | BC33: 0 | BD33: 1 | BE33: 0 | BF33: 0
B34: 28 | C34: ='DOLDURULMASI GEREKEN TABLO'!D48 -> 0 | D34: ='DOLDURULMASI GEREKEN TABLO'!E48 -> 0 | E34: ='DOLDURULMASI GEREKEN TABLO'!F48 -> 0 | F34: 0 | G34: ='DOLDURULMASI GEREKEN TABLO'!G48 -> 00:00:00 | H34: 2021-12-31 | I34: TARİH UYUMLU | J34: ='DOLDURULMASI GEREKEN TABLO'!H48 -> 0 | K34: ='DOLDURULMASI GEREKEN TABLO'!I48 -> 0 | L34: ='DOLDURULMASI GEREKEN TABLO'!J48 -> 0 | M34: 44562 | N34: 0 | O34: 0 | P34: 0 | Q34: 0 | R34: ='DOLDURULMASI GEREKEN TABLO'!K48 -> 0 | S34: ='DOLDURULMASI GEREKEN TABLO'!L48 -> 0 | T34: 0 | U34: 0 | V34: 0 | W34: FALSE | X34: =IFERROR(VLOOKUP(W34,'Aylık Yİ-ÜFE'!$D$1:$E$217,2,0),0) -> 0 | Y34: 2021-12 | Z34: =VLOOKUP(Y34,'Aylık Yİ-ÜFE'!$D$1:$E$217,2,1) -> 1022.25 | AA34: 0 | AB34: ='DOLDURULMASI GEREKEN TABLO'!M48 -> 0 | AC34: 0 | AD34: 0 | AE34: 0 | AF34: 0 | AG34: 0 | AH34: 0 | AI34: 0 | AK34: YD YAPILABİLİR | AL34: ='DOLDURULMASI GEREKEN TABLO'!O48 -> 0 | AM34: 0 | AN34: ='DOLDURULMASI GEREKEN TABLO'!N48 -> 0 | AO34: 0 | AP34: 0 | AQ34: 0 | AR34: 0 | AS34: 0 | AT34: 0 | AU34: 0 | AV34: 0 | AW34: FALSE | AY34: 2022-12-31 | AZ34: 00:00:00 | BA34: 0 | BB34: 0 | BC34: 0 | BD34: 1 | BE34: 0 | BF34: 0
B35: 29 | C35: ='DOLDURULMASI GEREKEN TABLO'!D49 -> 0 | D35: ='DOLDURULMASI GEREKEN TABLO'!E49 -> 0 | E35: ='DOLDURULMASI GEREKEN TABLO'!F49 -> 0 | F35: 0 | G35: ='DOLDURULMASI GEREKEN TABLO'!G49 -> 00:00:00 | H35: 2021-12-31 | I35: TARİH UYUMLU | J35: ='DOLDURULMASI GEREKEN TABLO'!H49 -> 0 | K35: ='DOLDURULMASI GEREKEN TABLO'!I49 -> 0 | L35: ='DOLDURULMASI GEREKEN TABLO'!J49 -> 0 | M35: 44562 | N35: 0 | O35: 0 | P35: 0 | Q35: 0 | R35: ='DOLDURULMASI GEREKEN TABLO'!K49 -> 0 | S35: ='DOLDURULMASI GEREKEN TABLO'!L49 -> 0 | T35: 0 | U35: 0 | V35: 0 | W35: FALSE | X35: =IFERROR(VLOOKUP(W35,'Aylık Yİ-ÜFE'!$D$1:$E$217,2,0),0) -> 0 | Y35: 2021-12 | Z35: =VLOOKUP(Y35,'Aylık Yİ-ÜFE'!$D$1:$E$217,2,1) -> 1022.25 | AA35: 0 | AB35: ='DOLDURULMASI GEREKEN TABLO'!M49 -> 0 | AC35: 0 | AD35: 0 | AE35: 0 | AF35: 0 | AG35: 0 | AH35: 0 | AI35: 0 | AK35: YD YAPILABİLİR | AL35: ='DOLDURULMASI GEREKEN TABLO'!O49 -> 0 | AM35: 0 | AN35: ='DOLDURULMASI GEREKEN TABLO'!N49 -> 0 | AO35: 0 | AP35: 0 | AQ35: 0 | AR35: 0 | AS35: 0 | AT35: 0 | AU35: 0 | AV35: 0 | AW35: FALSE | AY35: 2022-12-31 | AZ35: 00:00:00 | BA35: 0 | BB35: 0 | BC35: 0 | BD35: 1 | BE35: 0 | BF35: 0
B36: 30 | C36: ='DOLDURULMASI GEREKEN TABLO'!D50 -> 0 | D36: ='DOLDURULMASI GEREKEN TABLO'!E50 -> 0 | E36: ='DOLDURULMASI GEREKEN TABLO'!F50 -> 0 | F36: 0 | G36: ='DOLDURULMASI GEREKEN TABLO'!G50 -> 00:00:00 | H36: 2021-12-31 | I36: TARİH UYUMLU | J36: ='DOLDURULMASI GEREKEN TABLO'!H50 -> 0 | K36: ='DOLDURULMASI GEREKEN TABLO'!I50 -> 0 | L36: ='DOLDURULMASI GEREKEN TABLO'!J50 -> 0 | M36: 44562 | N36: 0 | O36: 0 | P36: 0 | Q36: 0 | R36: ='DOLDURULMASI GEREKEN TABLO'!K50 -> 0 | S36: ='DOLDURULMASI GEREKEN TABLO'!L50 -> 0 | T36: 0 | U36: 0 | V36: 0 | W36: FALSE | X36: =IFERROR(VLOOKUP(W36,'Aylık Yİ-ÜFE'!$D$1:$E$217,2,0),0) -> 0 | Y36: 2021-12 | Z36: =VLOOKUP(Y36,'Aylık Yİ-ÜFE'!$D$1:$E$217,2,1) -> 1022.25 | AA36: 0 | AB36: ='DOLDURULMASI GEREKEN TABLO'!M50 -> 0 | AC36: 0 | AD36: 0 | AE36: 0 | AF36: 0 | AG36: 0 | AH36: 0 | AI36: 0 | AK36: YD YAPILABİLİR | AL36: ='DOLDURULMASI GEREKEN TABLO'!O50 -> 0 | AM36: 0 | AN36: ='DOLDURULMASI GEREKEN TABLO'!N50 -> 0 | AO36: 0 | AP36: 0 | AQ36: 0 | AR36: 0 | AS36: 0 | AT36: 0 | AU36: 0 | AV36: 0 | AW36: FALSE | AY36: 2022-12-31 | AZ36: 00:00:00 | BA36: 0 | BB36: 0 | BC36: 0 | BD36: 1 | BE36: 0 | BF36: 0
B37: 31 | C37: ='DOLDURULMASI GEREKEN TABLO'!D51 -> 0 | D37: ='DOLDURULMASI GEREKEN TABLO'!E51 -> 0 | E37: ='DOLDURULMASI GEREKEN TABLO'!F51 -> 0 | F37: 0 | G37: ='DOLDURULMASI GEREKEN TABLO'!G51 -> 00:00:00 | H37: 2021-12-31 | I37: TARİH UYUMLU | J37: ='DOLDURULMASI GEREKEN TABLO'!H51 -> 0 | K37: ='DOLDURULMASI GEREKEN TABLO'!I51 -> 0 | L37: ='DOLDURULMASI GEREKEN TABLO'!J51 -> 0 | M37: 44562 | N37: 0 | O37: 0 | P37: 0 | Q37: 0 | R37: ='DOLDURULMASI GEREKEN TABLO'!K51 -> 0 | S37: ='DOLDURULMASI GEREKEN TABLO'!L51 -> 0 | T37: 0 | U37: 0 | V37: 0 | W37: FALSE | X37: =IFERROR(VLOOKUP(W37,'Aylık Yİ-ÜFE'!$D$1:$E$217,2,0),0) -> 0 | Y37: 2021-12 | Z37: =VLOOKUP(Y37,'Aylık Yİ-ÜFE'!$D$1:$E$217,2,1) -> 1022.25 | AA37: 0 | AB37: ='DOLDURULMASI GEREKEN TABLO'!M51 -> 0 | AC37: 0 | AD37: 0 | AE37: 0 | AF37: 0 | AG37: 0 | AH37: 0 | AI37: 0 | AK37: YD YAPILABİLİR | AL37: ='DOLDURULMASI GEREKEN TABLO'!O51 -> 0 | AM37: 0 | AN37: ='DOLDURULMASI GEREKEN TABLO'!N51 -> 0 | AO37: 0 | AP37: 0 | AQ37: 0 | AR37: 0 | AS37: 0 | AT37: 0 | AU37: 0 | AV37: 0 | AW37: FALSE | AY37: 2022-12-31 | AZ37: 00:00:00 | BA37: 0 | BB37: 0 | BC37: 0 | BD37: 1 | BE37: 0 | BF37: 0
B38: 32 | C38: ='DOLDURULMASI GEREKEN TABLO'!D52 -> 0 | D38: ='DOLDURULMASI GEREKEN TABLO'!E52 -> 0 | E38: ='DOLDURULMASI GEREKEN TABLO'!F52 -> 0 | F38: 0 | G38: ='DOLDURULMASI GEREKEN TABLO'!G52 -> 00:00:00 | H38: 2021-12-31 | I38: TARİH UYUMLU | J38: ='DOLDURULMASI GEREKEN TABLO'!H52 -> 0 | K38: ='DOLDURULMASI GEREKEN TABLO'!I52 -> 0 | L38: ='DOLDURULMASI GEREKEN TABLO'!J52 -> 0 | M38: 44562 | N38: 0 | O38: 0 | P38: 0 | Q38: 0 | R38: ='DOLDURULMASI GEREKEN TABLO'!K52 -> 0 | S38: ='DOLDURULMASI GEREKEN TABLO'!L52 -> 0 | T38: 0 | U38: 0 | V38: 0 | W38: FALSE | X38: =IFERROR(VLOOKUP(W38,'Aylık Yİ-ÜFE'!$D$1:$E$217,2,0),0) -> 0 | Y38: 2021-12 | Z38: =VLOOKUP(Y38,'Aylık Yİ-ÜFE'!$D$1:$E$217,2,1) -> 1022.25 | AA38: 0 | AB38: ='DOLDURULMASI GEREKEN TABLO'!M52 -> 0 | AC38: 0 | AD38: 0 | AE38: 0 | AF38: 0 | AG38: 0 | AH38: 0 | AI38: 0 | AK38: YD YAPILABİLİR | AL38: ='DOLDURULMASI GEREKEN TABLO'!O52 -> 0 | AM38: 0 | AN38: ='DOLDURULMASI GEREKEN TABLO'!N52 -> 0 | AO38: 0 | AP38: 0 | AQ38: 0 | AR38: 0 | AS38: 0 | AT38: 0 | AU38: 0 | AV38: 0 | AW38: FALSE | AY38: 2022-12-31 | AZ38: 00:00:00 | BA38: 0 | BB38: 0 | BC38: 0 | BD38: 1 | BE38: 0 | BF38: 0
B39: 33 | C39: ='DOLDURULMASI GEREKEN TABLO'!D53 -> 0 | D39: ='DOLDURULMASI GEREKEN TABLO'!E53 -> 0 | E39: ='DOLDURULMASI GEREKEN TABLO'!F53 -> 0 | F39: 0 | G39: ='DOLDURULMASI GEREKEN TABLO'!G53 -> 00:00:00 | H39: 2021-12-31 | I39: TARİH UYUMLU | J39: ='DOLDURULMASI GEREKEN TABLO'!H53 -> 0 | K39: ='DOLDURULMASI GEREKEN TABLO'!I53 -> 0 | L39: ='DOLDURULMASI GEREKEN TABLO'!J53 -> 0 | M39: 44562 | N39: 0 | O39: 0 | P39: 0 | Q39: 0 | R39: ='DOLDURULMASI GEREKEN TABLO'!K53 -> 0 | S39: ='DOLDURULMASI GEREKEN TABLO'!L53 -> 0 | T39: 0 | U39: 0 | V39: 0 | W39: FALSE | X39: =IFERROR(VLOOKUP(W39,'Aylık Yİ-ÜFE'!$D$1:$E$217,2,0),0) -> 0 | Y39: 2021-12 | Z39: =VLOOKUP(Y39,'Aylık Yİ-ÜFE'!$D$1:$E$217,2,1) -> 1022.25 | AA39: 0 | AB39: ='DOLDURULMASI GEREKEN TABLO'!M53 -> 0 | AC39: 0 | AD39: 0 | AE39: 0 | AF39: 0 | AG39: 0 | AH39: 0 | AI39: 0 | AK39: YD YAPILABİLİR | AL39: ='DOLDURULMASI GEREKEN TABLO'!O53 -> 0 | AM39: 0 | AN39: ='DOLDURULMASI GEREKEN TABLO'!N53 -> 0 | AO39: 0 | AP39: 0 | AQ39: 0 | AR39: 0 | AS39: 0 | AT39: 0 | AU39: 0 | AV39: 0 | AW39: FALSE | AY39: 2022-12-31 | AZ39: 00:00:00 | BA39: 0 | BB39: 0 | BC39: 0 | BD39: 1 | BE39: 0 | BF39: 0
B40: 34 | C40: ='DOLDURULMASI GEREKEN TABLO'!D54 -> 0 | D40: ='DOLDURULMASI GEREKEN TABLO'!E54 -> 0 | E40: ='DOLDURULMASI GEREKEN TABLO'!F54 -> 0 | F40: 0 | G40: ='DOLDURULMASI GEREKEN TABLO'!G54 -> 00:00:00 | H40: 2021-12-31 | I40: TARİH UYUMLU | J40: ='DOLDURULMASI GEREKEN TABLO'!H54 -> 0 | K40: ='DOLDURULMASI GEREKEN TABLO'!I54 -> 0 | L40: ='DOLDURULMASI GEREKEN TABLO'!J54 -> 0 | M40: 44562 | N40: 0 | O40: 0 | P40: 0 | Q40: 0 | R40: ='DOLDURULMASI GEREKEN TABLO'!K54 -> 0 | S40: ='DOLDURULMASI GEREKEN TABLO'!L54 -> 0 | T40: 0 | U40: 0 | V40: 0 | W40: FALSE | X40: =IFERROR(VLOOKUP(W40,'Aylık Yİ-ÜFE'!$D$1:$E$217,2,0),0) -> 0 | Y40: 2021-12 | Z40: =VLOOKUP(Y40,'Aylık Yİ-ÜFE'!$D$1:$E$217,2,1) -> 1022.25 | AA40: 0 | AB40: ='DOLDURULMASI GEREKEN TABLO'!M54 -> 0 | AC40: 0 | AD40: 0 | AE40: 0 | AF40: 0 | AG40: 0 | AH40: 0 | AI40: 0 | AK40: YD YAPILABİLİR | AL40: ='DOLDURULMASI GEREKEN TABLO'!O54 -> 0 | AM40: 0 | AN40: ='DOLDURULMASI GEREKEN TABLO'!N54 -> 0 | AO40: 0 | AP40: 0 | AQ40: 0 | AR40: 0 | AS40: 0 | AT40: 0 | AU40: 0 | AV40: 0 | AW40: FALSE | AY40: 2022-12-31 | AZ40: 00:00:00 | BA40: 0 | BB40: 0 | BC40: 0 | BD40: 1 | BE40: 0 | BF40: 0
B41: 35 | C41: ='DOLDURULMASI GEREKEN TABLO'!D55 -> 0 | D41: ='DOLDURULMASI GEREKEN TABLO'!E55 -> 0 | E41: ='DOLDURULMASI GEREKEN TABLO'!F55 -> 0 | F41: 0 | G41: ='DOLDURULMASI GEREKEN TABLO'!G55 -> 00:00:00 | H41: 2021-12-31 | I41: TARİH UYUMLU | J41: ='DOLDURULMASI GEREKEN TABLO'!H55 -> 0 | K41: ='DOLDURULMASI GEREKEN TABLO'!I55 -> 0 | L41: ='DOLDURULMASI GEREKEN TABLO'!J55 -> 0 | M41: 44562 | N41: 0 | O41: 0 | P41: 0 | Q41: 0 | R41: ='DOLDURULMASI GEREKEN TABLO'!K55 -> 0 | S41: ='DOLDURULMASI GEREKEN TABLO'!L55 -> 0 | T41: 0 | U41: 0 | V41: 0 | W41: FALSE | X41: =IFERROR(VLOOKUP(W41,'Aylık Yİ-ÜFE'!$D$1:$E$217,2,0),0) -> 0 | Y41: 2021-12 | Z41: =VLOOKUP(Y41,'Aylık Yİ-ÜFE'!$D$1:$E$217,2,1) -> 1022.25 | AA41: 0 | AB41: ='DOLDURULMASI GEREKEN TABLO'!M55 -> 0 | AC41: 0 | AD41: 0 | AE41: 0 | AF41: 0 | AG41: 0 | AH41: 0 | AI41: 0 | AK41: YD YAPILABİLİR | AL41: ='DOLDURULMASI GEREKEN TABLO'!O55 -> 0 | AM41: 0 | AN41: ='DOLDURULMASI GEREKEN TABLO'!N55 -> 0 | AO41: 0 | AP41: 0 | AQ41: 0 | AR41: 0 | AS41: 0 | AT41: 0 | AU41: 0 | AV41: 0 | AW41: FALSE | AY41: 2022-12-31 | AZ41: 00:00:00 | BA41: 0 | BB41: 0 | BC41: 0 | BD41: 1 | BE41: 0 | BF41: 0
B42: 36 | C42: ='DOLDURULMASI GEREKEN TABLO'!D56 -> 0 | D42: ='DOLDURULMASI GEREKEN TABLO'!E56 -> 0 | E42: ='DOLDURULMASI GEREKEN TABLO'!F56 -> 0 | F42: 0 | G42: ='DOLDURULMASI GEREKEN TABLO'!G56 -> 00:00:00 | H42: 2021-12-31 | I42: TARİH UYUMLU | J42: ='DOLDURULMASI GEREKEN TABLO'!H56 -> 0 | K42: ='DOLDURULMASI GEREKEN TABLO'!I56 -> 0 | L42: ='DOLDURULMASI GEREKEN TABLO'!J56 -> 0 | M42: 44562 | N42: 0 | O42: 0 | P42: 0 | Q42: 0 | R42: ='DOLDURULMASI GEREKEN TABLO'!K56 -> 0 | S42: ='DOLDURULMASI GEREKEN TABLO'!L56 -> 0 | T42: 0 | U42: 0 | V42: 0 | W42: FALSE | X42: =IFERROR(VLOOKUP(W42,'Aylık Yİ-ÜFE'!$D$1:$E$217,2,0),0) -> 0 | Y42: 2021-12 | Z42: =VLOOKUP(Y42,'Aylık Yİ-ÜFE'!$D$1:$E$217,2,1) -> 1022.25 | AA42: 0 | AB42: ='DOLDURULMASI GEREKEN TABLO'!M56 -> 0 | AC42: 0 | AD42: 0 | AE42: 0 | AF42: 0 | AG42: 0 | AH42: 0 | AI42: 0 | AK42: YD YAPILABİLİR | AL42: ='DOLDURULMASI GEREKEN TABLO'!O56 -> 0 | AM42: 0 | AN42: ='DOLDURULMASI GEREKEN TABLO'!N56 -> 0 | AO42: 0 | AP42: 0 | AQ42: 0 | AR42: 0 | AS42: 0 | AT42: 0 | AU42: 0 | AV42: 0 | AW42: FALSE | AY42: 2022-12-31 | AZ42: 00:00:00 | BA42: 0 | BB42: 0 | BC42: 0 | BD42: 1 | BE42: 0 | BF42: 0
B43: 37 | C43: ='DOLDURULMASI GEREKEN TABLO'!D57 -> 0 | D43: ='DOLDURULMASI GEREKEN TABLO'!E57 -> 0 | E43: ='DOLDURULMASI GEREKEN TABLO'!F57 -> 0 | F43: 0 | G43: ='DOLDURULMASI GEREKEN TABLO'!G57 -> 00:00:00 | H43: 2021-12-31 | I43: TARİH UYUMLU | J43: ='DOLDURULMASI GEREKEN TABLO'!H57 -> 0 | K43: ='DOLDURULMASI GEREKEN TABLO'!I57 -> 0 | L43: ='DOLDURULMASI GEREKEN TABLO'!J57 -> 0 | M43: 44562 | N43: 0 | O43: 0 | P43: 0 | Q43: 0 | R43: ='DOLDURULMASI GEREKEN TABLO'!K57 -> 0 | S43: ='DOLDURULMASI GEREKEN TABLO'!L57 -> 0 | T43: 0 | U43: 0 | V43: 0 | W43: FALSE | X43: =IFERROR(VLOOKUP(W43,'Aylık Yİ-ÜFE'!$D$1:$E$217,2,0),0) -> 0 | Y43: 2021-12 | Z43: =VLOOKUP(Y43,'Aylık Yİ-ÜFE'!$D$1:$E$217,2,1) -> 1022.25 | AA43: 0 | AB43: ='DOLDURULMASI GEREKEN TABLO'!M57 -> 0 | AC43: 0 | AD43: 0 | AE43: 0 | AF43: 0 | AG43: 0 | AH43: 0 | AI43: 0 | AK43: YD YAPILABİLİR | AL43: ='DOLDURULMASI GEREKEN TABLO'!O57 -> 0 | AM43: 0 | AN43: ='DOLDURULMASI GEREKEN TABLO'!N57 -> 0 | AO43: 0 | AP43: 0 | AQ43: 0 | AR43: 0 | AS43: 0 | AT43: 0 | AU43: 0 | AV43: 0 | AW43: FALSE | AY43: 2022-12-31 | AZ43: 00:00:00 | BA43: 0 | BB43: 0 | BC43: 0 | BD43: 1 | BE43: 0 | BF43: 0
B44: 38 | C44: ='DOLDURULMASI GEREKEN TABLO'!D58 -> 0 | D44: ='DOLDURULMASI GEREKEN TABLO'!E58 -> 0 | E44: ='DOLDURULMASI GEREKEN TABLO'!F58 -> 0 | F44: 0 | G44: ='DOLDURULMASI GEREKEN TABLO'!G58 -> 00:00:00 | H44: 2021-12-31 | I44: TARİH UYUMLU | J44: ='DOLDURULMASI GEREKEN TABLO'!H58 -> 0 | K44: ='DOLDURULMASI GEREKEN TABLO'!I58 -> 0 | L44: ='DOLDURULMASI GEREKEN TABLO'!J58 -> 0 | M44: 44562 | N44: 0 | O44: 0 | P44: 0 | Q44: 0 | R44: ='DOLDURULMASI GEREKEN TABLO'!K58 -> 0 | S44: ='DOLDURULMASI GEREKEN TABLO'!L58 -> 0 | T44: 0 | U44: 0 | V44: 0 | W44: FALSE | X44: =IFERROR(VLOOKUP(W44,'Aylık Yİ-ÜFE'!$D$1:$E$217,2,0),0) -> 0 | Y44: 2021-12 | Z44: =VLOOKUP(Y44,'Aylık Yİ-ÜFE'!$D$1:$E$217,2,1) -> 1022.25 | AA44: 0 | AB44: ='DOLDURULMASI GEREKEN TABLO'!M58 -> 0 | AC44: 0 | AD44: 0 | AE44: 0 | AF44: 0 | AG44: 0 | AH44: 0 | AI44: 0 | AK44: YD YAPILABİLİR | AL44: ='DOLDURULMASI GEREKEN TABLO'!O58 -> 0 | AM44: 0 | AN44: ='DOLDURULMASI GEREKEN TABLO'!N58 -> 0 | AO44: 0 | AP44: 0 | AQ44: 0 | AR44: 0 | AS44: 0 | AT44: 0 | AU44: 0 | AV44: 0 | AW44: FALSE | AY44: 2022-12-31 | AZ44: 00:00:00 | BA44: 0 | BB44: 0 | BC44: 0 | BD44: 1 | BE44: 0 | BF44: 0
B45: 39 | C45: ='DOLDURULMASI GEREKEN TABLO'!D59 -> 0 | D45: ='DOLDURULMASI GEREKEN TABLO'!E59 -> 0 | E45: ='DOLDURULMASI GEREKEN TABLO'!F59 -> 0 | F45: 0 | G45: ='DOLDURULMASI GEREKEN TABLO'!G59 -> 00:00:00 | H45: 2021-12-31 | I45: TARİH UYUMLU | J45: ='DOLDURULMASI GEREKEN TABLO'!H59 -> 0 | K45: ='DOLDURULMASI GEREKEN TABLO'!I59 -> 0 | L45: ='DOLDURULMASI GEREKEN TABLO'!J59 -> 0 | M45: 44562 | N45: 0 | O45: 0 | P45: 0 | Q45: 0 | R45: ='DOLDURULMASI GEREKEN TABLO'!K59 -> 0 | S45: ='DOLDURULMASI GEREKEN TABLO'!L59 -> 0 | T45: 0 | U45: 0 | V45: 0 | W45: FALSE | X45: =IFERROR(VLOOKUP(W45,'Aylık Yİ-ÜFE'!$D$1:$E$217,2,0),0) -> 0 | Y45: 2021-12 | Z45: =VLOOKUP(Y45,'Aylık Yİ-ÜFE'!$D$1:$E$217,2,1) -> 1022.25 | AA45: 0 | AB45: ='DOLDURULMASI GEREKEN TABLO'!M59 -> 0 | AC45: 0 | AD45: 0 | AE45: 0 | AF45: 0 | AG45: 0 | AH45: 0 | AI45: 0 | AK45: YD YAPILABİLİR | AL45: ='DOLDURULMASI GEREKEN TABLO'!O59 -> 0 | AM45: 0 | AN45: ='DOLDURULMASI GEREKEN TABLO'!N59 -> 0 | AO45: 0 | AP45: 0 | AQ45: 0 | AR45: 0 | AS45: 0 | AT45: 0 | AU45: 0 | AV45: 0 | AW45: FALSE | AY45: 2022-12-31 | AZ45: 00:00:00 | BA45: 0 | BB45: 0 | BC45: 0 | BD45: 1 | BE45: 0 | BF45: 0
B46: 40 | C46: ='DOLDURULMASI GEREKEN TABLO'!D60 -> 0 | D46: ='DOLDURULMASI GEREKEN TABLO'!E60 -> 0 | E46: ='DOLDURULMASI GEREKEN TABLO'!F60 -> 0 | F46: 0 | G46: ='DOLDURULMASI GEREKEN TABLO'!G60 -> 00:00:00 | H46: 2021-12-31 | I46: TARİH UYUMLU | J46: ='DOLDURULMASI GEREKEN TABLO'!H60 -> 0 | K46: ='DOLDURULMASI GEREKEN TABLO'!I60 -> 0 | L46: ='DOLDURULMASI GEREKEN TABLO'!J60 -> 0 | M46: 44562 | N46: 0 | O46: 0 | P46: 0 | Q46: 0 | R46: ='DOLDURULMASI GEREKEN TABLO'!K60 -> 0 | S46: ='DOLDURULMASI GEREKEN TABLO'!L60 -> 0 | T46: 0 | U46: 0 | V46: 0 | W46: FALSE | X46: =IFERROR(VLOOKUP(W46,'Aylık Yİ-ÜFE'!$D$1:$E$217,2,0),0) -> 0 | Y46: 2021-12 | Z46: =VLOOKUP(Y46,'Aylık Yİ-ÜFE'!$D$1:$E$217,2,1) -> 1022.25 | AA46: 0 | AB46: ='DOLDURULMASI GEREKEN TABLO'!M60 -> 0 | AC46: 0 | AD46: 0 | AE46: 0 | AF46: 0 | AG46: 0 | AH46: 0 | AI46: 0 | AK46: YD YAPILABİLİR | AL46: ='DOLDURULMASI GEREKEN TABLO'!O60 -> 0 | AM46: 0 | AN46: ='DOLDURULMASI GEREKEN TABLO'!N60 -> 0 | AO46: 0 | AP46: 0 | AQ46: 0 | AR46: 0 | AS46: 0 | AT46: 0 | AU46: 0 | AV46: 0 | AW46: FALSE | AY46: 2022-12-31 | AZ46: 00:00:00 | BA46: 0 | BB46: 0 | BC46: 0 | BD46: 1 | BE46: 0 | BF46: 0
B47: 41 | C47: ='DOLDURULMASI GEREKEN TABLO'!D61 -> 0 | D47: ='DOLDURULMASI GEREKEN TABLO'!E61 -> 0 | E47: ='DOLDURULMASI GEREKEN TABLO'!F61 -> 0 | F47: 0 | G47: ='DOLDURULMASI GEREKEN TABLO'!G61 -> 00:00:00 | H47: 2021-12-31 | I47: TARİH UYUMLU | J47: ='DOLDURULMASI GEREKEN TABLO'!H61 -> 0 | K47: ='DOLDURULMASI GEREKEN TABLO'!I61 -> 0 | L47: ='DOLDURULMASI GEREKEN TABLO'!J61 -> 0 | M47: 44562 | N47: 0 | O47: 0 | P47: 0 | Q47: 0 | R47: ='DOLDURULMASI GEREKEN TABLO'!K61 -> 0 | S47: ='DOLDURULMASI GEREKEN TABLO'!L61 -> 0 | T47: 0 | U47: 0 | V47: 0 | W47: FALSE | X47: =IFERROR(VLOOKUP(W47,'Aylık Yİ-ÜFE'!$D$1:$E$217,2,0),0) -> 0 | Y47: 2021-12 | Z47: =VLOOKUP(Y47,'Aylık Yİ-ÜFE'!$D$1:$E$217,2,1) -> 1022.25 | AA47: 0 | AB47: ='DOLDURULMASI GEREKEN TABLO'!M61 -> 0 | AC47: 0 | AD47: 0 | AE47: 0 | AF47: 0 | AG47: 0 | AH47: 0 | AI47: 0 | AK47: YD YAPILABİLİR | AL47: ='DOLDURULMASI GEREKEN TABLO'!O61 -> 0 | AM47: 0 | AN47: ='DOLDURULMASI GEREKEN TABLO'!N61 -> 0 | AO47: 0 | AP47: 0 | AQ47: 0 | AR47: 0 | AS47: 0 | AT47: 0 | AU47: 0 | AV47: 0 | AW47: FALSE | AY47: 2022-12-31 | AZ47: 00:00:00 | BA47: 0 | BB47: 0 | BC47: 0 | BD47: 1 | BE47: 0 | BF47: 0
B48: 42 | C48: ='DOLDURULMASI GEREKEN TABLO'!D62 -> 0 | D48: ='DOLDURULMASI GEREKEN TABLO'!E62 -> 0 | E48: ='DOLDURULMASI GEREKEN TABLO'!F62 -> 0 | F48: 0 | G48: ='DOLDURULMASI GEREKEN TABLO'!G62 -> 00:00:00 | H48: 2021-12-31 | I48: TARİH UYUMLU | J48: ='DOLDURULMASI GEREKEN TABLO'!H62 -> 0 | K48: ='DOLDURULMASI GEREKEN TABLO'!I62 -> 0 | L48: ='DOLDURULMASI GEREKEN TABLO'!J62 -> 0 | M48: 44562 | N48: 0 | O48: 0 | P48: 0 | Q48: 0 | R48: ='DOLDURULMASI GEREKEN TABLO'!K62 -> 0 | S48: ='DOLDURULMASI GEREKEN TABLO'!L62 -> 0 | T48: 0 | U48: 0 | V48: 0 | W48: FALSE | X48: =IFERROR(VLOOKUP(W48,'Aylık Yİ-ÜFE'!$D$1:$E$217,2,0),0) -> 0 | Y48: 2021-12 | Z48: =VLOOKUP(Y48,'Aylık Yİ-ÜFE'!$D$1:$E$217,2,1) -> 1022.25 | AA48: 0 | AB48: ='DOLDURULMASI GEREKEN TABLO'!M62 -> 0 | AC48: 0 | AD48: 0 | AE48: 0 | AF48: 0 | AG48: 0 | AH48: 0 | AI48: 0 | AK48: YD YAPILABİLİR | AL48: ='DOLDURULMASI GEREKEN TABLO'!O62 -> 0 | AM48: 0 | AN48: ='DOLDURULMASI GEREKEN TABLO'!N62 -> 0 | AO48: 0 | AP48: 0 | AQ48: 0 | AR48: 0 | AS48: 0 | AT48: 0 | AU48: 0 | AV48: 0 | AW48: FALSE | AY48: 2022-12-31 | AZ48: 00:00:00 | BA48: 0 | BB48: 0 | BC48: 0 | BD48: 1 | BE48: 0 | BF48: 0
B49: 43 | C49: ='DOLDURULMASI GEREKEN TABLO'!D63 -> 0 | D49: ='DOLDURULMASI GEREKEN TABLO'!E63 -> 0 | E49: ='DOLDURULMASI GEREKEN TABLO'!F63 -> 0 | F49: 0 | G49: ='DOLDURULMASI GEREKEN TABLO'!G63 -> 00:00:00 | H49: 2021-12-31 | I49: TARİH UYUMLU | J49: ='DOLDURULMASI GEREKEN TABLO'!H63 -> 0 | K49: ='DOLDURULMASI GEREKEN TABLO'!I63 -> 0 | L49: ='DOLDURULMASI GEREKEN TABLO'!J63 -> 0 | M49: 44562 | N49: 0 | O49: 0 | P49: 0 | Q49: 0 | R49: ='DOLDURULMASI GEREKEN TABLO'!K63 -> 0 | S49: ='DOLDURULMASI GEREKEN TABLO'!L63 -> 0 | T49: 0 | U49: 0 | V49: 0 | W49: FALSE | X49: =IFERROR(VLOOKUP(W49,'Aylık Yİ-ÜFE'!$D$1:$E$217,2,0),0) -> 0 | Y49: 2021-12 | Z49: =VLOOKUP(Y49,'Aylık Yİ-ÜFE'!$D$1:$E$217,2,1) -> 1022.25 | AA49: 0 | AB49: ='DOLDURULMASI GEREKEN TABLO'!M63 -> 0 | AC49: 0 | AD49: 0 | AE49: 0 | AF49: 0 | AG49: 0 | AH49: 0 | AI49: 0 | AK49: YD YAPILABİLİR | AL49: ='DOLDURULMASI GEREKEN TABLO'!O63 -> 0 | AM49: 0 | AN49: ='DOLDURULMASI GEREKEN TABLO'!N63 -> 0 | AO49: 0 | AP49: 0 | AQ49: 0 | AR49: 0 | AS49: 0 | AT49: 0 | AU49: 0 | AV49: 0 | AW49: FALSE | AY49: 2022-12-31 | AZ49: 00:00:00 | BA49: 0 | BB49: 0 | BC49: 0 | BD49: 1 | BE49: 0 | BF49: 0
B50: 44 | C50: ='DOLDURULMASI GEREKEN TABLO'!D64 -> 0 | D50: ='DOLDURULMASI GEREKEN TABLO'!E64 -> 0 | E50: ='DOLDURULMASI GEREKEN TABLO'!F64 -> 0 | F50: 0 | G50: ='DOLDURULMASI GEREKEN TABLO'!G64 -> 00:00:00 | H50: 2021-12-31 | I50: TARİH UYUMLU | J50: ='DOLDURULMASI GEREKEN TABLO'!H64 -> 0 | K50: ='DOLDURULMASI GEREKEN TABLO'!I64 -> 0 | L50: ='DOLDURULMASI GEREKEN TABLO'!J64 -> 0 | M50: 44562 | N50: 0 | O50: 0 | P50: 0 | Q50: 0 | R50: ='DOLDURULMASI GEREKEN TABLO'!K64 -> 0 | S50: ='DOLDURULMASI GEREKEN TABLO'!L64 -> 0 | T50: 0 | U50: 0 | V50: 0 | W50: FALSE | X50: =IFERROR(VLOOKUP(W50,'Aylık Yİ-ÜFE'!$D$1:$E$217,2,0),0) -> 0 | Y50: 2021-12 | Z50: =VLOOKUP(Y50,'Aylık Yİ-ÜFE'!$D$1:$E$217,2,1) -> 1022.25 | AA50: 0 | AB50: ='DOLDURULMASI GEREKEN TABLO'!M64 -> 0 | AC50: 0 | AD50: 0 | AE50: 0 | AF50: 0 | AG50: 0 | AH50: 0 | AI50: 0 | AK50: YD YAPILABİLİR | AL50: ='DOLDURULMASI GEREKEN TABLO'!O64 -> 0 | AM50: 0 | AN50: ='DOLDURULMASI GEREKEN TABLO'!N64 -> 0 | AO50: 0 | AP50: 0 | AQ50: 0 | AR50: 0 | AS50: 0 | AT50: 0 | AU50: 0 | AV50: 0 | AW50: FALSE | AY50: 2022-12-31 | AZ50: 00:00:00 | BA50: 0 | BB50: 0 | BC50: 0 | BD50: 1 | BE50: 0 | BF50: 0
B51: 45 | C51: ='DOLDURULMASI GEREKEN TABLO'!D65 -> 0 | D51: ='DOLDURULMASI GEREKEN TABLO'!E65 -> 0 | E51: ='DOLDURULMASI GEREKEN TABLO'!F65 -> 0 | F51: 0 | G51: ='DOLDURULMASI GEREKEN TABLO'!G65 -> 00:00:00 | H51: 2021-12-31 | I51: TARİH UYUMLU | J51: ='DOLDURULMASI GEREKEN TABLO'!H65 -> 0 | K51: ='DOLDURULMASI GEREKEN TABLO'!I65 -> 0 | L51: ='DOLDURULMASI GEREKEN TABLO'!J65 -> 0 | M51: 44562 | N51: 0 | O51: 0 | P51: 0 | Q51: 0 | R51: ='DOLDURULMASI GEREKEN TABLO'!K65 -> 0 | S51: ='DOLDURULMASI GEREKEN TABLO'!L65 -> 0 | T51: 0 | U51: 0 | V51: 0 | W51: FALSE | X51: =IFERROR(VLOOKUP(W51,'Aylık Yİ-ÜFE'!$D$1:$E$217,2,0),0) -> 0 | Y51: 2021-12 | Z51: =VLOOKUP(Y51,'Aylık Yİ-ÜFE'!$D$1:$E$217,2,1) -> 1022.25 | AA51: 0 | AB51: ='DOLDURULMASI GEREKEN TABLO'!M65 -> 0 | AC51: 0 | AD51: 0 | AE51: 0 | AF51: 0 | AG51: 0 | AH51: 0 | AI51: 0 | AK51: YD YAPILABİLİR | AL51: ='DOLDURULMASI GEREKEN TABLO'!O65 -> 0 | AM51: 0 | AN51: ='DOLDURULMASI GEREKEN TABLO'!N65 -> 0 | AO51: 0 | AP51: 0 | AQ51: 0 | AR51: 0 | AS51: 0 | AT51: 0 | AU51: 0 | AV51: 0 | AW51: FALSE | AY51: 2022-12-31 | AZ51: 00:00:00 | BA51: 0 | BB51: 0 | BC51: 0 | BD51: 1 | BE51: 0 | BF51: 0
B52: 46 | C52: ='DOLDURULMASI GEREKEN TABLO'!D66 -> 0 | D52: ='DOLDURULMASI GEREKEN TABLO'!E66 -> 0 | E52: ='DOLDURULMASI GEREKEN TABLO'!F66 -> 0 | F52: 0 | G52: ='DOLDURULMASI GEREKEN TABLO'!G66 -> 00:00:00 | H52: 2021-12-31 | I52: TARİH UYUMLU | J52: ='DOLDURULMASI GEREKEN TABLO'!H66 -> 0 | K52: ='DOLDURULMASI GEREKEN TABLO'!I66 -> 0 | L52: ='DOLDURULMASI GEREKEN TABLO'!J66 -> 0 | M52: 44562 | N52: 0 | O52: 0 | P52: 0 | Q52: 0 | R52: ='DOLDURULMASI GEREKEN TABLO'!K66 -> 0 | S52: ='DOLDURULMASI GEREKEN TABLO'!L66 -> 0 | T52: 0 | U52: 0 | V52: 0 | W52: FALSE | X52: =IFERROR(VLOOKUP(W52,'Aylık Yİ-ÜFE'!$D$1:$E$217,2,0),0) -> 0 | Y52: 2021-12 | Z52: =VLOOKUP(Y52,'Aylık Yİ-ÜFE'!$D$1:$E$217,2,1) -> 1022.25 | AA52: 0 | AB52: ='DOLDURULMASI GEREKEN TABLO'!M66 -> 0 | AC52: 0 | AD52: 0 | AE52: 0 | AF52: 0 | AG52: 0 | AH52: 0 | AI52: 0 | AK52: YD YAPILABİLİR | AL52: ='DOLDURULMASI GEREKEN TABLO'!O66 -> 0 | AM52: 0 | AN52: ='DOLDURULMASI GEREKEN TABLO'!N66 -> 0 | AO52: 0 | AP52: 0 | AQ52: 0 | AR52: 0 | AS52: 0 | AT52: 0 | AU52: 0 | AV52: 0 | AW52: FALSE | AY52: 2022-12-31 | AZ52: 00:00:00 | BA52: 0 | BB52: 0 | BC52: 0 | BD52: 1 | BE52: 0 | BF52: 0
B53: 47 | C53: ='DOLDURULMASI GEREKEN TABLO'!D67 -> 0 | D53: ='DOLDURULMASI GEREKEN TABLO'!E67 -> 0 | E53: ='DOLDURULMASI GEREKEN TABLO'!F67 -> 0 | F53: 0 | G53: ='DOLDURULMASI GEREKEN TABLO'!G67 -> 00:00:00 | H53: 2021-12-31 | I53: TARİH UYUMLU | J53: ='DOLDURULMASI GEREKEN TABLO'!H67 -> 0 | K53: ='DOLDURULMASI GEREKEN TABLO'!I67 -> 0 | L53: ='DOLDURULMASI GEREKEN TABLO'!J67 -> 0 | M53: 44562 | N53: 0 | O53: 0 | P53: 0 | Q53: 0 | R53: ='DOLDURULMASI GEREKEN TABLO'!K67 -> 0 | S53: ='DOLDURULMASI GEREKEN TABLO'!L67 -> 0 | T53: 0 | U53: 0 | V53: 0 | W53: FALSE | X53: =IFERROR(VLOOKUP(W53,'Aylık Yİ-ÜFE'!$D$1:$E$217,2,0),0) -> 0 | Y53: 2021-12 | Z53: =VLOOKUP(Y53,'Aylık Yİ-ÜFE'!$D$1:$E$217,2,1) -> 1022.25 | AA53: 0 | AB53: ='DOLDURULMASI GEREKEN TABLO'!M67 -> 0 | AC53: 0 | AD53: 0 | AE53: 0 | AF53: 0 | AG53: 0 | AH53: 0 | AI53: 0 | AK53: YD YAPILABİLİR | AL53: ='DOLDURULMASI GEREKEN TABLO'!O67 -> 0 | AM53: 0 | AN53: ='DOLDURULMASI GEREKEN TABLO'!N67 -> 0 | AO53: 0 | AP53: 0 | AQ53: 0 | AR53: 0 | AS53: 0 | AT53: 0 | AU53: 0 | AV53: 0 | AW53: FALSE | AY53: 2022-12-31 | AZ53: 00:00:00 | BA53: 0 | BB53: 0 | BC53: 0 | BD53: 1 | BE53: 0 | BF53: 0
B54: 48 | C54: ='DOLDURULMASI GEREKEN TABLO'!D68 -> 0 | D54: ='DOLDURULMASI GEREKEN TABLO'!E68 -> 0 | E54: ='DOLDURULMASI GEREKEN TABLO'!F68 -> 0 | F54: 0 | G54: ='DOLDURULMASI GEREKEN TABLO'!G68 -> 00:00:00 | H54: 2021-12-31 | I54: TARİH UYUMLU | J54: ='DOLDURULMASI GEREKEN TABLO'!H68 -> 0 | K54: ='DOLDURULMASI GEREKEN TABLO'!I68 -> 0 | L54: ='DOLDURULMASI GEREKEN TABLO'!J68 -> 0 | M54: 44562 | N54: 0 | O54: 0 | P54: 0 | Q54: 0 | R54: ='DOLDURULMASI GEREKEN TABLO'!K68 -> 0 | S54: ='DOLDURULMASI GEREKEN TABLO'!L68 -> 0 | T54: 0 | U54: 0 | V54: 0 | W54: FALSE | X54: =IFERROR(VLOOKUP(W54,'Aylık Yİ-ÜFE'!$D$1:$E$217,2,0),0) -> 0 | Y54: 2021-12 | Z54: =VLOOKUP(Y54,'Aylık Yİ-ÜFE'!$D$1:$E$217,2,1) -> 1022.25 | AA54: 0 | AB54: ='DOLDURULMASI GEREKEN TABLO'!M68 -> 0 | AC54: 0 | AD54: 0 | AE54: 0 | AF54: 0 | AG54: 0 | AH54: 0 | AI54: 0 | AK54: YD YAPILABİLİR | AL54: ='DOLDURULMASI GEREKEN TABLO'!O68 -> 0 | AM54: 0 | AN54: ='DOLDURULMASI GEREKEN TABLO'!N68 -> 0 | AO54: 0 | AP54: 0 | AQ54: 0 | AR54: 0 | AS54: 0 | AT54: 0 | AU54: 0 | AV54: 0 | AW54: FALSE | AY54: 2022-12-31 | AZ54: 00:00:00 | BA54: 0 | BB54: 0 | BC54: 0 | BD54: 1 | BE54: 0 | BF54: 0
B55: 49 | C55: ='DOLDURULMASI GEREKEN TABLO'!D69 -> 0 | D55: ='DOLDURULMASI GEREKEN TABLO'!E69 -> 0 | E55: ='DOLDURULMASI GEREKEN TABLO'!F69 -> 0 | F55: 0 | G55: ='DOLDURULMASI GEREKEN TABLO'!G69 -> 00:00:00 | H55: 2021-12-31 | I55: TARİH UYUMLU | J55: ='DOLDURULMASI GEREKEN TABLO'!H69 -> 0 | K55: ='DOLDURULMASI GEREKEN TABLO'!I69 -> 0 | L55: ='DOLDURULMASI GEREKEN TABLO'!J69 -> 0 | M55: 44562 | N55: 0 | O55: 0 | P55: 0 | Q55: 0 | R55: ='DOLDURULMASI GEREKEN TABLO'!K69 -> 0 | S55: ='DOLDURULMASI GEREKEN TABLO'!L69 -> 0 | T55: 0 | U55: 0 | V55: 0 | W55: FALSE | X55: =IFERROR(VLOOKUP(W55,'Aylık Yİ-ÜFE'!$D$1:$E$217,2,0),0) -> 0 | Y55: 2021-12 | Z55: =VLOOKUP(Y55,'Aylık Yİ-ÜFE'!$D$1:$E$217,2,1) -> 1022.25 | AA55: 0 | AB55: ='DOLDURULMASI GEREKEN TABLO'!M69 -> 0 | AC55: 0 | AD55: 0 | AE55: 0 | AF55: 0 | AG55: 0 | AH55: 0 | AI55: 0 | AK55: YD YAPILABİLİR | AL55: ='DOLDURULMASI GEREKEN TABLO'!O69 -> 0 | AM55: 0 | AN55: ='DOLDURULMASI GEREKEN TABLO'!N69 -> 0 | AO55: 0 | AP55: 0 | AQ55: 0 | AR55: 0 | AS55: 0 | AT55: 0 | AU55: 0 | AV55: 0 | AW55: FALSE | AY55: 2022-12-31 | AZ55: 00:00:00 | BA55: 0 | BB55: 0 | BC55: 0 | BD55: 1 | BE55: 0 | BF55: 0
B56: 50 | C56: ='DOLDURULMASI GEREKEN TABLO'!D70 -> 0 | D56: ='DOLDURULMASI GEREKEN TABLO'!E70 -> 0 | E56: ='DOLDURULMASI GEREKEN TABLO'!F70 -> 0 | F56: 0 | G56: ='DOLDURULMASI GEREKEN TABLO'!G70 -> 00:00:00 | H56: 2021-12-31 | I56: TARİH UYUMLU | J56: ='DOLDURULMASI GEREKEN TABLO'!H70 -> 0 | K56: ='DOLDURULMASI GEREKEN TABLO'!I70 -> 0 | L56: ='DOLDURULMASI GEREKEN TABLO'!J70 -> 0 | M56: 44562 | N56: 0 | O56: 0 | P56: 0 | Q56: 0 | R56: ='DOLDURULMASI GEREKEN TABLO'!K70 -> 0 | S56: ='DOLDURULMASI GEREKEN TABLO'!L70 -> 0 | T56: 0 | U56: 0 | V56: 0 | W56: FALSE | X56: =IFERROR(VLOOKUP(W56,'Aylık Yİ-ÜFE'!$D$1:$E$217,2,0),0) -> 0 | Y56: 2021-12 | Z56: =VLOOKUP(Y56,'Aylık Yİ-ÜFE'!$D$1:$E$217,2,1) -> 1022.25 | AA56: 0 | AB56: ='DOLDURULMASI GEREKEN TABLO'!M70 -> 0 | AC56: 0 | AD56: 0 | AE56: 0 | AF56: 0 | AG56: 0 | AH56: 0 | AI56: 0 | AK56: YD YAPILABİLİR | AL56: ='DOLDURULMASI GEREKEN TABLO'!O70 -> 0 | AM56: 0 | AN56: ='DOLDURULMASI GEREKEN TABLO'!N70 -> 0 | AO56: 0 | AP56: 0 | AQ56: 0 | AR56: 0 | AS56: 0 | AT56: 0 | AU56: 0 | AV56: 0 | AW56: FALSE | AY56: 2022-12-31 | AZ56: 00:00:00 | BA56: 0 | BB56: 0 | BC56: 0 | BD56: 1 | BE56: 0 | BF56: 0
B57: 51 | C57: ='DOLDURULMASI GEREKEN TABLO'!D71 -> 0 | D57: ='DOLDURULMASI GEREKEN TABLO'!E71 -> 0 | E57: ='DOLDURULMASI GEREKEN TABLO'!F71 -> 0 | F57: 0 | G57: ='DOLDURULMASI GEREKEN TABLO'!G71 -> 00:00:00 | H57: 2021-12-31 | I57: TARİH UYUMLU | J57: ='DOLDURULMASI GEREKEN TABLO'!H71 -> 0 | K57: ='DOLDURULMASI GEREKEN TABLO'!I71 -> 0 | L57: ='DOLDURULMASI GEREKEN TABLO'!J71 -> 0 | M57: 44562 | N57: 0 | O57: 0 | P57: 0 | Q57: 0 | R57: ='DOLDURULMASI GEREKEN TABLO'!K71 -> 0 | S57: ='DOLDURULMASI GEREKEN TABLO'!L71 -> 0 | T57: 0 | U57: 0 | V57: 0 | W57: FALSE | X57: =IFERROR(VLOOKUP(W57,'Aylık Yİ-ÜFE'!$D$1:$E$217,2,0),0) -> 0 | Y57: 2021-12 | Z57: =VLOOKUP(Y57,'Aylık Yİ-ÜFE'!$D$1:$E$217,2,1) -> 1022.25 | AA57: 0 | AB57: ='DOLDURULMASI GEREKEN TABLO'!M71 -> 0 | AC57: 0 | AD57: 0 | AE57: 0 | AF57: 0 | AG57: 0 | AH57: 0 | AI57: 0 | AK57: YD YAPILABİLİR | AL57: ='DOLDURULMASI GEREKEN TABLO'!O71 -> 0 | AM57: 0 | AN57: ='DOLDURULMASI GEREKEN TABLO'!N71 -> 0 | AO57: 0 | AP57: 0 | AQ57: 0 | AR57: 0 | AS57: 0 | AT57: 0 | AU57: 0 | AV57: 0 | AW57: FALSE | AY57: 2022-12-31 | AZ57: 00:00:00 | BA57: 0 | BB57: 0 | BC57: 0 | BD57: 1 | BE57: 0 | BF57: 0
B58: 52 | C58: ='DOLDURULMASI GEREKEN TABLO'!D72 -> 0 | D58: ='DOLDURULMASI GEREKEN TABLO'!E72 -> 0 | E58: ='DOLDURULMASI GEREKEN TABLO'!F72 -> 0 | F58: 0 | G58: ='DOLDURULMASI GEREKEN TABLO'!G72 -> 00:00:00 | H58: 2021-12-31 | I58: TARİH UYUMLU | J58: ='DOLDURULMASI GEREKEN TABLO'!H72 -> 0 | K58: ='DOLDURULMASI GEREKEN TABLO'!I72 -> 0 | L58: ='DOLDURULMASI GEREKEN TABLO'!J72 -> 0 | M58: 44562 | N58: 0 | O58: 0 | P58: 0 | Q58: 0 | R58: ='DOLDURULMASI GEREKEN TABLO'!K72 -> 0 | S58: ='DOLDURULMASI GEREKEN TABLO'!L72 -> 0 | T58: 0 | U58: 0 | V58: 0 | W58: FALSE | X58: =IFERROR(VLOOKUP(W58,'Aylık Yİ-ÜFE'!$D$1:$E$217,2,0),0) -> 0 | Y58: 2021-12 | Z58: =VLOOKUP(Y58,'Aylık Yİ-ÜFE'!$D$1:$E$217,2,1) -> 1022.25 | AA58: 0 | AB58: ='DOLDURULMASI GEREKEN TABLO'!M72 -> 0 | AC58: 0 | AD58: 0 | AE58: 0 | AF58: 0 | AG58: 0 | AH58: 0 | AI58: 0 | AK58: YD YAPILABİLİR | AL58: ='DOLDURULMASI GEREKEN TABLO'!O72 -> 0 | AM58: 0 | AN58: ='DOLDURULMASI GEREKEN TABLO'!N72 -> 0 | AO58: 0 | AP58: 0 | AQ58: 0 | AR58: 0 | AS58: 0 | AT58: 0 | AU58: 0 | AV58: 0 | AW58: FALSE | AY58: 2022-12-31 | AZ58: 00:00:00 | BA58: 0 | BB58: 0 | BC58: 0 | BD58: 1 | BE58: 0 | BF58: 0
B59: 53 | C59: ='DOLDURULMASI GEREKEN TABLO'!D73 -> 0 | D59: ='DOLDURULMASI GEREKEN TABLO'!E73 -> 0 | E59: ='DOLDURULMASI GEREKEN TABLO'!F73 -> 0 | F59: 0 | G59: ='DOLDURULMASI GEREKEN TABLO'!G73 -> 00:00:00 | H59: 2021-12-31 | I59: TARİH UYUMLU | J59: ='DOLDURULMASI GEREKEN TABLO'!H73 -> 0 | K59: ='DOLDURULMASI GEREKEN TABLO'!I73 -> 0 | L59: ='DOLDURULMASI GEREKEN TABLO'!J73 -> 0 | M59: 44562 | N59: 0 | O59: 0 | P59: 0 | Q59: 0 | R59: ='DOLDURULMASI GEREKEN TABLO'!K73 -> 0 | S59: ='DOLDURULMASI GEREKEN TABLO'!L73 -> 0 | T59: 0 | U59: 0 | V59: 0 | W59: FALSE | X59: =IFERROR(VLOOKUP(W59,'Aylık Yİ-ÜFE'!$D$1:$E$217,2,0),0) -> 0 | Y59: 2021-12 | Z59: =VLOOKUP(Y59,'Aylık Yİ-ÜFE'!$D$1:$E$217,2,1) -> 1022.25 | AA59: 0 | AB59: ='DOLDURULMASI GEREKEN TABLO'!M73 -> 0 | AC59: 0 | AD59: 0 | AE59: 0 | AF59: 0 | AG59: 0 | AH59: 0 | AI59: 0 | AK59: YD YAPILABİLİR | AL59: ='DOLDURULMASI GEREKEN TABLO'!O73 -> 0 | AM59: 0 | AN59: ='DOLDURULMASI GEREKEN TABLO'!N73 -> 0 | AO59: 0 | AP59: 0 | AQ59: 0 | AR59: 0 | AS59: 0 | AT59: 0 | AU59: 0 | AV59: 0 | AW59: FALSE | AY59: 2022-12-31 | AZ59: 00:00:00 | BA59: 0 | BB59: 0 | BC59: 0 | BD59: 1 | BE59: 0 | BF59: 0
B60: 54 | C60: ='DOLDURULMASI GEREKEN TABLO'!D74 -> 0 | D60: ='DOLDURULMASI GEREKEN TABLO'!E74 -> 0 | E60: ='DOLDURULMASI GEREKEN TABLO'!F74 -> 0 | F60: 0 | G60: ='DOLDURULMASI GEREKEN TABLO'!G74 -> 00:00:00 | H60: 2021-12-31 | I60: TARİH UYUMLU | J60: ='DOLDURULMASI GEREKEN TABLO'!H74 -> 0 | K60: ='DOLDURULMASI GEREKEN TABLO'!I74 -> 0 | L60: ='DOLDURULMASI GEREKEN TABLO'!J74 -> 0 | M60: 44562 | N60: 0 | O60: 0 | P60: 0 | Q60: 0 | R60: ='DOLDURULMASI GEREKEN TABLO'!K74 -> 0 | S60: ='DOLDURULMASI GEREKEN TABLO'!L74 -> 0 | T60: 0 | U60: 0 | V60: 0 | W60: FALSE | X60: =IFERROR(VLOOKUP(W60,'Aylık Yİ-ÜFE'!$D$1:$E$217,2,0),0) -> 0 | Y60: 2021-12 | Z60: =VLOOKUP(Y60,'Aylık Yİ-ÜFE'!$D$1:$E$217,2,1) -> 1022.25 | AA60: 0 | AB60: ='DOLDURULMASI GEREKEN TABLO'!M74 -> 0 | AC60: 0 | AD60: 0 | AE60: 0 | AF60: 0 | AG60: 0 | AH60: 0 | AI60: 0 | AK60: YD YAPILABİLİR | AL60: ='DOLDURULMASI GEREKEN TABLO'!O74 -> 0 | AM60: 0 | AN60: ='DOLDURULMASI GEREKEN TABLO'!N74 -> 0 | AO60: 0 | AP60: 0 | AQ60: 0 | AR60: 0 | AS60: 0 | AT60: 0 | AU60: 0 | AV60: 0 | AW60: FALSE | AY60: 2022-12-31 | AZ60: 00:00:00 | BA60: 0 | BB60: 0 | BC60: 0 | BD60: 1 | BE60: 0 | BF60: 0
B61: 55 | C61: ='DOLDURULMASI GEREKEN TABLO'!D75 -> 0 | D61: ='DOLDURULMASI GEREKEN TABLO'!E75 -> 0 | E61: ='DOLDURULMASI GEREKEN TABLO'!F75 -> 0 | F61: 0 | G61: ='DOLDURULMASI GEREKEN TABLO'!G75 -> 00:00:00 | H61: 2021-12-31 | I61: TARİH UYUMLU | J61: ='DOLDURULMASI GEREKEN TABLO'!H75 -> 0 | K61: ='DOLDURULMASI GEREKEN TABLO'!I75 -> 0 | L61: ='DOLDURULMASI GEREKEN TABLO'!J75 -> 0 | M61: 44562 | N61: 0 | O61: 0 | P61: 0 | Q61: 0 | R61: ='DOLDURULMASI GEREKEN TABLO'!K75 -> 0 | S61: ='DOLDURULMASI GEREKEN TABLO'!L75 -> 0 | T61: 0 | U61: 0 | V61: 0 | W61: FALSE | X61: =IFERROR(VLOOKUP(W61,'Aylık Yİ-ÜFE'!$D$1:$E$217,2,0),0) -> 0 | Y61: 2021-12 | Z61: =VLOOKUP(Y61,'Aylık Yİ-ÜFE'!$D$1:$E$217,2,1) -> 1022.25 | AA61: 0 | AB61: ='DOLDURULMASI GEREKEN TABLO'!M75 -> 0 | AC61: 0 | AD61: 0 | AE61: 0 | AF61: 0 | AG61: 0 | AH61: 0 | AI61: 0 | AK61: YD YAPILABİLİR | AL61: ='DOLDURULMASI GEREKEN TABLO'!O75 -> 0 | AM61: 0 | AN61: ='DOLDURULMASI GEREKEN TABLO'!N75 -> 0 | AO61: 0 | AP61: 0 | AQ61: 0 | AR61: 0 | AS61: 0 | AT61: 0 | AU61: 0 | AV61: 0 | AW61: FALSE | AY61: 2022-12-31 | AZ61: 00:00:00 | BA61: 0 | BB61: 0 | BC61: 0 | BD61: 1 | BE61: 0 | BF61: 0
B62: 56 | C62: ='DOLDURULMASI GEREKEN TABLO'!D76 -> 0 | D62: ='DOLDURULMASI GEREKEN TABLO'!E76 -> 0 | E62: ='DOLDURULMASI GEREKEN TABLO'!F76 -> 0 | F62: 0 | G62: ='DOLDURULMASI GEREKEN TABLO'!G76 -> 00:00:00 | H62: 2021-12-31 | I62: TARİH UYUMLU | J62: ='DOLDURULMASI GEREKEN TABLO'!H76 -> 0 | K62: ='DOLDURULMASI GEREKEN TABLO'!I76 -> 0 | L62: ='DOLDURULMASI GEREKEN TABLO'!J76 -> 0 | M62: 44562 | N62: 0 | O62: 0 | P62: 0 | Q62: 0 | R62: ='DOLDURULMASI GEREKEN TABLO'!K76 -> 0 | S62: ='DOLDURULMASI GEREKEN TABLO'!L76 -> 0 | T62: 0 | U62: 0 | V62: 0 | W62: FALSE | X62: =IFERROR(VLOOKUP(W62,'Aylık Yİ-ÜFE'!$D$1:$E$217,2,0),0) -> 0 | Y62: 2021-12 | Z62: =VLOOKUP(Y62,'Aylık Yİ-ÜFE'!$D$1:$E$217,2,1) -> 1022.25 | AA62: 0 | AB62: ='DOLDURULMASI GEREKEN TABLO'!M76 -> 0 | AC62: 0 | AD62: 0 | AE62: 0 | AF62: 0 | AG62: 0 | AH62: 0 | AI62: 0 | AK62: YD YAPILABİLİR | AL62: ='DOLDURULMASI GEREKEN TABLO'!O76 -> 0 | AM62: 0 | AN62: ='DOLDURULMASI GEREKEN TABLO'!N76 -> 0 | AO62: 0 | AP62: 0 | AQ62: 0 | AR62: 0 | AS62: 0 | AT62: 0 | AU62: 0 | AV62: 0 | AW62: FALSE | AY62: 2022-12-31 | AZ62: 00:00:00 | BA62: 0 | BB62: 0 | BC62: 0 | BD62: 1 | BE62: 0 | BF62: 0
B63: 57 | C63: ='DOLDURULMASI GEREKEN TABLO'!D77 -> 0 | D63: ='DOLDURULMASI GEREKEN TABLO'!E77 -> 0 | E63: ='DOLDURULMASI GEREKEN TABLO'!F77 -> 0 | F63: 0 | G63: ='DOLDURULMASI GEREKEN TABLO'!G77 -> 00:00:00 | H63: 2021-12-31 | I63: TARİH UYUMLU | J63: ='DOLDURULMASI GEREKEN TABLO'!H77 -> 0 | K63: ='DOLDURULMASI GEREKEN TABLO'!I77 -> 0 | L63: ='DOLDURULMASI GEREKEN TABLO'!J77 -> 0 | M63: 44562 | N63: 0 | O63: 0 | P63: 0 | Q63: 0 | R63: ='DOLDURULMASI GEREKEN TABLO'!K77 -> 0 | S63: ='DOLDURULMASI GEREKEN TABLO'!L77 -> 0 | T63: 0 | U63: 0 | V63: 0 | W63: FALSE | X63: =IFERROR(VLOOKUP(W63,'Aylık Yİ-ÜFE'!$D$1:$E$217,2,0),0) -> 0 | Y63: 2021-12 | Z63: =VLOOKUP(Y63,'Aylık Yİ-ÜFE'!$D$1:$E$217,2,1) -> 1022.25 | AA63: 0 | AB63: ='DOLDURULMASI GEREKEN TABLO'!M77 -> 0 | AC63: 0 | AD63: 0 | AE63: 0 | AF63: 0 | AG63: 0 | AH63: 0 | AI63: 0 | AK63: YD YAPILABİLİR | AL63: ='DOLDURULMASI GEREKEN TABLO'!O77 -> 0 | AM63: 0 | AN63: ='DOLDURULMASI GEREKEN TABLO'!N77 -> 0 | AO63: 0 | AP63: 0 | AQ63: 0 | AR63: 0 | AS63: 0 | AT63: 0 | AU63: 0 | AV63: 0 | AW63: FALSE | AY63: 2022-12-31 | AZ63: 00:00:00 | BA63: 0 | BB63: 0 | BC63: 0 | BD63: 1 | BE63: 0 | BF63: 0
B64: 58 | C64: ='DOLDURULMASI GEREKEN TABLO'!D78 -> 0 | D64: ='DOLDURULMASI GEREKEN TABLO'!E78 -> 0 | E64: ='DOLDURULMASI GEREKEN TABLO'!F78 -> 0 | F64: 0 | G64: ='DOLDURULMASI GEREKEN TABLO'!G78 -> 00:00:00 | H64: 2021-12-31 | I64: TARİH UYUMLU | J64: ='DOLDURULMASI GEREKEN TABLO'!H78 -> 0 | K64: ='DOLDURULMASI GEREKEN TABLO'!I78 -> 0 | L64: ='DOLDURULMASI GEREKEN TABLO'!J78 -> 0 | M64: 44562 | N64: 0 | O64: 0 | P64: 0 | Q64: 0 | R64: ='DOLDURULMASI GEREKEN TABLO'!K78 -> 0 | S64: ='DOLDURULMASI GEREKEN TABLO'!L78 -> 0 | T64: 0 | U64: 0 | V64: 0 | W64: FALSE | X64: =IFERROR(VLOOKUP(W64,'Aylık Yİ-ÜFE'!$D$1:$E$217,2,0),0) -> 0 | Y64: 2021-12 | Z64: =VLOOKUP(Y64,'Aylık Yİ-ÜFE'!$D$1:$E$217,2,1) -> 1022.25 | AA64: 0 | AB64: ='DOLDURULMASI GEREKEN TABLO'!M78 -> 0 | AC64: 0 | AD64: 0 | AE64: 0 | AF64: 0 | AG64: 0 | AH64: 0 | AI64: 0 | AK64: YD YAPILABİLİR | AL64: ='DOLDURULMASI GEREKEN TABLO'!O78 -> 0 | AM64: 0 | AN64: ='DOLDURULMASI GEREKEN TABLO'!N78 -> 0 | AO64: 0 | AP64: 0 | AQ64: 0 | AR64: 0 | AS64: 0 | AT64: 0 | AU64: 0 | AV64: 0 | AW64: FALSE | AY64: 2022-12-31 | AZ64: 00:00:00 | BA64: 0 | BB64: 0 | BC64: 0 | BD64: 1 | BE64: 0 | BF64: 0
B65: 59 | C65: ='DOLDURULMASI GEREKEN TABLO'!D79 -> 0 | D65: ='DOLDURULMASI GEREKEN TABLO'!E79 -> 0 | E65: ='DOLDURULMASI GEREKEN TABLO'!F79 -> 0 | F65: 0 | G65: ='DOLDURULMASI GEREKEN TABLO'!G79 -> 00:00:00 | H65: 2021-12-31 | I65: TARİH UYUMLU | J65: ='DOLDURULMASI GEREKEN TABLO'!H79 -> 0 | K65: ='DOLDURULMASI GEREKEN TABLO'!I79 -> 0 | L65: ='DOLDURULMASI GEREKEN TABLO'!J79 -> 0 | M65: 44562 | N65: 0 | O65: 0 | P65: 0 | Q65: 0 | R65: ='DOLDURULMASI GEREKEN TABLO'!K79 -> 0 | S65: ='DOLDURULMASI GEREKEN TABLO'!L79 -> 0 | T65: 0 | U65: 0 | V65: 0 | W65: FALSE | X65: =IFERROR(VLOOKUP(W65,'Aylık Yİ-ÜFE'!$D$1:$E$217,2,0),0) -> 0 | Y65: 2021-12 | Z65: =VLOOKUP(Y65,'Aylık Yİ-ÜFE'!$D$1:$E$217,2,1) -> 1022.25 | AA65: 0 | AB65: ='DOLDURULMASI GEREKEN TABLO'!M79 -> 0 | AC65: 0 | AD65: 0 | AE65: 0 | AF65: 0 | AG65: 0 | AH65: 0 | AI65: 0 | AK65: YD YAPILABİLİR | AL65: ='DOLDURULMASI GEREKEN TABLO'!O79 -> 0 | AM65: 0 | AN65: ='DOLDURULMASI GEREKEN TABLO'!N79 -> 0 | AO65: 0 | AP65: 0 | AQ65: 0 | AR65: 0 | AS65: 0 | AT65: 0 | AU65: 0 | AV65: 0 | AW65: FALSE | AY65: 2022-12-31 | AZ65: 00:00:00 | BA65: 0 | BB65: 0 | BC65: 0 | BD65: 1 | BE65: 0 | BF65: 0
B66: 60 | C66: ='DOLDURULMASI GEREKEN TABLO'!D80 -> 0 | D66: ='DOLDURULMASI GEREKEN TABLO'!E80 -> 0 | E66: ='DOLDURULMASI GEREKEN TABLO'!F80 -> 0 | F66: 0 | G66: ='DOLDURULMASI GEREKEN TABLO'!G80 -> 00:00:00 | H66: 2021-12-31 | I66: TARİH UYUMLU | J66: ='DOLDURULMASI GEREKEN TABLO'!H80 -> 0 | K66: ='DOLDURULMASI GEREKEN TABLO'!I80 -> 0 | L66: ='DOLDURULMASI GEREKEN TABLO'!J80 -> 0 | M66: 44562 | N66: 0 | O66: 0 | P66: 0 | Q66: 0 | R66: ='DOLDURULMASI GEREKEN TABLO'!K80 -> 0 | S66: ='DOLDURULMASI GEREKEN TABLO'!L80 -> 0 | T66: 0 | U66: 0 | V66: 0 | W66: FALSE | X66: =IFERROR(VLOOKUP(W66,'Aylık Yİ-ÜFE'!$D$1:$E$217,2,0),0) -> 0 | Y66: 2021-12 | Z66: =VLOOKUP(Y66,'Aylık Yİ-ÜFE'!$D$1:$E$217,2,1) -> 1022.25 | AA66: 0 | AB66: ='DOLDURULMASI GEREKEN TABLO'!M80 -> 0 | AC66: 0 | AD66: 0 | AE66: 0 | AF66: 0 | AG66: 0 | AH66: 0 | AI66: 0 | AK66: YD YAPILABİLİR | AL66: ='DOLDURULMASI GEREKEN TABLO'!O80 -> 0 | AM66: 0 | AN66: ='DOLDURULMASI GEREKEN TABLO'!N80 -> 0 | AO66: 0 | AP66: 0 | AQ66: 0 | AR66: 0 | AS66: 0 | AT66: 0 | AU66: 0 | AV66: 0 | AW66: FALSE | AY66: 2022-12-31 | AZ66: 00:00:00 | BA66: 0 | BB66: 0 | BC66: 0 | BD66: 1 | BE66: 0 | BF66: 0
B67: 61 | C67: ='DOLDURULMASI GEREKEN TABLO'!D81 -> 0 | D67: ='DOLDURULMASI GEREKEN TABLO'!E81 -> 0 | E67: ='DOLDURULMASI GEREKEN TABLO'!F81 -> 0 | F67: 0 | G67: ='DOLDURULMASI GEREKEN TABLO'!G81 -> 00:00:00 | H67: 2021-12-31 | I67: TARİH UYUMLU | J67: ='DOLDURULMASI GEREKEN TABLO'!H81 -> 0 | K67: ='DOLDURULMASI GEREKEN TABLO'!I81 -> 0 | L67: ='DOLDURULMASI GEREKEN TABLO'!J81 -> 0 | M67: 44562 | N67: 0 | O67: 0 | P67: 0 | Q67: 0 | R67: ='DOLDURULMASI GEREKEN TABLO'!K81 -> 0 | S67: ='DOLDURULMASI GEREKEN TABLO'!L81 -> 0 | T67: 0 | U67: 0 | V67: 0 | W67: FALSE | X67: =IFERROR(VLOOKUP(W67,'Aylık Yİ-ÜFE'!$D$1:$E$217,2,0),0) -> 0 | Y67: 2021-12 | Z67: =VLOOKUP(Y67,'Aylık Yİ-ÜFE'!$D$1:$E$217,2,1) -> 1022.25 | AA67: 0 | AB67: ='DOLDURULMASI GEREKEN TABLO'!M81 -> 0 | AC67: 0 | AD67: 0 | AE67: 0 | AF67: 0 | AG67: 0 | AH67: 0 | AI67: 0 | AK67: YD YAPILABİLİR | AL67: ='DOLDURULMASI GEREKEN TABLO'!O81 -> 0 | AM67: 0 | AN67: ='DOLDURULMASI GEREKEN TABLO'!N81 -> 0 | AO67: 0 | AP67: 0 | AQ67: 0 | AR67: 0 | AS67: 0 | AT67: 0 | AU67: 0 | AV67: 0 | AW67: FALSE | AY67: 2022-12-31 | AZ67: 00:00:00 | BA67: 0 | BB67: 0 | BC67: 0 | BD67: 1 | BE67: 0 | BF67: 0
B68: 62 | C68: ='DOLDURULMASI GEREKEN TABLO'!D82 -> 0 | D68: ='DOLDURULMASI GEREKEN TABLO'!E82 -> 0 | E68: ='DOLDURULMASI GEREKEN TABLO'!F82 -> 0 | F68: 0 | G68: ='DOLDURULMASI GEREKEN TABLO'!G82 -> 00:00:00 | H68: 2021-12-31 | I68: TARİH UYUMLU | J68: ='DOLDURULMASI GEREKEN TABLO'!H82 -> 0 | K68: ='DOLDURULMASI GEREKEN TABLO'!I82 -> 0 | L68: ='DOLDURULMASI GEREKEN TABLO'!J82 -> 0 | M68: 44562 | N68: 0 | O68: 0 | P68: 0 | Q68: 0 | R68: ='DOLDURULMASI GEREKEN TABLO'!K82 -> 0 | S68: ='DOLDURULMASI GEREKEN TABLO'!L82 -> 0 | T68: 0 | U68: 0 | V68: 0 | W68: FALSE | X68: =IFERROR(VLOOKUP(W68,'Aylık Yİ-ÜFE'!$D$1:$E$217,2,0),0) -> 0 | Y68: 2021-12 | Z68: =VLOOKUP(Y68,'Aylık Yİ-ÜFE'!$D$1:$E$217,2,1) -> 1022.25 | AA68: 0 | AB68: ='DOLDURULMASI GEREKEN TABLO'!M82 -> 0 | AC68: 0 | AD68: 0 | AE68: 0 | AF68: 0 | AG68: 0 | AH68: 0 | AI68: 0 | AK68: YD YAPILABİLİR | AL68: ='DOLDURULMASI GEREKEN TABLO'!O82 -> 0 | AM68: 0 | AN68: ='DOLDURULMASI GEREKEN TABLO'!N82 -> 0 | AO68: 0 | AP68: 0 | AQ68: 0 | AR68: 0 | AS68: 0 | AT68: 0 | AU68: 0 | AV68: 0 | AW68: FALSE | AY68: 2022-12-31 | AZ68: 00:00:00 | BA68: 0 | BB68: 0 | BC68: 0 | BD68: 1 | BE68: 0 | BF68: 0
B69: 63 | C69: ='DOLDURULMASI GEREKEN TABLO'!D83 -> 0 | D69: ='DOLDURULMASI GEREKEN TABLO'!E83 -> 0 | E69: ='DOLDURULMASI GEREKEN TABLO'!F83 -> 0 | F69: 0 | G69: ='DOLDURULMASI GEREKEN TABLO'!G83 -> 00:00:00 | H69: 2021-12-31 | I69: TARİH UYUMLU | J69: ='DOLDURULMASI GEREKEN TABLO'!H83 -> 0 | K69: ='DOLDURULMASI GEREKEN TABLO'!I83 -> 0 | L69: ='DOLDURULMASI GEREKEN TABLO'!J83 -> 0 | M69: 44562 | N69: 0 | O69: 0 | P69: 0 | Q69: 0 | R69: ='DOLDURULMASI GEREKEN TABLO'!K83 -> 0 | S69: ='DOLDURULMASI GEREKEN TABLO'!L83 -> 0 | T69: 0 | U69: 0 | V69: 0 | W69: FALSE | X69: =IFERROR(VLOOKUP(W69,'Aylık Yİ-ÜFE'!$D$1:$E$217,2,0),0) -> 0 | Y69: 2021-12 | Z69: =VLOOKUP(Y69,'Aylık Yİ-ÜFE'!$D$1:$E$217,2,1) -> 1022.25 | AA69: 0 | AB69: ='DOLDURULMASI GEREKEN TABLO'!M83 -> 0 | AC69: 0 | AD69: 0 | AE69: 0 | AF69: 0 | AG69: 0 | AH69: 0 | AI69: 0 | AK69: YD YAPILABİLİR | AL69: ='DOLDURULMASI GEREKEN TABLO'!O83 -> 0 | AM69: 0 | AN69: ='DOLDURULMASI GEREKEN TABLO'!N83 -> 0 | AO69: 0 | AP69: 0 | AQ69: 0 | AR69: 0 | AS69: 0 | AT69: 0 | AU69: 0 | AV69: 0 | AW69: FALSE | AY69: 2022-12-31 | AZ69: 00:00:00 | BA69: 0 | BB69: 0 | BC69: 0 | BD69: 1 | BE69: 0 | BF69: 0
B70: 64 | C70: ='DOLDURULMASI GEREKEN TABLO'!D84 -> 0 | D70: ='DOLDURULMASI GEREKEN TABLO'!E84 -> 0 | E70: ='DOLDURULMASI GEREKEN TABLO'!F84 -> 0 | F70: 0 | G70: ='DOLDURULMASI GEREKEN TABLO'!G84 -> 00:00:00 | H70: 2021-12-31 | I70: TARİH UYUMLU | J70: ='DOLDURULMASI GEREKEN TABLO'!H84 -> 0 | K70: ='DOLDURULMASI GEREKEN TABLO'!I84 -> 0 | L70: ='DOLDURULMASI GEREKEN TABLO'!J84 -> 0 | M70: 44562 | N70: 0 | O70: 0 | P70: 0 | Q70: 0 | R70: ='DOLDURULMASI GEREKEN TABLO'!K84 -> 0 | S70: ='DOLDURULMASI GEREKEN TABLO'!L84 -> 0 | T70: 0 | U70: 0 | V70: 0 | W70: FALSE | X70: =IFERROR(VLOOKUP(W70,'Aylık Yİ-ÜFE'!$D$1:$E$217,2,0),0) -> 0 | Y70: 2021-12 | Z70: =VLOOKUP(Y70,'Aylık Yİ-ÜFE'!$D$1:$E$217,2,1) -> 1022.25 | AA70: 0 | AB70: ='DOLDURULMASI GEREKEN TABLO'!M84 -> 0 | AC70: 0 | AD70: 0 | AE70: 0 | AF70: 0 | AG70: 0 | AH70: 0 | AI70: 0 | AK70: YD YAPILABİLİR | AL70: ='DOLDURULMASI GEREKEN TABLO'!O84 -> 0 | AM70: 0 | AN70: ='DOLDURULMASI GEREKEN TABLO'!N84 -> 0 | AO70: 0 | AP70: 0 | AQ70: 0 | AR70: 0 | AS70: 0 | AT70: 0 | AU70: 0 | AV70: 0 | AW70: FALSE | AY70: 2022-12-31 | AZ70: 00:00:00 | BA70: 0 | BB70: 0 | BC70: 0 | BD70: 1 | BE70: 0 | BF70: 0
B71: 65 | C71: ='DOLDURULMASI GEREKEN TABLO'!D85 -> 0 | D71: ='DOLDURULMASI GEREKEN TABLO'!E85 -> 0 | E71: ='DOLDURULMASI GEREKEN TABLO'!F85 -> 0 | F71: 0 | G71: ='DOLDURULMASI GEREKEN TABLO'!G85 -> 00:00:00 | H71: 2021-12-31 | I71: TARİH UYUMLU | J71: ='DOLDURULMASI GEREKEN TABLO'!H85 -> 0 | K71: ='DOLDURULMASI GEREKEN TABLO'!I85 -> 0 | L71: ='DOLDURULMASI GEREKEN TABLO'!J85 -> 0 | M71: 44562 | N71: 0 | O71: 0 | P71: 0 | Q71: 0 | R71: ='DOLDURULMASI GEREKEN TABLO'!K85 -> 0 | S71: ='DOLDURULMASI GEREKEN TABLO'!L85 -> 0 | T71: =J71 -> 0 | U71: 0 | V71: 0 | W71: =IF(AND(R71="EVET",S71="EVET"),"2021-6",IF(AND(R71="HAYIR",S71="EVET"),"2021-6",IF(AND(R71="EVET",S71="HAYIR"),"2018-5",IF(AND(R71="HAYIR",S71="HAYIR"),IF(AND(G71<=38352,R71="HAYIR",S71="HAYIR"),"2005-1",IF(MONTH(G71)+1=13,CONCATENATE(YEAR(G71)+1,"-",MONTH(G71)-11),CONCATENATE(YEAR(G71),"-",MONTH(G71)+1))))))) -> FALSE | X71: =IFERROR(VLOOKUP(W71,'Aylık Yİ-ÜFE'!$D$1:$E$217,2,0),0) -> 0 | Y71: 2021-12 | Z71: =VLOOKUP(Y71,'Aylık Yİ-ÜFE'!$D$1:$E$217,2,1) -> 1022.25 | AA71: 0 | AB71: ='DOLDURULMASI GEREKEN TABLO'!M85 -> 0 | AC71: 0 | AD71: 0 | AE71: 0 | AF71: 0 | AG71: 0 | AH71: 0 | AI71: 0 | AK71: =IF(D71="250- Arazi ve Arsalar","BOŞ ARAZİ VE ARSALAR MÜK.298 Ç YE GÖRE YD YAPILAMAZ","YD YAPILABİLİR") -> YD YAPILABİLİR | AL71: ='DOLDURULMASI GEREKEN TABLO'!O85 -> 0 | AM71: =IF(AK71="BOŞ ARAZİ VE ARSALAR MÜK.298 Ç YE GÖRE YD YAPILAMAZ",T71,AC71) -> 0 | AN71: ='DOLDURULMASI GEREKEN TABLO'!N85 -> 0 | AO71: 0 | AP71: 0 | AQ71: 0 | AR71: 0 | AS71: 0 | AT71: 0 | AU71: 0 | AV71: 0 | AW71: FALSE | AY71: 2022-12-31 | AZ71: 00:00:00 | BA71: =MIN(YEAR(AY71)-YEAR(G71)+1,E71) -> 0 | BB71: =MIN(((YEAR(AY71)-YEAR(G71))*12+(MONTH(AY71)-MONTH(G71))+1)/12,E71) -> 0 | BC71: =IF(L71="HAYIR",BA71,BB71) -> 0 | BD71: 1 | BE71: 0 | BF71: 0
B72: 66 | C72: ='DOLDURULMASI GEREKEN TABLO'!D86 -> 0 | D72: ='DOLDURULMASI GEREKEN TABLO'!E86 -> 0 | E72: ='DOLDURULMASI GEREKEN TABLO'!F86 -> 0 | F72: =IFERROR(IF(K72="AZALAN BAKİYELERE GÖRE AMORTİSMAN",MIN(1/E72,1/4),1/E72),0) -> 0 | G72: ='DOLDURULMASI GEREKEN TABLO'!G86 -> 00:00:00 | H72: 2021-12-31 | I72: TARİH UYUMLU | J72: ='DOLDURULMASI GEREKEN TABLO'!H86 -> 0 | K72: ='DOLDURULMASI GEREKEN TABLO'!I86 -> 0 | L72: ='DOLDURULMASI GEREKEN TABLO'!J86 -> 0 | M72: =(H72-G72)+1 -> 44562 | N72: =MIN(YEAR(H72)-YEAR(G72)+1,E72) -> 0 | O72: =MIN(((YEAR(H72)-YEAR(G72))*12+(MONTH(H72)-MONTH(G72))+1)/12,E72) -> 0 | P72: =MIN(IF(L72="HAYIR",N72,O72),E72) -> 0 | Q72: =IF(D72="250- Arazi ve Arsalar",0,IF(N72=E72,J72,IF(AND(K72="NORMAL AMORTİSMAN",L72="HAYIR"),J72*F72*N72,IF(AND(K72="NORMAL AMORTİSMAN",L72="EVET"),J72*F72*O72,IF(AND(K72="AZALAN BAKİYELERE GÖRE AMORTİSMAN",L72="HAYIR",E72<=4), VDB(J72,0,4,0,N72,2,TRUE),IF(AND(K72="AZALAN BAKİYELERE GÖRE AMORTİSMAN",L72="HAYIR",AND(E72>4,N72<E72)), VDB(J72,0,E72,0,N72,2,TRUE),IF(AND(K72="AZALAN BAKİYELERE GÖRE AMORTİSMAN",L72="EVET",N72=1),(DDB(J72,0,IF(E72<=4,4,E72),1,2)/12)*(12-MONTH(G72)+1),IF(AND(K72="AZALAN BAKİYELERE GÖRE AMORTİSMAN",L72="EVET",N72=2),(DDB(J72,0,IF(E72<=4,4,E72),1,2)/12)*(12-MONTH(G72)+1)+DDB(J72,0,IF(E72<=4,4,E72),2,2),IF(AND(K72="AZALAN BAKİYELERE GÖRE AMORTİSMAN",L72="EVET",N72=3),(DDB(J72,0,IF(E72<=4,4,E72),1,2)/12)*(12-MONTH(G72)+1)+DDB(J72,0,IF(E72<=4,4,E72),2,2)+DDB(J72,0,IF(E72<=4,4,E72),3,2),IF(AND(K72="AZALAN BAKİYELERE GÖRE AMORTİSMAN",L72="EVET",N72=4),(DDB(J72,0,IF(E72<=4,4,E72),1,2)/12)*(12-MONTH(G72)+1)+DDB(J72,0,IF(E72<=4,4,E72),2,2)+DDB(J72,0,IF(E72<=4,4,E72),3,2)+DDB(J72,0,IF(E72<=4,4,E72),4,2),IF(AND(K72="AZALAN BAKİYELERE GÖRE AMORTİSMAN",L72="EVET",N72>=5),J72,"HATA"))))))))))) -> 0 | R72: ='DOLDURULMASI GEREKEN TABLO'!K86 -> 0 | S72: ='DOLDURULMASI GEREKEN TABLO'!L86 -> 0 | T72: 0 | U72: 0 | V72: 0 | W72: FALSE | X72: =IFERROR(VLOOKUP(W72,'Aylık Yİ-ÜFE'!$D$1:$E$217,2,0),0) -> 0 | Y72: 2021-12 | Z72: =VLOOKUP(Y72,'Aylık Yİ-ÜFE'!$D$1:$E$217,2,1) -> 1022.25 | AA72: 0 | AB72: ='DOLDURULMASI GEREKEN TABLO'!M86 -> 0 | AC72: =MAX(IF(AB72="EVET",T72*AA72,T72),T72) -> 0 | AD72: =MAX(IF(AB72="EVET",U72*AA72,U72),U72) -> 0 | AE72: 0 | AF72: =IFERROR(IF(AC72-T72<0,0,AC72-T72),0) -> 0 | AG72: =IFERROR(IF(AD72-U72<0,0,AD72-U72),0) -> 0 | AH72: =IFERROR(IF((AF72-AG72)<0,0,(AF72-AG72)),0) -> 0 | AI72: =IFERROR(AH72*2/100,0) -> 0 | AK72: YD YAPILABİLİR | AL72: ='DOLDURULMASI GEREKEN TABLO'!O86 -> 0 | AM72: 0 | AN72: ='DOLDURULMASI GEREKEN TABLO'!N86 -> 0 | AO72: =AD72 -> 0 | AP72: 0 | AQ72: =IF(AND(AK72="YD YAPILABİLİR",AL72="EVET"),(AM72-AN72)*2.2293,AM72-AN72) -> 0 | AR72: 0 | AS72: 0 | AT72: 0 | AU72: 0 | AV72: 0 | AW72: FALSE | AY72: 2022-12-31 | AZ72: =G72 -> 00:00:00 | BA72: 0 | BB72: 0 | BC72: 0 | BD72: =IFERROR(ROUNDDOWN(E72-BC72,0)+1,0) -> 1 | BE72: =(AV72+AH72) -> 0 | BF72: =IFERROR(BE72*23/100,0) -> 0
B73: 67 | C73: ='DOLDURULMASI GEREKEN TABLO'!D87 -> 0 | D73: ='DOLDURULMASI GEREKEN TABLO'!E87 -> 0 | E73: ='DOLDURULMASI GEREKEN TABLO'!F87 -> 0 | F73: 0 | G73: ='DOLDURULMASI GEREKEN TABLO'!G87 -> 00:00:00 | H73: 2021-12-31 | I73: =IF(G73>44561,"2022 YILINDA İKTİSAP EDİLEN İÇİN GEÇİCİ 32 YE GÖRE 2022 YILINDA YD YAPILAMAZ","TARİH UYUMLU") -> TARİH UYUMLU | J73: ='DOLDURULMASI GEREKEN TABLO'!H87 -> 0 | K73: ='DOLDURULMASI GEREKEN TABLO'!I87 -> 0 | L73: ='DOLDURULMASI GEREKEN TABLO'!J87 -> 0 | M73: 44562 | N73: 0 | O73: 0 | P73: 0 | Q73: 0 | R73: ='DOLDURULMASI GEREKEN TABLO'!K87 -> 0 | S73: ='DOLDURULMASI GEREKEN TABLO'!L87 -> 0 | T73: 0 | U73: =Q73 -> 0 | V73: =T73-U73 -> 0 | W73: FALSE | X73: =IFERROR(VLOOKUP(W73,'Aylık Yİ-ÜFE'!$D$1:$E$217,2,0),0) -> 0 | Y73: 2021-12 | Z73: =VLOOKUP(Y73,'Aylık Yİ-ÜFE'!$D$1:$E$217,2,1) -> 1022.25 | AA73: =IFERROR(TRUNC(Z73/X73,5),0) -> 0 | AB73: ='DOLDURULMASI GEREKEN TABLO'!M87 -> 0 | AC73: 0 | AD73: 0 | AE73: =AC73-AD73 -> 0 | AF73: 0 | AG73: 0 | AH73: 0 | AI73: 0 | AK73: YD YAPILABİLİR | AL73: ='DOLDURULMASI GEREKEN TABLO'!O87 -> 0 | AM73: 0 | AN73: ='DOLDURULMASI GEREKEN TABLO'!N87 -> 0 | AO73: 0 | AP73: =AM73-AO73 -> 0 | AQ73: 0 | AR73: =IFERROR(IF(AND(AK73="YD YAPILABİLİR",AL73="EVET"),AO73*2.2293,AO73),0) -> 0 | AS73: =AQ73-AR73 -> 0 | AT73: =AQ73-AM73 -> 0 | AU73: =AR73-AO73 -> 0 | AV73: =IF(AT73-AU73<0,0,AT73-AU73) -> 0 | AW73: FALSE | AY73: 2022-12-31 | AZ73: 00:00:00 | BA73: 0 | BB73: 0 | BC73: 0 | BD73: 1 | BE73: 0 | BF73: 0
B74: 68 | C74: ='DOLDURULMASI GEREKEN TABLO'!D88 -> 0 | D74: ='DOLDURULMASI GEREKEN TABLO'!E88 -> 0 | E74: ='DOLDURULMASI GEREKEN TABLO'!F88 -> 0 | F74: 0 | G74: ='DOLDURULMASI GEREKEN TABLO'!G88 -> 00:00:00 | H74: 2021-12-31 | I74: TARİH UYUMLU | J74: ='DOLDURULMASI GEREKEN TABLO'!H88 -> 0 | K74: ='DOLDURULMASI GEREKEN TABLO'!I88 -> 0 | L74: ='DOLDURULMASI GEREKEN TABLO'!J88 -> 0 | M74: 44562 | N74: 0 | O74: 0 | P74: 0 | Q74: 0 | R74: ='DOLDURULMASI GEREKEN TABLO'!K88 -> 0 | S74: ='DOLDURULMASI GEREKEN TABLO'!L88 -> 0 | T74: 0 | U74: 0 | V74: 0 | W74: FALSE | X74: =IFERROR(VLOOKUP(W74,'Aylık Yİ-ÜFE'!$D$1:$E$217,2,0),0) -> 0 | Y74: 2021-12 | Z74: =VLOOKUP(Y74,'Aylık Yİ-ÜFE'!$D$1:$E$217,2,1) -> 1022.25 | AA74: 0 | AB74: ='DOLDURULMASI GEREKEN TABLO'!M88 -> 0 | AC74: 0 | AD74: 0 | AE74: 0 | AF74: 0 | AG74: 0 | AH74: 0 | AI74: 0 | AK74: YD YAPILABİLİR | AL74: ='DOLDURULMASI GEREKEN TABLO'!O88 -> 0 | AM74: 0 | AN74: ='DOLDURULMASI GEREKEN TABLO'!N88 -> 0 | AO74: 0 | AP74: 0 | AQ74: 0 | AR74: 0 | AS74: 0 | AT74: 0 | AU74: 0 | AV74: 0 | AW74: FALSE | AY74: 2022-12-31 | AZ74: 00:00:00 | BA74: 0 | BB74: 0 | BC74: 0 | BD74: 1 | BE74: 0 | BF74: 0
B75: 69 | C75: ='DOLDURULMASI GEREKEN TABLO'!D89 -> 0 | D75: ='DOLDURULMASI GEREKEN TABLO'!E89 -> 0 | E75: ='DOLDURULMASI GEREKEN TABLO'!F89 -> 0 | F75: 0 | G75: ='DOLDURULMASI GEREKEN TABLO'!G89 -> 00:00:00 | H75: 2021-12-31 | I75: TARİH UYUMLU | J75: ='DOLDURULMASI GEREKEN TABLO'!H89 -> 0 | K75: ='DOLDURULMASI GEREKEN TABLO'!I89 -> 0 | L75: ='DOLDURULMASI GEREKEN TABLO'!J89 -> 0 | M75: 44562 | N75: 0 | O75: 0 | P75: 0 | Q75: 0 | R75: ='DOLDURULMASI GEREKEN TABLO'!K89 -> 0 | S75: ='DOLDURULMASI GEREKEN TABLO'!L89 -> 0 | T75: 0 | U75: 0 | V75: 0 | W75: FALSE | X75: =IFERROR(VLOOKUP(W75,'Aylık Yİ-ÜFE'!$D$1:$E$217,2,0),0) -> 0 | Y75: 2021-12 | Z75: =VLOOKUP(Y75,'Aylık Yİ-ÜFE'!$D$1:$E$217,2,1) -> 1022.25 | AA75: 0 | AB75: ='DOLDURULMASI GEREKEN TABLO'!M89 -> 0 | AC75: 0 | AD75: 0 | AE75: 0 | AF75: 0 | AG75: 0 | AH75: 0 | AI75: 0 | AK75: YD YAPILABİLİR | AL75: ='DOLDURULMASI GEREKEN TABLO'!O89 -> 0 | AM75: 0 | AN75: ='DOLDURULMASI GEREKEN TABLO'!N89 -> 0 | AO75: 0 | AP75: 0 | AQ75: 0 | AR75: 0 | AS75: 0 | AT75: 0 | AU75: 0 | AV75: 0 | AW75: FALSE | AY75: 2022-12-31 | AZ75: 00:00:00 | BA75: 0 | BB75: 0 | BC75: 0 | BD75: 1 | BE75: 0 | BF75: 0
B76: 70 | C76: ='DOLDURULMASI GEREKEN TABLO'!D90 -> 0 | D76: ='DOLDURULMASI GEREKEN TABLO'!E90 -> 0 | E76: ='DOLDURULMASI GEREKEN TABLO'!F90 -> 0 | F76: 0 | G76: ='DOLDURULMASI GEREKEN TABLO'!G90 -> 00:00:00 | H76: 2021-12-31 | I76: TARİH UYUMLU | J76: ='DOLDURULMASI GEREKEN TABLO'!H90 -> 0 | K76: ='DOLDURULMASI GEREKEN TABLO'!I90 -> 0 | L76: ='DOLDURULMASI GEREKEN TABLO'!J90 -> 0 | M76: 44562 | N76: 0 | O76: 0 | P76: 0 | Q76: 0 | R76: ='DOLDURULMASI GEREKEN TABLO'!K90 -> 0 | S76: ='DOLDURULMASI GEREKEN TABLO'!L90 -> 0 | T76: 0 | U76: 0 | V76: 0 | W76: FALSE | X76: =IFERROR(VLOOKUP(W76,'Aylık Yİ-ÜFE'!$D$1:$E$217,2,0),0) -> 0 | Y76: 2021-12 | Z76: =VLOOKUP(Y76,'Aylık Yİ-ÜFE'!$D$1:$E$217,2,1) -> 1022.25 | AA76: 0 | AB76: ='DOLDURULMASI GEREKEN TABLO'!M90 -> 0 | AC76: 0 | AD76: 0 | AE76: 0 | AF76: 0 | AG76: 0 | AH76: 0 | AI76: 0 | AK76: YD YAPILABİLİR | AL76: ='DOLDURULMASI GEREKEN TABLO'!O90 -> 0 | AM76: 0 | AN76: ='DOLDURULMASI GEREKEN TABLO'!N90 -> 0 | AO76: 0 | AP76: 0 | AQ76: 0 | AR76: 0 | AS76: 0 | AT76: 0 | AU76: 0 | AV76: 0 | AW76: FALSE | AY76: 2022-12-31 | AZ76: 00:00:00 | BA76: 0 | BB76: 0 | BC76: 0 | BD76: 1 | BE76: 0 | BF76: 0
B77: 71 | C77: ='DOLDURULMASI GEREKEN TABLO'!D91 -> 0 | D77: ='DOLDURULMASI GEREKEN TABLO'!E91 -> 0 | E77: ='DOLDURULMASI GEREKEN TABLO'!F91 -> 0 | F77: 0 | G77: ='DOLDURULMASI GEREKEN TABLO'!G91 -> 00:00:00 | H77: 2021-12-31 | I77: TARİH UYUMLU | J77: ='DOLDURULMASI GEREKEN TABLO'!H91 -> 0 | K77: ='DOLDURULMASI GEREKEN TABLO'!I91 -> 0 | L77: ='DOLDURULMASI GEREKEN TABLO'!J91 -> 0 | M77: 44562 | N77: 0 | O77: 0 | P77: 0 | Q77: 0 | R77: ='DOLDURULMASI GEREKEN TABLO'!K91 -> 0 | S77: ='DOLDURULMASI GEREKEN TABLO'!L91 -> 0 | T77: 0 | U77: 0 | V77: 0 | W77: FALSE | X77: =IFERROR(VLOOKUP(W77,'Aylık Yİ-ÜFE'!$D$1:$E$217,2,0),0) -> 0 | Y77: 2021-12 | Z77: =VLOOKUP(Y77,'Aylık Yİ-ÜFE'!$D$1:$E$217,2,1) -> 1022.25 | AA77: 0 | AB77: ='DOLDURULMASI GEREKEN TABLO'!M91 -> 0 | AC77: 0 | AD77: 0 | AE77: 0 | AF77: 0 | AG77: 0 | AH77: 0 | AI77: 0 | AK77: YD YAPILABİLİR | AL77: ='DOLDURULMASI GEREKEN TABLO'!O91 -> 0 | AM77: 0 | AN77: ='DOLDURULMASI GEREKEN TABLO'!N91 -> 0 | AO77: 0 | AP77: 0 | AQ77: 0 | AR77: 0 | AS77: 0 | AT77: 0 | AU77: 0 | AV77: 0 | AW77: FALSE | AY77: 2022-12-31 | AZ77: 00:00:00 | BA77: 0 | BB77: 0 | BC77: 0 | BD77: 1 | BE77: 0 | BF77: 0
B78: 72 | C78: ='DOLDURULMASI GEREKEN TABLO'!D92 -> 0 | D78: ='DOLDURULMASI GEREKEN TABLO'!E92 -> 0 | E78: ='DOLDURULMASI GEREKEN TABLO'!F92 -> 0 | F78: 0 | G78: ='DOLDURULMASI GEREKEN TABLO'!G92 -> 00:00:00 | H78: 2021-12-31 | I78: TARİH UYUMLU | J78: ='DOLDURULMASI GEREKEN TABLO'!H92 -> 0 | K78: ='DOLDURULMASI GEREKEN TABLO'!I92 -> 0 | L78: ='DOLDURULMASI GEREKEN TABLO'!J92 -> 0 | M78: 44562 | N78: 0 | O78: 0 | P78: 0 | Q78: 0 | R78: ='DOLDURULMASI GEREKEN TABLO'!K92 -> 0 | S78: ='DOLDURULMASI GEREKEN TABLO'!L92 -> 0 | T78: 0 | U78: 0 | V78: 0 | W78: FALSE | X78: =IFERROR(VLOOKUP(W78,'Aylık Yİ-ÜFE'!$D$1:$E$217,2,0),0) -> 0 | Y78: 2021-12 | Z78: =VLOOKUP(Y78,'Aylık Yİ-ÜFE'!$D$1:$E$217,2,1) -> 1022.25 | AA78: 0 | AB78: ='DOLDURULMASI GEREKEN TABLO'!M92 -> 0 | AC78: 0 | AD78: 0 | AE78: 0 | AF78: 0 | AG78: 0 | AH78: 0 | AI78: 0 | AK78: YD YAPILABİLİR | AL78: ='DOLDURULMASI GEREKEN TABLO'!O92 -> 0 | AM78: 0 | AN78: ='DOLDURULMASI GEREKEN TABLO'!N92 -> 0 | AO78: 0 | AP78: 0 | AQ78: 0 | AR78: 0 | AS78: 0 | AT78: 0 | AU78: 0 | AV78: 0 | AW78: FALSE | AY78: 2022-12-31 | AZ78: 00:00:00 | BA78: 0 | BB78: 0 | BC78: 0 | BD78: 1 | BE78: 0 | BF78: 0
B79: 73 | C79: ='DOLDURULMASI GEREKEN TABLO'!D93 -> 0 | D79: ='DOLDURULMASI GEREKEN TABLO'!E93 -> 0 | E79: ='DOLDURULMASI GEREKEN TABLO'!F93 -> 0 | F79: 0 | G79: ='DOLDURULMASI GEREKEN TABLO'!G93 -> 00:00:00 | H79: 2021-12-31 | I79: TARİH UYUMLU | J79: ='DOLDURULMASI GEREKEN TABLO'!H93 -> 0 | K79: ='DOLDURULMASI GEREKEN TABLO'!I93 -> 0 | L79: ='DOLDURULMASI GEREKEN TABLO'!J93 -> 0 | M79: 44562 | N79: 0 | O79: 0 | P79: 0 | Q79: 0 | R79: ='DOLDURULMASI GEREKEN TABLO'!K93 -> 0 | S79: ='DOLDURULMASI GEREKEN TABLO'!L93 -> 0 | T79: 0 | U79: 0 | V79: 0 | W79: FALSE | X79: =IFERROR(VLOOKUP(W79,'Aylık Yİ-ÜFE'!$D$1:$E$217,2,0),0) -> 0 | Y79: 2021-12 | Z79: =VLOOKUP(Y79,'Aylık Yİ-ÜFE'!$D$1:$E$217,2,1) -> 1022.25 | AA79: 0 | AB79: ='DOLDURULMASI GEREKEN TABLO'!M93 -> 0 | AC79: 0 | AD79: 0 | AE79: 0 | AF79: 0 | AG79: 0 | AH79: 0 | AI79: 0 | AK79: YD YAPILABİLİR | AL79: ='DOLDURULMASI GEREKEN TABLO'!O93 -> 0 | AM79: 0 | AN79: ='DOLDURULMASI GEREKEN TABLO'!N93 -> 0 | AO79: 0 | AP79: 0 | AQ79: 0 | AR79: 0 | AS79: 0 | AT79: 0 | AU79: 0 | AV79: 0 | AW79: =IF(K79="NORMAL AMORTİSMAN",AQ79*F79,IF(AND(K79="AZALAN BAKİYELERE GÖRE AMORTİSMAN",BC79<E79), DDB(AQ79,0,IF(E79<=4,4,E79),BC79,2),IF(AND(K79="AZALAN BAKİYELERE GÖRE AMORTİSMAN",BC79=E79),AQ79-AR79))) -> FALSE | AY79: 2022-12-31 | AZ79: 00:00:00 | BA79: 0 | BB79: 0 | BC79: 0 | BD79: 1 | BE79: 0 | BF79: 0
B80: 74 | C80: ='DOLDURULMASI GEREKEN TABLO'!D94 -> 0 | D80: ='DOLDURULMASI GEREKEN TABLO'!E94 -> 0 | E80: ='DOLDURULMASI GEREKEN TABLO'!F94 -> 0 | F80: 0 | G80: ='DOLDURULMASI GEREKEN TABLO'!G94 -> 00:00:00 | H80: 2021-12-31 | I80: TARİH UYUMLU | J80: ='DOLDURULMASI GEREKEN TABLO'!H94 -> 0 | K80: ='DOLDURULMASI GEREKEN TABLO'!I94 -> 0 | L80: ='DOLDURULMASI GEREKEN TABLO'!J94 -> 0 | M80: 44562 | N80: 0 | O80: 0 | P80: 0 | Q80: 0 | R80: ='DOLDURULMASI GEREKEN TABLO'!K94 -> 0 | S80: ='DOLDURULMASI GEREKEN TABLO'!L94 -> 0 | T80: 0 | U80: 0 | V80: 0 | W80: FALSE | X80: =IFERROR(VLOOKUP(W80,'Aylık Yİ-ÜFE'!$D$1:$E$217,2,0),0) -> 0 | Y80: 2021-12 | Z80: =VLOOKUP(Y80,'Aylık Yİ-ÜFE'!$D$1:$E$217,2,1) -> 1022.25 | AA80: 0 | AB80: ='DOLDURULMASI GEREKEN TABLO'!M94 -> 0 | AC80: 0 | AD80: 0 | AE80: 0 | AF80: 0 | AG80: 0 | AH80: 0 | AI80: 0 | AK80: YD YAPILABİLİR | AL80: ='DOLDURULMASI GEREKEN TABLO'!O94 -> 0 | AM80: 0 | AN80: ='DOLDURULMASI GEREKEN TABLO'!N94 -> 0 | AO80: 0 | AP80: 0 | AQ80: 0 | AR80: 0 | AS80: 0 | AT80: 0 | AU80: 0 | AV80: 0 | AW80: FALSE | AY80: 2022-12-31 | AZ80: 00:00:00 | BA80: 0 | BB80: 0 | BC80: 0 | BD80: 1 | BE80: 0 | BF80: 0
B81: 75 | C81: ='DOLDURULMASI GEREKEN TABLO'!D95 -> 0 | D81: ='DOLDURULMASI GEREKEN TABLO'!E95 -> 0 | E81: ='DOLDURULMASI GEREKEN TABLO'!F95 -> 0 | F81: 0 | G81: ='DOLDURULMASI GEREKEN TABLO'!G95 -> 00:00:00 | H81: 2021-12-31 | I81: TARİH UYUMLU | J81: ='DOLDURULMASI GEREKEN TABLO'!H95 -> 0 | K81: ='DOLDURULMASI GEREKEN TABLO'!I95 -> 0 | L81: ='DOLDURULMASI GEREKEN TABLO'!J95 -> 0 | M81: 44562 | N81: 0 | O81: 0 | P81: 0 | Q81: 0 | R81: ='DOLDURULMASI GEREKEN TABLO'!K95 -> 0 | S81: ='DOLDURULMASI GEREKEN TABLO'!L95 -> 0 | T81: 0 | U81: 0 | V81: 0 | W81: FALSE | X81: =IFERROR(VLOOKUP(W81,'Aylık Yİ-ÜFE'!$D$1:$E$217,2,0),0) -> 0 | Y81: 2021-12 | Z81: =VLOOKUP(Y81,'Aylık Yİ-ÜFE'!$D$1:$E$217,2,1) -> 1022.25 | AA81: 0 | AB81: ='DOLDURULMASI GEREKEN TABLO'!M95 -> 0 | AC81: 0 | AD81: 0 | AE81: 0 | AF81: 0 | AG81: 0 | AH81: 0 | AI81: 0 | AK81: YD YAPILABİLİR | AL81: ='DOLDURULMASI GEREKEN TABLO'!O95 -> 0 | AM81: 0 | AN81: ='DOLDURULMASI GEREKEN TABLO'!N95 -> 0 | AO81: 0 | AP81: 0 | AQ81: 0 | AR81: 0 | AS81: 0 | AT81: 0 | AU81: 0 | AV81: 0 | AW81: FALSE | AY81: 2022-12-31 | AZ81: 00:00:00 | BA81: 0 | BB81: 0 | BC81: 0 | BD81: 1 | BE81: 0 | BF81: 0
B82: 76 | C82: ='DOLDURULMASI GEREKEN TABLO'!D96 -> 0 | D82: ='DOLDURULMASI GEREKEN TABLO'!E96 -> 0 | E82: ='DOLDURULMASI GEREKEN TABLO'!F96 -> 0 | F82: 0 | G82: ='DOLDURULMASI GEREKEN TABLO'!G96 -> 00:00:00 | H82: 2021-12-31 | I82: TARİH UYUMLU | J82: ='DOLDURULMASI GEREKEN TABLO'!H96 -> 0 | K82: ='DOLDURULMASI GEREKEN TABLO'!I96 -> 0 | L82: ='DOLDURULMASI GEREKEN TABLO'!J96 -> 0 | M82: 44562 | N82: 0 | O82: 0 | P82: 0 | Q82: 0 | R82: ='DOLDURULMASI GEREKEN TABLO'!K96 -> 0 | S82: ='DOLDURULMASI GEREKEN TABLO'!L96 -> 0 | T82: 0 | U82: 0 | V82: 0 | W82: FALSE | X82: =IFERROR(VLOOKUP(W82,'Aylık Yİ-ÜFE'!$D$1:$E$217,2,0),0) -> 0 | Y82: 2021-12 | Z82: =VLOOKUP(Y82,'Aylık Yİ-ÜFE'!$D$1:$E$217,2,1) -> 1022.25 | AA82: 0 | AB82: ='DOLDURULMASI GEREKEN TABLO'!M96 -> 0 | AC82: 0 | AD82: 0 | AE82: 0 | AF82: 0 | AG82: 0 | AH82: 0 | AI82: 0 | AK82: YD YAPILABİLİR | AL82: ='DOLDURULMASI GEREKEN TABLO'!O96 -> 0 | AM82: 0 | AN82: ='DOLDURULMASI GEREKEN TABLO'!N96 -> 0 | AO82: 0 | AP82: 0 | AQ82: 0 | AR82: 0 | AS82: 0 | AT82: 0 | AU82: 0 | AV82: 0 | AW82: FALSE | AY82: 2022-12-31 | AZ82: 00:00:00 | BA82: 0 | BB82: 0 | BC82: 0 | BD82: 1 | BE82: 0 | BF82: 0
B83: 77 | C83: ='DOLDURULMASI GEREKEN TABLO'!D97 -> 0 | D83: ='DOLDURULMASI GEREKEN TABLO'!E97 -> 0 | E83: ='DOLDURULMASI GEREKEN TABLO'!F97 -> 0 | F83: 0 | G83: ='DOLDURULMASI GEREKEN TABLO'!G97 -> 00:00:00 | H83: 2021-12-31 | I83: TARİH UYUMLU | J83: ='DOLDURULMASI GEREKEN TABLO'!H97 -> 0 | K83: ='DOLDURULMASI GEREKEN TABLO'!I97 -> 0 | L83: ='DOLDURULMASI GEREKEN TABLO'!J97 -> 0 | M83: 44562 | N83: 0 | O83: 0 | P83: 0 | Q83: 0 | R83: ='DOLDURULMASI GEREKEN TABLO'!K97 -> 0 | S83: ='DOLDURULMASI GEREKEN TABLO'!L97 -> 0 | T83: 0 | U83: 0 | V83: 0 | W83: FALSE | X83: =IFERROR(VLOOKUP(W83,'Aylık Yİ-ÜFE'!$D$1:$E$217,2,0),0) -> 0 | Y83: 2021-12 | Z83: =VLOOKUP(Y83,'Aylık Yİ-ÜFE'!$D$1:$E$217,2,1) -> 1022.25 | AA83: 0 | AB83: ='DOLDURULMASI GEREKEN TABLO'!M97 -> 0 | AC83: 0 | AD83: 0 | AE83: 0 | AF83: 0 | AG83: 0 | AH83: 0 | AI83: 0 | AK83: YD YAPILABİLİR | AL83: ='DOLDURULMASI GEREKEN TABLO'!O97 -> 0 | AM83: 0 | AN83: ='DOLDURULMASI GEREKEN TABLO'!N97 -> 0 | AO83: 0 | AP83: 0 | AQ83: 0 | AR83: 0 | AS83: 0 | AT83: 0 | AU83: 0 | AV83: 0 | AW83: FALSE | AY83: 2022-12-31 | AZ83: 00:00:00 | BA83: 0 | BB83: 0 | BC83: 0 | BD83: 1 | BE83: 0 | BF83: 0
B84: 78 | C84: ='DOLDURULMASI GEREKEN TABLO'!D98 -> 0 | D84: ='DOLDURULMASI GEREKEN TABLO'!E98 -> 0 | E84: ='DOLDURULMASI GEREKEN TABLO'!F98 -> 0 | F84: 0 | G84: ='DOLDURULMASI GEREKEN TABLO'!G98 -> 00:00:00 | H84: 2021-12-31 | I84: TARİH UYUMLU | J84: ='DOLDURULMASI GEREKEN TABLO'!H98 -> 0 | K84: ='DOLDURULMASI GEREKEN TABLO'!I98 -> 0 | L84: ='DOLDURULMASI GEREKEN TABLO'!J98 -> 0 | M84: 44562 | N84: 0 | O84: 0 | P84: 0 | Q84: 0 | R84: ='DOLDURULMASI GEREKEN TABLO'!K98 -> 0 | S84: ='DOLDURULMASI GEREKEN TABLO'!L98 -> 0 | T84: 0 | U84: 0 | V84: 0 | W84: FALSE | X84: =IFERROR(VLOOKUP(W84,'Aylık Yİ-ÜFE'!$D$1:$E$217,2,0),0) -> 0 | Y84: 2021-12 | Z84: =VLOOKUP(Y84,'Aylık Yİ-ÜFE'!$D$1:$E$217,2,1) -> 1022.25 | AA84: 0 | AB84: ='DOLDURULMASI GEREKEN TABLO'!M98 -> 0 | AC84: 0 | AD84: 0 | AE84: 0 | AF84: 0 | AG84: 0 | AH84: 0 | AI84: 0 | AK84: YD YAPILABİLİR | AL84: ='DOLDURULMASI GEREKEN TABLO'!O98 -> 0 | AM84: 0 | AN84: ='DOLDURULMASI GEREKEN TABLO'!N98 -> 0 | AO84: 0 | AP84: 0 | AQ84: 0 | AR84: 0 | AS84: 0 | AT84: 0 | AU84: 0 | AV84: 0 | AW84: FALSE | AY84: 2022-12-31 | AZ84: 00:00:00 | BA84: 0 | BB84: 0 | BC84: 0 | BD84: 1 | BE84: 0 | BF84: 0
B85: 79 | C85: ='DOLDURULMASI GEREKEN TABLO'!D99 -> 0 | D85: ='DOLDURULMASI GEREKEN TABLO'!E99 -> 0 | E85: ='DOLDURULMASI GEREKEN TABLO'!F99 -> 0 | F85: 0 | G85: ='DOLDURULMASI GEREKEN TABLO'!G99 -> 00:00:00 | H85: 2021-12-31 | I85: TARİH UYUMLU | J85: ='DOLDURULMASI GEREKEN TABLO'!H99 -> 0 | K85: ='DOLDURULMASI GEREKEN TABLO'!I99 -> 0 | L85: ='DOLDURULMASI GEREKEN TABLO'!J99 -> 0 | M85: 44562 | N85: 0 | O85: 0 | P85: 0 | Q85: 0 | R85: ='DOLDURULMASI GEREKEN TABLO'!K99 -> 0 | S85: ='DOLDURULMASI GEREKEN TABLO'!L99 -> 0 | T85: 0 | U85: 0 | V85: 0 | W85: FALSE | X85: =IFERROR(VLOOKUP(W85,'Aylık Yİ-ÜFE'!$D$1:$E$217,2,0),0) -> 0 | Y85: 2021-12 | Z85: =VLOOKUP(Y85,'Aylık Yİ-ÜFE'!$D$1:$E$217,2,1) -> 1022.25 | AA85: 0 | AB85: ='DOLDURULMASI GEREKEN TABLO'!M99 -> 0 | AC85: 0 | AD85: 0 | AE85: 0 | AF85: 0 | AG85: 0 | AH85: 0 | AI85: 0 | AK85: YD YAPILABİLİR | AL85: ='DOLDURULMASI GEREKEN TABLO'!O99 -> 0 | AM85: 0 | AN85: ='DOLDURULMASI GEREKEN TABLO'!N99 -> 0 | AO85: 0 | AP85: 0 | AQ85: 0 | AR85: 0 | AS85: 0 | AT85: 0 | AU85: 0 | AV85: 0 | AW85: FALSE | AY85: 2022-12-31 | AZ85: 00:00:00 | BA85: 0 | BB85: 0 | BC85: 0 | BD85: 1 | BE85: 0 | BF85: 0
B86: 80 | C86: ='DOLDURULMASI GEREKEN TABLO'!D100 -> 0 | D86: ='DOLDURULMASI GEREKEN TABLO'!E100 -> 0 | E86: ='DOLDURULMASI GEREKEN TABLO'!F100 -> 0 | F86: 0 | G86: ='DOLDURULMASI GEREKEN TABLO'!G100 -> 00:00:00 | H86: 2021-12-31 | I86: TARİH UYUMLU | J86: ='DOLDURULMASI GEREKEN TABLO'!H100 -> 0 | K86: ='DOLDURULMASI GEREKEN TABLO'!I100 -> 0 | L86: ='DOLDURULMASI GEREKEN TABLO'!J100 -> 0 | M86: 44562 | N86: 0 | O86: 0 | P86: 0 | Q86: 0 | R86: ='DOLDURULMASI GEREKEN TABLO'!K100 -> 0 | S86: ='DOLDURULMASI GEREKEN TABLO'!L100 -> 0 | T86: 0 | U86: 0 | V86: 0 | W86: FALSE | X86: =IFERROR(VLOOKUP(W86,'Aylık Yİ-ÜFE'!$D$1:$E$217,2,0),0) -> 0 | Y86: 2021-12 | Z86: =VLOOKUP(Y86,'Aylık Yİ-ÜFE'!$D$1:$E$217,2,1) -> 1022.25 | AA86: 0 | AB86: ='DOLDURULMASI GEREKEN TABLO'!M100 -> 0 | AC86: 0 | AD86: 0 | AE86: 0 | AF86: 0 | AG86: 0 | AH86: 0 | AI86: 0 | AK86: YD YAPILABİLİR | AL86: ='DOLDURULMASI GEREKEN TABLO'!O100 -> 0 | AM86: 0 | AN86: ='DOLDURULMASI GEREKEN TABLO'!N100 -> 0 | AO86: 0 | AP86: 0 | AQ86: 0 | AR86: 0 | AS86: 0 | AT86: 0 | AU86: 0 | AV86: 0 | AW86: FALSE | AY86: 2022-12-31 | AZ86: 00:00:00 | BA86: 0 | BB86: 0 | BC86: 0 | BD86: 1 | BE86: 0 | BF86: 0
B87: 81 | C87: ='DOLDURULMASI GEREKEN TABLO'!D101 -> 0 | D87: ='DOLDURULMASI GEREKEN TABLO'!E101 -> 0 | E87: ='DOLDURULMASI GEREKEN TABLO'!F101 -> 0 | F87: 0 | G87: ='DOLDURULMASI GEREKEN TABLO'!G101 -> 00:00:00 | H87: 2021-12-31 | I87: TARİH UYUMLU | J87: ='DOLDURULMASI GEREKEN TABLO'!H101 -> 0 | K87: ='DOLDURULMASI GEREKEN TABLO'!I101 -> 0 | L87: ='DOLDURULMASI GEREKEN TABLO'!J101 -> 0 | M87: 44562 | N87: 0 | O87: 0 | P87: 0 | Q87: 0 | R87: ='DOLDURULMASI GEREKEN TABLO'!K101 -> 0 | S87: ='DOLDURULMASI GEREKEN TABLO'!L101 -> 0 | T87: 0 | U87: 0 | V87: 0 | W87: FALSE | X87: =IFERROR(VLOOKUP(W87,'Aylık Yİ-ÜFE'!$D$1:$E$217,2,0),0) -> 0 | Y87: 2021-12 | Z87: =VLOOKUP(Y87,'Aylık Yİ-ÜFE'!$D$1:$E$217,2,1) -> 1022.25 | AA87: 0 | AB87: ='DOLDURULMASI GEREKEN TABLO'!M101 -> 0 | AC87: 0 | AD87: 0 | AE87: 0 | AF87: 0 | AG87: 0 | AH87: 0 | AI87: 0 | AK87: YD YAPILABİLİR | AL87: ='DOLDURULMASI GEREKEN TABLO'!O101 -> 0 | AM87: 0 | AN87: ='DOLDURULMASI GEREKEN TABLO'!N101 -> 0 | AO87: 0 | AP87: 0 | AQ87: 0 | AR87: 0 | AS87: 0 | AT87: 0 | AU87: 0 | AV87: 0 | AW87: FALSE | AY87: 2022-12-31 | AZ87: 00:00:00 | BA87: 0 | BB87: 0 | BC87: 0 | BD87: 1 | BE87: 0 | BF87: 0
B88: 82 | C88: ='DOLDURULMASI GEREKEN TABLO'!D102 -> 0 | D88: ='DOLDURULMASI GEREKEN TABLO'!E102 -> 0 | E88: ='DOLDURULMASI GEREKEN TABLO'!F102 -> 0 | F88: 0 | G88: ='DOLDURULMASI GEREKEN TABLO'!G102 -> 00:00:00 | H88: 2021-12-31 | I88: TARİH UYUMLU | J88: ='DOLDURULMASI GEREKEN TABLO'!H102 -> 0 | K88: ='DOLDURULMASI GEREKEN TABLO'!I102 -> 0 | L88: ='DOLDURULMASI GEREKEN TABLO'!J102 -> 0 | M88: 44562 | N88: 0 | O88: 0 | P88: 0 | Q88: 0 | R88: ='DOLDURULMASI GEREKEN TABLO'!K102 -> 0 | S88: ='DOLDURULMASI GEREKEN TABLO'!L102 -> 0 | T88: 0 | U88: 0 | V88: 0 | W88: FALSE | X88: =IFERROR(VLOOKUP(W88,'Aylık Yİ-ÜFE'!$D$1:$E$217,2,0),0) -> 0 | Y88: 2021-12 | Z88: =VLOOKUP(Y88,'Aylık Yİ-ÜFE'!$D$1:$E$217,2,1) -> 1022.25 | AA88: 0 | AB88: ='DOLDURULMASI GEREKEN TABLO'!M102 -> 0 | AC88: 0 | AD88: 0 | AE88: 0 | AF88: 0 | AG88: 0 | AH88: 0 | AI88: 0 | AK88: YD YAPILABİLİR | AL88: ='DOLDURULMASI GEREKEN TABLO'!O102 -> 0 | AM88: 0 | AN88: ='DOLDURULMASI GEREKEN TABLO'!N102 -> 0 | AO88: 0 | AP88: 0 | AQ88: 0 | AR88: 0 | AS88: 0 | AT88: 0 | AU88: 0 | AV88: 0 | AW88: FALSE | AY88: 2022-12-31 | AZ88: 00:00:00 | BA88: 0 | BB88: 0 | BC88: 0 | BD88: 1 | BE88: 0 | BF88: 0
B89: 83 | C89: ='DOLDURULMASI GEREKEN TABLO'!D103 -> 0 | D89: ='DOLDURULMASI GEREKEN TABLO'!E103 -> 0 | E89: ='DOLDURULMASI GEREKEN TABLO'!F103 -> 0 | F89: 0 | G89: ='DOLDURULMASI GEREKEN TABLO'!G103 -> 00:00:00 | H89: 2021-12-31 | I89: TARİH UYUMLU | J89: ='DOLDURULMASI GEREKEN TABLO'!H103 -> 0 | K89: ='DOLDURULMASI GEREKEN TABLO'!I103 -> 0 | L89: ='DOLDURULMASI GEREKEN TABLO'!J103 -> 0 | M89: 44562 | N89: 0 | O89: 0 | P89: 0 | Q89: 0 | R89: ='DOLDURULMASI GEREKEN TABLO'!K103 -> 0 | S89: ='DOLDURULMASI GEREKEN TABLO'!L103 -> 0 | T89: 0 | U89: 0 | V89: 0 | W89: FALSE | X89: =IFERROR(VLOOKUP(W89,'Aylık Yİ-ÜFE'!$D$1:$E$217,2,0),0) -> 0 | Y89: 2021-12 | Z89: =VLOOKUP(Y89,'Aylık Yİ-ÜFE'!$D$1:$E$217,2,1) -> 1022.25 | AA89: 0 | AB89: ='DOLDURULMASI GEREKEN TABLO'!M103 -> 0 | AC89: 0 | AD89: 0 | AE89: 0 | AF89: 0 | AG89: 0 | AH89: 0 | AI89: 0 | AK89: YD YAPILABİLİR | AL89: ='DOLDURULMASI GEREKEN TABLO'!O103 -> 0 | AM89: 0 | AN89: ='DOLDURULMASI GEREKEN TABLO'!N103 -> 0 | AO89: 0 | AP89: 0 | AQ89: 0 | AR89: 0 | AS89: 0 | AT89: 0 | AU89: 0 | AV89: 0 | AW89: FALSE | AY89: 2022-12-31 | AZ89: 00:00:00 | BA89: 0 | BB89: 0 | BC89: 0 | BD89: 1 | BE89: 0 | BF89: 0
B90: 84 | C90: ='DOLDURULMASI GEREKEN TABLO'!D104 -> 0 | D90: ='DOLDURULMASI GEREKEN TABLO'!E104 -> 0 | E90: ='DOLDURULMASI GEREKEN TABLO'!F104 -> 0 | F90: 0 | G90: ='DOLDURULMASI GEREKEN TABLO'!G104 -> 00:00:00 | H90: 2021-12-31 | I90: TARİH UYUMLU | J90: ='DOLDURULMASI GEREKEN TABLO'!H104 -> 0 | K90: ='DOLDURULMASI GEREKEN TABLO'!I104 -> 0 | L90: ='DOLDURULMASI GEREKEN TABLO'!J104 -> 0 | M90: 44562 | N90: 0 | O90: 0 | P90: 0 | Q90: 0 | R90: ='DOLDURULMASI GEREKEN TABLO'!K104 -> 0 | S90: ='DOLDURULMASI GEREKEN TABLO'!L104 -> 0 | T90: 0 | U90: 0 | V90: 0 | W90: FALSE | X90: =IFERROR(VLOOKUP(W90,'Aylık Yİ-ÜFE'!$D$1:$E$217,2,0),0) -> 0 | Y90: 2021-12 | Z90: =VLOOKUP(Y90,'Aylık Yİ-ÜFE'!$D$1:$E$217,2,1) -> 1022.25 | AA90: 0 | AB90: ='DOLDURULMASI GEREKEN TABLO'!M104 -> 0 | AC90: 0 | AD90: 0 | AE90: 0 | AF90: 0 | AG90: 0 | AH90: 0 | AI90: 0 | AK90: YD YAPILABİLİR | AL90: ='DOLDURULMASI GEREKEN TABLO'!O104 -> 0 | AM90: 0 | AN90: ='DOLDURULMASI GEREKEN TABLO'!N104 -> 0 | AO90: 0 | AP90: 0 | AQ90: 0 | AR90: 0 | AS90: 0 | AT90: 0 | AU90: 0 | AV90: 0 | AW90: FALSE | AY90: 2022-12-31 | AZ90: 00:00:00 | BA90: 0 | BB90: 0 | BC90: 0 | BD90: 1 | BE90: 0 | BF90: 0
B91: 85 | C91: ='DOLDURULMASI GEREKEN TABLO'!D105 -> 0 | D91: ='DOLDURULMASI GEREKEN TABLO'!E105 -> 0 | E91: ='DOLDURULMASI GEREKEN TABLO'!F105 -> 0 | F91: 0 | G91: ='DOLDURULMASI GEREKEN TABLO'!G105 -> 00:00:00 | H91: 2021-12-31 | I91: TARİH UYUMLU | J91: ='DOLDURULMASI GEREKEN TABLO'!H105 -> 0 | K91: ='DOLDURULMASI GEREKEN TABLO'!I105 -> 0 | L91: ='DOLDURULMASI GEREKEN TABLO'!J105 -> 0 | M91: 44562 | N91: 0 | O91: 0 | P91: 0 | Q91: 0 | R91: ='DOLDURULMASI GEREKEN TABLO'!K105 -> 0 | S91: ='DOLDURULMASI GEREKEN TABLO'!L105 -> 0 | T91: 0 | U91: 0 | V91: 0 | W91: FALSE | X91: =IFERROR(VLOOKUP(W91,'Aylık Yİ-ÜFE'!$D$1:$E$217,2,0),0) -> 0 | Y91: 2021-12 | Z91: =VLOOKUP(Y91,'Aylık Yİ-ÜFE'!$D$1:$E$217,2,1) -> 1022.25 | AA91: 0 | AB91: ='DOLDURULMASI GEREKEN TABLO'!M105 -> 0 | AC91: 0 | AD91: 0 | AE91: 0 | AF91: 0 | AG91: 0 | AH91: 0 | AI91: 0 | AK91: YD YAPILABİLİR | AL91: ='DOLDURULMASI GEREKEN TABLO'!O105 -> 0 | AM91: 0 | AN91: ='DOLDURULMASI GEREKEN TABLO'!N105 -> 0 | AO91: 0 | AP91: 0 | AQ91: 0 | AR91: 0 | AS91: 0 | AT91: 0 | AU91: 0 | AV91: 0 | AW91: FALSE | AY91: 2022-12-31 | AZ91: 00:00:00 | BA91: 0 | BB91: 0 | BC91: 0 | BD91: 1 | BE91: 0 | BF91: 0
B92: 86 | C92: ='DOLDURULMASI GEREKEN TABLO'!D106 -> 0 | D92: ='DOLDURULMASI GEREKEN TABLO'!E106 -> 0 | E92: ='DOLDURULMASI GEREKEN TABLO'!F106 -> 0 | F92: 0 | G92: ='DOLDURULMASI GEREKEN TABLO'!G106 -> 00:00:00 | H92: 2021-12-31 | I92: TARİH UYUMLU | J92: ='DOLDURULMASI GEREKEN TABLO'!H106 -> 0 | K92: ='DOLDURULMASI GEREKEN TABLO'!I106 -> 0 | L92: ='DOLDURULMASI GEREKEN TABLO'!J106 -> 0 | M92: 44562 | N92: 0 | O92: 0 | P92: 0 | Q92: 0 | R92: ='DOLDURULMASI GEREKEN TABLO'!K106 -> 0 | S92: ='DOLDURULMASI GEREKEN TABLO'!L106 -> 0 | T92: 0 | U92: 0 | V92: 0 | W92: FALSE | X92: =IFERROR(VLOOKUP(W92,'Aylık Yİ-ÜFE'!$D$1:$E$217,2,0),0) -> 0 | Y92: 2021-12 | Z92: =VLOOKUP(Y92,'Aylık Yİ-ÜFE'!$D$1:$E$217,2,1) -> 1022.25 | AA92: 0 | AB92: ='DOLDURULMASI GEREKEN TABLO'!M106 -> 0 | AC92: 0 | AD92: 0 | AE92: 0 | AF92: 0 | AG92: 0 | AH92: 0 | AI92: 0 | AK92: YD YAPILABİLİR | AL92: ='DOLDURULMASI GEREKEN TABLO'!O106 -> 0 | AM92: 0 | AN92: ='DOLDURULMASI GEREKEN TABLO'!N106 -> 0 | AO92: 0 | AP92: 0 | AQ92: 0 | AR92: 0 | AS92: 0 | AT92: 0 | AU92: 0 | AV92: 0 | AW92: FALSE | AY92: 2022-12-31 | AZ92: 00:00:00 | BA92: 0 | BB92: 0 | BC92: 0 | BD92: 1 | BE92: 0 | BF92: 0
B93: 87 | C93: ='DOLDURULMASI GEREKEN TABLO'!D107 -> 0 | D93: ='DOLDURULMASI GEREKEN TABLO'!E107 -> 0 | E93: ='DOLDURULMASI GEREKEN TABLO'!F107 -> 0 | F93: 0 | G93: ='DOLDURULMASI GEREKEN TABLO'!G107 -> 00:00:00 | H93: 2021-12-31 | I93: TARİH UYUMLU | J93: ='DOLDURULMASI GEREKEN TABLO'!H107 -> 0 | K93: ='DOLDURULMASI GEREKEN TABLO'!I107 -> 0 | L93: ='DOLDURULMASI GEREKEN TABLO'!J107 -> 0 | M93: 44562 | N93: 0 | O93: 0 | P93: 0 | Q93: 0 | R93: ='DOLDURULMASI GEREKEN TABLO'!K107 -> 0 | S93: ='DOLDURULMASI GEREKEN TABLO'!L107 -> 0 | T93: 0 | U93: 0 | V93: 0 | W93: FALSE | X93: =IFERROR(VLOOKUP(W93,'Aylık Yİ-ÜFE'!$D$1:$E$217,2,0),0) -> 0 | Y93: 2021-12 | Z93: =VLOOKUP(Y93,'Aylık Yİ-ÜFE'!$D$1:$E$217,2,1) -> 1022.25 | AA93: 0 | AB93: ='DOLDURULMASI GEREKEN TABLO'!M107 -> 0 | AC93: 0 | AD93: 0 | AE93: 0 | AF93: 0 | AG93: 0 | AH93: 0 | AI93: 0 | AK93: YD YAPILABİLİR | AL93: ='DOLDURULMASI GEREKEN TABLO'!O107 -> 0 | AM93: 0 | AN93: ='DOLDURULMASI GEREKEN TABLO'!N107 -> 0 | AO93: 0 | AP93: 0 | AQ93: 0 | AR93: 0 | AS93: 0 | AT93: 0 | AU93: 0 | AV93: 0 | AW93: FALSE | AY93: 2022-12-31 | AZ93: 00:00:00 | BA93: 0 | BB93: 0 | BC93: 0 | BD93: 1 | BE93: 0 | BF93: 0
B94: 88 | C94: ='DOLDURULMASI GEREKEN TABLO'!D108 -> 0 | D94: ='DOLDURULMASI GEREKEN TABLO'!E108 -> 0 | E94: ='DOLDURULMASI GEREKEN TABLO'!F108 -> 0 | F94: 0 | G94: ='DOLDURULMASI GEREKEN TABLO'!G108 -> 00:00:00 | H94: 2021-12-31 | I94: TARİH UYUMLU | J94: ='DOLDURULMASI GEREKEN TABLO'!H108 -> 0 | K94: ='DOLDURULMASI GEREKEN TABLO'!I108 -> 0 | L94: ='DOLDURULMASI GEREKEN TABLO'!J108 -> 0 | M94: 44562 | N94: 0 | O94: 0 | P94: 0 | Q94: 0 | R94: ='DOLDURULMASI GEREKEN TABLO'!K108 -> 0 | S94: ='DOLDURULMASI GEREKEN TABLO'!L108 -> 0 | T94: 0 | U94: 0 | V94: 0 | W94: FALSE | X94: =IFERROR(VLOOKUP(W94,'Aylık Yİ-ÜFE'!$D$1:$E$217,2,0),0) -> 0 | Y94: 2021-12 | Z94: =VLOOKUP(Y94,'Aylık Yİ-ÜFE'!$D$1:$E$217,2,1) -> 1022.25 | AA94: 0 | AB94: ='DOLDURULMASI GEREKEN TABLO'!M108 -> 0 | AC94: 0 | AD94: 0 | AE94: 0 | AF94: 0 | AG94: 0 | AH94: 0 | AI94: 0 | AK94: YD YAPILABİLİR | AL94: ='DOLDURULMASI GEREKEN TABLO'!O108 -> 0 | AM94: 0 | AN94: ='DOLDURULMASI GEREKEN TABLO'!N108 -> 0 | AO94: 0 | AP94: 0 | AQ94: 0 | AR94: 0 | AS94: 0 | AT94: 0 | AU94: 0 | AV94: 0 | AW94: FALSE | AY94: 2022-12-31 | AZ94: 00:00:00 | BA94: 0 | BB94: 0 | BC94: 0 | BD94: 1 | BE94: 0 | BF94: 0
B95: 89 | C95: ='DOLDURULMASI GEREKEN TABLO'!D109 -> 0 | D95: ='DOLDURULMASI GEREKEN TABLO'!E109 -> 0 | E95: ='DOLDURULMASI GEREKEN TABLO'!F109 -> 0 | F95: 0 | G95: ='DOLDURULMASI GEREKEN TABLO'!G109 -> 00:00:00 | H95: 2021-12-31 | I95: TARİH UYUMLU | J95: ='DOLDURULMASI GEREKEN TABLO'!H109 -> 0 | K95: ='DOLDURULMASI GEREKEN TABLO'!I109 -> 0 | L95: ='DOLDURULMASI GEREKEN TABLO'!J109 -> 0 | M95: 44562 | N95: 0 | O95: 0 | P95: 0 | Q95: 0 | R95: ='DOLDURULMASI GEREKEN TABLO'!K109 -> 0 | S95: ='DOLDURULMASI GEREKEN TABLO'!L109 -> 0 | T95: 0 | U95: 0 | V95: 0 | W95: FALSE | X95: =IFERROR(VLOOKUP(W95,'Aylık Yİ-ÜFE'!$D$1:$E$217,2,0),0) -> 0 | Y95: 2021-12 | Z95: =VLOOKUP(Y95,'Aylık Yİ-ÜFE'!$D$1:$E$217,2,1) -> 1022.25 | AA95: 0 | AB95: ='DOLDURULMASI GEREKEN TABLO'!M109 -> 0 | AC95: 0 | AD95: 0 | AE95: 0 | AF95: 0 | AG95: 0 | AH95: 0 | AI95: 0 | AK95: YD YAPILABİLİR | AL95: ='DOLDURULMASI GEREKEN TABLO'!O109 -> 0 | AM95: 0 | AN95: ='DOLDURULMASI GEREKEN TABLO'!N109 -> 0 | AO95: 0 | AP95: 0 | AQ95: 0 | AR95: 0 | AS95: 0 | AT95: 0 | AU95: 0 | AV95: 0 | AW95: FALSE | AY95: 2022-12-31 | AZ95: 00:00:00 | BA95: 0 | BB95: 0 | BC95: 0 | BD95: 1 | BE95: 0 | BF95: 0
B96: 90 | C96: ='DOLDURULMASI GEREKEN TABLO'!D110 -> 0 | D96: ='DOLDURULMASI GEREKEN TABLO'!E110 -> 0 | E96: ='DOLDURULMASI GEREKEN TABLO'!F110 -> 0 | F96: 0 | G96: ='DOLDURULMASI GEREKEN TABLO'!G110 -> 00:00:00 | H96: 2021-12-31 | I96: TARİH UYUMLU | J96: ='DOLDURULMASI GEREKEN TABLO'!H110 -> 0 | K96: ='DOLDURULMASI GEREKEN TABLO'!I110 -> 0 | L96: ='DOLDURULMASI GEREKEN TABLO'!J110 -> 0 | M96: 44562 | N96: 0 | O96: 0 | P96: 0 | Q96: 0 | R96: ='DOLDURULMASI GEREKEN TABLO'!K110 -> 0 | S96: ='DOLDURULMASI GEREKEN TABLO'!L110 -> 0 | T96: 0 | U96: 0 | V96: 0 | W96: FALSE | X96: =IFERROR(VLOOKUP(W96,'Aylık Yİ-ÜFE'!$D$1:$E$217,2,0),0) -> 0 | Y96: 2021-12 | Z96: =VLOOKUP(Y96,'Aylık Yİ-ÜFE'!$D$1:$E$217,2,1) -> 1022.25 | AA96: 0 | AB96: ='DOLDURULMASI GEREKEN TABLO'!M110 -> 0 | AC96: 0 | AD96: 0 | AE96: 0 | AF96: 0 | AG96: 0 | AH96: 0 | AI96: 0 | AK96: YD YAPILABİLİR | AL96: ='DOLDURULMASI GEREKEN TABLO'!O110 -> 0 | AM96: 0 | AN96: ='DOLDURULMASI GEREKEN TABLO'!N110 -> 0 | AO96: 0 | AP96: 0 | AQ96: 0 | AR96: 0 | AS96: 0 | AT96: 0 | AU96: 0 | AV96: 0 | AW96: FALSE | AY96: 2022-12-31 | AZ96: 00:00:00 | BA96: 0 | BB96: 0 | BC96: 0 | BD96: 1 | BE96: 0 | BF96: 0
B97: 91 | C97: ='DOLDURULMASI GEREKEN TABLO'!D111 -> 0 | D97: ='DOLDURULMASI GEREKEN TABLO'!E111 -> 0 | E97: ='DOLDURULMASI GEREKEN TABLO'!F111 -> 0 | F97: 0 | G97: ='DOLDURULMASI GEREKEN TABLO'!G111 -> 00:00:00 | H97: 2021-12-31 | I97: TARİH UYUMLU | J97: ='DOLDURULMASI GEREKEN TABLO'!H111 -> 0 | K97: ='DOLDURULMASI GEREKEN TABLO'!I111 -> 0 | L97: ='DOLDURULMASI GEREKEN TABLO'!J111 -> 0 | M97: 44562 | N97: 0 | O97: 0 | P97: 0 | Q97: 0 | R97: ='DOLDURULMASI GEREKEN TABLO'!K111 -> 0 | S97: ='DOLDURULMASI GEREKEN TABLO'!L111 -> 0 | T97: 0 | U97: 0 | V97: 0 | W97: FALSE | X97: =IFERROR(VLOOKUP(W97,'Aylık Yİ-ÜFE'!$D$1:$E$217,2,0),0) -> 0 | Y97: 2021-12 | Z97: =VLOOKUP(Y97,'Aylık Yİ-ÜFE'!$D$1:$E$217,2,1) -> 1022.25 | AA97: 0 | AB97: ='DOLDURULMASI GEREKEN TABLO'!M111 -> 0 | AC97: 0 | AD97: 0 | AE97: 0 | AF97: 0 | AG97: 0 | AH97: 0 | AI97: 0 | AK97: YD YAPILABİLİR | AL97: ='DOLDURULMASI GEREKEN TABLO'!O111 -> 0 | AM97: 0 | AN97: ='DOLDURULMASI GEREKEN TABLO'!N111 -> 0 | AO97: 0 | AP97: 0 | AQ97: 0 | AR97: 0 | AS97: 0 | AT97: 0 | AU97: 0 | AV97: 0 | AW97: FALSE | AY97: 2022-12-31 | AZ97: 00:00:00 | BA97: 0 | BB97: 0 | BC97: 0 | BD97: 1 | BE97: 0 | BF97: 0
B98: 92 | C98: ='DOLDURULMASI GEREKEN TABLO'!D112 -> 0 | D98: ='DOLDURULMASI GEREKEN TABLO'!E112 -> 0 | E98: ='DOLDURULMASI GEREKEN TABLO'!F112 -> 0 | F98: 0 | G98: ='DOLDURULMASI GEREKEN TABLO'!G112 -> 00:00:00 | H98: 2021-12-31 | I98: TARİH UYUMLU | J98: ='DOLDURULMASI GEREKEN TABLO'!H112 -> 0 | K98: ='DOLDURULMASI GEREKEN TABLO'!I112 -> 0 | L98: ='DOLDURULMASI GEREKEN TABLO'!J112 -> 0 | M98: 44562 | N98: 0 | O98: 0 | P98: 0 | Q98: 0 | R98: ='DOLDURULMASI GEREKEN TABLO'!K112 -> 0 | S98: ='DOLDURULMASI GEREKEN TABLO'!L112 -> 0 | T98: 0 | U98: 0 | V98: 0 | W98: FALSE | X98: =IFERROR(VLOOKUP(W98,'Aylık Yİ-ÜFE'!$D$1:$E$217,2,0),0) -> 0 | Y98: 2021-12 | Z98: =VLOOKUP(Y98,'Aylık Yİ-ÜFE'!$D$1:$E$217,2,1) -> 1022.25 | AA98: 0 | AB98: ='DOLDURULMASI GEREKEN TABLO'!M112 -> 0 | AC98: 0 | AD98: 0 | AE98: 0 | AF98: 0 | AG98: 0 | AH98: 0 | AI98: 0 | AK98: YD YAPILABİLİR | AL98: ='DOLDURULMASI GEREKEN TABLO'!O112 -> 0 | AM98: 0 | AN98: ='DOLDURULMASI GEREKEN TABLO'!N112 -> 0 | AO98: 0 | AP98: 0 | AQ98: 0 | AR98: 0 | AS98: 0 | AT98: 0 | AU98: 0 | AV98: 0 | AW98: FALSE | AY98: 2022-12-31 | AZ98: 00:00:00 | BA98: 0 | BB98: 0 | BC98: 0 | BD98: 1 | BE98: 0 | BF98: 0
B99: 93 | C99: ='DOLDURULMASI GEREKEN TABLO'!D113 -> 0 | D99: ='DOLDURULMASI GEREKEN TABLO'!E113 -> 0 | E99: ='DOLDURULMASI GEREKEN TABLO'!F113 -> 0 | F99: 0 | G99: ='DOLDURULMASI GEREKEN TABLO'!G113 -> 00:00:00 | H99: 2021-12-31 | I99: TARİH UYUMLU | J99: ='DOLDURULMASI GEREKEN TABLO'!H113 -> 0 | K99: ='DOLDURULMASI GEREKEN TABLO'!I113 -> 0 | L99: ='DOLDURULMASI GEREKEN TABLO'!J113 -> 0 | M99: 44562 | N99: 0 | O99: 0 | P99: 0 | Q99: 0 | R99: ='DOLDURULMASI GEREKEN TABLO'!K113 -> 0 | S99: ='DOLDURULMASI GEREKEN TABLO'!L113 -> 0 | T99: 0 | U99: 0 | V99: 0 | W99: FALSE | X99: =IFERROR(VLOOKUP(W99,'Aylık Yİ-ÜFE'!$D$1:$E$217,2,0),0) -> 0 | Y99: 2021-12 | Z99: =VLOOKUP(Y99,'Aylık Yİ-ÜFE'!$D$1:$E$217,2,1) -> 1022.25 | AA99: 0 | AB99: ='DOLDURULMASI GEREKEN TABLO'!M113 -> 0 | AC99: 0 | AD99: 0 | AE99: 0 | AF99: 0 | AG99: 0 | AH99: 0 | AI99: 0 | AK99: YD YAPILABİLİR | AL99: ='DOLDURULMASI GEREKEN TABLO'!O113 -> 0 | AM99: 0 | AN99: ='DOLDURULMASI GEREKEN TABLO'!N113 -> 0 | AO99: 0 | AP99: 0 | AQ99: 0 | AR99: 0 | AS99: 0 | AT99: 0 | AU99: 0 | AV99: 0 | AW99: FALSE | AY99: 2022-12-31 | AZ99: 00:00:00 | BA99: 0 | BB99: 0 | BC99: 0 | BD99: 1 | BE99: 0 | BF99: 0
B100: 94 | C100: ='DOLDURULMASI GEREKEN TABLO'!D114 -> 0 | D100: ='DOLDURULMASI GEREKEN TABLO'!E114 -> 0 | E100: ='DOLDURULMASI GEREKEN TABLO'!F114 -> 0 | F100: 0 | G100: ='DOLDURULMASI GEREKEN TABLO'!G114 -> 00:00:00 | H100: 2021-12-31 | I100: TARİH UYUMLU | J100: ='DOLDURULMASI GEREKEN TABLO'!H114 -> 0 | K100: ='DOLDURULMASI GEREKEN TABLO'!I114 -> 0 | L100: ='DOLDURULMASI GEREKEN TABLO'!J114 -> 0 | M100: 44562 | N100: 0 | O100: 0 | P100: 0 | Q100: 0 | R100: ='DOLDURULMASI GEREKEN TABLO'!K114 -> 0 | S100: ='DOLDURULMASI GEREKEN TABLO'!L114 -> 0 | T100: 0 | U100: 0 | V100: 0 | W100: FALSE | X100: =IFERROR(VLOOKUP(W100,'Aylık Yİ-ÜFE'!$D$1:$E$217,2,0),0) -> 0 | Y100: 2021-12 | Z100: =VLOOKUP(Y100,'Aylık Yİ-ÜFE'!$D$1:$E$217,2,1) -> 1022.25 | AA100: 0 | AB100: ='DOLDURULMASI GEREKEN TABLO'!M114 -> 0 | AC100: 0 | AD100: 0 | AE100: 0 | AF100: 0 | AG100: 0 | AH100: 0 | AI100: 0 | AK100: YD YAPILABİLİR | AL100: ='DOLDURULMASI GEREKEN TABLO'!O114 -> 0 | AM100: 0 | AN100: ='DOLDURULMASI GEREKEN TABLO'!N114 -> 0 | AO100: 0 | AP100: 0 | AQ100: 0 | AR100: 0 | AS100: 0 | AT100: 0 | AU100: 0 | AV100: 0 | AW100: FALSE | AY100: 2022-12-31 | AZ100: 00:00:00 | BA100: 0 | BB100: 0 | BC100: 0 | BD100: 1 | BE100: 0 | BF100: 0
B101: 95 | C101: ='DOLDURULMASI GEREKEN TABLO'!D115 -> 0 | D101: ='DOLDURULMASI GEREKEN TABLO'!E115 -> 0 | E101: ='DOLDURULMASI GEREKEN TABLO'!F115 -> 0 | F101: 0 | G101: ='DOLDURULMASI GEREKEN TABLO'!G115 -> 00:00:00 | H101: 2021-12-31 | I101: TARİH UYUMLU | J101: ='DOLDURULMASI GEREKEN TABLO'!H115 -> 0 | K101: ='DOLDURULMASI GEREKEN TABLO'!I115 -> 0 | L101: ='DOLDURULMASI GEREKEN TABLO'!J115 -> 0 | M101: 44562 | N101: 0 | O101: 0 | P101: 0 | Q101: 0 | R101: ='DOLDURULMASI GEREKEN TABLO'!K115 -> 0 | S101: ='DOLDURULMASI GEREKEN TABLO'!L115 -> 0 | T101: 0 | U101: 0 | V101: 0 | W101: FALSE | X101: =IFERROR(VLOOKUP(W101,'Aylık Yİ-ÜFE'!$D$1:$E$217,2,0),0) -> 0 | Y101: 2021-12 | Z101: =VLOOKUP(Y101,'Aylık Yİ-ÜFE'!$D$1:$E$217,2,1) -> 1022.25 | AA101: 0 | AB101: ='DOLDURULMASI GEREKEN TABLO'!M115 -> 0 | AC101: 0 | AD101: 0 | AE101: 0 | AF101: 0 | AG101: 0 | AH101: 0 | AI101: 0 | AK101: YD YAPILABİLİR | AL101: ='DOLDURULMASI GEREKEN TABLO'!O115 -> 0 | AM101: 0 | AN101: ='DOLDURULMASI GEREKEN TABLO'!N115 -> 0 | AO101: 0 | AP101: 0 | AQ101: 0 | AR101: 0 | AS101: 0 | AT101: 0 | AU101: 0 | AV101: 0 | AW101: FALSE | AY101: 2022-12-31 | AZ101: 00:00:00 | BA101: 0 | BB101: 0 | BC101: 0 | BD101: 1 | BE101: 0 | BF101: 0
B102: 96 | C102: ='DOLDURULMASI GEREKEN TABLO'!D116 -> 0 | D102: ='DOLDURULMASI GEREKEN TABLO'!E116 -> 0 | E102: ='DOLDURULMASI GEREKEN TABLO'!F116 -> 0 | F102: 0 | G102: ='DOLDURULMASI GEREKEN TABLO'!G116 -> 00:00:00 | H102: 2021-12-31 | I102: TARİH UYUMLU | J102: ='DOLDURULMASI GEREKEN TABLO'!H116 -> 0 | K102: ='DOLDURULMASI GEREKEN TABLO'!I116 -> 0 | L102: ='DOLDURULMASI GEREKEN TABLO'!J116 -> 0 | M102: 44562 | N102: 0 | O102: 0 | P102: 0 | Q102: 0 | R102: ='DOLDURULMASI GEREKEN TABLO'!K116 -> 0 | S102: ='DOLDURULMASI GEREKEN TABLO'!L116 -> 0 | T102: 0 | U102: 0 | V102: 0 | W102: FALSE | X102: =IFERROR(VLOOKUP(W102,'Aylık Yİ-ÜFE'!$D$1:$E$217,2,0),0) -> 0 | Y102: 2021-12 | Z102: =VLOOKUP(Y102,'Aylık Yİ-ÜFE'!$D$1:$E$217,2,1) -> 1022.25 | AA102: 0 | AB102: ='DOLDURULMASI GEREKEN TABLO'!M116 -> 0 | AC102: 0 | AD102: 0 | AE102: 0 | AF102: 0 | AG102: 0 | AH102: 0 | AI102: 0 | AK102: YD YAPILABİLİR | AL102: ='DOLDURULMASI GEREKEN TABLO'!O116 -> 0 | AM102: 0 | AN102: ='DOLDURULMASI GEREKEN TABLO'!N116 -> 0 | AO102: 0 | AP102: 0 | AQ102: 0 | AR102: 0 | AS102: 0 | AT102: 0 | AU102: 0 | AV102: 0 | AW102: FALSE | AY102: 2022-12-31 | AZ102: 00:00:00 | BA102: 0 | BB102: 0 | BC102: 0 | BD102: 1 | BE102: 0 | BF102: 0
B103: 97 | C103: ='DOLDURULMASI GEREKEN TABLO'!D117 -> 0 | D103: ='DOLDURULMASI GEREKEN TABLO'!E117 -> 0 | E103: ='DOLDURULMASI GEREKEN TABLO'!F117 -> 0 | F103: 0 | G103: ='DOLDURULMASI GEREKEN TABLO'!G117 -> 00:00:00 | H103: 2021-12-31 | I103: TARİH UYUMLU | J103: ='DOLDURULMASI GEREKEN TABLO'!H117 -> 0 | K103: ='DOLDURULMASI GEREKEN TABLO'!I117 -> 0 | L103: ='DOLDURULMASI GEREKEN TABLO'!J117 -> 0 | M103: 44562 | N103: 0 | O103: 0 | P103: 0 | Q103: 0 | R103: ='DOLDURULMASI GEREKEN TABLO'!K117 -> 0 | S103: ='DOLDURULMASI GEREKEN TABLO'!L117 -> 0 | T103: 0 | U103: 0 | V103: 0 | W103: FALSE | X103: =IFERROR(VLOOKUP(W103,'Aylık Yİ-ÜFE'!$D$1:$E$217,2,0),0) -> 0 | Y103: 2021-12 | Z103: =VLOOKUP(Y103,'Aylık Yİ-ÜFE'!$D$1:$E$217,2,1) -> 1022.25 | AA103: 0 | AB103: ='DOLDURULMASI GEREKEN TABLO'!M117 -> 0 | AC103: 0 | AD103: 0 | AE103: 0 | AF103: 0 | AG103: 0 | AH103: 0 | AI103: 0 | AK103: YD YAPILABİLİR | AL103: ='DOLDURULMASI GEREKEN TABLO'!O117 -> 0 | AM103: 0 | AN103: ='DOLDURULMASI GEREKEN TABLO'!N117 -> 0 | AO103: 0 | AP103: 0 | AQ103: 0 | AR103: 0 | AS103: 0 | AT103: 0 | AU103: 0 | AV103: 0 | AW103: FALSE | AY103: 2022-12-31 | AZ103: 00:00:00 | BA103: 0 | BB103: 0 | BC103: 0 | BD103: 1 | BE103: 0 | BF103: 0
B104: 98 | C104: ='DOLDURULMASI GEREKEN TABLO'!D118 -> 0 | D104: ='DOLDURULMASI GEREKEN TABLO'!E118 -> 0 | E104: ='DOLDURULMASI GEREKEN TABLO'!F118 -> 0 | F104: 0 | G104: ='DOLDURULMASI GEREKEN TABLO'!G118 -> 00:00:00 | H104: 2021-12-31 | I104: TARİH UYUMLU | J104: ='DOLDURULMASI GEREKEN TABLO'!H118 -> 0 | K104: ='DOLDURULMASI GEREKEN TABLO'!I118 -> 0 | L104: ='DOLDURULMASI GEREKEN TABLO'!J118 -> 0 | M104: 44562 | N104: 0 | O104: 0 | P104: 0 | Q104: 0 | R104: ='DOLDURULMASI GEREKEN TABLO'!K118 -> 0 | S104: ='DOLDURULMASI GEREKEN TABLO'!L118 -> 0 | T104: 0 | U104: 0 | V104: 0 | W104: FALSE | X104: =IFERROR(VLOOKUP(W104,'Aylık Yİ-ÜFE'!$D$1:$E$217,2,0),0) -> 0 | Y104: 2021-12 | Z104: =VLOOKUP(Y104,'Aylık Yİ-ÜFE'!$D$1:$E$217,2,1) -> 1022.25 | AA104: 0 | AB104: ='DOLDURULMASI GEREKEN TABLO'!M118 -> 0 | AC104: 0 | AD104: 0 | AE104: 0 | AF104: 0 | AG104: 0 | AH104: 0 | AI104: 0 | AK104: YD YAPILABİLİR | AL104: ='DOLDURULMASI GEREKEN TABLO'!O118 -> 0 | AM104: 0 | AN104: ='DOLDURULMASI GEREKEN TABLO'!N118 -> 0 | AO104: 0 | AP104: 0 | AQ104: 0 | AR104: 0 | AS104: 0 | AT104: 0 | AU104: 0 | AV104: 0 | AW104: FALSE | AY104: 2022-12-31 | AZ104: 00:00:00 | BA104: 0 | BB104: 0 | BC104: 0 | BD104: 1 | BE104: 0 | BF104: 0
B105: 99 | C105: ='DOLDURULMASI GEREKEN TABLO'!D119 -> 0 | D105: ='DOLDURULMASI GEREKEN TABLO'!E119 -> 0 | E105: ='DOLDURULMASI GEREKEN TABLO'!F119 -> 0 | F105: 0 | G105: ='DOLDURULMASI GEREKEN TABLO'!G119 -> 00:00:00 | H105: 2021-12-31 | I105: TARİH UYUMLU | J105: ='DOLDURULMASI GEREKEN TABLO'!H119 -> 0 | K105: ='DOLDURULMASI GEREKEN TABLO'!I119 -> 0 | L105: ='DOLDURULMASI GEREKEN TABLO'!J119 -> 0 | M105: 44562 | N105: 0 | O105: 0 | P105: 0 | Q105: 0 | R105: ='DOLDURULMASI GEREKEN TABLO'!K119 -> 0 | S105: ='DOLDURULMASI GEREKEN TABLO'!L119 -> 0 | T105: 0 | U105: 0 | V105: 0 | W105: FALSE | X105: =IFERROR(VLOOKUP(W105,'Aylık Yİ-ÜFE'!$D$1:$E$217,2,0),0) -> 0 | Y105: 2021-12 | Z105: =VLOOKUP(Y105,'Aylık Yİ-ÜFE'!$D$1:$E$217,2,1) -> 1022.25 | AA105: 0 | AB105: ='DOLDURULMASI GEREKEN TABLO'!M119 -> 0 | AC105: 0 | AD105: 0 | AE105: 0 | AF105: 0 | AG105: 0 | AH105: 0 | AI105: 0 | AK105: YD YAPILABİLİR | AL105: ='DOLDURULMASI GEREKEN TABLO'!O119 -> 0 | AM105: 0 | AN105: ='DOLDURULMASI GEREKEN TABLO'!N119 -> 0 | AO105: 0 | AP105: 0 | AQ105: 0 | AR105: 0 | AS105: 0 | AT105: 0 | AU105: 0 | AV105: 0 | AW105: FALSE | AY105: 2022-12-31 | AZ105: 00:00:00 | BA105: 0 | BB105: 0 | BC105: 0 | BD105: 1 | BE105: 0 | BF105: 0
B106: 100 | C106: ='DOLDURULMASI GEREKEN TABLO'!D120 -> 0 | D106: ='DOLDURULMASI GEREKEN TABLO'!E120 -> 0 | E106: ='DOLDURULMASI GEREKEN TABLO'!F120 -> 0 | F106: 0 | G106: ='DOLDURULMASI GEREKEN TABLO'!G120 -> 00:00:00 | H106: 2021-12-31 | I106: TARİH UYUMLU | J106: ='DOLDURULMASI GEREKEN TABLO'!H120 -> 0 | K106: ='DOLDURULMASI GEREKEN TABLO'!I120 -> 0 | L106: ='DOLDURULMASI GEREKEN TABLO'!J120 -> 0 | M106: 44562 | N106: 0 | O106: 0 | P106: 0 | Q106: 0 | R106: ='DOLDURULMASI GEREKEN TABLO'!K120 -> 0 | S106: ='DOLDURULMASI GEREKEN TABLO'!L120 -> 0 | T106: 0 | U106: 0 | V106: 0 | W106: FALSE | X106: =IFERROR(VLOOKUP(W106,'Aylık Yİ-ÜFE'!$D$1:$E$217,2,0),0) -> 0 | Y106: 2021-12 | Z106: =VLOOKUP(Y106,'Aylık Yİ-ÜFE'!$D$1:$E$217,2,1) -> 1022.25 | AA106: 0 | AB106: ='DOLDURULMASI GEREKEN TABLO'!M120 -> 0 | AC106: 0 | AD106: 0 | AE106: 0 | AF106: 0 | AG106: 0 | AH106: 0 | AI106: 0 | AK106: YD YAPILABİLİR | AL106: ='DOLDURULMASI GEREKEN TABLO'!O120 -> 0 | AM106: 0 | AN106: ='DOLDURULMASI GEREKEN TABLO'!N120 -> 0 | AO106: 0 | AP106: 0 | AQ106: 0 | AR106: 0 | AS106: 0 | AT106: 0 | AU106: 0 | AV106: 0 | AW106: FALSE | AY106: 2022-12-31 | AZ106: 00:00:00 | BA106: 0 | BB106: 0 | BC106: 0 | BD106: 1 | BE106: 0 | BF106: 0
B107: 101 | C107: ='DOLDURULMASI GEREKEN TABLO'!D121 -> 0 | D107: ='DOLDURULMASI GEREKEN TABLO'!E121 -> 0 | E107: ='DOLDURULMASI GEREKEN TABLO'!F121 -> 0 | F107: 0 | G107: ='DOLDURULMASI GEREKEN TABLO'!G121 -> 00:00:00 | H107: 2021-12-31 | I107: TARİH UYUMLU | J107: ='DOLDURULMASI GEREKEN TABLO'!H121 -> 0 | K107: ='DOLDURULMASI GEREKEN TABLO'!I121 -> 0 | L107: ='DOLDURULMASI GEREKEN TABLO'!J121 -> 0 | M107: 44562 | N107: 0 | O107: 0 | P107: 0 | Q107: 0 | R107: ='DOLDURULMASI GEREKEN TABLO'!K121 -> 0 | S107: ='DOLDURULMASI GEREKEN TABLO'!L121 -> 0 | T107: 0 | U107: 0 | V107: 0 | W107: FALSE | X107: =IFERROR(VLOOKUP(W107,'Aylık Yİ-ÜFE'!$D$1:$E$217,2,0),0) -> 0 | Y107: 2021-12 | Z107: =VLOOKUP(Y107,'Aylık Yİ-ÜFE'!$D$1:$E$217,2,1) -> 1022.25 | AA107: 0 | AB107: ='DOLDURULMASI GEREKEN TABLO'!M121 -> 0 | AC107: 0 | AD107: 0 | AE107: 0 | AF107: 0 | AG107: 0 | AH107: 0 | AI107: 0 | AK107: YD YAPILABİLİR | AL107: ='DOLDURULMASI GEREKEN TABLO'!O121 -> 0 | AM107: 0 | AN107: ='DOLDURULMASI GEREKEN TABLO'!N121 -> 0 | AO107: 0 | AP107: 0 | AQ107: 0 | AR107: 0 | AS107: 0 | AT107: 0 | AU107: 0 | AV107: 0 | AW107: FALSE | AY107: 2022-12-31 | AZ107: 00:00:00 | BA107: 0 | BB107: 0 | BC107: 0 | BD107: 1 | BE107: 0 | BF107: 0
B108: 102 | C108: ='DOLDURULMASI GEREKEN TABLO'!D122 -> 0 | D108: ='DOLDURULMASI GEREKEN TABLO'!E122 -> 0 | E108: ='DOLDURULMASI GEREKEN TABLO'!F122 -> 0 | F108: 0 | G108: ='DOLDURULMASI GEREKEN TABLO'!G122 -> 00:00:00 | H108: 2021-12-31 | I108: TARİH UYUMLU | J108: ='DOLDURULMASI GEREKEN TABLO'!H122 -> 0 | K108: ='DOLDURULMASI GEREKEN TABLO'!I122 -> 0 | L108: ='DOLDURULMASI GEREKEN TABLO'!J122 -> 0 | M108: 44562 | N108: 0 | O108: 0 | P108: 0 | Q108: 0 | R108: ='DOLDURULMASI GEREKEN TABLO'!K122 -> 0 | S108: ='DOLDURULMASI GEREKEN TABLO'!L122 -> 0 | T108: 0 | U108: 0 | V108: 0 | W108: FALSE | X108: =IFERROR(VLOOKUP(W108,'Aylık Yİ-ÜFE'!$D$1:$E$217,2,0),0) -> 0 | Y108: 2021-12 | Z108: =VLOOKUP(Y108,'Aylık Yİ-ÜFE'!$D$1:$E$217,2,1) -> 1022.25 | AA108: 0 | AB108: ='DOLDURULMASI GEREKEN TABLO'!M122 -> 0 | AC108: 0 | AD108: 0 | AE108: 0 | AF108: 0 | AG108: 0 | AH108: 0 | AI108: 0 | AK108: YD YAPILABİLİR | AL108: ='DOLDURULMASI GEREKEN TABLO'!O122 -> 0 | AM108: 0 | AN108: ='DOLDURULMASI GEREKEN TABLO'!N122 -> 0 | AO108: 0 | AP108: 0 | AQ108: 0 | AR108: 0 | AS108: 0 | AT108: 0 | AU108: 0 | AV108: 0 | AW108: FALSE | AY108: 2022-12-31 | AZ108: 00:00:00 | BA108: 0 | BB108: 0 | BC108: 0 | BD108: 1 | BE108: 0 | BF108: 0
B109: 103 | C109: ='DOLDURULMASI GEREKEN TABLO'!D123 -> 0 | D109: ='DOLDURULMASI GEREKEN TABLO'!E123 -> 0 | E109: ='DOLDURULMASI GEREKEN TABLO'!F123 -> 0 | F109: 0 | G109: ='DOLDURULMASI GEREKEN TABLO'!G123 -> 00:00:00 | H109: 2021-12-31 | I109: TARİH UYUMLU | J109: ='DOLDURULMASI GEREKEN TABLO'!H123 -> 0 | K109: ='DOLDURULMASI GEREKEN TABLO'!I123 -> 0 | L109: ='DOLDURULMASI GEREKEN TABLO'!J123 -> 0 | M109: 44562 | N109: 0 | O109: 0 | P109: 0 | Q109: 0 | R109: ='DOLDURULMASI GEREKEN TABLO'!K123 -> 0 | S109: ='DOLDURULMASI GEREKEN TABLO'!L123 -> 0 | T109: 0 | U109: 0 | V109: 0 | W109: FALSE | X109: =IFERROR(VLOOKUP(W109,'Aylık Yİ-ÜFE'!$D$1:$E$217,2,0),0) -> 0 | Y109: 2021-12 | Z109: =VLOOKUP(Y109,'Aylık Yİ-ÜFE'!$D$1:$E$217,2,1) -> 1022.25 | AA109: 0 | AB109: ='DOLDURULMASI GEREKEN TABLO'!M123 -> 0 | AC109: 0 | AD109: 0 | AE109: 0 | AF109: 0 | AG109: 0 | AH109: 0 | AI109: 0 | AK109: YD YAPILABİLİR | AL109: ='DOLDURULMASI GEREKEN TABLO'!O123 -> 0 | AM109: 0 | AN109: ='DOLDURULMASI GEREKEN TABLO'!N123 -> 0 | AO109: 0 | AP109: 0 | AQ109: 0 | AR109: 0 | AS109: 0 | AT109: 0 | AU109: 0 | AV109: 0 | AW109: FALSE | AY109: 2022-12-31 | AZ109: 00:00:00 | BA109: 0 | BB109: 0 | BC109: 0 | BD109: 1 | BE109: 0 | BF109: 0
B110: 104 | C110: ='DOLDURULMASI GEREKEN TABLO'!D124 -> 0 | D110: ='DOLDURULMASI GEREKEN TABLO'!E124 -> 0 | E110: ='DOLDURULMASI GEREKEN TABLO'!F124 -> 0 | F110: 0 | G110: ='DOLDURULMASI GEREKEN TABLO'!G124 -> 00:00:00 | H110: 2021-12-31 | I110: TARİH UYUMLU | J110: ='DOLDURULMASI GEREKEN TABLO'!H124 -> 0 | K110: ='DOLDURULMASI GEREKEN TABLO'!I124 -> 0 | L110: ='DOLDURULMASI GEREKEN TABLO'!J124 -> 0 | M110: 44562 | N110: 0 | O110: 0 | P110: 0 | Q110: 0 | R110: ='DOLDURULMASI GEREKEN TABLO'!K124 -> 0 | S110: ='DOLDURULMASI GEREKEN TABLO'!L124 -> 0 | T110: 0 | U110: 0 | V110: 0 | W110: FALSE | X110: =IFERROR(VLOOKUP(W110,'Aylık Yİ-ÜFE'!$D$1:$E$217,2,0),0) -> 0 | Y110: 2021-12 | Z110: =VLOOKUP(Y110,'Aylık Yİ-ÜFE'!$D$1:$E$217,2,1) -> 1022.25 | AA110: 0 | AB110: ='DOLDURULMASI GEREKEN TABLO'!M124 -> 0 | AC110: 0 | AD110: 0 | AE110: 0 | AF110: 0 | AG110: 0 | AH110: 0 | AI110: 0 | AK110: YD YAPILABİLİR | AL110: ='DOLDURULMASI GEREKEN TABLO'!O124 -> 0 | AM110: 0 | AN110: ='DOLDURULMASI GEREKEN TABLO'!N124 -> 0 | AO110: 0 | AP110: 0 | AQ110: 0 | AR110: 0 | AS110: 0 | AT110: 0 | AU110: 0 | AV110: 0 | AW110: FALSE | AY110: 2022-12-31 | AZ110: 00:00:00 | BA110: 0 | BB110: 0 | BC110: 0 | BD110: 1 | BE110: 0 | BF110: 0
B111: 105 | C111: ='DOLDURULMASI GEREKEN TABLO'!D125 -> 0 | D111: ='DOLDURULMASI GEREKEN TABLO'!E125 -> 0 | E111: ='DOLDURULMASI GEREKEN TABLO'!F125 -> 0 | F111: 0 | G111: ='DOLDURULMASI GEREKEN TABLO'!G125 -> 00:00:00 | H111: 2021-12-31 | I111: TARİH UYUMLU | J111: ='DOLDURULMASI GEREKEN TABLO'!H125 -> 0 | K111: ='DOLDURULMASI GEREKEN TABLO'!I125 -> 0 | L111: ='DOLDURULMASI GEREKEN TABLO'!J125 -> 0 | M111: 44562 | N111: 0 | O111: 0 | P111: 0 | Q111: 0 | R111: ='DOLDURULMASI GEREKEN TABLO'!K125 -> 0 | S111: ='DOLDURULMASI GEREKEN TABLO'!L125 -> 0 | T111: 0 | U111: 0 | V111: 0 | W111: FALSE | X111: =IFERROR(VLOOKUP(W111,'Aylık Yİ-ÜFE'!$D$1:$E$217,2,0),0) -> 0 | Y111: 2021-12 | Z111: =VLOOKUP(Y111,'Aylık Yİ-ÜFE'!$D$1:$E$217,2,1) -> 1022.25 | AA111: 0 | AB111: ='DOLDURULMASI GEREKEN TABLO'!M125 -> 0 | AC111: 0 | AD111: 0 | AE111: 0 | AF111: 0 | AG111: 0 | AH111: 0 | AI111: 0 | AK111: YD YAPILABİLİR | AL111: ='DOLDURULMASI GEREKEN TABLO'!O125 -> 0 | AM111: 0 | AN111: ='DOLDURULMASI GEREKEN TABLO'!N125 -> 0 | AO111: 0 | AP111: 0 | AQ111: 0 | AR111: 0 | AS111: 0 | AT111: 0 | AU111: 0 | AV111: 0 | AW111: FALSE | AY111: 2022-12-31 | AZ111: 00:00:00 | BA111: 0 | BB111: 0 | BC111: 0 | BD111: 1 | BE111: 0 | BF111: 0
B112: 106 | C112: ='DOLDURULMASI GEREKEN TABLO'!D126 -> 0 | D112: ='DOLDURULMASI GEREKEN TABLO'!E126 -> 0 | E112: ='DOLDURULMASI GEREKEN TABLO'!F126 -> 0 | F112: 0 | G112: ='DOLDURULMASI GEREKEN TABLO'!G126 -> 00:00:00 | H112: 2021-12-31 | I112: TARİH UYUMLU | J112: ='DOLDURULMASI GEREKEN TABLO'!H126 -> 0 | K112: ='DOLDURULMASI GEREKEN TABLO'!I126 -> 0 | L112: ='DOLDURULMASI GEREKEN TABLO'!J126 -> 0 | M112: 44562 | N112: 0 | O112: 0 | P112: 0 | Q112: 0 | R112: ='DOLDURULMASI GEREKEN TABLO'!K126 -> 0 | S112: ='DOLDURULMASI GEREKEN TABLO'!L126 -> 0 | T112: 0 | U112: 0 | V112: 0 | W112: FALSE | X112: =IFERROR(VLOOKUP(W112,'Aylık Yİ-ÜFE'!$D$1:$E$217,2,0),0) -> 0 | Y112: 2021-12 | Z112: =VLOOKUP(Y112,'Aylık Yİ-ÜFE'!$D$1:$E$217,2,1) -> 1022.25 | AA112: 0 | AB112: ='DOLDURULMASI GEREKEN TABLO'!M126 -> 0 | AC112: 0 | AD112: 0 | AE112: 0 | AF112: 0 | AG112: 0 | AH112: 0 | AI112: 0 | AK112: YD YAPILABİLİR | AL112: ='DOLDURULMASI GEREKEN TABLO'!O126 -> 0 | AM112: 0 | AN112: ='DOLDURULMASI GEREKEN TABLO'!N126 -> 0 | AO112: 0 | AP112: 0 | AQ112: 0 | AR112: 0 | AS112: 0 | AT112: 0 | AU112: 0 | AV112: 0 | AW112: FALSE | AY112: 2022-12-31 | AZ112: 00:00:00 | BA112: 0 | BB112: 0 | BC112: 0 | BD112: 1 | BE112: 0 | BF112: 0
B113: 107 | C113: ='DOLDURULMASI GEREKEN TABLO'!D127 -> 0 | D113: ='DOLDURULMASI GEREKEN TABLO'!E127 -> 0 | E113: ='DOLDURULMASI GEREKEN TABLO'!F127 -> 0 | F113: 0 | G113: ='DOLDURULMASI GEREKEN TABLO'!G127 -> 00:00:00 | H113: 2021-12-31 | I113: TARİH UYUMLU | J113: ='DOLDURULMASI GEREKEN TABLO'!H127 -> 0 | K113: ='DOLDURULMASI GEREKEN TABLO'!I127 -> 0 | L113: ='DOLDURULMASI GEREKEN TABLO'!J127 -> 0 | M113: 44562 | N113: 0 | O113: 0 | P113: 0 | Q113: 0 | R113: ='DOLDURULMASI GEREKEN TABLO'!K127 -> 0 | S113: ='DOLDURULMASI GEREKEN TABLO'!L127 -> 0 | T113: 0 | U113: 0 | V113: 0 | W113: FALSE | X113: =IFERROR(VLOOKUP(W113,'Aylık Yİ-ÜFE'!$D$1:$E$217,2,0),0) -> 0 | Y113: 2021-12 | Z113: =VLOOKUP(Y113,'Aylık Yİ-ÜFE'!$D$1:$E$217,2,1) -> 1022.25 | AA113: 0 | AB113: ='DOLDURULMASI GEREKEN TABLO'!M127 -> 0 | AC113: 0 | AD113: 0 | AE113: 0 | AF113: 0 | AG113: 0 | AH113: 0 | AI113: 0 | AK113: YD YAPILABİLİR | AL113: ='DOLDURULMASI GEREKEN TABLO'!O127 -> 0 | AM113: 0 | AN113: ='DOLDURULMASI GEREKEN TABLO'!N127 -> 0 | AO113: 0 | AP113: 0 | AQ113: 0 | AR113: 0 | AS113: 0 | AT113: 0 | AU113: 0 | AV113: 0 | AW113: FALSE | AY113: 2022-12-31 | AZ113: 00:00:00 | BA113: 0 | BB113: 0 | BC113: 0 | BD113: 1 | BE113: 0 | BF113: 0
B114: 108 | C114: ='DOLDURULMASI GEREKEN TABLO'!D128 -> 0 | D114: ='DOLDURULMASI GEREKEN TABLO'!E128 -> 0 | E114: ='DOLDURULMASI GEREKEN TABLO'!F128 -> 0 | F114: 0 | G114: ='DOLDURULMASI GEREKEN TABLO'!G128 -> 00:00:00 | H114: 2021-12-31 | I114: TARİH UYUMLU | J114: ='DOLDURULMASI GEREKEN TABLO'!H128 -> 0 | K114: ='DOLDURULMASI GEREKEN TABLO'!I128 -> 0 | L114: ='DOLDURULMASI GEREKEN TABLO'!J128 -> 0 | M114: 44562 | N114: 0 | O114: 0 | P114: 0 | Q114: 0 | R114: ='DOLDURULMASI GEREKEN TABLO'!K128 -> 0 | S114: ='DOLDURULMASI GEREKEN TABLO'!L128 -> 0 | T114: 0 | U114: 0 | V114: 0 | W114: FALSE | X114: =IFERROR(VLOOKUP(W114,'Aylık Yİ-ÜFE'!$D$1:$E$217,2,0),0) -> 0 | Y114: 2021-12 | Z114: =VLOOKUP(Y114,'Aylık Yİ-ÜFE'!$D$1:$E$217,2,1) -> 1022.25 | AA114: 0 | AB114: ='DOLDURULMASI GEREKEN TABLO'!M128 -> 0 | AC114: 0 | AD114: 0 | AE114: 0 | AF114: 0 | AG114: 0 | AH114: 0 | AI114: 0 | AK114: YD YAPILABİLİR | AL114: ='DOLDURULMASI GEREKEN TABLO'!O128 -> 0 | AM114: 0 | AN114: ='DOLDURULMASI GEREKEN TABLO'!N128 -> 0 | AO114: 0 | AP114: 0 | AQ114: 0 | AR114: 0 | AS114: 0 | AT114: 0 | AU114: 0 | AV114: 0 | AW114: FALSE | AY114: 2022-12-31 | AZ114: 00:00:00 | BA114: 0 | BB114: 0 | BC114: 0 | BD114: 1 | BE114: 0 | BF114: 0
B115: 109 | C115: ='DOLDURULMASI GEREKEN TABLO'!D129 -> 0 | D115: ='DOLDURULMASI GEREKEN TABLO'!E129 -> 0 | E115: ='DOLDURULMASI GEREKEN TABLO'!F129 -> 0 | F115: 0 | G115: ='DOLDURULMASI GEREKEN TABLO'!G129 -> 00:00:00 | H115: 2021-12-31 | I115: TARİH UYUMLU | J115: ='DOLDURULMASI GEREKEN TABLO'!H129 -> 0 | K115: ='DOLDURULMASI GEREKEN TABLO'!I129 -> 0 | L115: ='DOLDURULMASI GEREKEN TABLO'!J129 -> 0 | M115: 44562 | N115: 0 | O115: 0 | P115: 0 | Q115: 0 | R115: ='DOLDURULMASI GEREKEN TABLO'!K129 -> 0 | S115: ='DOLDURULMASI GEREKEN TABLO'!L129 -> 0 | T115: 0 | U115: 0 | V115: 0 | W115: FALSE | X115: =IFERROR(VLOOKUP(W115,'Aylık Yİ-ÜFE'!$D$1:$E$217,2,0),0) -> 0 | Y115: 2021-12 | Z115: =VLOOKUP(Y115,'Aylık Yİ-ÜFE'!$D$1:$E$217,2,1) -> 1022.25 | AA115: 0 | AB115: ='DOLDURULMASI GEREKEN TABLO'!M129 -> 0 | AC115: 0 | AD115: 0 | AE115: 0 | AF115: 0 | AG115: 0 | AH115: 0 | AI115: 0 | AK115: YD YAPILABİLİR | AL115: ='DOLDURULMASI GEREKEN TABLO'!O129 -> 0 | AM115: 0 | AN115: ='DOLDURULMASI GEREKEN TABLO'!N129 -> 0 | AO115: 0 | AP115: 0 | AQ115: 0 | AR115: 0 | AS115: 0 | AT115: 0 | AU115: 0 | AV115: 0 | AW115: FALSE | AY115: 2022-12-31 | AZ115: 00:00:00 | BA115: 0 | BB115: 0 | BC115: 0 | BD115: 1 | BE115: 0 | BF115: 0
B116: 110 | C116: ='DOLDURULMASI GEREKEN TABLO'!D130 -> 0 | D116: ='DOLDURULMASI GEREKEN TABLO'!E130 -> 0 | E116: ='DOLDURULMASI GEREKEN TABLO'!F130 -> 0 | F116: 0 | G116: ='DOLDURULMASI GEREKEN TABLO'!G130 -> 00:00:00 | H116: 2021-12-31 | I116: TARİH UYUMLU | J116: ='DOLDURULMASI GEREKEN TABLO'!H130 -> 0 | K116: ='DOLDURULMASI GEREKEN TABLO'!I130 -> 0 | L116: ='DOLDURULMASI GEREKEN TABLO'!J130 -> 0 | M116: 44562 | N116: 0 | O116: 0 | P116: 0 | Q116: 0 | R116: ='DOLDURULMASI GEREKEN TABLO'!K130 -> 0 | S116: ='DOLDURULMASI GEREKEN TABLO'!L130 -> 0 | T116: 0 | U116: 0 | V116: 0 | W116: FALSE | X116: =IFERROR(VLOOKUP(W116,'Aylık Yİ-ÜFE'!$D$1:$E$217,2,0),0) -> 0 | Y116: 2021-12 | Z116: =VLOOKUP(Y116,'Aylık Yİ-ÜFE'!$D$1:$E$217,2,1) -> 1022.25 | AA116: 0 | AB116: ='DOLDURULMASI GEREKEN TABLO'!M130 -> 0 | AC116: 0 | AD116: 0 | AE116: 0 | AF116: 0 | AG116: 0 | AH116: 0 | AI116: 0 | AK116: YD YAPILABİLİR | AL116: ='DOLDURULMASI GEREKEN TABLO'!O130 -> 0 | AM116: 0 | AN116: ='DOLDURULMASI GEREKEN TABLO'!N130 -> 0 | AO116: 0 | AP116: 0 | AQ116: 0 | AR116: 0 | AS116: 0 | AT116: 0 | AU116: 0 | AV116: 0 | AW116: FALSE | AY116: 2022-12-31 | AZ116: 00:00:00 | BA116: 0 | BB116: 0 | BC116: 0 | BD116: 1 | BE116: 0 | BF116: 0
B117: 111 | C117: ='DOLDURULMASI GEREKEN TABLO'!D131 -> 0 | D117: ='DOLDURULMASI GEREKEN TABLO'!E131 -> 0 | E117: ='DOLDURULMASI GEREKEN TABLO'!F131 -> 0 | F117: 0 | G117: ='DOLDURULMASI GEREKEN TABLO'!G131 -> 00:00:00 | H117: 2021-12-31 | I117: TARİH UYUMLU | J117: ='DOLDURULMASI GEREKEN TABLO'!H131 -> 0 | K117: ='DOLDURULMASI GEREKEN TABLO'!I131 -> 0 | L117: ='DOLDURULMASI GEREKEN TABLO'!J131 -> 0 | M117: 44562 | N117: 0 | O117: 0 | P117: 0 | Q117: 0 | R117: ='DOLDURULMASI GEREKEN TABLO'!K131 -> 0 | S117: ='DOLDURULMASI GEREKEN TABLO'!L131 -> 0 | T117: 0 | U117: 0 | V117: 0 | W117: FALSE | X117: =IFERROR(VLOOKUP(W117,'Aylık Yİ-ÜFE'!$D$1:$E$217,2,0),0) -> 0 | Y117: 2021-12 | Z117: =VLOOKUP(Y117,'Aylık Yİ-ÜFE'!$D$1:$E$217,2,1) -> 1022.25 | AA117: 0 | AB117: ='DOLDURULMASI GEREKEN TABLO'!M131 -> 0 | AC117: 0 | AD117: 0 | AE117: 0 | AF117: 0 | AG117: 0 | AH117: 0 | AI117: 0 | AK117: YD YAPILABİLİR | AL117: ='DOLDURULMASI GEREKEN TABLO'!O131 -> 0 | AM117: 0 | AN117: ='DOLDURULMASI GEREKEN TABLO'!N131 -> 0 | AO117: 0 | AP117: 0 | AQ117: 0 | AR117: 0 | AS117: 0 | AT117: 0 | AU117: 0 | AV117: 0 | AW117: FALSE | AY117: 2022-12-31 | AZ117: 00:00:00 | BA117: 0 | BB117: 0 | BC117: 0 | BD117: 1 | BE117: 0 | BF117: 0
B118: 112 | C118: ='DOLDURULMASI GEREKEN TABLO'!D132 -> 0 | D118: ='DOLDURULMASI GEREKEN TABLO'!E132 -> 0 | E118: ='DOLDURULMASI GEREKEN TABLO'!F132 -> 0 | F118: 0 | G118: ='DOLDURULMASI GEREKEN TABLO'!G132 -> 00:00:00 | H118: 2021-12-31 | I118: TARİH UYUMLU | J118: ='DOLDURULMASI GEREKEN TABLO'!H132 -> 0 | K118: ='DOLDURULMASI GEREKEN TABLO'!I132 -> 0 | L118: ='DOLDURULMASI GEREKEN TABLO'!J132 -> 0 | M118: 44562 | N118: 0 | O118: 0 | P118: 0 | Q118: 0 | R118: ='DOLDURULMASI GEREKEN TABLO'!K132 -> 0 | S118: ='DOLDURULMASI GEREKEN TABLO'!L132 -> 0 | T118: 0 | U118: 0 | V118: 0 | W118: FALSE | X118: =IFERROR(VLOOKUP(W118,'Aylık Yİ-ÜFE'!$D$1:$E$217,2,0),0) -> 0 | Y118: 2021-12 | Z118: =VLOOKUP(Y118,'Aylık Yİ-ÜFE'!$D$1:$E$217,2,1) -> 1022.25 | AA118: 0 | AB118: ='DOLDURULMASI GEREKEN TABLO'!M132 -> 0 | AC118: 0 | AD118: 0 | AE118: 0 | AF118: 0 | AG118: 0 | AH118: 0 | AI118: 0 | AK118: YD YAPILABİLİR | AL118: ='DOLDURULMASI GEREKEN TABLO'!O132 -> 0 | AM118: 0 | AN118: ='DOLDURULMASI GEREKEN TABLO'!N132 -> 0 | AO118: 0 | AP118: 0 | AQ118: 0 | AR118: 0 | AS118: 0 | AT118: 0 | AU118: 0 | AV118: 0 | AW118: FALSE | AY118: 2022-12-31 | AZ118: 00:00:00 | BA118: 0 | BB118: 0 | BC118: 0 | BD118: 1 | BE118: 0 | BF118: 0
B119: 113 | C119: ='DOLDURULMASI GEREKEN TABLO'!D133 -> 0 | D119: ='DOLDURULMASI GEREKEN TABLO'!E133 -> 0 | E119: ='DOLDURULMASI GEREKEN TABLO'!F133 -> 0 | F119: 0 | G119: ='DOLDURULMASI GEREKEN TABLO'!G133 -> 00:00:00 | H119: 2021-12-31 | I119: TARİH UYUMLU | J119: ='DOLDURULMASI GEREKEN TABLO'!H133 -> 0 | K119: ='DOLDURULMASI GEREKEN TABLO'!I133 -> 0 | L119: ='DOLDURULMASI GEREKEN TABLO'!J133 -> 0 | M119: 44562 | N119: 0 | O119: 0 | P119: 0 | Q119: 0 | R119: ='DOLDURULMASI GEREKEN TABLO'!K133 -> 0 | S119: ='DOLDURULMASI GEREKEN TABLO'!L133 -> 0 | T119: 0 | U119: 0 | V119: 0 | W119: FALSE | X119: =IFERROR(VLOOKUP(W119,'Aylık Yİ-ÜFE'!$D$1:$E$217,2,0),0) -> 0 | Y119: 2021-12 | Z119: =VLOOKUP(Y119,'Aylık Yİ-ÜFE'!$D$1:$E$217,2,1) -> 1022.25 | AA119: 0 | AB119: ='DOLDURULMASI GEREKEN TABLO'!M133 -> 0 | AC119: 0 | AD119: 0 | AE119: 0 | AF119: 0 | AG119: 0 | AH119: 0 | AI119: 0 | AK119: YD YAPILABİLİR | AL119: ='DOLDURULMASI GEREKEN TABLO'!O133 -> 0 | AM119: 0 | AN119: ='DOLDURULMASI GEREKEN TABLO'!N133 -> 0 | AO119: 0 | AP119: 0 | AQ119: 0 | AR119: 0 | AS119: 0 | AT119: 0 | AU119: 0 | AV119: 0 | AW119: FALSE | AY119: 2022-12-31 | AZ119: 00:00:00 | BA119: 0 | BB119: 0 | BC119: 0 | BD119: 1 | BE119: 0 | BF119: 0
B120: 114 | C120: ='DOLDURULMASI GEREKEN TABLO'!D134 -> 0 | D120: ='DOLDURULMASI GEREKEN TABLO'!E134 -> 0 | E120: ='DOLDURULMASI GEREKEN TABLO'!F134 -> 0 | F120: 0 | G120: ='DOLDURULMASI GEREKEN TABLO'!G134 -> 00:00:00 | H120: 2021-12-31 | I120: TARİH UYUMLU | J120: ='DOLDURULMASI GEREKEN TABLO'!H134 -> 0 | K120: ='DOLDURULMASI GEREKEN TABLO'!I134 -> 0 | L120: ='DOLDURULMASI GEREKEN TABLO'!J134 -> 0 | M120: 44562 | N120: 0 | O120: 0 | P120: 0 | Q120: 0 | R120: ='DOLDURULMASI GEREKEN TABLO'!K134 -> 0 | S120: ='DOLDURULMASI GEREKEN TABLO'!L134 -> 0 | T120: 0 | U120: 0 | V120: 0 | W120: FALSE | X120: =IFERROR(VLOOKUP(W120,'Aylık Yİ-ÜFE'!$D$1:$E$217,2,0),0) -> 0 | Y120: 2021-12 | Z120: =VLOOKUP(Y120,'Aylık Yİ-ÜFE'!$D$1:$E$217,2,1) -> 1022.25 | AA120: 0 | AB120: ='DOLDURULMASI GEREKEN TABLO'!M134 -> 0 | AC120: 0 | AD120: 0 | AE120: 0 | AF120: 0 | AG120: 0 | AH120: 0 | AI120: 0 | AK120: YD YAPILABİLİR | AL120: ='DOLDURULMASI GEREKEN TABLO'!O134 -> 0 | AM120: 0 | AN120: ='DOLDURULMASI GEREKEN TABLO'!N134 -> 0 | AO120: 0 | AP120: 0 | AQ120: 0 | AR120: 0 | AS120: 0 | AT120: 0 | AU120: 0 | AV120: 0 | AW120: FALSE | AY120: 2022-12-31 | AZ120: 00:00:00 | BA120: 0 | BB120: 0 | BC120: 0 | BD120: 1 | BE120: 0 | BF120: 0
B121: 115 | C121: ='DOLDURULMASI GEREKEN TABLO'!D135 -> 0 | D121: ='DOLDURULMASI GEREKEN TABLO'!E135 -> 0 | E121: ='DOLDURULMASI GEREKEN TABLO'!F135 -> 0 | F121: 0 | G121: ='DOLDURULMASI GEREKEN TABLO'!G135 -> 00:00:00 | H121: 2021-12-31 | I121: TARİH UYUMLU | J121: ='DOLDURULMASI GEREKEN TABLO'!H135 -> 0 | K121: ='DOLDURULMASI GEREKEN TABLO'!I135 -> 0 | L121: ='DOLDURULMASI GEREKEN TABLO'!J135 -> 0 | M121: 44562 | N121: 0 | O121: 0 | P121: 0 | Q121: 0 | R121: ='DOLDURULMASI GEREKEN TABLO'!K135 -> 0 | S121: ='DOLDURULMASI GEREKEN TABLO'!L135 -> 0 | T121: 0 | U121: 0 | V121: 0 | W121: FALSE | X121: =IFERROR(VLOOKUP(W121,'Aylık Yİ-ÜFE'!$D$1:$E$217,2,0),0) -> 0 | Y121: 2021-12 | Z121: =VLOOKUP(Y121,'Aylık Yİ-ÜFE'!$D$1:$E$217,2,1) -> 1022.25 | AA121: 0 | AB121: ='DOLDURULMASI GEREKEN TABLO'!M135 -> 0 | AC121: 0 | AD121: 0 | AE121: 0 | AF121: 0 | AG121: 0 | AH121: 0 | AI121: 0 | AK121: YD YAPILABİLİR | AL121: ='DOLDURULMASI GEREKEN TABLO'!O135 -> 0 | AM121: 0 | AN121: ='DOLDURULMASI GEREKEN TABLO'!N135 -> 0 | AO121: 0 | AP121: 0 | AQ121: 0 | AR121: 0 | AS121: 0 | AT121: 0 | AU121: 0 | AV121: 0 | AW121: FALSE | AY121: 2022-12-31 | AZ121: 00:00:00 | BA121: 0 | BB121: 0 | BC121: 0 | BD121: 1 | BE121: 0 | BF121: 0
B122: 116 | C122: ='DOLDURULMASI GEREKEN TABLO'!D136 -> 0 | D122: ='DOLDURULMASI GEREKEN TABLO'!E136 -> 0 | E122: ='DOLDURULMASI GEREKEN TABLO'!F136 -> 0 | F122: 0 | G122: ='DOLDURULMASI GEREKEN TABLO'!G136 -> 00:00:00 | H122: 2021-12-31 | I122: TARİH UYUMLU | J122: ='DOLDURULMASI GEREKEN TABLO'!H136 -> 0 | K122: ='DOLDURULMASI GEREKEN TABLO'!I136 -> 0 | L122: ='DOLDURULMASI GEREKEN TABLO'!J136 -> 0 | M122: 44562 | N122: 0 | O122: 0 | P122: 0 | Q122: 0 | R122: ='DOLDURULMASI GEREKEN TABLO'!K136 -> 0 | S122: ='DOLDURULMASI GEREKEN TABLO'!L136 -> 0 | T122: 0 | U122: 0 | V122: 0 | W122: FALSE | X122: =IFERROR(VLOOKUP(W122,'Aylık Yİ-ÜFE'!$D$1:$E$217,2,0),0) -> 0 | Y122: 2021-12 | Z122: =VLOOKUP(Y122,'Aylık Yİ-ÜFE'!$D$1:$E$217,2,1) -> 1022.25 | AA122: 0 | AB122: ='DOLDURULMASI GEREKEN TABLO'!M136 -> 0 | AC122: 0 | AD122: 0 | AE122: 0 | AF122: 0 | AG122: 0 | AH122: 0 | AI122: 0 | AK122: YD YAPILABİLİR | AL122: ='DOLDURULMASI GEREKEN TABLO'!O136 -> 0 | AM122: 0 | AN122: ='DOLDURULMASI GEREKEN TABLO'!N136 -> 0 | AO122: 0 | AP122: 0 | AQ122: 0 | AR122: 0 | AS122: 0 | AT122: 0 | AU122: 0 | AV122: 0 | AW122: FALSE | AY122: 2022-12-31 | AZ122: 00:00:00 | BA122: 0 | BB122: 0 | BC122: 0 | BD122: 1 | BE122: 0 | BF122: 0
B123: 117 | C123: ='DOLDURULMASI GEREKEN TABLO'!D137 -> 0 | D123: ='DOLDURULMASI GEREKEN TABLO'!E137 -> 0 | E123: ='DOLDURULMASI GEREKEN TABLO'!F137 -> 0 | F123: 0 | G123: ='DOLDURULMASI GEREKEN TABLO'!G137 -> 00:00:00 | H123: 2021-12-31 | I123: TARİH UYUMLU | J123: ='DOLDURULMASI GEREKEN TABLO'!H137 -> 0 | K123: ='DOLDURULMASI GEREKEN TABLO'!I137 -> 0 | L123: ='DOLDURULMASI GEREKEN TABLO'!J137 -> 0 | M123: 44562 | N123: 0 | O123: 0 | P123: 0 | Q123: 0 | R123: ='DOLDURULMASI GEREKEN TABLO'!K137 -> 0 | S123: ='DOLDURULMASI GEREKEN TABLO'!L137 -> 0 | T123: 0 | U123: 0 | V123: 0 | W123: FALSE | X123: =IFERROR(VLOOKUP(W123,'Aylık Yİ-ÜFE'!$D$1:$E$217,2,0),0) -> 0 | Y123: 2021-12 | Z123: =VLOOKUP(Y123,'Aylık Yİ-ÜFE'!$D$1:$E$217,2,1) -> 1022.25 | AA123: 0 | AB123: ='DOLDURULMASI GEREKEN TABLO'!M137 -> 0 | AC123: 0 | AD123: 0 | AE123: 0 | AF123: 0 | AG123: 0 | AH123: 0 | AI123: 0 | AK123: YD YAPILABİLİR | AL123: ='DOLDURULMASI GEREKEN TABLO'!O137 -> 0 | AM123: 0 | AN123: ='DOLDURULMASI GEREKEN TABLO'!N137 -> 0 | AO123: 0 | AP123: 0 | AQ123: 0 | AR123: 0 | AS123: 0 | AT123: 0 | AU123: 0 | AV123: 0 | AW123: FALSE | AY123: 2022-12-31 | AZ123: 00:00:00 | BA123: 0 | BB123: 0 | BC123: 0 | BD123: 1 | BE123: 0 | BF123: 0
B124: 118 | C124: ='DOLDURULMASI GEREKEN TABLO'!D138 -> 0 | D124: ='DOLDURULMASI GEREKEN TABLO'!E138 -> 0 | E124: ='DOLDURULMASI GEREKEN TABLO'!F138 -> 0 | F124: 0 | G124: ='DOLDURULMASI GEREKEN TABLO'!G138 -> 00:00:00 | H124: 2021-12-31 | I124: TARİH UYUMLU | J124: ='DOLDURULMASI GEREKEN TABLO'!H138 -> 0 | K124: ='DOLDURULMASI GEREKEN TABLO'!I138 -> 0 | L124: ='DOLDURULMASI GEREKEN TABLO'!J138 -> 0 | M124: 44562 | N124: 0 | O124: 0 | P124: 0 | Q124: 0 | R124: ='DOLDURULMASI GEREKEN TABLO'!K138 -> 0 | S124: ='DOLDURULMASI GEREKEN TABLO'!L138 -> 0 | T124: 0 | U124: 0 | V124: 0 | W124: FALSE | X124: =IFERROR(VLOOKUP(W124,'Aylık Yİ-ÜFE'!$D$1:$E$217,2,0),0) -> 0 | Y124: 2021-12 | Z124: =VLOOKUP(Y124,'Aylık Yİ-ÜFE'!$D$1:$E$217,2,1) -> 1022.25 | AA124: 0 | AB124: ='DOLDURULMASI GEREKEN TABLO'!M138 -> 0 | AC124: 0 | AD124: 0 | AE124: 0 | AF124: 0 | AG124: 0 | AH124: 0 | AI124: 0 | AK124: YD YAPILABİLİR | AL124: ='DOLDURULMASI GEREKEN TABLO'!O138 -> 0 | AM124: 0 | AN124: ='DOLDURULMASI GEREKEN TABLO'!N138 -> 0 | AO124: 0 | AP124: 0 | AQ124: 0 | AR124: 0 | AS124: 0 | AT124: 0 | AU124: 0 | AV124: 0 | AW124: FALSE | AY124: 2022-12-31 | AZ124: 00:00:00 | BA124: 0 | BB124: 0 | BC124: 0 | BD124: 1 | BE124: 0 | BF124: 0
B125: 119 | C125: ='DOLDURULMASI GEREKEN TABLO'!D139 -> 0 | D125: ='DOLDURULMASI GEREKEN TABLO'!E139 -> 0 | E125: ='DOLDURULMASI GEREKEN TABLO'!F139 -> 0 | F125: 0 | G125: ='DOLDURULMASI GEREKEN TABLO'!G139 -> 00:00:00 | H125: 2021-12-31 | I125: TARİH UYUMLU | J125: ='DOLDURULMASI GEREKEN TABLO'!H139 -> 0 | K125: ='DOLDURULMASI GEREKEN TABLO'!I139 -> 0 | L125: ='DOLDURULMASI GEREKEN TABLO'!J139 -> 0 | M125: 44562 | N125: 0 | O125: 0 | P125: 0 | Q125: 0 | R125: ='DOLDURULMASI GEREKEN TABLO'!K139 -> 0 | S125: ='DOLDURULMASI GEREKEN TABLO'!L139 -> 0 | T125: 0 | U125: 0 | V125: 0 | W125: FALSE | X125: =IFERROR(VLOOKUP(W125,'Aylık Yİ-ÜFE'!$D$1:$E$217,2,0),0) -> 0 | Y125: 2021-12 | Z125: =VLOOKUP(Y125,'Aylık Yİ-ÜFE'!$D$1:$E$217,2,1) -> 1022.25 | AA125: 0 | AB125: ='DOLDURULMASI GEREKEN TABLO'!M139 -> 0 | AC125: 0 | AD125: 0 | AE125: 0 | AF125: 0 | AG125: 0 | AH125: 0 | AI125: 0 | AK125: YD YAPILABİLİR | AL125: ='DOLDURULMASI GEREKEN TABLO'!O139 -> 0 | AM125: 0 | AN125: ='DOLDURULMASI GEREKEN TABLO'!N139 -> 0 | AO125: 0 | AP125: 0 | AQ125: 0 | AR125: 0 | AS125: 0 | AT125: 0 | AU125: 0 | AV125: 0 | AW125: FALSE | AY125: 2022-12-31 | AZ125: 00:00:00 | BA125: 0 | BB125: 0 | BC125: 0 | BD125: 1 | BE125: 0 | BF125: 0
B126: 120 | C126: ='DOLDURULMASI GEREKEN TABLO'!D140 -> 0 | D126: ='DOLDURULMASI GEREKEN TABLO'!E140 -> 0 | E126: ='DOLDURULMASI GEREKEN TABLO'!F140 -> 0 | F126: 0 | G126: ='DOLDURULMASI GEREKEN TABLO'!G140 -> 00:00:00 | H126: 2021-12-31 | I126: TARİH UYUMLU | J126: ='DOLDURULMASI GEREKEN TABLO'!H140 -> 0 | K126: ='DOLDURULMASI GEREKEN TABLO'!I140 -> 0 | L126: ='DOLDURULMASI GEREKEN TABLO'!J140 -> 0 | M126: 44562 | N126: 0 | O126: 0 | P126: 0 | Q126: 0 | R126: ='DOLDURULMASI GEREKEN TABLO'!K140 -> 0 | S126: ='DOLDURULMASI GEREKEN TABLO'!L140 -> 0 | T126: 0 | U126: 0 | V126: 0 | W126: FALSE | X126: =IFERROR(VLOOKUP(W126,'Aylık Yİ-ÜFE'!$D$1:$E$217,2,0),0) -> 0 | Y126: 2021-12 | Z126: =VLOOKUP(Y126,'Aylık Yİ-ÜFE'!$D$1:$E$217,2,1) -> 1022.25 | AA126: 0 | AB126: ='DOLDURULMASI GEREKEN TABLO'!M140 -> 0 | AC126: 0 | AD126: 0 | AE126: 0 | AF126: 0 | AG126: 0 | AH126: 0 | AI126: 0 | AK126: YD YAPILABİLİR | AL126: ='DOLDURULMASI GEREKEN TABLO'!O140 -> 0 | AM126: 0 | AN126: ='DOLDURULMASI GEREKEN TABLO'!N140 -> 0 | AO126: 0 | AP126: 0 | AQ126: 0 | AR126: 0 | AS126: 0 | AT126: 0 | AU126: 0 | AV126: 0 | AW126: FALSE | AY126: 2022-12-31 | AZ126: 00:00:00 | BA126: 0 | BB126: 0 | BC126: 0 | BD126: 1 | BE126: 0 | BF126: 0
B127: 121 | C127: ='DOLDURULMASI GEREKEN TABLO'!D141 -> 0 | D127: ='DOLDURULMASI GEREKEN TABLO'!E141 -> 0 | E127: ='DOLDURULMASI GEREKEN TABLO'!F141 -> 0 | F127: 0 | G127: ='DOLDURULMASI GEREKEN TABLO'!G141 -> 00:00:00 | H127: 2021-12-31 | I127: TARİH UYUMLU | J127: ='DOLDURULMASI GEREKEN TABLO'!H141 -> 0 | K127: ='DOLDURULMASI GEREKEN TABLO'!I141 -> 0 | L127: ='DOLDURULMASI GEREKEN TABLO'!J141 -> 0 | M127: 44562 | N127: 0 | O127: 0 | P127: 0 | Q127: 0 | R127: ='DOLDURULMASI GEREKEN TABLO'!K141 -> 0 | S127: ='DOLDURULMASI GEREKEN TABLO'!L141 -> 0 | T127: 0 | U127: 0 | V127: 0 | W127: FALSE | X127: =IFERROR(VLOOKUP(W127,'Aylık Yİ-ÜFE'!$D$1:$E$217,2,0),0) -> 0 | Y127: 2021-12 | Z127: =VLOOKUP(Y127,'Aylık Yİ-ÜFE'!$D$1:$E$217,2,1) -> 1022.25 | AA127: 0 | AB127: ='DOLDURULMASI GEREKEN TABLO'!M141 -> 0 | AC127: 0 | AD127: 0 | AE127: 0 | AF127: 0 | AG127: 0 | AH127: 0 | AI127: 0 | AK127: YD YAPILABİLİR | AL127: ='DOLDURULMASI GEREKEN TABLO'!O141 -> 0 | AM127: 0 | AN127: ='DOLDURULMASI GEREKEN TABLO'!N141 -> 0 | AO127: 0 | AP127: 0 | AQ127: 0 | AR127: 0 | AS127: 0 | AT127: 0 | AU127: 0 | AV127: 0 | AW127: FALSE | AY127: 2022-12-31 | AZ127: 00:00:00 | BA127: 0 | BB127: 0 | BC127: 0 | BD127: 1 | BE127: 0 | BF127: 0
B128: 122 | C128: ='DOLDURULMASI GEREKEN TABLO'!D142 -> 0 | D128: ='DOLDURULMASI GEREKEN TABLO'!E142 -> 0 | E128: ='DOLDURULMASI GEREKEN TABLO'!F142 -> 0 | F128: 0 | G128: ='DOLDURULMASI GEREKEN TABLO'!G142 -> 00:00:00 | H128: 2021-12-31 | I128: TARİH UYUMLU | J128: ='DOLDURULMASI GEREKEN TABLO'!H142 -> 0 | K128: ='DOLDURULMASI GEREKEN TABLO'!I142 -> 0 | L128: ='DOLDURULMASI GEREKEN TABLO'!J142 -> 0 | M128: 44562 | N128: 0 | O128: 0 | P128: 0 | Q128: 0 | R128: ='DOLDURULMASI GEREKEN TABLO'!K142 -> 0 | S128: ='DOLDURULMASI GEREKEN TABLO'!L142 -> 0 | T128: 0 | U128: 0 | V128: 0 | W128: FALSE | X128: =IFERROR(VLOOKUP(W128,'Aylık Yİ-ÜFE'!$D$1:$E$217,2,0),0) -> 0 | Y128: 2021-12 | Z128: =VLOOKUP(Y128,'Aylık Yİ-ÜFE'!$D$1:$E$217,2,1) -> 1022.25 | AA128: 0 | AB128: ='DOLDURULMASI GEREKEN TABLO'!M142 -> 0 | AC128: 0 | AD128: 0 | AE128: 0 | AF128: 0 | AG128: 0 | AH128: 0 | AI128: 0 | AK128: YD YAPILABİLİR | AL128: ='DOLDURULMASI GEREKEN TABLO'!O142 -> 0 | AM128: 0 | AN128: ='DOLDURULMASI GEREKEN TABLO'!N142 -> 0 | AO128: 0 | AP128: 0 | AQ128: 0 | AR128: 0 | AS128: 0 | AT128: 0 | AU128: 0 | AV128: 0 | AW128: FALSE | AY128: 2022-12-31 | AZ128: 00:00:00 | BA128: 0 | BB128: 0 | BC128: 0 | BD128: 1 | BE128: 0 | BF128: 0
B129: 123 | C129: ='DOLDURULMASI GEREKEN TABLO'!D143 -> 0 | D129: ='DOLDURULMASI GEREKEN TABLO'!E143 -> 0 | E129: ='DOLDURULMASI GEREKEN TABLO'!F143 -> 0 | F129: 0 | G129: ='DOLDURULMASI GEREKEN TABLO'!G143 -> 00:00:00 | H129: 2021-12-31 | I129: TARİH UYUMLU | J129: ='DOLDURULMASI GEREKEN TABLO'!H143 -> 0 | K129: ='DOLDURULMASI GEREKEN TABLO'!I143 -> 0 | L129: ='DOLDURULMASI GEREKEN TABLO'!J143 -> 0 | M129: 44562 | N129: 0 | O129: 0 | P129: 0 | Q129: 0 | R129: ='DOLDURULMASI GEREKEN TABLO'!K143 -> 0 | S129: ='DOLDURULMASI GEREKEN TABLO'!L143 -> 0 | T129: 0 | U129: 0 | V129: 0 | W129: FALSE | X129: =IFERROR(VLOOKUP(W129,'Aylık Yİ-ÜFE'!$D$1:$E$217,2,0),0) -> 0 | Y129: 2021-12 | Z129: =VLOOKUP(Y129,'Aylık Yİ-ÜFE'!$D$1:$E$217,2,1) -> 1022.25 | AA129: 0 | AB129: ='DOLDURULMASI GEREKEN TABLO'!M143 -> 0 | AC129: 0 | AD129: 0 | AE129: 0 | AF129: 0 | AG129: 0 | AH129: 0 | AI129: 0 | AK129: YD YAPILABİLİR | AL129: ='DOLDURULMASI GEREKEN TABLO'!O143 -> 0 | AM129: 0 | AN129: ='DOLDURULMASI GEREKEN TABLO'!N143 -> 0 | AO129: 0 | AP129: 0 | AQ129: 0 | AR129: 0 | AS129: 0 | AT129: 0 | AU129: 0 | AV129: 0 | AW129: FALSE | AY129: 2022-12-31 | AZ129: 00:00:00 | BA129: 0 | BB129: 0 | BC129: 0 | BD129: 1 | BE129: 0 | BF129: 0
B130: 124 | C130: ='DOLDURULMASI GEREKEN TABLO'!D144 -> 0 | D130: ='DOLDURULMASI GEREKEN TABLO'!E144 -> 0 | E130: ='DOLDURULMASI GEREKEN TABLO'!F144 -> 0 | F130: 0 | G130: ='DOLDURULMASI GEREKEN TABLO'!G144 -> 00:00:00 | H130: 2021-12-31 | I130: TARİH UYUMLU | J130: ='DOLDURULMASI GEREKEN TABLO'!H144 -> 0 | K130: ='DOLDURULMASI GEREKEN TABLO'!I144 -> 0 | L130: ='DOLDURULMASI GEREKEN TABLO'!J144 -> 0 | M130: 44562 | N130: 0 | O130: 0 | P130: 0 | Q130: 0 | R130: ='DOLDURULMASI GEREKEN TABLO'!K144 -> 0 | S130: ='DOLDURULMASI GEREKEN TABLO'!L144 -> 0 | T130: 0 | U130: 0 | V130: 0 | W130: FALSE | X130: =IFERROR(VLOOKUP(W130,'Aylık Yİ-ÜFE'!$D$1:$E$217,2,0),0) -> 0 | Y130: 2021-12 | Z130: =VLOOKUP(Y130,'Aylık Yİ-ÜFE'!$D$1:$E$217,2,1) -> 1022.25 | AA130: 0 | AB130: ='DOLDURULMASI GEREKEN TABLO'!M144 -> 0 | AC130: 0 | AD130: 0 | AE130: 0 | AF130: 0 | AG130: 0 | AH130: 0 | AI130: 0 | AK130: YD YAPILABİLİR | AL130: ='DOLDURULMASI GEREKEN TABLO'!O144 -> 0 | AM130: 0 | AN130: ='DOLDURULMASI GEREKEN TABLO'!N144 -> 0 | AO130: 0 | AP130: 0 | AQ130: 0 | AR130: 0 | AS130: 0 | AT130: 0 | AU130: 0 | AV130: 0 | AW130: FALSE | AY130: 2022-12-31 | AZ130: 00:00:00 | BA130: 0 | BB130: 0 | BC130: 0 | BD130: 1 | BE130: 0 | BF130: 0
B131: 125 | C131: ='DOLDURULMASI GEREKEN TABLO'!D145 -> 0 | D131: ='DOLDURULMASI GEREKEN TABLO'!E145 -> 0 | E131: ='DOLDURULMASI GEREKEN TABLO'!F145 -> 0 | F131: 0 | G131: ='DOLDURULMASI GEREKEN TABLO'!G145 -> 00:00:00 | H131: 2021-12-31 | I131: TARİH UYUMLU | J131: ='DOLDURULMASI GEREKEN TABLO'!H145 -> 0 | K131: ='DOLDURULMASI GEREKEN TABLO'!I145 -> 0 | L131: ='DOLDURULMASI GEREKEN TABLO'!J145 -> 0 | M131: 44562 | N131: 0 | O131: 0 | P131: 0 | Q131: 0 | R131: ='DOLDURULMASI GEREKEN TABLO'!K145 -> 0 | S131: ='DOLDURULMASI GEREKEN TABLO'!L145 -> 0 | T131: 0 | U131: 0 | V131: 0 | W131: FALSE | X131: =IFERROR(VLOOKUP(W131,'Aylık Yİ-ÜFE'!$D$1:$E$217,2,0),0) -> 0 | Y131: 2021-12 | Z131: =VLOOKUP(Y131,'Aylık Yİ-ÜFE'!$D$1:$E$217,2,1) -> 1022.25 | AA131: 0 | AB131: ='DOLDURULMASI GEREKEN TABLO'!M145 -> 0 | AC131: 0 | AD131: 0 | AE131: 0 | AF131: 0 | AG131: 0 | AH131: 0 | AI131: 0 | AK131: YD YAPILABİLİR | AL131: ='DOLDURULMASI GEREKEN TABLO'!O145 -> 0 | AM131: 0 | AN131: ='DOLDURULMASI GEREKEN TABLO'!N145 -> 0 | AO131: 0 | AP131: 0 | AQ131: 0 | AR131: 0 | AS131: 0 | AT131: 0 | AU131: 0 | AV131: 0 | AW131: FALSE | AY131: 2022-12-31 | AZ131: 00:00:00 | BA131: 0 | BB131: 0 | BC131: 0 | BD131: 1 | BE131: 0 | BF131: 0
B132: 126 | C132: ='DOLDURULMASI GEREKEN TABLO'!D146 -> 0 | D132: ='DOLDURULMASI GEREKEN TABLO'!E146 -> 0 | E132: ='DOLDURULMASI GEREKEN TABLO'!F146 -> 0 | F132: 0 | G132: ='DOLDURULMASI GEREKEN TABLO'!G146 -> 00:00:00 | H132: 2021-12-31 | I132: TARİH UYUMLU | J132: ='DOLDURULMASI GEREKEN TABLO'!H146 -> 0 | K132: ='DOLDURULMASI GEREKEN TABLO'!I146 -> 0 | L132: ='DOLDURULMASI GEREKEN TABLO'!J146 -> 0 | M132: 44562 | N132: 0 | O132: 0 | P132: 0 | Q132: 0 | R132: ='DOLDURULMASI GEREKEN TABLO'!K146 -> 0 | S132: ='DOLDURULMASI GEREKEN TABLO'!L146 -> 0 | T132: 0 | U132: 0 | V132: 0 | W132: FALSE | X132: =IFERROR(VLOOKUP(W132,'Aylık Yİ-ÜFE'!$D$1:$E$217,2,0),0) -> 0 | Y132: 2021-12 | Z132: =VLOOKUP(Y132,'Aylık Yİ-ÜFE'!$D$1:$E$217,2,1) -> 1022.25 | AA132: 0 | AB132: ='DOLDURULMASI GEREKEN TABLO'!M146 -> 0 | AC132: 0 | AD132: 0 | AE132: 0 | AF132: 0 | AG132: 0 | AH132: 0 | AI132: 0 | AK132: YD YAPILABİLİR | AL132: ='DOLDURULMASI GEREKEN TABLO'!O146 -> 0 | AM132: 0 | AN132: ='DOLDURULMASI GEREKEN TABLO'!N146 -> 0 | AO132: 0 | AP132: 0 | AQ132: 0 | AR132: 0 | AS132: 0 | AT132: 0 | AU132: 0 | AV132: 0 | AW132: FALSE | AY132: 2022-12-31 | AZ132: 00:00:00 | BA132: 0 | BB132: 0 | BC132: 0 | BD132: 1 | BE132: 0 | BF132: 0
B133: 127 | C133: ='DOLDURULMASI GEREKEN TABLO'!D147 -> 0 | D133: ='DOLDURULMASI GEREKEN TABLO'!E147 -> 0 | E133: ='DOLDURULMASI GEREKEN TABLO'!F147 -> 0 | F133: 0 | G133: ='DOLDURULMASI GEREKEN TABLO'!G147 -> 00:00:00 | H133: 2021-12-31 | I133: TARİH UYUMLU | J133: ='DOLDURULMASI GEREKEN TABLO'!H147 -> 0 | K133: ='DOLDURULMASI GEREKEN TABLO'!I147 -> 0 | L133: ='DOLDURULMASI GEREKEN TABLO'!J147 -> 0 | M133: 44562 | N133: 0 | O133: 0 | P133: 0 | Q133: 0 | R133: ='DOLDURULMASI GEREKEN TABLO'!K147 -> 0 | S133: ='DOLDURULMASI GEREKEN TABLO'!L147 -> 0 | T133: 0 | U133: 0 | V133: 0 | W133: FALSE | X133: =IFERROR(VLOOKUP(W133,'Aylık Yİ-ÜFE'!$D$1:$E$217,2,0),0) -> 0 | Y133: 2021-12 | Z133: =VLOOKUP(Y133,'Aylık Yİ-ÜFE'!$D$1:$E$217,2,1) -> 1022.25 | AA133: 0 | AB133: ='DOLDURULMASI GEREKEN TABLO'!M147 -> 0 | AC133: 0 | AD133: 0 | AE133: 0 | AF133: 0 | AG133: 0 | AH133: 0 | AI133: 0 | AK133: YD YAPILABİLİR | AL133: ='DOLDURULMASI GEREKEN TABLO'!O147 -> 0 | AM133: 0 | AN133: ='DOLDURULMASI GEREKEN TABLO'!N147 -> 0 | AO133: 0 | AP133: 0 | AQ133: 0 | AR133: 0 | AS133: 0 | AT133: 0 | AU133: 0 | AV133: 0 | AW133: FALSE | AY133: 2022-12-31 | AZ133: 00:00:00 | BA133: 0 | BB133: 0 | BC133: 0 | BD133: 1 | BE133: 0 | BF133: 0
B134: 128 | C134: ='DOLDURULMASI GEREKEN TABLO'!D148 -> 0 | D134: ='DOLDURULMASI GEREKEN TABLO'!E148 -> 0 | E134: ='DOLDURULMASI GEREKEN TABLO'!F148 -> 0 | F134: 0 | G134: ='DOLDURULMASI GEREKEN TABLO'!G148 -> 00:00:00 | H134: 2021-12-31 | I134: TARİH UYUMLU | J134: ='DOLDURULMASI GEREKEN TABLO'!H148 -> 0 | K134: ='DOLDURULMASI GEREKEN TABLO'!I148 -> 0 | L134: ='DOLDURULMASI GEREKEN TABLO'!J148 -> 0 | M134: 44562 | N134: 0 | O134: 0 | P134: 0 | Q134: 0 | R134: ='DOLDURULMASI GEREKEN TABLO'!K148 -> 0 | S134: ='DOLDURULMASI GEREKEN TABLO'!L148 -> 0 | T134: 0 | U134: 0 | V134: 0 | W134: FALSE | X134: =IFERROR(VLOOKUP(W134,'Aylık Yİ-ÜFE'!$D$1:$E$217,2,0),0) -> 0 | Y134: 2021-12 | Z134: =VLOOKUP(Y134,'Aylık Yİ-ÜFE'!$D$1:$E$217,2,1) -> 1022.25 | AA134: 0 | AB134: ='DOLDURULMASI GEREKEN TABLO'!M148 -> 0 | AC134: 0 | AD134: 0 | AE134: 0 | AF134: 0 | AG134: 0 | AH134: 0 | AI134: 0 | AK134: YD YAPILABİLİR | AL134: ='DOLDURULMASI GEREKEN TABLO'!O148 -> 0 | AM134: 0 | AN134: ='DOLDURULMASI GEREKEN TABLO'!N148 -> 0 | AO134: 0 | AP134: 0 | AQ134: 0 | AR134: 0 | AS134: 0 | AT134: 0 | AU134: 0 | AV134: 0 | AW134: FALSE | AY134: 2022-12-31 | AZ134: 00:00:00 | BA134: 0 | BB134: 0 | BC134: 0 | BD134: 1 | BE134: 0 | BF134: 0
B135: 129 | C135: ='DOLDURULMASI GEREKEN TABLO'!D149 -> 0 | D135: ='DOLDURULMASI GEREKEN TABLO'!E149 -> 0 | E135: ='DOLDURULMASI GEREKEN TABLO'!F149 -> 0 | F135: 0 | G135: ='DOLDURULMASI GEREKEN TABLO'!G149 -> 00:00:00 | H135: 2021-12-31 | I135: TARİH UYUMLU | J135: ='DOLDURULMASI GEREKEN TABLO'!H149 -> 0 | K135: ='DOLDURULMASI GEREKEN TABLO'!I149 -> 0 | L135: ='DOLDURULMASI GEREKEN TABLO'!J149 -> 0 | M135: 44562 | N135: 0 | O135: 0 | P135: 0 | Q135: 0 | R135: ='DOLDURULMASI GEREKEN TABLO'!K149 -> 0 | S135: ='DOLDURULMASI GEREKEN TABLO'!L149 -> 0 | T135: =J135 -> 0 | U135: 0 | V135: 0 | W135: =IF(AND(R135="EVET",S135="EVET"),"2021-6",IF(AND(R135="HAYIR",S135="EVET"),"2021-6",IF(AND(R135="EVET",S135="HAYIR"),"2018-5",IF(AND(R135="HAYIR",S135="HAYIR"),IF(AND(G135<=38352,R135="HAYIR",S135="HAYIR"),"2005-1",IF(MONTH(G135)+1=13,CONCATENATE(YEAR(G135)+1,"-",MONTH(G135)-11),CONCATENATE(YEAR(G135),"-",MONTH(G135)+1))))))) -> FALSE | X135: =IFERROR(VLOOKUP(W135,'Aylık Yİ-ÜFE'!$D$1:$E$217,2,0),0) -> 0 | Y135: 2021-12 | Z135: =VLOOKUP(Y135,'Aylık Yİ-ÜFE'!$D$1:$E$217,2,1) -> 1022.25 | AA135: 0 | AB135: ='DOLDURULMASI GEREKEN TABLO'!M149 -> 0 | AC135: 0 | AD135: 0 | AE135: 0 | AF135: 0 | AG135: 0 | AH135: 0 | AI135: 0 | AK135: =IF(D135="250- Arazi ve Arsalar","BOŞ ARAZİ VE ARSALAR MÜK.298 Ç YE GÖRE YD YAPILAMAZ","YD YAPILABİLİR") -> YD YAPILABİLİR | AL135: ='DOLDURULMASI GEREKEN TABLO'!O149 -> 0 | AM135: =IF(AK135="BOŞ ARAZİ VE ARSALAR MÜK.298 Ç YE GÖRE YD YAPILAMAZ",T135,AC135) -> 0 | AN135: ='DOLDURULMASI GEREKEN TABLO'!N149 -> 0 | AO135: 0 | AP135: 0 | AQ135: 0 | AR135: 0 | AS135: 0 | AT135: 0 | AU135: 0 | AV135: 0 | AW135: FALSE | AY135: 2022-12-31 | AZ135: 00:00:00 | BA135: =MIN(YEAR(AY135)-YEAR(G135)+1,E135) -> 0 | BB135: =MIN(((YEAR(AY135)-YEAR(G135))*12+(MONTH(AY135)-MONTH(G135))+1)/12,E135) -> 0 | BC135: =IF(L135="HAYIR",BA135,BB135) -> 0 | BD135: 1 | BE135: 0 | BF135: 0
B136: 130 | C136: ='DOLDURULMASI GEREKEN TABLO'!D150 -> 0 | D136: ='DOLDURULMASI GEREKEN TABLO'!E150 -> 0 | E136: ='DOLDURULMASI GEREKEN TABLO'!F150 -> 0 | F136: =IFERROR(IF(K136="AZALAN BAKİYELERE GÖRE AMORTİSMAN",MIN(1/E136,1/4),1/E136),0) -> 0 | G136: ='DOLDURULMASI GEREKEN TABLO'!G150 -> 00:00:00 | H136: 2021-12-31 | I136: TARİH UYUMLU | J136: ='DOLDURULMASI GEREKEN TABLO'!H150 -> 0 | K136: ='DOLDURULMASI GEREKEN TABLO'!I150 -> 0 | L136: ='DOLDURULMASI GEREKEN TABLO'!J150 -> 0 | M136: =(H136-G136)+1 -> 44562 | N136: =MIN(YEAR(H136)-YEAR(G136)+1,E136) -> 0 | O136: =MIN(((YEAR(H136)-YEAR(G136))*12+(MONTH(H136)-MONTH(G136))+1)/12,E136) -> 0 | P136: =MIN(IF(L136="HAYIR",N136,O136),E136) -> 0 | Q136: =IF(D136="250- Arazi ve Arsalar",0,IF(N136=E136,J136,IF(AND(K136="NORMAL AMORTİSMAN",L136="HAYIR"),J136*F136*N136,IF(AND(K136="NORMAL AMORTİSMAN",L136="EVET"),J136*F136*O136,IF(AND(K136="AZALAN BAKİYELERE GÖRE AMORTİSMAN",L136="HAYIR",E136<=4), VDB(J136,0,4,0,N136,2,TRUE),IF(AND(K136="AZALAN BAKİYELERE GÖRE AMORTİSMAN",L136="HAYIR",AND(E136>4,N136<E136)), VDB(J136,0,E136,0,N136,2,TRUE),IF(AND(K136="AZALAN BAKİYELERE GÖRE AMORTİSMAN",L136="EVET",N136=1),(DDB(J136,0,IF(E136<=4,4,E136),1,2)/12)*(12-MONTH(G136)+1),IF(AND(K136="AZALAN BAKİYELERE GÖRE AMORTİSMAN",L136="EVET",N136=2),(DDB(J136,0,IF(E136<=4,4,E136),1,2)/12)*(12-MONTH(G136)+1)+DDB(J136,0,IF(E136<=4,4,E136),2,2),IF(AND(K136="AZALAN BAKİYELERE GÖRE AMORTİSMAN",L136="EVET",N136=3),(DDB(J136,0,IF(E136<=4,4,E136),1,2)/12)*(12-MONTH(G136)+1)+DDB(J136,0,IF(E136<=4,4,E136),2,2)+DDB(J136,0,IF(E136<=4,4,E136),3,2),IF(AND(K136="AZALAN BAKİYELERE GÖRE AMORTİSMAN",L136="EVET",N136=4),(DDB(J136,0,IF(E136<=4,4,E136),1,2)/12)*(12-MONTH(G136)+1)+DDB(J136,0,IF(E136<=4,4,E136),2,2)+DDB(J136,0,IF(E136<=4,4,E136),3,2)+DDB(J136,0,IF(E136<=4,4,E136),4,2),IF(AND(K136="AZALAN BAKİYELERE GÖRE AMORTİSMAN",L136="EVET",N136>=5),J136,"HATA"))))))))))) -> 0 | R136: ='DOLDURULMASI GEREKEN TABLO'!K150 -> 0 | S136: ='DOLDURULMASI GEREKEN TABLO'!L150 -> 0 | T136: 0 | U136: 0 | V136: 0 | W136: FALSE | X136: =IFERROR(VLOOKUP(W136,'Aylık Yİ-ÜFE'!$D$1:$E$217,2,0),0) -> 0 | Y136: 2021-12 | Z136: =VLOOKUP(Y136,'Aylık Yİ-ÜFE'!$D$1:$E$217,2,1) -> 1022.25 | AA136: 0 | AB136: ='DOLDURULMASI GEREKEN TABLO'!M150 -> 0 | AC136: =MAX(IF(AB136="EVET",T136*AA136,T136),T136) -> 0 | AD136: =MAX(IF(AB136="EVET",U136*AA136,U136),U136) -> 0 | AE136: 0 | AF136: =IFERROR(IF(AC136-T136<0,0,AC136-T136),0) -> 0 | AG136: =IFERROR(IF(AD136-U136<0,0,AD136-U136),0) -> 0 | AH136: =IFERROR(IF((AF136-AG136)<0,0,(AF136-AG136)),0) -> 0 | AI136: =IFERROR(AH136*2/100,0) -> 0 | AK136: YD YAPILABİLİR | AL136: ='DOLDURULMASI GEREKEN TABLO'!O150 -> 0 | AM136: 0 | AN136: ='DOLDURULMASI GEREKEN TABLO'!N150 -> 0 | AO136: =AD136 -> 0 | AP136: 0 | AQ136: =IF(AND(AK136="YD YAPILABİLİR",AL136="EVET"),(AM136-AN136)*2.2293,AM136-AN136) -> 0 | AR136: 0 | AS136: 0 | AT136: 0 | AU136: 0 | AV136: 0 | AW136: FALSE | AY136: 2022-12-31 | AZ136: =G136 -> 00:00:00 | BA136: 0 | BB136: 0 | BC136: 0 | BD136: =IFERROR(ROUNDDOWN(E136-BC136,0)+1,0) -> 1 | BE136: =(AV136+AH136) -> 0 | BF136: =IFERROR(BE136*23/100,0) -> 0
B137: 131 | C137: ='DOLDURULMASI GEREKEN TABLO'!D151 -> 0 | D137: ='DOLDURULMASI GEREKEN TABLO'!E151 -> 0 | E137: ='DOLDURULMASI GEREKEN TABLO'!F151 -> 0 | F137: 0 | G137: ='DOLDURULMASI GEREKEN TABLO'!G151 -> 00:00:00 | H137: 2021-12-31 | I137: =IF(G137>44561,"2022 YILINDA İKTİSAP EDİLEN İÇİN GEÇİCİ 32 YE GÖRE 2022 YILINDA YD YAPILAMAZ","TARİH UYUMLU") -> TARİH UYUMLU | J137: ='DOLDURULMASI GEREKEN TABLO'!H151 -> 0 | K137: ='DOLDURULMASI GEREKEN TABLO'!I151 -> 0 | L137: ='DOLDURULMASI GEREKEN TABLO'!J151 -> 0 | M137: 44562 | N137: 0 | O137: 0 | P137: 0 | Q137: 0 | R137: ='DOLDURULMASI GEREKEN TABLO'!K151 -> 0 | S137: ='DOLDURULMASI GEREKEN TABLO'!L151 -> 0 | T137: 0 | U137: =Q137 -> 0 | V137: =T137-U137 -> 0 | W137: FALSE | X137: =IFERROR(VLOOKUP(W137,'Aylık Yİ-ÜFE'!$D$1:$E$217,2,0),0) -> 0 | Y137: 2021-12 | Z137: =VLOOKUP(Y137,'Aylık Yİ-ÜFE'!$D$1:$E$217,2,1) -> 1022.25 | AA137: =IFERROR(TRUNC(Z137/X137,5),0) -> 0 | AB137: ='DOLDURULMASI GEREKEN TABLO'!M151 -> 0 | AC137: 0 | AD137: 0 | AE137: =AC137-AD137 -> 0 | AF137: 0 | AG137: 0 | AH137: 0 | AI137: 0 | AK137: YD YAPILABİLİR | AL137: ='DOLDURULMASI GEREKEN TABLO'!O151 -> 0 | AM137: 0 | AN137: ='DOLDURULMASI GEREKEN TABLO'!N151 -> 0 | AO137: 0 | AP137: =AM137-AO137 -> 0 | AQ137: 0 | AR137: =IFERROR(IF(AND(AK137="YD YAPILABİLİR",AL137="EVET"),AO137*2.2293,AO137),0) -> 0 | AS137: =AQ137-AR137 -> 0 | AT137: =AQ137-AM137 -> 0 | AU137: =AR137-AO137 -> 0 | AV137: =IF(AT137-AU137<0,0,AT137-AU137) -> 0 | AW137: FALSE | AY137: 2022-12-31 | AZ137: 00:00:00 | BA137: 0 | BB137: 0 | BC137: 0 | BD137: 1 | BE137: 0 | BF137: 0
B138: 132 | C138: ='DOLDURULMASI GEREKEN TABLO'!D152 -> 0 | D138: ='DOLDURULMASI GEREKEN TABLO'!E152 -> 0 | E138: ='DOLDURULMASI GEREKEN TABLO'!F152 -> 0 | F138: 0 | G138: ='DOLDURULMASI GEREKEN TABLO'!G152 -> 00:00:00 | H138: 2021-12-31 | I138: TARİH UYUMLU | J138: ='DOLDURULMASI GEREKEN TABLO'!H152 -> 0 | K138: ='DOLDURULMASI GEREKEN TABLO'!I152 -> 0 | L138: ='DOLDURULMASI GEREKEN TABLO'!J152 -> 0 | M138: 44562 | N138: 0 | O138: 0 | P138: 0 | Q138: 0 | R138: ='DOLDURULMASI GEREKEN TABLO'!K152 -> 0 | S138: ='DOLDURULMASI GEREKEN TABLO'!L152 -> 0 | T138: 0 | U138: 0 | V138: 0 | W138: FALSE | X138: =IFERROR(VLOOKUP(W138,'Aylık Yİ-ÜFE'!$D$1:$E$217,2,0),0) -> 0 | Y138: 2021-12 | Z138: =VLOOKUP(Y138,'Aylık Yİ-ÜFE'!$D$1:$E$217,2,1) -> 1022.25 | AA138: 0 | AB138: ='DOLDURULMASI GEREKEN TABLO'!M152 -> 0 | AC138: 0 | AD138: 0 | AE138: 0 | AF138: 0 | AG138: 0 | AH138: 0 | AI138: 0 | AK138: YD YAPILABİLİR | AL138: ='DOLDURULMASI GEREKEN TABLO'!O152 -> 0 | AM138: 0 | AN138: ='DOLDURULMASI GEREKEN TABLO'!N152 -> 0 | AO138: 0 | AP138: 0 | AQ138: 0 | AR138: 0 | AS138: 0 | AT138: 0 | AU138: 0 | AV138: 0 | AW138: FALSE | AY138: 2022-12-31 | AZ138: 00:00:00 | BA138: 0 | BB138: 0 | BC138: 0 | BD138: 1 | BE138: 0 | BF138: 0
B139: 133 | C139: ='DOLDURULMASI GEREKEN TABLO'!D153 -> 0 | D139: ='DOLDURULMASI GEREKEN TABLO'!E153 -> 0 | E139: ='DOLDURULMASI GEREKEN TABLO'!F153 -> 0 | F139: 0 | G139: ='DOLDURULMASI GEREKEN TABLO'!G153 -> 00:00:00 | H139: 2021-12-31 | I139: TARİH UYUMLU | J139: ='DOLDURULMASI GEREKEN TABLO'!H153 -> 0 | K139: ='DOLDURULMASI GEREKEN TABLO'!I153 -> 0 | L139: ='DOLDURULMASI GEREKEN TABLO'!J153 -> 0 | M139: 44562 | N139: 0 | O139: 0 | P139: 0 | Q139: 0 | R139: ='DOLDURULMASI GEREKEN TABLO'!K153 -> 0 | S139: ='DOLDURULMASI GEREKEN TABLO'!L153 -> 0 | T139: 0 | U139: 0 | V139: 0 | W139: FALSE | X139: =IFERROR(VLOOKUP(W139,'Aylık Yİ-ÜFE'!$D$1:$E$217,2,0),0) -> 0 | Y139: 2021-12 | Z139: =VLOOKUP(Y139,'Aylık Yİ-ÜFE'!$D$1:$E$217,2,1) -> 1022.25 | AA139: 0 | AB139: ='DOLDURULMASI GEREKEN TABLO'!M153 -> 0 | AC139: 0 | AD139: 0 | AE139: 0 | AF139: 0 | AG139: 0 | AH139: 0 | AI139: 0 | AK139: YD YAPILABİLİR | AL139: ='DOLDURULMASI GEREKEN TABLO'!O153 -> 0 | AM139: 0 | AN139: ='DOLDURULMASI GEREKEN TABLO'!N153 -> 0 | AO139: 0 | AP139: 0 | AQ139: 0 | AR139: 0 | AS139: 0 | AT139: 0 | AU139: 0 | AV139: 0 | AW139: FALSE | AY139: 2022-12-31 | AZ139: 00:00:00 | BA139: 0 | BB139: 0 | BC139: 0 | BD139: 1 | BE139: 0 | BF139: 0
B140: 134 | C140: ='DOLDURULMASI GEREKEN TABLO'!D154 -> 0 | D140: ='DOLDURULMASI GEREKEN TABLO'!E154 -> 0 | E140: ='DOLDURULMASI GEREKEN TABLO'!F154 -> 0 | F140: 0 | G140: ='DOLDURULMASI GEREKEN TABLO'!G154 -> 00:00:00 | H140: 2021-12-31 | I140: TARİH UYUMLU | J140: ='DOLDURULMASI GEREKEN TABLO'!H154 -> 0 | K140: ='DOLDURULMASI GEREKEN TABLO'!I154 -> 0 | L140: ='DOLDURULMASI GEREKEN TABLO'!J154 -> 0 | M140: 44562 | N140: 0 | O140: 0 | P140: 0 | Q140: 0 | R140: ='DOLDURULMASI GEREKEN TABLO'!K154 -> 0 | S140: ='DOLDURULMASI GEREKEN TABLO'!L154 -> 0 | T140: 0 | U140: 0 | V140: 0 | W140: FALSE | X140: =IFERROR(VLOOKUP(W140,'Aylık Yİ-ÜFE'!$D$1:$E$217,2,0),0) -> 0 | Y140: 2021-12 | Z140: =VLOOKUP(Y140,'Aylık Yİ-ÜFE'!$D$1:$E$217,2,1) -> 1022.25 | AA140: 0 | AB140: ='DOLDURULMASI GEREKEN TABLO'!M154 -> 0 | AC140: 0 | AD140: 0 | AE140: 0 | AF140: 0 | AG140: 0 | AH140: 0 | AI140: 0 | AK140: YD YAPILABİLİR | AL140: ='DOLDURULMASI GEREKEN TABLO'!O154 -> 0 | AM140: 0 | AN140: ='DOLDURULMASI GEREKEN TABLO'!N154 -> 0 | AO140: 0 | AP140: 0 | AQ140: 0 | AR140: 0 | AS140: 0 | AT140: 0 | AU140: 0 | AV140: 0 | AW140: FALSE | AY140: 2022-12-31 | AZ140: 00:00:00 | BA140: 0 | BB140: 0 | BC140: 0 | BD140: 1 | BE140: 0 | BF140: 0
B141: 135 | C141: ='DOLDURULMASI GEREKEN TABLO'!D155 -> 0 | D141: ='DOLDURULMASI GEREKEN TABLO'!E155 -> 0 | E141: ='DOLDURULMASI GEREKEN TABLO'!F155 -> 0 | F141: 0 | G141: ='DOLDURULMASI GEREKEN TABLO'!G155 -> 00:00:00 | H141: 2021-12-31 | I141: TARİH UYUMLU | J141: ='DOLDURULMASI GEREKEN TABLO'!H155 -> 0 | K141: ='DOLDURULMASI GEREKEN TABLO'!I155 -> 0 | L141: ='DOLDURULMASI GEREKEN TABLO'!J155 -> 0 | M141: 44562 | N141: 0 | O141: 0 | P141: 0 | Q141: 0 | R141: ='DOLDURULMASI GEREKEN TABLO'!K155 -> 0 | S141: ='DOLDURULMASI GEREKEN TABLO'!L155 -> 0 | T141: 0 | U141: 0 | V141: 0 | W141: FALSE | X141: =IFERROR(VLOOKUP(W141,'Aylık Yİ-ÜFE'!$D$1:$E$217,2,0),0) -> 0 | Y141: 2021-12 | Z141: =VLOOKUP(Y141,'Aylık Yİ-ÜFE'!$D$1:$E$217,2,1) -> 1022.25 | AA141: 0 | AB141: ='DOLDURULMASI GEREKEN TABLO'!M155 -> 0 | AC141: 0 | AD141: 0 | AE141: 0 | AF141: 0 | AG141: 0 | AH141: 0 | AI141: 0 | AK141: YD YAPILABİLİR | AL141: ='DOLDURULMASI GEREKEN TABLO'!O155 -> 0 | AM141: 0 | AN141: ='DOLDURULMASI GEREKEN TABLO'!N155 -> 0 | AO141: 0 | AP141: 0 | AQ141: 0 | AR141: 0 | AS141: 0 | AT141: 0 | AU141: 0 | AV141: 0 | AW141: FALSE | AY141: 2022-12-31 | AZ141: 00:00:00 | BA141: 0 | BB141: 0 | BC141: 0 | BD141: 1 | BE141: 0 | BF141: 0
B142: 136 | C142: ='DOLDURULMASI GEREKEN TABLO'!D156 -> 0 | D142: ='DOLDURULMASI GEREKEN TABLO'!E156 -> 0 | E142: ='DOLDURULMASI GEREKEN TABLO'!F156 -> 0 | F142: 0 | G142: ='DOLDURULMASI GEREKEN TABLO'!G156 -> 00:00:00 | H142: 2021-12-31 | I142: TARİH UYUMLU | J142: ='DOLDURULMASI GEREKEN TABLO'!H156 -> 0 | K142: ='DOLDURULMASI GEREKEN TABLO'!I156 -> 0 | L142: ='DOLDURULMASI GEREKEN TABLO'!J156 -> 0 | M142: 44562 | N142: 0 | O142: 0 | P142: 0 | Q142: 0 | R142: ='DOLDURULMASI GEREKEN TABLO'!K156 -> 0 | S142: ='DOLDURULMASI GEREKEN TABLO'!L156 -> 0 | T142: 0 | U142: 0 | V142: 0 | W142: FALSE | X142: =IFERROR(VLOOKUP(W142,'Aylık Yİ-ÜFE'!$D$1:$E$217,2,0),0) -> 0 | Y142: 2021-12 | Z142: =VLOOKUP(Y142,'Aylık Yİ-ÜFE'!$D$1:$E$217,2,1) -> 1022.25 | AA142: 0 | AB142: ='DOLDURULMASI GEREKEN TABLO'!M156 -> 0 | AC142: 0 | AD142: 0 | AE142: 0 | AF142: 0 | AG142: 0 | AH142: 0 | AI142: 0 | AK142: YD YAPILABİLİR | AL142: ='DOLDURULMASI GEREKEN TABLO'!O156 -> 0 | AM142: 0 | AN142: ='DOLDURULMASI GEREKEN TABLO'!N156 -> 0 | AO142: 0 | AP142: 0 | AQ142: 0 | AR142: 0 | AS142: 0 | AT142: 0 | AU142: 0 | AV142: 0 | AW142: FALSE | AY142: 2022-12-31 | AZ142: 00:00:00 | BA142: 0 | BB142: 0 | BC142: 0 | BD142: 1 | BE142: 0 | BF142: 0
B143: 137 | C143: ='DOLDURULMASI GEREKEN TABLO'!D157 -> 0 | D143: ='DOLDURULMASI GEREKEN TABLO'!E157 -> 0 | E143: ='DOLDURULMASI GEREKEN TABLO'!F157 -> 0 | F143: 0 | G143: ='DOLDURULMASI GEREKEN TABLO'!G157 -> 00:00:00 | H143: 2021-12-31 | I143: TARİH UYUMLU | J143: ='DOLDURULMASI GEREKEN TABLO'!H157 -> 0 | K143: ='DOLDURULMASI GEREKEN TABLO'!I157 -> 0 | L143: ='DOLDURULMASI GEREKEN TABLO'!J157 -> 0 | M143: 44562 | N143: 0 | O143: 0 | P143: 0 | Q143: 0 | R143: ='DOLDURULMASI GEREKEN TABLO'!K157 -> 0 | S143: ='DOLDURULMASI GEREKEN TABLO'!L157 -> 0 | T143: 0 | U143: 0 | V143: 0 | W143: FALSE | X143: =IFERROR(VLOOKUP(W143,'Aylık Yİ-ÜFE'!$D$1:$E$217,2,0),0) -> 0 | Y143: 2021-12 | Z143: =VLOOKUP(Y143,'Aylık Yİ-ÜFE'!$D$1:$E$217,2,1) -> 1022.25 | AA143: 0 | AB143: ='DOLDURULMASI GEREKEN TABLO'!M157 -> 0 | AC143: 0 | AD143: 0 | AE143: 0 | AF143: 0 | AG143: 0 | AH143: 0 | AI143: 0 | AK143: YD YAPILABİLİR | AL143: ='DOLDURULMASI GEREKEN TABLO'!O157 -> 0 | AM143: 0 | AN143: ='DOLDURULMASI GEREKEN TABLO'!N157 -> 0 | AO143: 0 | AP143: 0 | AQ143: 0 | AR143: 0 | AS143: 0 | AT143: 0 | AU143: 0 | AV143: 0 | AW143: =IF(K143="NORMAL AMORTİSMAN",AQ143*F143,IF(AND(K143="AZALAN BAKİYELERE GÖRE AMORTİSMAN",BC143<E143), DDB(AQ143,0,IF(E143<=4,4,E143),BC143,2),IF(AND(K143="AZALAN BAKİYELERE GÖRE AMORTİSMAN",BC143=E143),AQ143-AR143))) -> FALSE | AY143: 2022-12-31 | AZ143: 00:00:00 | BA143: 0 | BB143: 0 | BC143: 0 | BD143: 1 | BE143: 0 | BF143: 0
B144: 138 | C144: ='DOLDURULMASI GEREKEN TABLO'!D158 -> 0 | D144: ='DOLDURULMASI GEREKEN TABLO'!E158 -> 0 | E144: ='DOLDURULMASI GEREKEN TABLO'!F158 -> 0 | F144: 0 | G144: ='DOLDURULMASI GEREKEN TABLO'!G158 -> 00:00:00 | H144: 2021-12-31 | I144: TARİH UYUMLU | J144: ='DOLDURULMASI GEREKEN TABLO'!H158 -> 0 | K144: ='DOLDURULMASI GEREKEN TABLO'!I158 -> 0 | L144: ='DOLDURULMASI GEREKEN TABLO'!J158 -> 0 | M144: 44562 | N144: 0 | O144: 0 | P144: 0 | Q144: 0 | R144: ='DOLDURULMASI GEREKEN TABLO'!K158 -> 0 | S144: ='DOLDURULMASI GEREKEN TABLO'!L158 -> 0 | T144: 0 | U144: 0 | V144: 0 | W144: FALSE | X144: =IFERROR(VLOOKUP(W144,'Aylık Yİ-ÜFE'!$D$1:$E$217,2,0),0) -> 0 | Y144: 2021-12 | Z144: =VLOOKUP(Y144,'Aylık Yİ-ÜFE'!$D$1:$E$217,2,1) -> 1022.25 | AA144: 0 | AB144: ='DOLDURULMASI GEREKEN TABLO'!M158 -> 0 | AC144: 0 | AD144: 0 | AE144: 0 | AF144: 0 | AG144: 0 | AH144: 0 | AI144: 0 | AK144: YD YAPILABİLİR | AL144: ='DOLDURULMASI GEREKEN TABLO'!O158 -> 0 | AM144: 0 | AN144: ='DOLDURULMASI GEREKEN TABLO'!N158 -> 0 | AO144: 0 | AP144: 0 | AQ144: 0 | AR144: 0 | AS144: 0 | AT144: 0 | AU144: 0 | AV144: 0 | AW144: FALSE | AY144: 2022-12-31 | AZ144: 00:00:00 | BA144: 0 | BB144: 0 | BC144: 0 | BD144: 1 | BE144: 0 | BF144: 0
B145: 139 | C145: ='DOLDURULMASI GEREKEN TABLO'!D159 -> 0 | D145: ='DOLDURULMASI GEREKEN TABLO'!E159 -> 0 | E145: ='DOLDURULMASI GEREKEN TABLO'!F159 -> 0 | F145: 0 | G145: ='DOLDURULMASI GEREKEN TABLO'!G159 -> 00:00:00 | H145: 2021-12-31 | I145: TARİH UYUMLU | J145: ='DOLDURULMASI GEREKEN TABLO'!H159 -> 0 | K145: ='DOLDURULMASI GEREKEN TABLO'!I159 -> 0 | L145: ='DOLDURULMASI GEREKEN TABLO'!J159 -> 0 | M145: 44562 | N145: 0 | O145: 0 | P145: 0 | Q145: 0 | R145: ='DOLDURULMASI GEREKEN TABLO'!K159 -> 0 | S145: ='DOLDURULMASI GEREKEN TABLO'!L159 -> 0 | T145: 0 | U145: 0 | V145: 0 | W145: FALSE | X145: =IFERROR(VLOOKUP(W145,'Aylık Yİ-ÜFE'!$D$1:$E$217,2,0),0) -> 0 | Y145: 2021-12 | Z145: =VLOOKUP(Y145,'Aylık Yİ-ÜFE'!$D$1:$E$217,2,1) -> 1022.25 | AA145: 0 | AB145: ='DOLDURULMASI GEREKEN TABLO'!M159 -> 0 | AC145: 0 | AD145: 0 | AE145: 0 | AF145: 0 | AG145: 0 | AH145: 0 | AI145: 0 | AK145: YD YAPILABİLİR | AL145: ='DOLDURULMASI GEREKEN TABLO'!O159 -> 0 | AM145: 0 | AN145: ='DOLDURULMASI GEREKEN TABLO'!N159 -> 0 | AO145: 0 | AP145: 0 | AQ145: 0 | AR145: 0 | AS145: 0 | AT145: 0 | AU145: 0 | AV145: 0 | AW145: FALSE | AY145: 2022-12-31 | AZ145: 00:00:00 | BA145: 0 | BB145: 0 | BC145: 0 | BD145: 1 | BE145: 0 | BF145: 0
B146: 140 | C146: ='DOLDURULMASI GEREKEN TABLO'!D160 -> 0 | D146: ='DOLDURULMASI GEREKEN TABLO'!E160 -> 0 | E146: ='DOLDURULMASI GEREKEN TABLO'!F160 -> 0 | F146: 0 | G146: ='DOLDURULMASI GEREKEN TABLO'!G160 -> 00:00:00 | H146: 2021-12-31 | I146: TARİH UYUMLU | J146: ='DOLDURULMASI GEREKEN TABLO'!H160 -> 0 | K146: ='DOLDURULMASI GEREKEN TABLO'!I160 -> 0 | L146: ='DOLDURULMASI GEREKEN TABLO'!J160 -> 0 | M146: 44562 | N146: 0 | O146: 0 | P146: 0 | Q146: 0 | R146: ='DOLDURULMASI GEREKEN TABLO'!K160 -> 0 | S146: ='DOLDURULMASI GEREKEN TABLO'!L160 -> 0 | T146: 0 | U146: 0 | V146: 0 | W146: FALSE | X146: =IFERROR(VLOOKUP(W146,'Aylık Yİ-ÜFE'!$D$1:$E$217,2,0),0) -> 0 | Y146: 2021-12 | Z146: =VLOOKUP(Y146,'Aylık Yİ-ÜFE'!$D$1:$E$217,2,1) -> 1022.25 | AA146: 0 | AB146: ='DOLDURULMASI GEREKEN TABLO'!M160 -> 0 | AC146: 0 | AD146: 0 | AE146: 0 | AF146: 0 | AG146: 0 | AH146: 0 | AI146: 0 | AK146: YD YAPILABİLİR | AL146: ='DOLDURULMASI GEREKEN TABLO'!O160 -> 0 | AM146: 0 | AN146: ='DOLDURULMASI GEREKEN TABLO'!N160 -> 0 | AO146: 0 | AP146: 0 | AQ146: 0 | AR146: 0 | AS146: 0 | AT146: 0 | AU146: 0 | AV146: 0 | AW146: FALSE | AY146: 2022-12-31 | AZ146: 00:00:00 | BA146: 0 | BB146: 0 | BC146: 0 | BD146: 1 | BE146: 0 | BF146: 0
B147: 141 | C147: ='DOLDURULMASI GEREKEN TABLO'!D161 -> 0 | D147: ='DOLDURULMASI GEREKEN TABLO'!E161 -> 0 | E147: ='DOLDURULMASI GEREKEN TABLO'!F161 -> 0 | F147: 0 | G147: ='DOLDURULMASI GEREKEN TABLO'!G161 -> 00:00:00 | H147: 2021-12-31 | I147: TARİH UYUMLU | J147: ='DOLDURULMASI GEREKEN TABLO'!H161 -> 0 | K147: ='DOLDURULMASI GEREKEN TABLO'!I161 -> 0 | L147: ='DOLDURULMASI GEREKEN TABLO'!J161 -> 0 | M147: 44562 | N147: 0 | O147: 0 | P147: 0 | Q147: 0 | R147: ='DOLDURULMASI GEREKEN TABLO'!K161 -> 0 | S147: ='DOLDURULMASI GEREKEN TABLO'!L161 -> 0 | T147: 0 | U147: 0 | V147: 0 | W147: FALSE | X147: =IFERROR(VLOOKUP(W147,'Aylık Yİ-ÜFE'!$D$1:$E$217,2,0),0) -> 0 | Y147: 2021-12 | Z147: =VLOOKUP(Y147,'Aylık Yİ-ÜFE'!$D$1:$E$217,2,1) -> 1022.25 | AA147: 0 | AB147: ='DOLDURULMASI GEREKEN TABLO'!M161 -> 0 | AC147: 0 | AD147: 0 | AE147: 0 | AF147: 0 | AG147: 0 | AH147: 0 | AI147: 0 | AK147: YD YAPILABİLİR | AL147: ='DOLDURULMASI GEREKEN TABLO'!O161 -> 0 | AM147: 0 | AN147: ='DOLDURULMASI GEREKEN TABLO'!N161 -> 0 | AO147: 0 | AP147: 0 | AQ147: 0 | AR147: 0 | AS147: 0 | AT147: 0 | AU147: 0 | AV147: 0 | AW147: FALSE | AY147: 2022-12-31 | AZ147: 00:00:00 | BA147: 0 | BB147: 0 | BC147: 0 | BD147: 1 | BE147: 0 | BF147: 0
B148: 142 | C148: ='DOLDURULMASI GEREKEN TABLO'!D162 -> 0 | D148: ='DOLDURULMASI GEREKEN TABLO'!E162 -> 0 | E148: ='DOLDURULMASI GEREKEN TABLO'!F162 -> 0 | F148: 0 | G148: ='DOLDURULMASI GEREKEN TABLO'!G162 -> 00:00:00 | H148: 2021-12-31 | I148: TARİH UYUMLU | J148: ='DOLDURULMASI GEREKEN TABLO'!H162 -> 0 | K148: ='DOLDURULMASI GEREKEN TABLO'!I162 -> 0 | L148: ='DOLDURULMASI GEREKEN TABLO'!J162 -> 0 | M148: 44562 | N148: 0 | O148: 0 | P148: 0 | Q148: 0 | R148: ='DOLDURULMASI GEREKEN TABLO'!K162 -> 0 | S148: ='DOLDURULMASI GEREKEN TABLO'!L162 -> 0 | T148: 0 | U148: 0 | V148: 0 | W148: FALSE | X148: =IFERROR(VLOOKUP(W148,'Aylık Yİ-ÜFE'!$D$1:$E$217,2,0),0) -> 0 | Y148: 2021-12 | Z148: =VLOOKUP(Y148,'Aylık Yİ-ÜFE'!$D$1:$E$217,2,1) -> 1022.25 | AA148: 0 | AB148: ='DOLDURULMASI GEREKEN TABLO'!M162 -> 0 | AC148: 0 | AD148: 0 | AE148: 0 | AF148: 0 | AG148: 0 | AH148: 0 | AI148: 0 | AK148: YD YAPILABİLİR | AL148: ='DOLDURULMASI GEREKEN TABLO'!O162 -> 0 | AM148: 0 | AN148: ='DOLDURULMASI GEREKEN TABLO'!N162 -> 0 | AO148: 0 | AP148: 0 | AQ148: 0 | AR148: 0 | AS148: 0 | AT148: 0 | AU148: 0 | AV148: 0 | AW148: FALSE | AY148: 2022-12-31 | AZ148: 00:00:00 | BA148: 0 | BB148: 0 | BC148: 0 | BD148: 1 | BE148: 0 | BF148: 0
B149: 143 | C149: ='DOLDURULMASI GEREKEN TABLO'!D163 -> 0 | D149: ='DOLDURULMASI GEREKEN TABLO'!E163 -> 0 | E149: ='DOLDURULMASI GEREKEN TABLO'!F163 -> 0 | F149: 0 | G149: ='DOLDURULMASI GEREKEN TABLO'!G163 -> 00:00:00 | H149: 2021-12-31 | I149: TARİH UYUMLU | J149: ='DOLDURULMASI GEREKEN TABLO'!H163 -> 0 | K149: ='DOLDURULMASI GEREKEN TABLO'!I163 -> 0 | L149: ='DOLDURULMASI GEREKEN TABLO'!J163 -> 0 | M149: 44562 | N149: 0 | O149: 0 | P149: 0 | Q149: 0 | R149: ='DOLDURULMASI GEREKEN TABLO'!K163 -> 0 | S149: ='DOLDURULMASI GEREKEN TABLO'!L163 -> 0 | T149: 0 | U149: 0 | V149: 0 | W149: FALSE | X149: =IFERROR(VLOOKUP(W149,'Aylık Yİ-ÜFE'!$D$1:$E$217,2,0),0) -> 0 | Y149: 2021-12 | Z149: =VLOOKUP(Y149,'Aylık Yİ-ÜFE'!$D$1:$E$217,2,1) -> 1022.25 | AA149: 0 | AB149: ='DOLDURULMASI GEREKEN TABLO'!M163 -> 0 | AC149: 0 | AD149: 0 | AE149: 0 | AF149: 0 | AG149: 0 | AH149: 0 | AI149: 0 | AK149: YD YAPILABİLİR | AL149: ='DOLDURULMASI GEREKEN TABLO'!O163 -> 0 | AM149: 0 | AN149: ='DOLDURULMASI GEREKEN TABLO'!N163 -> 0 | AO149: 0 | AP149: 0 | AQ149: 0 | AR149: 0 | AS149: 0 | AT149: 0 | AU149: 0 | AV149: 0 | AW149: FALSE | AY149: 2022-12-31 | AZ149: 00:00:00 | BA149: 0 | BB149: 0 | BC149: 0 | BD149: 1 | BE149: 0 | BF149: 0
B150: 144 | C150: ='DOLDURULMASI GEREKEN TABLO'!D164 -> 0 | D150: ='DOLDURULMASI GEREKEN TABLO'!E164 -> 0 | E150: ='DOLDURULMASI GEREKEN TABLO'!F164 -> 0 | F150: 0 | G150: ='DOLDURULMASI GEREKEN TABLO'!G164 -> 00:00:00 | H150: 2021-12-31 | I150: TARİH UYUMLU | J150: ='DOLDURULMASI GEREKEN TABLO'!H164 -> 0 | K150: ='DOLDURULMASI GEREKEN TABLO'!I164 -> 0 | L150: ='DOLDURULMASI GEREKEN TABLO'!J164 -> 0 | M150: 44562 | N150: 0 | O150: 0 | P150: 0 | Q150: 0 | R150: ='DOLDURULMASI GEREKEN TABLO'!K164 -> 0 | S150: ='DOLDURULMASI GEREKEN TABLO'!L164 -> 0 | T150: 0 | U150: 0 | V150: 0 | W150: FALSE | X150: =IFERROR(VLOOKUP(W150,'Aylık Yİ-ÜFE'!$D$1:$E$217,2,0),0) -> 0 | Y150: 2021-12 | Z150: =VLOOKUP(Y150,'Aylık Yİ-ÜFE'!$D$1:$E$217,2,1) -> 1022.25 | AA150: 0 | AB150: ='DOLDURULMASI GEREKEN TABLO'!M164 -> 0 | AC150: 0 | AD150: 0 | AE150: 0 | AF150: 0 | AG150: 0 | AH150: 0 | AI150: 0 | AK150: YD YAPILABİLİR | AL150: ='DOLDURULMASI GEREKEN TABLO'!O164 -> 0 | AM150: 0 | AN150: ='DOLDURULMASI GEREKEN TABLO'!N164 -> 0 | AO150: 0 | AP150: 0 | AQ150: 0 | AR150: 0 | AS150: 0 | AT150: 0 | AU150: 0 | AV150: 0 | AW150: FALSE | AY150: 2022-12-31 | AZ150: 00:00:00 | BA150: 0 | BB150: 0 | BC150: 0 | BD150: 1 | BE150: 0 | BF150: 0
B151: 145 | C151: ='DOLDURULMASI GEREKEN TABLO'!D165 -> 0 | D151: ='DOLDURULMASI GEREKEN TABLO'!E165 -> 0 | E151: ='DOLDURULMASI GEREKEN TABLO'!F165 -> 0 | F151: 0 | G151: ='DOLDURULMASI GEREKEN TABLO'!G165 -> 00:00:00 | H151: 2021-12-31 | I151: TARİH UYUMLU | J151: ='DOLDURULMASI GEREKEN TABLO'!H165 -> 0 | K151: ='DOLDURULMASI GEREKEN TABLO'!I165 -> 0 | L151: ='DOLDURULMASI GEREKEN TABLO'!J165 -> 0 | M151: 44562 | N151: 0 | O151: 0 | P151: 0 | Q151: 0 | R151: ='DOLDURULMASI GEREKEN TABLO'!K165 -> 0 | S151: ='DOLDURULMASI GEREKEN TABLO'!L165 -> 0 | T151: 0 | U151: 0 | V151: 0 | W151: FALSE | X151: =IFERROR(VLOOKUP(W151,'Aylık Yİ-ÜFE'!$D$1:$E$217,2,0),0) -> 0 | Y151: 2021-12 | Z151: =VLOOKUP(Y151,'Aylık Yİ-ÜFE'!$D$1:$E$217,2,1) -> 1022.25 | AA151: 0 | AB151: ='DOLDURULMASI GEREKEN TABLO'!M165 -> 0 | AC151: 0 | AD151: 0 | AE151: 0 | AF151: 0 | AG151: 0 | AH151: 0 | AI151: 0 | AK151: YD YAPILABİLİR | AL151: ='DOLDURULMASI GEREKEN TABLO'!O165 -> 0 | AM151: 0 | AN151: ='DOLDURULMASI GEREKEN TABLO'!N165 -> 0 | AO151: 0 | AP151: 0 | AQ151: 0 | AR151: 0 | AS151: 0 | AT151: 0 | AU151: 0 | AV151: 0 | AW151: FALSE | AY151: 2022-12-31 | AZ151: 00:00:00 | BA151: 0 | BB151: 0 | BC151: 0 | BD151: 1 | BE151: 0 | BF151: 0
B152: 146 | C152: ='DOLDURULMASI GEREKEN TABLO'!D166 -> 0 | D152: ='DOLDURULMASI GEREKEN TABLO'!E166 -> 0 | E152: ='DOLDURULMASI GEREKEN TABLO'!F166 -> 0 | F152: 0 | G152: ='DOLDURULMASI GEREKEN TABLO'!G166 -> 00:00:00 | H152: 2021-12-31 | I152: TARİH UYUMLU | J152: ='DOLDURULMASI GEREKEN TABLO'!H166 -> 0 | K152: ='DOLDURULMASI GEREKEN TABLO'!I166 -> 0 | L152: ='DOLDURULMASI GEREKEN TABLO'!J166 -> 0 | M152: 44562 | N152: 0 | O152: 0 | P152: 0 | Q152: 0 | R152: ='DOLDURULMASI GEREKEN TABLO'!K166 -> 0 | S152: ='DOLDURULMASI GEREKEN TABLO'!L166 -> 0 | T152: 0 | U152: 0 | V152: 0 | W152: FALSE | X152: =IFERROR(VLOOKUP(W152,'Aylık Yİ-ÜFE'!$D$1:$E$217,2,0),0) -> 0 | Y152: 2021-12 | Z152: =VLOOKUP(Y152,'Aylık Yİ-ÜFE'!$D$1:$E$217,2,1) -> 1022.25 | AA152: 0 | AB152: ='DOLDURULMASI GEREKEN TABLO'!M166 -> 0 | AC152: 0 | AD152: 0 | AE152: 0 | AF152: 0 | AG152: 0 | AH152: 0 | AI152: 0 | AK152: YD YAPILABİLİR | AL152: ='DOLDURULMASI GEREKEN TABLO'!O166 -> 0 | AM152: 0 | AN152: ='DOLDURULMASI GEREKEN TABLO'!N166 -> 0 | AO152: 0 | AP152: 0 | AQ152: 0 | AR152: 0 | AS152: 0 | AT152: 0 | AU152: 0 | AV152: 0 | AW152: FALSE | AY152: 2022-12-31 | AZ152: 00:00:00 | BA152: 0 | BB152: 0 | BC152: 0 | BD152: 1 | BE152: 0 | BF152: 0
B153: 147 | C153: ='DOLDURULMASI GEREKEN TABLO'!D167 -> 0 | D153: ='DOLDURULMASI GEREKEN TABLO'!E167 -> 0 | E153: ='DOLDURULMASI GEREKEN TABLO'!F167 -> 0 | F153: 0 | G153: ='DOLDURULMASI GEREKEN TABLO'!G167 -> 00:00:00 | H153: 2021-12-31 | I153: TARİH UYUMLU | J153: ='DOLDURULMASI GEREKEN TABLO'!H167 -> 0 | K153: ='DOLDURULMASI GEREKEN TABLO'!I167 -> 0 | L153: ='DOLDURULMASI GEREKEN TABLO'!J167 -> 0 | M153: 44562 | N153: 0 | O153: 0 | P153: 0 | Q153: 0 | R153: ='DOLDURULMASI GEREKEN TABLO'!K167 -> 0 | S153: ='DOLDURULMASI GEREKEN TABLO'!L167 -> 0 | T153: 0 | U153: 0 | V153: 0 | W153: FALSE | X153: =IFERROR(VLOOKUP(W153,'Aylık Yİ-ÜFE'!$D$1:$E$217,2,0),0) -> 0 | Y153: 2021-12 | Z153: =VLOOKUP(Y153,'Aylık Yİ-ÜFE'!$D$1:$E$217,2,1) -> 1022.25 | AA153: 0 | AB153: ='DOLDURULMASI GEREKEN TABLO'!M167 -> 0 | AC153: 0 | AD153: 0 | AE153: 0 | AF153: 0 | AG153: 0 | AH153: 0 | AI153: 0 | AK153: YD YAPILABİLİR | AL153: ='DOLDURULMASI GEREKEN TABLO'!O167 -> 0 | AM153: 0 | AN153: ='DOLDURULMASI GEREKEN TABLO'!N167 -> 0 | AO153: 0 | AP153: 0 | AQ153: 0 | AR153: 0 | AS153: 0 | AT153: 0 | AU153: 0 | AV153: 0 | AW153: FALSE | AY153: 2022-12-31 | AZ153: 00:00:00 | BA153: 0 | BB153: 0 | BC153: 0 | BD153: 1 | BE153: 0 | BF153: 0
B154: 148 | C154: ='DOLDURULMASI GEREKEN TABLO'!D168 -> 0 | D154: ='DOLDURULMASI GEREKEN TABLO'!E168 -> 0 | E154: ='DOLDURULMASI GEREKEN TABLO'!F168 -> 0 | F154: 0 | G154: ='DOLDURULMASI GEREKEN TABLO'!G168 -> 00:00:00 | H154: 2021-12-31 | I154: TARİH UYUMLU | J154: ='DOLDURULMASI GEREKEN TABLO'!H168 -> 0 | K154: ='DOLDURULMASI GEREKEN TABLO'!I168 -> 0 | L154: ='DOLDURULMASI GEREKEN TABLO'!J168 -> 0 | M154: 44562 | N154: 0 | O154: 0 | P154: 0 | Q154: 0 | R154: ='DOLDURULMASI GEREKEN TABLO'!K168 -> 0 | S154: ='DOLDURULMASI GEREKEN TABLO'!L168 -> 0 | T154: 0 | U154: 0 | V154: 0 | W154: FALSE | X154: =IFERROR(VLOOKUP(W154,'Aylık Yİ-ÜFE'!$D$1:$E$217,2,0),0) -> 0 | Y154: 2021-12 | Z154: =VLOOKUP(Y154,'Aylık Yİ-ÜFE'!$D$1:$E$217,2,1) -> 1022.25 | AA154: 0 | AB154: ='DOLDURULMASI GEREKEN TABLO'!M168 -> 0 | AC154: 0 | AD154: 0 | AE154: 0 | AF154: 0 | AG154: 0 | AH154: 0 | AI154: 0 | AK154: YD YAPILABİLİR | AL154: ='DOLDURULMASI GEREKEN TABLO'!O168 -> 0 | AM154: 0 | AN154: ='DOLDURULMASI GEREKEN TABLO'!N168 -> 0 | AO154: 0 | AP154: 0 | AQ154: 0 | AR154: 0 | AS154: 0 | AT154: 0 | AU154: 0 | AV154: 0 | AW154: FALSE | AY154: 2022-12-31 | AZ154: 00:00:00 | BA154: 0 | BB154: 0 | BC154: 0 | BD154: 1 | BE154: 0 | BF154: 0
B155: 149 | C155: ='DOLDURULMASI GEREKEN TABLO'!D169 -> 0 | D155: ='DOLDURULMASI GEREKEN TABLO'!E169 -> 0 | E155: ='DOLDURULMASI GEREKEN TABLO'!F169 -> 0 | F155: 0 | G155: ='DOLDURULMASI GEREKEN TABLO'!G169 -> 00:00:00 | H155: 2021-12-31 | I155: TARİH UYUMLU | J155: ='DOLDURULMASI GEREKEN TABLO'!H169 -> 0 | K155: ='DOLDURULMASI GEREKEN TABLO'!I169 -> 0 | L155: ='DOLDURULMASI GEREKEN TABLO'!J169 -> 0 | M155: 44562 | N155: 0 | O155: 0 | P155: 0 | Q155: 0 | R155: ='DOLDURULMASI GEREKEN TABLO'!K169 -> 0 | S155: ='DOLDURULMASI GEREKEN TABLO'!L169 -> 0 | T155: 0 | U155: 0 | V155: 0 | W155: FALSE | X155: =IFERROR(VLOOKUP(W155,'Aylık Yİ-ÜFE'!$D$1:$E$217,2,0),0) -> 0 | Y155: 2021-12 | Z155: =VLOOKUP(Y155,'Aylık Yİ-ÜFE'!$D$1:$E$217,2,1) -> 1022.25 | AA155: 0 | AB155: ='DOLDURULMASI GEREKEN TABLO'!M169 -> 0 | AC155: 0 | AD155: 0 | AE155: 0 | AF155: 0 | AG155: 0 | AH155: 0 | AI155: 0 | AK155: YD YAPILABİLİR | AL155: ='DOLDURULMASI GEREKEN TABLO'!O169 -> 0 | AM155: 0 | AN155: ='DOLDURULMASI GEREKEN TABLO'!N169 -> 0 | AO155: 0 | AP155: 0 | AQ155: 0 | AR155: 0 | AS155: 0 | AT155: 0 | AU155: 0 | AV155: 0 | AW155: FALSE | AY155: 2022-12-31 | AZ155: 00:00:00 | BA155: 0 | BB155: 0 | BC155: 0 | BD155: 1 | BE155: 0 | BF155: 0
B156: 150 | C156: ='DOLDURULMASI GEREKEN TABLO'!D170 -> 0 | D156: ='DOLDURULMASI GEREKEN TABLO'!E170 -> 0 | E156: ='DOLDURULMASI GEREKEN TABLO'!F170 -> 0 | F156: 0 | G156: ='DOLDURULMASI GEREKEN TABLO'!G170 -> 00:00:00 | H156: 2021-12-31 | I156: TARİH UYUMLU | J156: ='DOLDURULMASI GEREKEN TABLO'!H170 -> 0 | K156: ='DOLDURULMASI GEREKEN TABLO'!I170 -> 0 | L156: ='DOLDURULMASI GEREKEN TABLO'!J170 -> 0 | M156: 44562 | N156: 0 | O156: 0 | P156: 0 | Q156: 0 | R156: ='DOLDURULMASI GEREKEN TABLO'!K170 -> 0 | S156: ='DOLDURULMASI GEREKEN TABLO'!L170 -> 0 | T156: 0 | U156: 0 | V156: 0 | W156: FALSE | X156: =IFERROR(VLOOKUP(W156,'Aylık Yİ-ÜFE'!$D$1:$E$217,2,0),0) -> 0 | Y156: 2021-12 | Z156: =VLOOKUP(Y156,'Aylık Yİ-ÜFE'!$D$1:$E$217,2,1) -> 1022.25 | AA156: 0 | AB156: ='DOLDURULMASI GEREKEN TABLO'!M170 -> 0 | AC156: 0 | AD156: 0 | AE156: 0 | AF156: 0 | AG156: 0 | AH156: 0 | AI156: 0 | AK156: YD YAPILABİLİR | AL156: ='DOLDURULMASI GEREKEN TABLO'!O170 -> 0 | AM156: 0 | AN156: ='DOLDURULMASI GEREKEN TABLO'!N170 -> 0 | AO156: 0 | AP156: 0 | AQ156: 0 | AR156: 0 | AS156: 0 | AT156: 0 | AU156: 0 | AV156: 0 | AW156: FALSE | AY156: 2022-12-31 | AZ156: 00:00:00 | BA156: 0 | BB156: 0 | BC156: 0 | BD156: 1 | BE156: 0 | BF156: 0
B157: 151 | C157: ='DOLDURULMASI GEREKEN TABLO'!D171 -> 0 | D157: ='DOLDURULMASI GEREKEN TABLO'!E171 -> 0 | E157: ='DOLDURULMASI GEREKEN TABLO'!F171 -> 0 | F157: 0 | G157: ='DOLDURULMASI GEREKEN TABLO'!G171 -> 00:00:00 | H157: 2021-12-31 | I157: TARİH UYUMLU | J157: ='DOLDURULMASI GEREKEN TABLO'!H171 -> 0 | K157: ='DOLDURULMASI GEREKEN TABLO'!I171 -> 0 | L157: ='DOLDURULMASI GEREKEN TABLO'!J171 -> 0 | M157: 44562 | N157: 0 | O157: 0 | P157: 0 | Q157: 0 | R157: ='DOLDURULMASI GEREKEN TABLO'!K171 -> 0 | S157: ='DOLDURULMASI GEREKEN TABLO'!L171 -> 0 | T157: 0 | U157: 0 | V157: 0 | W157: FALSE | X157: =IFERROR(VLOOKUP(W157,'Aylık Yİ-ÜFE'!$D$1:$E$217,2,0),0) -> 0 | Y157: 2021-12 | Z157: =VLOOKUP(Y157,'Aylık Yİ-ÜFE'!$D$1:$E$217,2,1) -> 1022.25 | AA157: 0 | AB157: ='DOLDURULMASI GEREKEN TABLO'!M171 -> 0 | AC157: 0 | AD157: 0 | AE157: 0 | AF157: 0 | AG157: 0 | AH157: 0 | AI157: 0 | AK157: YD YAPILABİLİR | AL157: ='DOLDURULMASI GEREKEN TABLO'!O171 -> 0 | AM157: 0 | AN157: ='DOLDURULMASI GEREKEN TABLO'!N171 -> 0 | AO157: 0 | AP157: 0 | AQ157: 0 | AR157: 0 | AS157: 0 | AT157: 0 | AU157: 0 | AV157: 0 | AW157: FALSE | AY157: 2022-12-31 | AZ157: 00:00:00 | BA157: 0 | BB157: 0 | BC157: 0 | BD157: 1 | BE157: 0 | BF157: 0
B158: 152 | C158: ='DOLDURULMASI GEREKEN TABLO'!D172 -> 0 | D158: ='DOLDURULMASI GEREKEN TABLO'!E172 -> 0 | E158: ='DOLDURULMASI GEREKEN TABLO'!F172 -> 0 | F158: 0 | G158: ='DOLDURULMASI GEREKEN TABLO'!G172 -> 00:00:00 | H158: 2021-12-31 | I158: TARİH UYUMLU | J158: ='DOLDURULMASI GEREKEN TABLO'!H172 -> 0 | K158: ='DOLDURULMASI GEREKEN TABLO'!I172 -> 0 | L158: ='DOLDURULMASI GEREKEN TABLO'!J172 -> 0 | M158: 44562 | N158: 0 | O158: 0 | P158: 0 | Q158: 0 | R158: ='DOLDURULMASI GEREKEN TABLO'!K172 -> 0 | S158: ='DOLDURULMASI GEREKEN TABLO'!L172 -> 0 | T158: 0 | U158: 0 | V158: 0 | W158: FALSE | X158: =IFERROR(VLOOKUP(W158,'Aylık Yİ-ÜFE'!$D$1:$E$217,2,0),0) -> 0 | Y158: 2021-12 | Z158: =VLOOKUP(Y158,'Aylık Yİ-ÜFE'!$D$1:$E$217,2,1) -> 1022.25 | AA158: 0 | AB158: ='DOLDURULMASI GEREKEN TABLO'!M172 -> 0 | AC158: 0 | AD158: 0 | AE158: 0 | AF158: 0 | AG158: 0 | AH158: 0 | AI158: 0 | AK158: YD YAPILABİLİR | AL158: ='DOLDURULMASI GEREKEN TABLO'!O172 -> 0 | AM158: 0 | AN158: ='DOLDURULMASI GEREKEN TABLO'!N172 -> 0 | AO158: 0 | AP158: 0 | AQ158: 0 | AR158: 0 | AS158: 0 | AT158: 0 | AU158: 0 | AV158: 0 | AW158: FALSE | AY158: 2022-12-31 | AZ158: 00:00:00 | BA158: 0 | BB158: 0 | BC158: 0 | BD158: 1 | BE158: 0 | BF158: 0
B159: 153 | C159: ='DOLDURULMASI GEREKEN TABLO'!D173 -> 0 | D159: ='DOLDURULMASI GEREKEN TABLO'!E173 -> 0 | E159: ='DOLDURULMASI GEREKEN TABLO'!F173 -> 0 | F159: 0 | G159: ='DOLDURULMASI GEREKEN TABLO'!G173 -> 00:00:00 | H159: 2021-12-31 | I159: TARİH UYUMLU | J159: ='DOLDURULMASI GEREKEN TABLO'!H173 -> 0 | K159: ='DOLDURULMASI GEREKEN TABLO'!I173 -> 0 | L159: ='DOLDURULMASI GEREKEN TABLO'!J173 -> 0 | M159: 44562 | N159: 0 | O159: 0 | P159: 0 | Q159: 0 | R159: ='DOLDURULMASI GEREKEN TABLO'!K173 -> 0 | S159: ='DOLDURULMASI GEREKEN TABLO'!L173 -> 0 | T159: 0 | U159: 0 | V159: 0 | W159: FALSE | X159: =IFERROR(VLOOKUP(W159,'Aylık Yİ-ÜFE'!$D$1:$E$217,2,0),0) -> 0 | Y159: 2021-12 | Z159: =VLOOKUP(Y159,'Aylık Yİ-ÜFE'!$D$1:$E$217,2,1) -> 1022.25 | AA159: 0 | AB159: ='DOLDURULMASI GEREKEN TABLO'!M173 -> 0 | AC159: 0 | AD159: 0 | AE159: 0 | AF159: 0 | AG159: 0 | AH159: 0 | AI159: 0 | AK159: YD YAPILABİLİR | AL159: ='DOLDURULMASI GEREKEN TABLO'!O173 -> 0 | AM159: 0 | AN159: ='DOLDURULMASI GEREKEN TABLO'!N173 -> 0 | AO159: 0 | AP159: 0 | AQ159: 0 | AR159: 0 | AS159: 0 | AT159: 0 | AU159: 0 | AV159: 0 | AW159: FALSE | AY159: 2022-12-31 | AZ159: 00:00:00 | BA159: 0 | BB159: 0 | BC159: 0 | BD159: 1 | BE159: 0 | BF159: 0
B160: 154 | C160: ='DOLDURULMASI GEREKEN TABLO'!D174 -> 0 | D160: ='DOLDURULMASI GEREKEN TABLO'!E174 -> 0 | E160: ='DOLDURULMASI GEREKEN TABLO'!F174 -> 0 | F160: 0 | G160: ='DOLDURULMASI GEREKEN TABLO'!G174 -> 00:00:00 | H160: 2021-12-31 | I160: TARİH UYUMLU | J160: ='DOLDURULMASI GEREKEN TABLO'!H174 -> 0 | K160: ='DOLDURULMASI GEREKEN TABLO'!I174 -> 0 | L160: ='DOLDURULMASI GEREKEN TABLO'!J174 -> 0 | M160: 44562 | N160: 0 | O160: 0 | P160: 0 | Q160: 0 | R160: ='DOLDURULMASI GEREKEN TABLO'!K174 -> 0 | S160: ='DOLDURULMASI GEREKEN TABLO'!L174 -> 0 | T160: 0 | U160: 0 | V160: 0 | W160: FALSE | X160: =IFERROR(VLOOKUP(W160,'Aylık Yİ-ÜFE'!$D$1:$E$217,2,0),0) -> 0 | Y160: 2021-12 | Z160: =VLOOKUP(Y160,'Aylık Yİ-ÜFE'!$D$1:$E$217,2,1) -> 1022.25 | AA160: 0 | AB160: ='DOLDURULMASI GEREKEN TABLO'!M174 -> 0 | AC160: 0 | AD160: 0 | AE160: 0 | AF160: 0 | AG160: 0 | AH160: 0 | AI160: 0 | AK160: YD YAPILABİLİR | AL160: ='DOLDURULMASI GEREKEN TABLO'!O174 -> 0 | AM160: 0 | AN160: ='DOLDURULMASI GEREKEN TABLO'!N174 -> 0 | AO160: 0 | AP160: 0 | AQ160: 0 | AR160: 0 | AS160: 0 | AT160: 0 | AU160: 0 | AV160: 0 | AW160: FALSE | AY160: 2022-12-31 | AZ160: 00:00:00 | BA160: 0 | BB160: 0 | BC160: 0 | BD160: 1 | BE160: 0 | BF160: 0
B161: 155 | C161: ='DOLDURULMASI GEREKEN TABLO'!D175 -> 0 | D161: ='DOLDURULMASI GEREKEN TABLO'!E175 -> 0 | E161: ='DOLDURULMASI GEREKEN TABLO'!F175 -> 0 | F161: 0 | G161: ='DOLDURULMASI GEREKEN TABLO'!G175 -> 00:00:00 | H161: 2021-12-31 | I161: TARİH UYUMLU | J161: ='DOLDURULMASI GEREKEN TABLO'!H175 -> 0 | K161: ='DOLDURULMASI GEREKEN TABLO'!I175 -> 0 | L161: ='DOLDURULMASI GEREKEN TABLO'!J175 -> 0 | M161: 44562 | N161: 0 | O161: 0 | P161: 0 | Q161: 0 | R161: ='DOLDURULMASI GEREKEN TABLO'!K175 -> 0 | S161: ='DOLDURULMASI GEREKEN TABLO'!L175 -> 0 | T161: 0 | U161: 0 | V161: 0 | W161: FALSE | X161: =IFERROR(VLOOKUP(W161,'Aylık Yİ-ÜFE'!$D$1:$E$217,2,0),0) -> 0 | Y161: 2021-12 | Z161: =VLOOKUP(Y161,'Aylık Yİ-ÜFE'!$D$1:$E$217,2,1) -> 1022.25 | AA161: 0 | AB161: ='DOLDURULMASI GEREKEN TABLO'!M175 -> 0 | AC161: 0 | AD161: 0 | AE161: 0 | AF161: 0 | AG161: 0 | AH161: 0 | AI161: 0 | AK161: YD YAPILABİLİR | AL161: ='DOLDURULMASI GEREKEN TABLO'!O175 -> 0 | AM161: 0 | AN161: ='DOLDURULMASI GEREKEN TABLO'!N175 -> 0 | AO161: 0 | AP161: 0 | AQ161: 0 | AR161: 0 | AS161: 0 | AT161: 0 | AU161: 0 | AV161: 0 | AW161: FALSE | AY161: 2022-12-31 | AZ161: 00:00:00 | BA161: 0 | BB161: 0 | BC161: 0 | BD161: 1 | BE161: 0 | BF161: 0
B162: 156 | C162: ='DOLDURULMASI GEREKEN TABLO'!D176 -> 0 | D162: ='DOLDURULMASI GEREKEN TABLO'!E176 -> 0 | E162: ='DOLDURULMASI GEREKEN TABLO'!F176 -> 0 | F162: 0 | G162: ='DOLDURULMASI GEREKEN TABLO'!G176 -> 00:00:00 | H162: 2021-12-31 | I162: TARİH UYUMLU | J162: ='DOLDURULMASI GEREKEN TABLO'!H176 -> 0 | K162: ='DOLDURULMASI GEREKEN TABLO'!I176 -> 0 | L162: ='DOLDURULMASI GEREKEN TABLO'!J176 -> 0 | M162: 44562 | N162: 0 | O162: 0 | P162: 0 | Q162: 0 | R162: ='DOLDURULMASI GEREKEN TABLO'!K176 -> 0 | S162: ='DOLDURULMASI GEREKEN TABLO'!L176 -> 0 | T162: 0 | U162: 0 | V162: 0 | W162: FALSE | X162: =IFERROR(VLOOKUP(W162,'Aylık Yİ-ÜFE'!$D$1:$E$217,2,0),0) -> 0 | Y162: 2021-12 | Z162: =VLOOKUP(Y162,'Aylık Yİ-ÜFE'!$D$1:$E$217,2,1) -> 1022.25 | AA162: 0 | AB162: ='DOLDURULMASI GEREKEN TABLO'!M176 -> 0 | AC162: 0 | AD162: 0 | AE162: 0 | AF162: 0 | AG162: 0 | AH162: 0 | AI162: 0 | AK162: YD YAPILABİLİR | AL162: ='DOLDURULMASI GEREKEN TABLO'!O176 -> 0 | AM162: 0 | AN162: ='DOLDURULMASI GEREKEN TABLO'!N176 -> 0 | AO162: 0 | AP162: 0 | AQ162: 0 | AR162: 0 | AS162: 0 | AT162: 0 | AU162: 0 | AV162: 0 | AW162: FALSE | AY162: 2022-12-31 | AZ162: 00:00:00 | BA162: 0 | BB162: 0 | BC162: 0 | BD162: 1 | BE162: 0 | BF162: 0
B163: 157 | C163: ='DOLDURULMASI GEREKEN TABLO'!D177 -> 0 | D163: ='DOLDURULMASI GEREKEN TABLO'!E177 -> 0 | E163: ='DOLDURULMASI GEREKEN TABLO'!F177 -> 0 | F163: 0 | G163: ='DOLDURULMASI GEREKEN TABLO'!G177 -> 00:00:00 | H163: 2021-12-31 | I163: TARİH UYUMLU | J163: ='DOLDURULMASI GEREKEN TABLO'!H177 -> 0 | K163: ='DOLDURULMASI GEREKEN TABLO'!I177 -> 0 | L163: ='DOLDURULMASI GEREKEN TABLO'!J177 -> 0 | M163: 44562 | N163: 0 | O163: 0 | P163: 0 | Q163: 0 | R163: ='DOLDURULMASI GEREKEN TABLO'!K177 -> 0 | S163: ='DOLDURULMASI GEREKEN TABLO'!L177 -> 0 | T163: 0 | U163: 0 | V163: 0 | W163: FALSE | X163: =IFERROR(VLOOKUP(W163,'Aylık Yİ-ÜFE'!$D$1:$E$217,2,0),0) -> 0 | Y163: 2021-12 | Z163: =VLOOKUP(Y163,'Aylık Yİ-ÜFE'!$D$1:$E$217,2,1) -> 1022.25 | AA163: 0 | AB163: ='DOLDURULMASI GEREKEN TABLO'!M177 -> 0 | AC163: 0 | AD163: 0 | AE163: 0 | AF163: 0 | AG163: 0 | AH163: 0 | AI163: 0 | AK163: YD YAPILABİLİR | AL163: ='DOLDURULMASI GEREKEN TABLO'!O177 -> 0 | AM163: 0 | AN163: ='DOLDURULMASI GEREKEN TABLO'!N177 -> 0 | AO163: 0 | AP163: 0 | AQ163: 0 | AR163: 0 | AS163: 0 | AT163: 0 | AU163: 0 | AV163: 0 | AW163: FALSE | AY163: 2022-12-31 | AZ163: 00:00:00 | BA163: 0 | BB163: 0 | BC163: 0 | BD163: 1 | BE163: 0 | BF163: 0
B164: 158 | C164: ='DOLDURULMASI GEREKEN TABLO'!D178 -> 0 | D164: ='DOLDURULMASI GEREKEN TABLO'!E178 -> 0 | E164: ='DOLDURULMASI GEREKEN TABLO'!F178 -> 0 | F164: 0 | G164: ='DOLDURULMASI GEREKEN TABLO'!G178 -> 00:00:00 | H164: 2021-12-31 | I164: TARİH UYUMLU | J164: ='DOLDURULMASI GEREKEN TABLO'!H178 -> 0 | K164: ='DOLDURULMASI GEREKEN TABLO'!I178 -> 0 | L164: ='DOLDURULMASI GEREKEN TABLO'!J178 -> 0 | M164: 44562 | N164: 0 | O164: 0 | P164: 0 | Q164: 0 | R164: ='DOLDURULMASI GEREKEN TABLO'!K178 -> 0 | S164: ='DOLDURULMASI GEREKEN TABLO'!L178 -> 0 | T164: 0 | U164: 0 | V164: 0 | W164: FALSE | X164: =IFERROR(VLOOKUP(W164,'Aylık Yİ-ÜFE'!$D$1:$E$217,2,0),0) -> 0 | Y164: 2021-12 | Z164: =VLOOKUP(Y164,'Aylık Yİ-ÜFE'!$D$1:$E$217,2,1) -> 1022.25 | AA164: 0 | AB164: ='DOLDURULMASI GEREKEN TABLO'!M178 -> 0 | AC164: 0 | AD164: 0 | AE164: 0 | AF164: 0 | AG164: 0 | AH164: 0 | AI164: 0 | AK164: YD YAPILABİLİR | AL164: ='DOLDURULMASI GEREKEN TABLO'!O178 -> 0 | AM164: 0 | AN164: ='DOLDURULMASI GEREKEN TABLO'!N178 -> 0 | AO164: 0 | AP164: 0 | AQ164: 0 | AR164: 0 | AS164: 0 | AT164: 0 | AU164: 0 | AV164: 0 | AW164: FALSE | AY164: 2022-12-31 | AZ164: 00:00:00 | BA164: 0 | BB164: 0 | BC164: 0 | BD164: 1 | BE164: 0 | BF164: 0
B165: 159 | C165: ='DOLDURULMASI GEREKEN TABLO'!D179 -> 0 | D165: ='DOLDURULMASI GEREKEN TABLO'!E179 -> 0 | E165: ='DOLDURULMASI GEREKEN TABLO'!F179 -> 0 | F165: 0 | G165: ='DOLDURULMASI GEREKEN TABLO'!G179 -> 00:00:00 | H165: 2021-12-31 | I165: TARİH UYUMLU | J165: ='DOLDURULMASI GEREKEN TABLO'!H179 -> 0 | K165: ='DOLDURULMASI GEREKEN TABLO'!I179 -> 0 | L165: ='DOLDURULMASI GEREKEN TABLO'!J179 -> 0 | M165: 44562 | N165: 0 | O165: 0 | P165: 0 | Q165: 0 | R165: ='DOLDURULMASI GEREKEN TABLO'!K179 -> 0 | S165: ='DOLDURULMASI GEREKEN TABLO'!L179 -> 0 | T165: 0 | U165: 0 | V165: 0 | W165: FALSE | X165: =IFERROR(VLOOKUP(W165,'Aylık Yİ-ÜFE'!$D$1:$E$217,2,0),0) -> 0 | Y165: 2021-12 | Z165: =VLOOKUP(Y165,'Aylık Yİ-ÜFE'!$D$1:$E$217,2,1) -> 1022.25 | AA165: 0 | AB165: ='DOLDURULMASI GEREKEN TABLO'!M179 -> 0 | AC165: 0 | AD165: 0 | AE165: 0 | AF165: 0 | AG165: 0 | AH165: 0 | AI165: 0 | AK165: YD YAPILABİLİR | AL165: ='DOLDURULMASI GEREKEN TABLO'!O179 -> 0 | AM165: 0 | AN165: ='DOLDURULMASI GEREKEN TABLO'!N179 -> 0 | AO165: 0 | AP165: 0 | AQ165: 0 | AR165: 0 | AS165: 0 | AT165: 0 | AU165: 0 | AV165: 0 | AW165: FALSE | AY165: 2022-12-31 | AZ165: 00:00:00 | BA165: 0 | BB165: 0 | BC165: 0 | BD165: 1 | BE165: 0 | BF165: 0
B166: 160 | C166: ='DOLDURULMASI GEREKEN TABLO'!D180 -> 0 | D166: ='DOLDURULMASI GEREKEN TABLO'!E180 -> 0 | E166: ='DOLDURULMASI GEREKEN TABLO'!F180 -> 0 | F166: 0 | G166: ='DOLDURULMASI GEREKEN TABLO'!G180 -> 00:00:00 | H166: 2021-12-31 | I166: TARİH UYUMLU | J166: ='DOLDURULMASI GEREKEN TABLO'!H180 -> 0 | K166: ='DOLDURULMASI GEREKEN TABLO'!I180 -> 0 | L166: ='DOLDURULMASI GEREKEN TABLO'!J180 -> 0 | M166: 44562 | N166: 0 | O166: 0 | P166: 0 | Q166: 0 | R166: ='DOLDURULMASI GEREKEN TABLO'!K180 -> 0 | S166: ='DOLDURULMASI GEREKEN TABLO'!L180 -> 0 | T166: 0 | U166: 0 | V166: 0 | W166: FALSE | X166: =IFERROR(VLOOKUP(W166,'Aylık Yİ-ÜFE'!$D$1:$E$217,2,0),0) -> 0 | Y166: 2021-12 | Z166: =VLOOKUP(Y166,'Aylık Yİ-ÜFE'!$D$1:$E$217,2,1) -> 1022.25 | AA166: 0 | AB166: ='DOLDURULMASI GEREKEN TABLO'!M180 -> 0 | AC166: 0 | AD166: 0 | AE166: 0 | AF166: 0 | AG166: 0 | AH166: 0 | AI166: 0 | AK166: YD YAPILABİLİR | AL166: ='DOLDURULMASI GEREKEN TABLO'!O180 -> 0 | AM166: 0 | AN166: ='DOLDURULMASI GEREKEN TABLO'!N180 -> 0 | AO166: 0 | AP166: 0 | AQ166: 0 | AR166: 0 | AS166: 0 | AT166: 0 | AU166: 0 | AV166: 0 | AW166: FALSE | AY166: 2022-12-31 | AZ166: 00:00:00 | BA166: 0 | BB166: 0 | BC166: 0 | BD166: 1 | BE166: 0 | BF166: 0
B167: 161 | C167: ='DOLDURULMASI GEREKEN TABLO'!D181 -> 0 | D167: ='DOLDURULMASI GEREKEN TABLO'!E181 -> 0 | E167: ='DOLDURULMASI GEREKEN TABLO'!F181 -> 0 | F167: 0 | G167: ='DOLDURULMASI GEREKEN TABLO'!G181 -> 00:00:00 | H167: 2021-12-31 | I167: TARİH UYUMLU | J167: ='DOLDURULMASI GEREKEN TABLO'!H181 -> 0 | K167: ='DOLDURULMASI GEREKEN TABLO'!I181 -> 0 | L167: ='DOLDURULMASI GEREKEN TABLO'!J181 -> 0 | M167: 44562 | N167: 0 | O167: 0 | P167: 0 | Q167: 0 | R167: ='DOLDURULMASI GEREKEN TABLO'!K181 -> 0 | S167: ='DOLDURULMASI GEREKEN TABLO'!L181 -> 0 | T167: 0 | U167: 0 | V167: 0 | W167: FALSE | X167: =IFERROR(VLOOKUP(W167,'Aylık Yİ-ÜFE'!$D$1:$E$217,2,0),0) -> 0 | Y167: 2021-12 | Z167: =VLOOKUP(Y167,'Aylık Yİ-ÜFE'!$D$1:$E$217,2,1) -> 1022.25 | AA167: 0 | AB167: ='DOLDURULMASI GEREKEN TABLO'!M181 -> 0 | AC167: 0 | AD167: 0 | AE167: 0 | AF167: 0 | AG167: 0 | AH167: 0 | AI167: 0 | AK167: YD YAPILABİLİR | AL167: ='DOLDURULMASI GEREKEN TABLO'!O181 -> 0 | AM167: 0 | AN167: ='DOLDURULMASI GEREKEN TABLO'!N181 -> 0 | AO167: 0 | AP167: 0 | AQ167: 0 | AR167: 0 | AS167: 0 | AT167: 0 | AU167: 0 | AV167: 0 | AW167: FALSE | AY167: 2022-12-31 | AZ167: 00:00:00 | BA167: 0 | BB167: 0 | BC167: 0 | BD167: 1 | BE167: 0 | BF167: 0
B168: 162 | C168: ='DOLDURULMASI GEREKEN TABLO'!D182 -> 0 | D168: ='DOLDURULMASI GEREKEN TABLO'!E182 -> 0 | E168: ='DOLDURULMASI GEREKEN TABLO'!F182 -> 0 | F168: 0 | G168: ='DOLDURULMASI GEREKEN TABLO'!G182 -> 00:00:00 | H168: 2021-12-31 | I168: TARİH UYUMLU | J168: ='DOLDURULMASI GEREKEN TABLO'!H182 -> 0 | K168: ='DOLDURULMASI GEREKEN TABLO'!I182 -> 0 | L168: ='DOLDURULMASI GEREKEN TABLO'!J182 -> 0 | M168: 44562 | N168: 0 | O168: 0 | P168: 0 | Q168: 0 | R168: ='DOLDURULMASI GEREKEN TABLO'!K182 -> 0 | S168: ='DOLDURULMASI GEREKEN TABLO'!L182 -> 0 | T168: 0 | U168: 0 | V168: 0 | W168: FALSE | X168: =IFERROR(VLOOKUP(W168,'Aylık Yİ-ÜFE'!$D$1:$E$217,2,0),0) -> 0 | Y168: 2021-12 | Z168: =VLOOKUP(Y168,'Aylık Yİ-ÜFE'!$D$1:$E$217,2,1) -> 1022.25 | AA168: 0 | AB168: ='DOLDURULMASI GEREKEN TABLO'!M182 -> 0 | AC168: 0 | AD168: 0 | AE168: 0 | AF168: 0 | AG168: 0 | AH168: 0 | AI168: 0 | AK168: YD YAPILABİLİR | AL168: ='DOLDURULMASI GEREKEN TABLO'!O182 -> 0 | AM168: 0 | AN168: ='DOLDURULMASI GEREKEN TABLO'!N182 -> 0 | AO168: 0 | AP168: 0 | AQ168: 0 | AR168: 0 | AS168: 0 | AT168: 0 | AU168: 0 | AV168: 0 | AW168: FALSE | AY168: 2022-12-31 | AZ168: 00:00:00 | BA168: 0 | BB168: 0 | BC168: 0 | BD168: 1 | BE168: 0 | BF168: 0
B169: 163 | C169: ='DOLDURULMASI GEREKEN TABLO'!D183 -> 0 | D169: ='DOLDURULMASI GEREKEN TABLO'!E183 -> 0 | E169: ='DOLDURULMASI GEREKEN TABLO'!F183 -> 0 | F169: 0 | G169: ='DOLDURULMASI GEREKEN TABLO'!G183 -> 00:00:00 | H169: 2021-12-31 | I169: TARİH UYUMLU | J169: ='DOLDURULMASI GEREKEN TABLO'!H183 -> 0 | K169: ='DOLDURULMASI GEREKEN TABLO'!I183 -> 0 | L169: ='DOLDURULMASI GEREKEN TABLO'!J183 -> 0 | M169: 44562 | N169: 0 | O169: 0 | P169: 0 | Q169: 0 | R169: ='DOLDURULMASI GEREKEN TABLO'!K183 -> 0 | S169: ='DOLDURULMASI GEREKEN TABLO'!L183 -> 0 | T169: 0 | U169: 0 | V169: 0 | W169: FALSE | X169: =IFERROR(VLOOKUP(W169,'Aylık Yİ-ÜFE'!$D$1:$E$217,2,0),0) -> 0 | Y169: 2021-12 | Z169: =VLOOKUP(Y169,'Aylık Yİ-ÜFE'!$D$1:$E$217,2,1) -> 1022.25 | AA169: 0 | AB169: ='DOLDURULMASI GEREKEN TABLO'!M183 -> 0 | AC169: 0 | AD169: 0 | AE169: 0 | AF169: 0 | AG169: 0 | AH169: 0 | AI169: 0 | AK169: YD YAPILABİLİR | AL169: ='DOLDURULMASI GEREKEN TABLO'!O183 -> 0 | AM169: 0 | AN169: ='DOLDURULMASI GEREKEN TABLO'!N183 -> 0 | AO169: 0 | AP169: 0 | AQ169: 0 | AR169: 0 | AS169: 0 | AT169: 0 | AU169: 0 | AV169: 0 | AW169: FALSE | AY169: 2022-12-31 | AZ169: 00:00:00 | BA169: 0 | BB169: 0 | BC169: 0 | BD169: 1 | BE169: 0 | BF169: 0
B170: 164 | C170: ='DOLDURULMASI GEREKEN TABLO'!D184 -> 0 | D170: ='DOLDURULMASI GEREKEN TABLO'!E184 -> 0 | E170: ='DOLDURULMASI GEREKEN TABLO'!F184 -> 0 | F170: 0 | G170: ='DOLDURULMASI GEREKEN TABLO'!G184 -> 00:00:00 | H170: 2021-12-31 | I170: TARİH UYUMLU | J170: ='DOLDURULMASI GEREKEN TABLO'!H184 -> 0 | K170: ='DOLDURULMASI GEREKEN TABLO'!I184 -> 0 | L170: ='DOLDURULMASI GEREKEN TABLO'!J184 -> 0 | M170: 44562 | N170: 0 | O170: 0 | P170: 0 | Q170: 0 | R170: ='DOLDURULMASI GEREKEN TABLO'!K184 -> 0 | S170: ='DOLDURULMASI GEREKEN TABLO'!L184 -> 0 | T170: 0 | U170: 0 | V170: 0 | W170: FALSE | X170: =IFERROR(VLOOKUP(W170,'Aylık Yİ-ÜFE'!$D$1:$E$217,2,0),0) -> 0 | Y170: 2021-12 | Z170: =VLOOKUP(Y170,'Aylık Yİ-ÜFE'!$D$1:$E$217,2,1) -> 1022.25 | AA170: 0 | AB170: ='DOLDURULMASI GEREKEN TABLO'!M184 -> 0 | AC170: 0 | AD170: 0 | AE170: 0 | AF170: 0 | AG170: 0 | AH170: 0 | AI170: 0 | AK170: YD YAPILABİLİR | AL170: ='DOLDURULMASI GEREKEN TABLO'!O184 -> 0 | AM170: 0 | AN170: ='DOLDURULMASI GEREKEN TABLO'!N184 -> 0 | AO170: 0 | AP170: 0 | AQ170: 0 | AR170: 0 | AS170: 0 | AT170: 0 | AU170: 0 | AV170: 0 | AW170: FALSE | AY170: 2022-12-31 | AZ170: 00:00:00 | BA170: 0 | BB170: 0 | BC170: 0 | BD170: 1 | BE170: 0 | BF170: 0
B171: 165 | C171: ='DOLDURULMASI GEREKEN TABLO'!D185 -> 0 | D171: ='DOLDURULMASI GEREKEN TABLO'!E185 -> 0 | E171: ='DOLDURULMASI GEREKEN TABLO'!F185 -> 0 | F171: 0 | G171: ='DOLDURULMASI GEREKEN TABLO'!G185 -> 00:00:00 | H171: 2021-12-31 | I171: TARİH UYUMLU | J171: ='DOLDURULMASI GEREKEN TABLO'!H185 -> 0 | K171: ='DOLDURULMASI GEREKEN TABLO'!I185 -> 0 | L171: ='DOLDURULMASI GEREKEN TABLO'!J185 -> 0 | M171: 44562 | N171: 0 | O171: 0 | P171: 0 | Q171: 0 | R171: ='DOLDURULMASI GEREKEN TABLO'!K185 -> 0 | S171: ='DOLDURULMASI GEREKEN TABLO'!L185 -> 0 | T171: 0 | U171: 0 | V171: 0 | W171: FALSE | X171: =IFERROR(VLOOKUP(W171,'Aylık Yİ-ÜFE'!$D$1:$E$217,2,0),0) -> 0 | Y171: 2021-12 | Z171: =VLOOKUP(Y171,'Aylık Yİ-ÜFE'!$D$1:$E$217,2,1) -> 1022.25 | AA171: 0 | AB171: ='DOLDURULMASI GEREKEN TABLO'!M185 -> 0 | AC171: 0 | AD171: 0 | AE171: 0 | AF171: 0 | AG171: 0 | AH171: 0 | AI171: 0 | AK171: YD YAPILABİLİR | AL171: ='DOLDURULMASI GEREKEN TABLO'!O185 -> 0 | AM171: 0 | AN171: ='DOLDURULMASI GEREKEN TABLO'!N185 -> 0 | AO171: 0 | AP171: 0 | AQ171: 0 | AR171: 0 | AS171: 0 | AT171: 0 | AU171: 0 | AV171: 0 | AW171: FALSE | AY171: 2022-12-31 | AZ171: 00:00:00 | BA171: 0 | BB171: 0 | BC171: 0 | BD171: 1 | BE171: 0 | BF171: 0
B172: 166 | C172: ='DOLDURULMASI GEREKEN TABLO'!D186 -> 0 | D172: ='DOLDURULMASI GEREKEN TABLO'!E186 -> 0 | E172: ='DOLDURULMASI GEREKEN TABLO'!F186 -> 0 | F172: 0 | G172: ='DOLDURULMASI GEREKEN TABLO'!G186 -> 00:00:00 | H172: 2021-12-31 | I172: TARİH UYUMLU | J172: ='DOLDURULMASI GEREKEN TABLO'!H186 -> 0 | K172: ='DOLDURULMASI GEREKEN TABLO'!I186 -> 0 | L172: ='DOLDURULMASI GEREKEN TABLO'!J186 -> 0 | M172: 44562 | N172: 0 | O172: 0 | P172: 0 | Q172: 0 | R172: ='DOLDURULMASI GEREKEN TABLO'!K186 -> 0 | S172: ='DOLDURULMASI GEREKEN TABLO'!L186 -> 0 | T172: 0 | U172: 0 | V172: 0 | W172: FALSE | X172: =IFERROR(VLOOKUP(W172,'Aylık Yİ-ÜFE'!$D$1:$E$217,2,0),0) -> 0 | Y172: 2021-12 | Z172: =VLOOKUP(Y172,'Aylık Yİ-ÜFE'!$D$1:$E$217,2,1) -> 1022.25 | AA172: 0 | AB172: ='DOLDURULMASI GEREKEN TABLO'!M186 -> 0 | AC172: 0 | AD172: 0 | AE172: 0 | AF172: 0 | AG172: 0 | AH172: 0 | AI172: 0 | AK172: YD YAPILABİLİR | AL172: ='DOLDURULMASI GEREKEN TABLO'!O186 -> 0 | AM172: 0 | AN172: ='DOLDURULMASI GEREKEN TABLO'!N186 -> 0 | AO172: 0 | AP172: 0 | AQ172: 0 | AR172: 0 | AS172: 0 | AT172: 0 | AU172: 0 | AV172: 0 | AW172: FALSE | AY172: 2022-12-31 | AZ172: 00:00:00 | BA172: 0 | BB172: 0 | BC172: 0 | BD172: 1 | BE172: 0 | BF172: 0
B173: 167 | C173: ='DOLDURULMASI GEREKEN TABLO'!D187 -> 0 | D173: ='DOLDURULMASI GEREKEN TABLO'!E187 -> 0 | E173: ='DOLDURULMASI GEREKEN TABLO'!F187 -> 0 | F173: 0 | G173: ='DOLDURULMASI GEREKEN TABLO'!G187 -> 00:00:00 | H173: 2021-12-31 | I173: TARİH UYUMLU | J173: ='DOLDURULMASI GEREKEN TABLO'!H187 -> 0 | K173: ='DOLDURULMASI GEREKEN TABLO'!I187 -> 0 | L173: ='DOLDURULMASI GEREKEN TABLO'!J187 -> 0 | M173: 44562 | N173: 0 | O173: 0 | P173: 0 | Q173: 0 | R173: ='DOLDURULMASI GEREKEN TABLO'!K187 -> 0 | S173: ='DOLDURULMASI GEREKEN TABLO'!L187 -> 0 | T173: 0 | U173: 0 | V173: 0 | W173: FALSE | X173: =IFERROR(VLOOKUP(W173,'Aylık Yİ-ÜFE'!$D$1:$E$217,2,0),0) -> 0 | Y173: 2021-12 | Z173: =VLOOKUP(Y173,'Aylık Yİ-ÜFE'!$D$1:$E$217,2,1) -> 1022.25 | AA173: 0 | AB173: ='DOLDURULMASI GEREKEN TABLO'!M187 -> 0 | AC173: 0 | AD173: 0 | AE173: 0 | AF173: 0 | AG173: 0 | AH173: 0 | AI173: 0 | AK173: YD YAPILABİLİR | AL173: ='DOLDURULMASI GEREKEN TABLO'!O187 -> 0 | AM173: 0 | AN173: ='DOLDURULMASI GEREKEN TABLO'!N187 -> 0 | AO173: 0 | AP173: 0 | AQ173: 0 | AR173: 0 | AS173: 0 | AT173: 0 | AU173: 0 | AV173: 0 | AW173: FALSE | AY173: 2022-12-31 | AZ173: 00:00:00 | BA173: 0 | BB173: 0 | BC173: 0 | BD173: 1 | BE173: 0 | BF173: 0
B174: 168 | C174: ='DOLDURULMASI GEREKEN TABLO'!D188 -> 0 | D174: ='DOLDURULMASI GEREKEN TABLO'!E188 -> 0 | E174: ='DOLDURULMASI GEREKEN TABLO'!F188 -> 0 | F174: 0 | G174: ='DOLDURULMASI GEREKEN TABLO'!G188 -> 00:00:00 | H174: 2021-12-31 | I174: TARİH UYUMLU | J174: ='DOLDURULMASI GEREKEN TABLO'!H188 -> 0 | K174: ='DOLDURULMASI GEREKEN TABLO'!I188 -> 0 | L174: ='DOLDURULMASI GEREKEN TABLO'!J188 -> 0 | M174: 44562 | N174: 0 | O174: 0 | P174: 0 | Q174: 0 | R174: ='DOLDURULMASI GEREKEN TABLO'!K188 -> 0 | S174: ='DOLDURULMASI GEREKEN TABLO'!L188 -> 0 | T174: 0 | U174: 0 | V174: 0 | W174: FALSE | X174: =IFERROR(VLOOKUP(W174,'Aylık Yİ-ÜFE'!$D$1:$E$217,2,0),0) -> 0 | Y174: 2021-12 | Z174: =VLOOKUP(Y174,'Aylık Yİ-ÜFE'!$D$1:$E$217,2,1) -> 1022.25 | AA174: 0 | AB174: ='DOLDURULMASI GEREKEN TABLO'!M188 -> 0 | AC174: 0 | AD174: 0 | AE174: 0 | AF174: 0 | AG174: 0 | AH174: 0 | AI174: 0 | AK174: YD YAPILABİLİR | AL174: ='DOLDURULMASI GEREKEN TABLO'!O188 -> 0 | AM174: 0 | AN174: ='DOLDURULMASI GEREKEN TABLO'!N188 -> 0 | AO174: 0 | AP174: 0 | AQ174: 0 | AR174: 0 | AS174: 0 | AT174: 0 | AU174: 0 | AV174: 0 | AW174: FALSE | AY174: 2022-12-31 | AZ174: 00:00:00 | BA174: 0 | BB174: 0 | BC174: 0 | BD174: 1 | BE174: 0 | BF174: 0
B175: 169 | C175: ='DOLDURULMASI GEREKEN TABLO'!D189 -> 0 | D175: ='DOLDURULMASI GEREKEN TABLO'!E189 -> 0 | E175: ='DOLDURULMASI GEREKEN TABLO'!F189 -> 0 | F175: 0 | G175: ='DOLDURULMASI GEREKEN TABLO'!G189 -> 00:00:00 | H175: 2021-12-31 | I175: TARİH UYUMLU | J175: ='DOLDURULMASI GEREKEN TABLO'!H189 -> 0 | K175: ='DOLDURULMASI GEREKEN TABLO'!I189 -> 0 | L175: ='DOLDURULMASI GEREKEN TABLO'!J189 -> 0 | M175: 44562 | N175: 0 | O175: 0 | P175: 0 | Q175: 0 | R175: ='DOLDURULMASI GEREKEN TABLO'!K189 -> 0 | S175: ='DOLDURULMASI GEREKEN TABLO'!L189 -> 0 | T175: 0 | U175: 0 | V175: 0 | W175: FALSE | X175: =IFERROR(VLOOKUP(W175,'Aylık Yİ-ÜFE'!$D$1:$E$217,2,0),0) -> 0 | Y175: 2021-12 | Z175: =VLOOKUP(Y175,'Aylık Yİ-ÜFE'!$D$1:$E$217,2,1) -> 1022.25 | AA175: 0 | AB175: ='DOLDURULMASI GEREKEN TABLO'!M189 -> 0 | AC175: 0 | AD175: 0 | AE175: 0 | AF175: 0 | AG175: 0 | AH175: 0 | AI175: 0 | AK175: YD YAPILABİLİR | AL175: ='DOLDURULMASI GEREKEN TABLO'!O189 -> 0 | AM175: 0 | AN175: ='DOLDURULMASI GEREKEN TABLO'!N189 -> 0 | AO175: 0 | AP175: 0 | AQ175: 0 | AR175: 0 | AS175: 0 | AT175: 0 | AU175: 0 | AV175: 0 | AW175: FALSE | AY175: 2022-12-31 | AZ175: 00:00:00 | BA175: 0 | BB175: 0 | BC175: 0 | BD175: 1 | BE175: 0 | BF175: 0
B176: 170 | C176: ='DOLDURULMASI GEREKEN TABLO'!D190 -> 0 | D176: ='DOLDURULMASI GEREKEN TABLO'!E190 -> 0 | E176: ='DOLDURULMASI GEREKEN TABLO'!F190 -> 0 | F176: 0 | G176: ='DOLDURULMASI GEREKEN TABLO'!G190 -> 00:00:00 | H176: 2021-12-31 | I176: TARİH UYUMLU | J176: ='DOLDURULMASI GEREKEN TABLO'!H190 -> 0 | K176: ='DOLDURULMASI GEREKEN TABLO'!I190 -> 0 | L176: ='DOLDURULMASI GEREKEN TABLO'!J190 -> 0 | M176: 44562 | N176: 0 | O176: 0 | P176: 0 | Q176: 0 | R176: ='DOLDURULMASI GEREKEN TABLO'!K190 -> 0 | S176: ='DOLDURULMASI GEREKEN TABLO'!L190 -> 0 | T176: 0 | U176: 0 | V176: 0 | W176: FALSE | X176: =IFERROR(VLOOKUP(W176,'Aylık Yİ-ÜFE'!$D$1:$E$217,2,0),0) -> 0 | Y176: 2021-12 | Z176: =VLOOKUP(Y176,'Aylık Yİ-ÜFE'!$D$1:$E$217,2,1) -> 1022.25 | AA176: 0 | AB176: ='DOLDURULMASI GEREKEN TABLO'!M190 -> 0 | AC176: 0 | AD176: 0 | AE176: 0 | AF176: 0 | AG176: 0 | AH176: 0 | AI176: 0 | AK176: YD YAPILABİLİR | AL176: ='DOLDURULMASI GEREKEN TABLO'!O190 -> 0 | AM176: 0 | AN176: ='DOLDURULMASI GEREKEN TABLO'!N190 -> 0 | AO176: 0 | AP176: 0 | AQ176: 0 | AR176: 0 | AS176: 0 | AT176: 0 | AU176: 0 | AV176: 0 | AW176: FALSE | AY176: 2022-12-31 | AZ176: 00:00:00 | BA176: 0 | BB176: 0 | BC176: 0 | BD176: 1 | BE176: 0 | BF176: 0
B177: 171 | C177: ='DOLDURULMASI GEREKEN TABLO'!D191 -> 0 | D177: ='DOLDURULMASI GEREKEN TABLO'!E191 -> 0 | E177: ='DOLDURULMASI GEREKEN TABLO'!F191 -> 0 | F177: 0 | G177: ='DOLDURULMASI GEREKEN TABLO'!G191 -> 00:00:00 | H177: 2021-12-31 | I177: TARİH UYUMLU | J177: ='DOLDURULMASI GEREKEN TABLO'!H191 -> 0 | K177: ='DOLDURULMASI GEREKEN TABLO'!I191 -> 0 | L177: ='DOLDURULMASI GEREKEN TABLO'!J191 -> 0 | M177: 44562 | N177: 0 | O177: 0 | P177: 0 | Q177: 0 | R177: ='DOLDURULMASI GEREKEN TABLO'!K191 -> 0 | S177: ='DOLDURULMASI GEREKEN TABLO'!L191 -> 0 | T177: 0 | U177: 0 | V177: 0 | W177: FALSE | X177: =IFERROR(VLOOKUP(W177,'Aylık Yİ-ÜFE'!$D$1:$E$217,2,0),0) -> 0 | Y177: 2021-12 | Z177: =VLOOKUP(Y177,'Aylık Yİ-ÜFE'!$D$1:$E$217,2,1) -> 1022.25 | AA177: 0 | AB177: ='DOLDURULMASI GEREKEN TABLO'!M191 -> 0 | AC177: 0 | AD177: 0 | AE177: 0 | AF177: 0 | AG177: 0 | AH177: 0 | AI177: 0 | AK177: YD YAPILABİLİR | AL177: ='DOLDURULMASI GEREKEN TABLO'!O191 -> 0 | AM177: 0 | AN177: ='DOLDURULMASI GEREKEN TABLO'!N191 -> 0 | AO177: 0 | AP177: 0 | AQ177: 0 | AR177: 0 | AS177: 0 | AT177: 0 | AU177: 0 | AV177: 0 | AW177: FALSE | AY177: 2022-12-31 | AZ177: 00:00:00 | BA177: 0 | BB177: 0 | BC177: 0 | BD177: 1 | BE177: 0 | BF177: 0
B178: 172 | C178: ='DOLDURULMASI GEREKEN TABLO'!D192 -> 0 | D178: ='DOLDURULMASI GEREKEN TABLO'!E192 -> 0 | E178: ='DOLDURULMASI GEREKEN TABLO'!F192 -> 0 | F178: 0 | G178: ='DOLDURULMASI GEREKEN TABLO'!G192 -> 00:00:00 | H178: 2021-12-31 | I178: TARİH UYUMLU | J178: ='DOLDURULMASI GEREKEN TABLO'!H192 -> 0 | K178: ='DOLDURULMASI GEREKEN TABLO'!I192 -> 0 | L178: ='DOLDURULMASI GEREKEN TABLO'!J192 -> 0 | M178: 44562 | N178: 0 | O178: 0 | P178: 0 | Q178: 0 | R178: ='DOLDURULMASI GEREKEN TABLO'!K192 -> 0 | S178: ='DOLDURULMASI GEREKEN TABLO'!L192 -> 0 | T178: 0 | U178: 0 | V178: 0 | W178: FALSE | X178: =IFERROR(VLOOKUP(W178,'Aylık Yİ-ÜFE'!$D$1:$E$217,2,0),0) -> 0 | Y178: 2021-12 | Z178: =VLOOKUP(Y178,'Aylık Yİ-ÜFE'!$D$1:$E$217,2,1) -> 1022.25 | AA178: 0 | AB178: ='DOLDURULMASI GEREKEN TABLO'!M192 -> 0 | AC178: 0 | AD178: 0 | AE178: 0 | AF178: 0 | AG178: 0 | AH178: 0 | AI178: 0 | AK178: YD YAPILABİLİR | AL178: ='DOLDURULMASI GEREKEN TABLO'!O192 -> 0 | AM178: 0 | AN178: ='DOLDURULMASI GEREKEN TABLO'!N192 -> 0 | AO178: 0 | AP178: 0 | AQ178: 0 | AR178: 0 | AS178: 0 | AT178: 0 | AU178: 0 | AV178: 0 | AW178: FALSE | AY178: 2022-12-31 | AZ178: 00:00:00 | BA178: 0 | BB178: 0 | BC178: 0 | BD178: 1 | BE178: 0 | BF178: 0
B179: 173 | C179: ='DOLDURULMASI GEREKEN TABLO'!D193 -> 0 | D179: ='DOLDURULMASI GEREKEN TABLO'!E193 -> 0 | E179: ='DOLDURULMASI GEREKEN TABLO'!F193 -> 0 | F179: 0 | G179: ='DOLDURULMASI GEREKEN TABLO'!G193 -> 00:00:00 | H179: 2021-12-31 | I179: TARİH UYUMLU | J179: ='DOLDURULMASI GEREKEN TABLO'!H193 -> 0 | K179: ='DOLDURULMASI GEREKEN TABLO'!I193 -> 0 | L179: ='DOLDURULMASI GEREKEN TABLO'!J193 -> 0 | M179: 44562 | N179: 0 | O179: 0 | P179: 0 | Q179: 0 | R179: ='DOLDURULMASI GEREKEN TABLO'!K193 -> 0 | S179: ='DOLDURULMASI GEREKEN TABLO'!L193 -> 0 | T179: 0 | U179: 0 | V179: 0 | W179: FALSE | X179: =IFERROR(VLOOKUP(W179,'Aylık Yİ-ÜFE'!$D$1:$E$217,2,0),0) -> 0 | Y179: 2021-12 | Z179: =VLOOKUP(Y179,'Aylık Yİ-ÜFE'!$D$1:$E$217,2,1) -> 1022.25 | AA179: 0 | AB179: ='DOLDURULMASI GEREKEN TABLO'!M193 -> 0 | AC179: 0 | AD179: 0 | AE179: 0 | AF179: 0 | AG179: 0 | AH179: 0 | AI179: 0 | AK179: YD YAPILABİLİR | AL179: ='DOLDURULMASI GEREKEN TABLO'!O193 -> 0 | AM179: 0 | AN179: ='DOLDURULMASI GEREKEN TABLO'!N193 -> 0 | AO179: 0 | AP179: 0 | AQ179: 0 | AR179: 0 | AS179: 0 | AT179: 0 | AU179: 0 | AV179: 0 | AW179: FALSE | AY179: 2022-12-31 | AZ179: 00:00:00 | BA179: 0 | BB179: 0 | BC179: 0 | BD179: 1 | BE179: 0 | BF179: 0
B180: 174 | C180: ='DOLDURULMASI GEREKEN TABLO'!D194 -> 0 | D180: ='DOLDURULMASI GEREKEN TABLO'!E194 -> 0 | E180: ='DOLDURULMASI GEREKEN TABLO'!F194 -> 0 | F180: 0 | G180: ='DOLDURULMASI GEREKEN TABLO'!G194 -> 00:00:00 | H180: 2021-12-31 | I180: TARİH UYUMLU | J180: ='DOLDURULMASI GEREKEN TABLO'!H194 -> 0 | K180: ='DOLDURULMASI GEREKEN TABLO'!I194 -> 0 | L180: ='DOLDURULMASI GEREKEN TABLO'!J194 -> 0 | M180: 44562 | N180: 0 | O180: 0 | P180: 0 | Q180: 0 | R180: ='DOLDURULMASI GEREKEN TABLO'!K194 -> 0 | S180: ='DOLDURULMASI GEREKEN TABLO'!L194 -> 0 | T180: 0 | U180: 0 | V180: 0 | W180: FALSE | X180: =IFERROR(VLOOKUP(W180,'Aylık Yİ-ÜFE'!$D$1:$E$217,2,0),0) -> 0 | Y180: 2021-12 | Z180: =VLOOKUP(Y180,'Aylık Yİ-ÜFE'!$D$1:$E$217,2,1) -> 1022.25 | AA180: 0 | AB180: ='DOLDURULMASI GEREKEN TABLO'!M194 -> 0 | AC180: 0 | AD180: 0 | AE180: 0 | AF180: 0 | AG180: 0 | AH180: 0 | AI180: 0 | AK180: YD YAPILABİLİR | AL180: ='DOLDURULMASI GEREKEN TABLO'!O194 -> 0 | AM180: 0 | AN180: ='DOLDURULMASI GEREKEN TABLO'!N194 -> 0 | AO180: 0 | AP180: 0 | AQ180: 0 | AR180: 0 | AS180: 0 | AT180: 0 | AU180: 0 | AV180: 0 | AW180: FALSE | AY180: 2022-12-31 | AZ180: 00:00:00 | BA180: 0 | BB180: 0 | BC180: 0 | BD180: 1 | BE180: 0 | BF180: 0
B181: 175 | C181: ='DOLDURULMASI GEREKEN TABLO'!D195 -> 0 | D181: ='DOLDURULMASI GEREKEN TABLO'!E195 -> 0 | E181: ='DOLDURULMASI GEREKEN TABLO'!F195 -> 0 | F181: 0 | G181: ='DOLDURULMASI GEREKEN TABLO'!G195 -> 00:00:00 | H181: 2021-12-31 | I181: TARİH UYUMLU | J181: ='DOLDURULMASI GEREKEN TABLO'!H195 -> 0 | K181: ='DOLDURULMASI GEREKEN TABLO'!I195 -> 0 | L181: ='DOLDURULMASI GEREKEN TABLO'!J195 -> 0 | M181: 44562 | N181: 0 | O181: 0 | P181: 0 | Q181: 0 | R181: ='DOLDURULMASI GEREKEN TABLO'!K195 -> 0 | S181: ='DOLDURULMASI GEREKEN TABLO'!L195 -> 0 | T181: 0 | U181: 0 | V181: 0 | W181: FALSE | X181: =IFERROR(VLOOKUP(W181,'Aylık Yİ-ÜFE'!$D$1:$E$217,2,0),0) -> 0 | Y181: 2021-12 | Z181: =VLOOKUP(Y181,'Aylık Yİ-ÜFE'!$D$1:$E$217,2,1) -> 1022.25 | AA181: 0 | AB181: ='DOLDURULMASI GEREKEN TABLO'!M195 -> 0 | AC181: 0 | AD181: 0 | AE181: 0 | AF181: 0 | AG181: 0 | AH181: 0 | AI181: 0 | AK181: YD YAPILABİLİR | AL181: ='DOLDURULMASI GEREKEN TABLO'!O195 -> 0 | AM181: 0 | AN181: ='DOLDURULMASI GEREKEN TABLO'!N195 -> 0 | AO181: 0 | AP181: 0 | AQ181: 0 | AR181: 0 | AS181: 0 | AT181: 0 | AU181: 0 | AV181: 0 | AW181: FALSE | AY181: 2022-12-31 | AZ181: 00:00:00 | BA181: 0 | BB181: 0 | BC181: 0 | BD181: 1 | BE181: 0 | BF181: 0
B182: 176 | C182: ='DOLDURULMASI GEREKEN TABLO'!D196 -> 0 | D182: ='DOLDURULMASI GEREKEN TABLO'!E196 -> 0 | E182: ='DOLDURULMASI GEREKEN TABLO'!F196 -> 0 | F182: 0 | G182: ='DOLDURULMASI GEREKEN TABLO'!G196 -> 00:00:00 | H182: 2021-12-31 | I182: TARİH UYUMLU | J182: ='DOLDURULMASI GEREKEN TABLO'!H196 -> 0 | K182: ='DOLDURULMASI GEREKEN TABLO'!I196 -> 0 | L182: ='DOLDURULMASI GEREKEN TABLO'!J196 -> 0 | M182: 44562 | N182: 0 | O182: 0 | P182: 0 | Q182: 0 | R182: ='DOLDURULMASI GEREKEN TABLO'!K196 -> 0 | S182: ='DOLDURULMASI GEREKEN TABLO'!L196 -> 0 | T182: 0 | U182: 0 | V182: 0 | W182: FALSE | X182: =IFERROR(VLOOKUP(W182,'Aylık Yİ-ÜFE'!$D$1:$E$217,2,0),0) -> 0 | Y182: 2021-12 | Z182: =VLOOKUP(Y182,'Aylık Yİ-ÜFE'!$D$1:$E$217,2,1) -> 1022.25 | AA182: 0 | AB182: ='DOLDURULMASI GEREKEN TABLO'!M196 -> 0 | AC182: 0 | AD182: 0 | AE182: 0 | AF182: 0 | AG182: 0 | AH182: 0 | AI182: 0 | AK182: YD YAPILABİLİR | AL182: ='DOLDURULMASI GEREKEN TABLO'!O196 -> 0 | AM182: 0 | AN182: ='DOLDURULMASI GEREKEN TABLO'!N196 -> 0 | AO182: 0 | AP182: 0 | AQ182: 0 | AR182: 0 | AS182: 0 | AT182: 0 | AU182: 0 | AV182: 0 | AW182: FALSE | AY182: 2022-12-31 | AZ182: 00:00:00 | BA182: 0 | BB182: 0 | BC182: 0 | BD182: 1 | BE182: 0 | BF182: 0
B183: 177 | C183: ='DOLDURULMASI GEREKEN TABLO'!D197 -> 0 | D183: ='DOLDURULMASI GEREKEN TABLO'!E197 -> 0 | E183: ='DOLDURULMASI GEREKEN TABLO'!F197 -> 0 | F183: 0 | G183: ='DOLDURULMASI GEREKEN TABLO'!G197 -> 00:00:00 | H183: 2021-12-31 | I183: TARİH UYUMLU | J183: ='DOLDURULMASI GEREKEN TABLO'!H197 -> 0 | K183: ='DOLDURULMASI GEREKEN TABLO'!I197 -> 0 | L183: ='DOLDURULMASI GEREKEN TABLO'!J197 -> 0 | M183: 44562 | N183: 0 | O183: 0 | P183: 0 | Q183: 0 | R183: ='DOLDURULMASI GEREKEN TABLO'!K197 -> 0 | S183: ='DOLDURULMASI GEREKEN TABLO'!L197 -> 0 | T183: 0 | U183: 0 | V183: 0 | W183: FALSE | X183: =IFERROR(VLOOKUP(W183,'Aylık Yİ-ÜFE'!$D$1:$E$217,2,0),0) -> 0 | Y183: 2021-12 | Z183: =VLOOKUP(Y183,'Aylık Yİ-ÜFE'!$D$1:$E$217,2,1) -> 1022.25 | AA183: 0 | AB183: ='DOLDURULMASI GEREKEN TABLO'!M197 -> 0 | AC183: 0 | AD183: 0 | AE183: 0 | AF183: 0 | AG183: 0 | AH183: 0 | AI183: 0 | AK183: YD YAPILABİLİR | AL183: ='DOLDURULMASI GEREKEN TABLO'!O197 -> 0 | AM183: 0 | AN183: ='DOLDURULMASI GEREKEN TABLO'!N197 -> 0 | AO183: 0 | AP183: 0 | AQ183: 0 | AR183: 0 | AS183: 0 | AT183: 0 | AU183: 0 | AV183: 0 | AW183: FALSE | AY183: 2022-12-31 | AZ183: 00:00:00 | BA183: 0 | BB183: 0 | BC183: 0 | BD183: 1 | BE183: 0 | BF183: 0
B184: 178 | C184: ='DOLDURULMASI GEREKEN TABLO'!D198 -> 0 | D184: ='DOLDURULMASI GEREKEN TABLO'!E198 -> 0 | E184: ='DOLDURULMASI GEREKEN TABLO'!F198 -> 0 | F184: 0 | G184: ='DOLDURULMASI GEREKEN TABLO'!G198 -> 00:00:00 | H184: 2021-12-31 | I184: TARİH UYUMLU | J184: ='DOLDURULMASI GEREKEN TABLO'!H198 -> 0 | K184: ='DOLDURULMASI GEREKEN TABLO'!I198 -> 0 | L184: ='DOLDURULMASI GEREKEN TABLO'!J198 -> 0 | M184: 44562 | N184: 0 | O184: 0 | P184: 0 | Q184: 0 | R184: ='DOLDURULMASI GEREKEN TABLO'!K198 -> 0 | S184: ='DOLDURULMASI GEREKEN TABLO'!L198 -> 0 | T184: 0 | U184: 0 | V184: 0 | W184: FALSE | X184: =IFERROR(VLOOKUP(W184,'Aylık Yİ-ÜFE'!$D$1:$E$217,2,0),0) -> 0 | Y184: 2021-12 | Z184: =VLOOKUP(Y184,'Aylık Yİ-ÜFE'!$D$1:$E$217,2,1) -> 1022.25 | AA184: 0 | AB184: ='DOLDURULMASI GEREKEN TABLO'!M198 -> 0 | AC184: 0 | AD184: 0 | AE184: 0 | AF184: 0 | AG184: 0 | AH184: 0 | AI184: 0 | AK184: YD YAPILABİLİR | AL184: ='DOLDURULMASI GEREKEN TABLO'!O198 -> 0 | AM184: 0 | AN184: ='DOLDURULMASI GEREKEN TABLO'!N198 -> 0 | AO184: 0 | AP184: 0 | AQ184: 0 | AR184: 0 | AS184: 0 | AT184: 0 | AU184: 0 | AV184: 0 | AW184: FALSE | AY184: 2022-12-31 | AZ184: 00:00:00 | BA184: 0 | BB184: 0 | BC184: 0 | BD184: 1 | BE184: 0 | BF184: 0
B185: 179 | C185: ='DOLDURULMASI GEREKEN TABLO'!D199 -> 0 | D185: ='DOLDURULMASI GEREKEN TABLO'!E199 -> 0 | E185: ='DOLDURULMASI GEREKEN TABLO'!F199 -> 0 | F185: 0 | G185: ='DOLDURULMASI GEREKEN TABLO'!G199 -> 00:00:00 | H185: 2021-12-31 | I185: TARİH UYUMLU | J185: ='DOLDURULMASI GEREKEN TABLO'!H199 -> 0 | K185: ='DOLDURULMASI GEREKEN TABLO'!I199 -> 0 | L185: ='DOLDURULMASI GEREKEN TABLO'!J199 -> 0 | M185: 44562 | N185: 0 | O185: 0 | P185: 0 | Q185: 0 | R185: ='DOLDURULMASI GEREKEN TABLO'!K199 -> 0 | S185: ='DOLDURULMASI GEREKEN TABLO'!L199 -> 0 | T185: 0 | U185: 0 | V185: 0 | W185: FALSE | X185: =IFERROR(VLOOKUP(W185,'Aylık Yİ-ÜFE'!$D$1:$E$217,2,0),0) -> 0 | Y185: 2021-12 | Z185: =VLOOKUP(Y185,'Aylık Yİ-ÜFE'!$D$1:$E$217,2,1) -> 1022.25 | AA185: 0 | AB185: ='DOLDURULMASI GEREKEN TABLO'!M199 -> 0 | AC185: 0 | AD185: 0 | AE185: 0 | AF185: 0 | AG185: 0 | AH185: 0 | AI185: 0 | AK185: YD YAPILABİLİR | AL185: ='DOLDURULMASI GEREKEN TABLO'!O199 -> 0 | AM185: 0 | AN185: ='DOLDURULMASI GEREKEN TABLO'!N199 -> 0 | AO185: 0 | AP185: 0 | AQ185: 0 | AR185: 0 | AS185: 0 | AT185: 0 | AU185: 0 | AV185: 0 | AW185: FALSE | AY185: 2022-12-31 | AZ185: 00:00:00 | BA185: 0 | BB185: 0 | BC185: 0 | BD185: 1 | BE185: 0 | BF185: 0
B186: 180 | C186: ='DOLDURULMASI GEREKEN TABLO'!D200 -> 0 | D186: ='DOLDURULMASI GEREKEN TABLO'!E200 -> 0 | E186: ='DOLDURULMASI GEREKEN TABLO'!F200 -> 0 | F186: 0 | G186: ='DOLDURULMASI GEREKEN TABLO'!G200 -> 00:00:00 | H186: 2021-12-31 | I186: TARİH UYUMLU | J186: ='DOLDURULMASI GEREKEN TABLO'!H200 -> 0 | K186: ='DOLDURULMASI GEREKEN TABLO'!I200 -> 0 | L186: ='DOLDURULMASI GEREKEN TABLO'!J200 -> 0 | M186: 44562 | N186: 0 | O186: 0 | P186: 0 | Q186: 0 | R186: ='DOLDURULMASI GEREKEN TABLO'!K200 -> 0 | S186: ='DOLDURULMASI GEREKEN TABLO'!L200 -> 0 | T186: 0 | U186: 0 | V186: 0 | W186: FALSE | X186: =IFERROR(VLOOKUP(W186,'Aylık Yİ-ÜFE'!$D$1:$E$217,2,0),0) -> 0 | Y186: 2021-12 | Z186: =VLOOKUP(Y186,'Aylık Yİ-ÜFE'!$D$1:$E$217,2,1) -> 1022.25 | AA186: 0 | AB186: ='DOLDURULMASI GEREKEN TABLO'!M200 -> 0 | AC186: 0 | AD186: 0 | AE186: 0 | AF186: 0 | AG186: 0 | AH186: 0 | AI186: 0 | AK186: YD YAPILABİLİR | AL186: ='DOLDURULMASI GEREKEN TABLO'!O200 -> 0 | AM186: 0 | AN186: ='DOLDURULMASI GEREKEN TABLO'!N200 -> 0 | AO186: 0 | AP186: 0 | AQ186: 0 | AR186: 0 | AS186: 0 | AT186: 0 | AU186: 0 | AV186: 0 | AW186: FALSE | AY186: 2022-12-31 | AZ186: 00:00:00 | BA186: 0 | BB186: 0 | BC186: 0 | BD186: 1 | BE186: 0 | BF186: 0
B187: 181 | C187: ='DOLDURULMASI GEREKEN TABLO'!D201 -> 0 | D187: ='DOLDURULMASI GEREKEN TABLO'!E201 -> 0 | E187: ='DOLDURULMASI GEREKEN TABLO'!F201 -> 0 | F187: 0 | G187: ='DOLDURULMASI GEREKEN TABLO'!G201 -> 00:00:00 | H187: 2021-12-31 | I187: TARİH UYUMLU | J187: ='DOLDURULMASI GEREKEN TABLO'!H201 -> 0 | K187: ='DOLDURULMASI GEREKEN TABLO'!I201 -> 0 | L187: ='DOLDURULMASI GEREKEN TABLO'!J201 -> 0 | M187: 44562 | N187: 0 | O187: 0 | P187: 0 | Q187: 0 | R187: ='DOLDURULMASI GEREKEN TABLO'!K201 -> 0 | S187: ='DOLDURULMASI GEREKEN TABLO'!L201 -> 0 | T187: 0 | U187: 0 | V187: 0 | W187: FALSE | X187: =IFERROR(VLOOKUP(W187,'Aylık Yİ-ÜFE'!$D$1:$E$217,2,0),0) -> 0 | Y187: 2021-12 | Z187: =VLOOKUP(Y187,'Aylık Yİ-ÜFE'!$D$1:$E$217,2,1) -> 1022.25 | AA187: 0 | AB187: ='DOLDURULMASI GEREKEN TABLO'!M201 -> 0 | AC187: 0 | AD187: 0 | AE187: 0 | AF187: 0 | AG187: 0 | AH187: 0 | AI187: 0 | AK187: YD YAPILABİLİR | AL187: ='DOLDURULMASI GEREKEN TABLO'!O201 -> 0 | AM187: 0 | AN187: ='DOLDURULMASI GEREKEN TABLO'!N201 -> 0 | AO187: 0 | AP187: 0 | AQ187: 0 | AR187: 0 | AS187: 0 | AT187: 0 | AU187: 0 | AV187: 0 | AW187: FALSE | AY187: 2022-12-31 | AZ187: 00:00:00 | BA187: 0 | BB187: 0 | BC187: 0 | BD187: 1 | BE187: 0 | BF187: 0
B188: 182 | C188: ='DOLDURULMASI GEREKEN TABLO'!D202 -> 0 | D188: ='DOLDURULMASI GEREKEN TABLO'!E202 -> 0 | E188: ='DOLDURULMASI GEREKEN TABLO'!F202 -> 0 | F188: 0 | G188: ='DOLDURULMASI GEREKEN TABLO'!G202 -> 00:00:00 | H188: 2021-12-31 | I188: TARİH UYUMLU | J188: ='DOLDURULMASI GEREKEN TABLO'!H202 -> 0 | K188: ='DOLDURULMASI GEREKEN TABLO'!I202 -> 0 | L188: ='DOLDURULMASI GEREKEN TABLO'!J202 -> 0 | M188: 44562 | N188: 0 | O188: 0 | P188: 0 | Q188: 0 | R188: ='DOLDURULMASI GEREKEN TABLO'!K202 -> 0 | S188: ='DOLDURULMASI GEREKEN TABLO'!L202 -> 0 | T188: 0 | U188: 0 | V188: 0 | W188: FALSE | X188: =IFERROR(VLOOKUP(W188,'Aylık Yİ-ÜFE'!$D$1:$E$217,2,0),0) -> 0 | Y188: 2021-12 | Z188: =VLOOKUP(Y188,'Aylık Yİ-ÜFE'!$D$1:$E$217,2,1) -> 1022.25 | AA188: 0 | AB188: ='DOLDURULMASI GEREKEN TABLO'!M202 -> 0 | AC188: 0 | AD188: 0 | AE188: 0 | AF188: 0 | AG188: 0 | AH188: 0 | AI188: 0 | AK188: YD YAPILABİLİR | AL188: ='DOLDURULMASI GEREKEN TABLO'!O202 -> 0 | AM188: 0 | AN188: ='DOLDURULMASI GEREKEN TABLO'!N202 -> 0 | AO188: 0 | AP188: 0 | AQ188: 0 | AR188: 0 | AS188: 0 | AT188: 0 | AU188: 0 | AV188: 0 | AW188: FALSE | AY188: 2022-12-31 | AZ188: 00:00:00 | BA188: 0 | BB188: 0 | BC188: 0 | BD188: 1 | BE188: 0 | BF188: 0
B189: 183 | C189: ='DOLDURULMASI GEREKEN TABLO'!D203 -> 0 | D189: ='DOLDURULMASI GEREKEN TABLO'!E203 -> 0 | E189: ='DOLDURULMASI GEREKEN TABLO'!F203 -> 0 | F189: 0 | G189: ='DOLDURULMASI GEREKEN TABLO'!G203 -> 00:00:00 | H189: 2021-12-31 | I189: TARİH UYUMLU | J189: ='DOLDURULMASI GEREKEN TABLO'!H203 -> 0 | K189: ='DOLDURULMASI GEREKEN TABLO'!I203 -> 0 | L189: ='DOLDURULMASI GEREKEN TABLO'!J203 -> 0 | M189: 44562 | N189: 0 | O189: 0 | P189: 0 | Q189: 0 | R189: ='DOLDURULMASI GEREKEN TABLO'!K203 -> 0 | S189: ='DOLDURULMASI GEREKEN TABLO'!L203 -> 0 | T189: 0 | U189: 0 | V189: 0 | W189: FALSE | X189: =IFERROR(VLOOKUP(W189,'Aylık Yİ-ÜFE'!$D$1:$E$217,2,0),0) -> 0 | Y189: 2021-12 | Z189: =VLOOKUP(Y189,'Aylık Yİ-ÜFE'!$D$1:$E$217,2,1) -> 1022.25 | AA189: 0 | AB189: ='DOLDURULMASI GEREKEN TABLO'!M203 -> 0 | AC189: 0 | AD189: 0 | AE189: 0 | AF189: 0 | AG189: 0 | AH189: 0 | AI189: 0 | AK189: YD YAPILABİLİR | AL189: ='DOLDURULMASI GEREKEN TABLO'!O203 -> 0 | AM189: 0 | AN189: ='DOLDURULMASI GEREKEN TABLO'!N203 -> 0 | AO189: 0 | AP189: 0 | AQ189: 0 | AR189: 0 | AS189: 0 | AT189: 0 | AU189: 0 | AV189: 0 | AW189: FALSE | AY189: 2022-12-31 | AZ189: 00:00:00 | BA189: 0 | BB189: 0 | BC189: 0 | BD189: 1 | BE189: 0 | BF189: 0
B190: 184 | C190: ='DOLDURULMASI GEREKEN TABLO'!D204 -> 0 | D190: ='DOLDURULMASI GEREKEN TABLO'!E204 -> 0 | E190: ='DOLDURULMASI GEREKEN TABLO'!F204 -> 0 | F190: 0 | G190: ='DOLDURULMASI GEREKEN TABLO'!G204 -> 00:00:00 | H190: 2021-12-31 | I190: TARİH UYUMLU | J190: ='DOLDURULMASI GEREKEN TABLO'!H204 -> 0 | K190: ='DOLDURULMASI GEREKEN TABLO'!I204 -> 0 | L190: ='DOLDURULMASI GEREKEN TABLO'!J204 -> 0 | M190: 44562 | N190: 0 | O190: 0 | P190: 0 | Q190: 0 | R190: ='DOLDURULMASI GEREKEN TABLO'!K204 -> 0 | S190: ='DOLDURULMASI GEREKEN TABLO'!L204 -> 0 | T190: 0 | U190: 0 | V190: 0 | W190: FALSE | X190: =IFERROR(VLOOKUP(W190,'Aylık Yİ-ÜFE'!$D$1:$E$217,2,0),0) -> 0 | Y190: 2021-12 | Z190: =VLOOKUP(Y190,'Aylık Yİ-ÜFE'!$D$1:$E$217,2,1) -> 1022.25 | AA190: 0 | AB190: ='DOLDURULMASI GEREKEN TABLO'!M204 -> 0 | AC190: 0 | AD190: 0 | AE190: 0 | AF190: 0 | AG190: 0 | AH190: 0 | AI190: 0 | AK190: YD YAPILABİLİR | AL190: ='DOLDURULMASI GEREKEN TABLO'!O204 -> 0 | AM190: 0 | AN190: ='DOLDURULMASI GEREKEN TABLO'!N204 -> 0 | AO190: 0 | AP190: 0 | AQ190: 0 | AR190: 0 | AS190: 0 | AT190: 0 | AU190: 0 | AV190: 0 | AW190: FALSE | AY190: 2022-12-31 | AZ190: 00:00:00 | BA190: 0 | BB190: 0 | BC190: 0 | BD190: 1 | BE190: 0 | BF190: 0
B191: 185 | C191: ='DOLDURULMASI GEREKEN TABLO'!D205 -> 0 | D191: ='DOLDURULMASI GEREKEN TABLO'!E205 -> 0 | E191: ='DOLDURULMASI GEREKEN TABLO'!F205 -> 0 | F191: 0 | G191: ='DOLDURULMASI GEREKEN TABLO'!G205 -> 00:00:00 | H191: 2021-12-31 | I191: TARİH UYUMLU | J191: ='DOLDURULMASI GEREKEN TABLO'!H205 -> 0 | K191: ='DOLDURULMASI GEREKEN TABLO'!I205 -> 0 | L191: ='DOLDURULMASI GEREKEN TABLO'!J205 -> 0 | M191: 44562 | N191: 0 | O191: 0 | P191: 0 | Q191: 0 | R191: ='DOLDURULMASI GEREKEN TABLO'!K205 -> 0 | S191: ='DOLDURULMASI GEREKEN TABLO'!L205 -> 0 | T191: 0 | U191: 0 | V191: 0 | W191: FALSE | X191: =IFERROR(VLOOKUP(W191,'Aylık Yİ-ÜFE'!$D$1:$E$217,2,0),0) -> 0 | Y191: 2021-12 | Z191: =VLOOKUP(Y191,'Aylık Yİ-ÜFE'!$D$1:$E$217,2,1) -> 1022.25 | AA191: 0 | AB191: ='DOLDURULMASI GEREKEN TABLO'!M205 -> 0 | AC191: 0 | AD191: 0 | AE191: 0 | AF191: 0 | AG191: 0 | AH191: 0 | AI191: 0 | AK191: YD YAPILABİLİR | AL191: ='DOLDURULMASI GEREKEN TABLO'!O205 -> 0 | AM191: 0 | AN191: ='DOLDURULMASI GEREKEN TABLO'!N205 -> 0 | AO191: 0 | AP191: 0 | AQ191: 0 | AR191: 0 | AS191: 0 | AT191: 0 | AU191: 0 | AV191: 0 | AW191: FALSE | AY191: 2022-12-31 | AZ191: 00:00:00 | BA191: 0 | BB191: 0 | BC191: 0 | BD191: 1 | BE191: 0 | BF191: 0
B192: 186 | C192: ='DOLDURULMASI GEREKEN TABLO'!D206 -> 0 | D192: ='DOLDURULMASI GEREKEN TABLO'!E206 -> 0 | E192: ='DOLDURULMASI GEREKEN TABLO'!F206 -> 0 | F192: 0 | G192: ='DOLDURULMASI GEREKEN TABLO'!G206 -> 00:00:00 | H192: 2021-12-31 | I192: TARİH UYUMLU | J192: ='DOLDURULMASI GEREKEN TABLO'!H206 -> 0 | K192: ='DOLDURULMASI GEREKEN TABLO'!I206 -> 0 | L192: ='DOLDURULMASI GEREKEN TABLO'!J206 -> 0 | M192: 44562 | N192: 0 | O192: 0 | P192: 0 | Q192: 0 | R192: ='DOLDURULMASI GEREKEN TABLO'!K206 -> 0 | S192: ='DOLDURULMASI GEREKEN TABLO'!L206 -> 0 | T192: 0 | U192: 0 | V192: 0 | W192: FALSE | X192: =IFERROR(VLOOKUP(W192,'Aylık Yİ-ÜFE'!$D$1:$E$217,2,0),0) -> 0 | Y192: 2021-12 | Z192: =VLOOKUP(Y192,'Aylık Yİ-ÜFE'!$D$1:$E$217,2,1) -> 1022.25 | AA192: 0 | AB192: ='DOLDURULMASI GEREKEN TABLO'!M206 -> 0 | AC192: 0 | AD192: 0 | AE192: 0 | AF192: 0 | AG192: 0 | AH192: 0 | AI192: 0 | AK192: YD YAPILABİLİR | AL192: ='DOLDURULMASI GEREKEN TABLO'!O206 -> 0 | AM192: 0 | AN192: ='DOLDURULMASI GEREKEN TABLO'!N206 -> 0 | AO192: 0 | AP192: 0 | AQ192: 0 | AR192: 0 | AS192: 0 | AT192: 0 | AU192: 0 | AV192: 0 | AW192: FALSE | AY192: 2022-12-31 | AZ192: 00:00:00 | BA192: 0 | BB192: 0 | BC192: 0 | BD192: 1 | BE192: 0 | BF192: 0
B193: 187 | C193: ='DOLDURULMASI GEREKEN TABLO'!D207 -> 0 | D193: ='DOLDURULMASI GEREKEN TABLO'!E207 -> 0 | E193: ='DOLDURULMASI GEREKEN TABLO'!F207 -> 0 | F193: 0 | G193: ='DOLDURULMASI GEREKEN TABLO'!G207 -> 00:00:00 | H193: 2021-12-31 | I193: TARİH UYUMLU | J193: ='DOLDURULMASI GEREKEN TABLO'!H207 -> 0 | K193: ='DOLDURULMASI GEREKEN TABLO'!I207 -> 0 | L193: ='DOLDURULMASI GEREKEN TABLO'!J207 -> 0 | M193: 44562 | N193: 0 | O193: 0 | P193: 0 | Q193: 0 | R193: ='DOLDURULMASI GEREKEN TABLO'!K207 -> 0 | S193: ='DOLDURULMASI GEREKEN TABLO'!L207 -> 0 | T193: 0 | U193: 0 | V193: 0 | W193: FALSE | X193: =IFERROR(VLOOKUP(W193,'Aylık Yİ-ÜFE'!$D$1:$E$217,2,0),0) -> 0 | Y193: 2021-12 | Z193: =VLOOKUP(Y193,'Aylık Yİ-ÜFE'!$D$1:$E$217,2,1) -> 1022.25 | AA193: 0 | AB193: ='DOLDURULMASI GEREKEN TABLO'!M207 -> 0 | AC193: 0 | AD193: 0 | AE193: 0 | AF193: 0 | AG193: 0 | AH193: 0 | AI193: 0 | AK193: YD YAPILABİLİR | AL193: ='DOLDURULMASI GEREKEN TABLO'!O207 -> 0 | AM193: 0 | AN193: ='DOLDURULMASI GEREKEN TABLO'!N207 -> 0 | AO193: 0 | AP193: 0 | AQ193: 0 | AR193: 0 | AS193: 0 | AT193: 0 | AU193: 0 | AV193: 0 | AW193: FALSE | AY193: 2022-12-31 | AZ193: 00:00:00 | BA193: 0 | BB193: 0 | BC193: 0 | BD193: 1 | BE193: 0 | BF193: 0
B194: 188 | C194: ='DOLDURULMASI GEREKEN TABLO'!D208 -> 0 | D194: ='DOLDURULMASI GEREKEN TABLO'!E208 -> 0 | E194: ='DOLDURULMASI GEREKEN TABLO'!F208 -> 0 | F194: 0 | G194: ='DOLDURULMASI GEREKEN TABLO'!G208 -> 00:00:00 | H194: 2021-12-31 | I194: TARİH UYUMLU | J194: ='DOLDURULMASI GEREKEN TABLO'!H208 -> 0 | K194: ='DOLDURULMASI GEREKEN TABLO'!I208 -> 0 | L194: ='DOLDURULMASI GEREKEN TABLO'!J208 -> 0 | M194: 44562 | N194: 0 | O194: 0 | P194: 0 | Q194: 0 | R194: ='DOLDURULMASI GEREKEN TABLO'!K208 -> 0 | S194: ='DOLDURULMASI GEREKEN TABLO'!L208 -> 0 | T194: 0 | U194: 0 | V194: 0 | W194: FALSE | X194: =IFERROR(VLOOKUP(W194,'Aylık Yİ-ÜFE'!$D$1:$E$217,2,0),0) -> 0 | Y194: 2021-12 | Z194: =VLOOKUP(Y194,'Aylık Yİ-ÜFE'!$D$1:$E$217,2,1) -> 1022.25 | AA194: 0 | AB194: ='DOLDURULMASI GEREKEN TABLO'!M208 -> 0 | AC194: 0 | AD194: 0 | AE194: 0 | AF194: 0 | AG194: 0 | AH194: 0 | AI194: 0 | AK194: YD YAPILABİLİR | AL194: ='DOLDURULMASI GEREKEN TABLO'!O208 -> 0 | AM194: 0 | AN194: ='DOLDURULMASI GEREKEN TABLO'!N208 -> 0 | AO194: 0 | AP194: 0 | AQ194: 0 | AR194: 0 | AS194: 0 | AT194: 0 | AU194: 0 | AV194: 0 | AW194: FALSE | AY194: 2022-12-31 | AZ194: 00:00:00 | BA194: 0 | BB194: 0 | BC194: 0 | BD194: 1 | BE194: 0 | BF194: 0
B195: 189 | C195: ='DOLDURULMASI GEREKEN TABLO'!D209 -> 0 | D195: ='DOLDURULMASI GEREKEN TABLO'!E209 -> 0 | E195: ='DOLDURULMASI GEREKEN TABLO'!F209 -> 0 | F195: 0 | G195: ='DOLDURULMASI GEREKEN TABLO'!G209 -> 00:00:00 | H195: 2021-12-31 | I195: TARİH UYUMLU | J195: ='DOLDURULMASI GEREKEN TABLO'!H209 -> 0 | K195: ='DOLDURULMASI GEREKEN TABLO'!I209 -> 0 | L195: ='DOLDURULMASI GEREKEN TABLO'!J209 -> 0 | M195: 44562 | N195: 0 | O195: 0 | P195: 0 | Q195: 0 | R195: ='DOLDURULMASI GEREKEN TABLO'!K209 -> 0 | S195: ='DOLDURULMASI GEREKEN TABLO'!L209 -> 0 | T195: 0 | U195: 0 | V195: 0 | W195: FALSE | X195: =IFERROR(VLOOKUP(W195,'Aylık Yİ-ÜFE'!$D$1:$E$217,2,0),0) -> 0 | Y195: 2021-12 | Z195: =VLOOKUP(Y195,'Aylık Yİ-ÜFE'!$D$1:$E$217,2,1) -> 1022.25 | AA195: 0 | AB195: ='DOLDURULMASI GEREKEN TABLO'!M209 -> 0 | AC195: 0 | AD195: 0 | AE195: 0 | AF195: 0 | AG195: 0 | AH195: 0 | AI195: 0 | AK195: YD YAPILABİLİR | AL195: ='DOLDURULMASI GEREKEN TABLO'!O209 -> 0 | AM195: 0 | AN195: ='DOLDURULMASI GEREKEN TABLO'!N209 -> 0 | AO195: 0 | AP195: 0 | AQ195: 0 | AR195: 0 | AS195: 0 | AT195: 0 | AU195: 0 | AV195: 0 | AW195: FALSE | AY195: 2022-12-31 | AZ195: 00:00:00 | BA195: 0 | BB195: 0 | BC195: 0 | BD195: 1 | BE195: 0 | BF195: 0
B196: 190 | C196: ='DOLDURULMASI GEREKEN TABLO'!D210 -> 0 | D196: ='DOLDURULMASI GEREKEN TABLO'!E210 -> 0 | E196: ='DOLDURULMASI GEREKEN TABLO'!F210 -> 0 | F196: 0 | G196: ='DOLDURULMASI GEREKEN TABLO'!G210 -> 00:00:00 | H196: 2021-12-31 | I196: TARİH UYUMLU | J196: ='DOLDURULMASI GEREKEN TABLO'!H210 -> 0 | K196: ='DOLDURULMASI GEREKEN TABLO'!I210 -> 0 | L196: ='DOLDURULMASI GEREKEN TABLO'!J210 -> 0 | M196: 44562 | N196: 0 | O196: 0 | P196: 0 | Q196: 0 | R196: ='DOLDURULMASI GEREKEN TABLO'!K210 -> 0 | S196: ='DOLDURULMASI GEREKEN TABLO'!L210 -> 0 | T196: 0 | U196: 0 | V196: 0 | W196: FALSE | X196: =IFERROR(VLOOKUP(W196,'Aylık Yİ-ÜFE'!$D$1:$E$217,2,0),0) -> 0 | Y196: 2021-12 | Z196: =VLOOKUP(Y196,'Aylık Yİ-ÜFE'!$D$1:$E$217,2,1) -> 1022.25 | AA196: 0 | AB196: ='DOLDURULMASI GEREKEN TABLO'!M210 -> 0 | AC196: 0 | AD196: 0 | AE196: 0 | AF196: 0 | AG196: 0 | AH196: 0 | AI196: 0 | AK196: YD YAPILABİLİR | AL196: ='DOLDURULMASI GEREKEN TABLO'!O210 -> 0 | AM196: 0 | AN196: ='DOLDURULMASI GEREKEN TABLO'!N210 -> 0 | AO196: 0 | AP196: 0 | AQ196: 0 | AR196: 0 | AS196: 0 | AT196: 0 | AU196: 0 | AV196: 0 | AW196: FALSE | AY196: 2022-12-31 | AZ196: 00:00:00 | BA196: 0 | BB196: 0 | BC196: 0 | BD196: 1 | BE196: 0 | BF196: 0
B197: 191 | C197: ='DOLDURULMASI GEREKEN TABLO'!D211 -> 0 | D197: ='DOLDURULMASI GEREKEN TABLO'!E211 -> 0 | E197: ='DOLDURULMASI GEREKEN TABLO'!F211 -> 0 | F197: 0 | G197: ='DOLDURULMASI GEREKEN TABLO'!G211 -> 00:00:00 | H197: 2021-12-31 | I197: TARİH UYUMLU | J197: ='DOLDURULMASI GEREKEN TABLO'!H211 -> 0 | K197: ='DOLDURULMASI GEREKEN TABLO'!I211 -> 0 | L197: ='DOLDURULMASI GEREKEN TABLO'!J211 -> 0 | M197: 44562 | N197: 0 | O197: 0 | P197: 0 | Q197: 0 | R197: ='DOLDURULMASI GEREKEN TABLO'!K211 -> 0 | S197: ='DOLDURULMASI GEREKEN TABLO'!L211 -> 0 | T197: 0 | U197: 0 | V197: 0 | W197: FALSE | X197: =IFERROR(VLOOKUP(W197,'Aylık Yİ-ÜFE'!$D$1:$E$217,2,0),0) -> 0 | Y197: 2021-12 | Z197: =VLOOKUP(Y197,'Aylık Yİ-ÜFE'!$D$1:$E$217,2,1) -> 1022.25 | AA197: 0 | AB197: ='DOLDURULMASI GEREKEN TABLO'!M211 -> 0 | AC197: 0 | AD197: 0 | AE197: 0 | AF197: 0 | AG197: 0 | AH197: 0 | AI197: 0 | AK197: YD YAPILABİLİR | AL197: ='DOLDURULMASI GEREKEN TABLO'!O211 -> 0 | AM197: 0 | AN197: ='DOLDURULMASI GEREKEN TABLO'!N211 -> 0 | AO197: 0 | AP197: 0 | AQ197: 0 | AR197: 0 | AS197: 0 | AT197: 0 | AU197: 0 | AV197: 0 | AW197: FALSE | AY197: 2022-12-31 | AZ197: 00:00:00 | BA197: 0 | BB197: 0 | BC197: 0 | BD197: 1 | BE197: 0 | BF197: 0
B198: 192 | C198: ='DOLDURULMASI GEREKEN TABLO'!D212 -> 0 | D198: ='DOLDURULMASI GEREKEN TABLO'!E212 -> 0 | E198: ='DOLDURULMASI GEREKEN TABLO'!F212 -> 0 | F198: 0 | G198: ='DOLDURULMASI GEREKEN TABLO'!G212 -> 00:00:00 | H198: 2021-12-31 | I198: TARİH UYUMLU | J198: ='DOLDURULMASI GEREKEN TABLO'!H212 -> 0 | K198: ='DOLDURULMASI GEREKEN TABLO'!I212 -> 0 | L198: ='DOLDURULMASI GEREKEN TABLO'!J212 -> 0 | M198: 44562 | N198: 0 | O198: 0 | P198: 0 | Q198: 0 | R198: ='DOLDURULMASI GEREKEN TABLO'!K212 -> 0 | S198: ='DOLDURULMASI GEREKEN TABLO'!L212 -> 0 | T198: 0 | U198: 0 | V198: 0 | W198: FALSE | X198: =IFERROR(VLOOKUP(W198,'Aylık Yİ-ÜFE'!$D$1:$E$217,2,0),0) -> 0 | Y198: 2021-12 | Z198: =VLOOKUP(Y198,'Aylık Yİ-ÜFE'!$D$1:$E$217,2,1) -> 1022.25 | AA198: 0 | AB198: ='DOLDURULMASI GEREKEN TABLO'!M212 -> 0 | AC198: 0 | AD198: 0 | AE198: 0 | AF198: 0 | AG198: 0 | AH198: 0 | AI198: 0 | AK198: YD YAPILABİLİR | AL198: ='DOLDURULMASI GEREKEN TABLO'!O212 -> 0 | AM198: 0 | AN198: ='DOLDURULMASI GEREKEN TABLO'!N212 -> 0 | AO198: 0 | AP198: 0 | AQ198: 0 | AR198: 0 | AS198: 0 | AT198: 0 | AU198: 0 | AV198: 0 | AW198: FALSE | AY198: 2022-12-31 | AZ198: 00:00:00 | BA198: 0 | BB198: 0 | BC198: 0 | BD198: 1 | BE198: 0 | BF198: 0
B199: 193 | C199: ='DOLDURULMASI GEREKEN TABLO'!D213 -> 0 | D199: ='DOLDURULMASI GEREKEN TABLO'!E213 -> 0 | E199: ='DOLDURULMASI GEREKEN TABLO'!F213 -> 0 | F199: 0 | G199: ='DOLDURULMASI GEREKEN TABLO'!G213 -> 00:00:00 | H199: 2021-12-31 | I199: TARİH UYUMLU | J199: ='DOLDURULMASI GEREKEN TABLO'!H213 -> 0 | K199: ='DOLDURULMASI GEREKEN TABLO'!I213 -> 0 | L199: ='DOLDURULMASI GEREKEN TABLO'!J213 -> 0 | M199: 44562 | N199: 0 | O199: 0 | P199: 0 | Q199: 0 | R199: ='DOLDURULMASI GEREKEN TABLO'!K213 -> 0 | S199: ='DOLDURULMASI GEREKEN TABLO'!L213 -> 0 | T199: =J199 -> 0 | U199: 0 | V199: 0 | W199: =IF(AND(R199="EVET",S199="EVET"),"2021-6",IF(AND(R199="HAYIR",S199="EVET"),"2021-6",IF(AND(R199="EVET",S199="HAYIR"),"2018-5",IF(AND(R199="HAYIR",S199="HAYIR"),IF(AND(G199<=38352,R199="HAYIR",S199="HAYIR"),"2005-1",IF(MONTH(G199)+1=13,CONCATENATE(YEAR(G199)+1,"-",MONTH(G199)-11),CONCATENATE(YEAR(G199),"-",MONTH(G199)+1))))))) -> FALSE | X199: =IFERROR(VLOOKUP(W199,'Aylık Yİ-ÜFE'!$D$1:$E$217,2,0),0) -> 0 | Y199: 2021-12 | Z199: =VLOOKUP(Y199,'Aylık Yİ-ÜFE'!$D$1:$E$217,2,1) -> 1022.25 | AA199: 0 | AB199: ='DOLDURULMASI GEREKEN TABLO'!M213 -> 0 | AC199: 0 | AD199: 0 | AE199: 0 | AF199: 0 | AG199: 0 | AH199: 0 | AI199: 0 | AK199: =IF(D199="250- Arazi ve Arsalar","BOŞ ARAZİ VE ARSALAR MÜK.298 Ç YE GÖRE YD YAPILAMAZ","YD YAPILABİLİR") -> YD YAPILABİLİR | AL199: ='DOLDURULMASI GEREKEN TABLO'!O213 -> 0 | AM199: =IF(AK199="BOŞ ARAZİ VE ARSALAR MÜK.298 Ç YE GÖRE YD YAPILAMAZ",T199,AC199) -> 0 | AN199: ='DOLDURULMASI GEREKEN TABLO'!N213 -> 0 | AO199: 0 | AP199: 0 | AQ199: 0 | AR199: 0 | AS199: 0 | AT199: 0 | AU199: 0 | AV199: 0 | AW199: FALSE | AY199: 2022-12-31 | AZ199: 00:00:00 | BA199: =MIN(YEAR(AY199)-YEAR(G199)+1,E199) -> 0 | BB199: =MIN(((YEAR(AY199)-YEAR(G199))*12+(MONTH(AY199)-MONTH(G199))+1)/12,E199) -> 0 | BC199: =IF(L199="HAYIR",BA199,BB199) -> 0 | BD199: 1 | BE199: 0 | BF199: 0
B200: 194 | C200: ='DOLDURULMASI GEREKEN TABLO'!D214 -> 0 | D200: ='DOLDURULMASI GEREKEN TABLO'!E214 -> 0 | E200: ='DOLDURULMASI GEREKEN TABLO'!F214 -> 0 | F200: =IFERROR(IF(K200="AZALAN BAKİYELERE GÖRE AMORTİSMAN",MIN(1/E200,1/4),1/E200),0) -> 0 | G200: ='DOLDURULMASI GEREKEN TABLO'!G214 -> 00:00:00 | H200: 2021-12-31 | I200: TARİH UYUMLU | J200: ='DOLDURULMASI GEREKEN TABLO'!H214 -> 0 | K200: ='DOLDURULMASI GEREKEN TABLO'!I214 -> 0 | L200: ='DOLDURULMASI GEREKEN TABLO'!J214 -> 0 | M200: =(H200-G200)+1 -> 44562 | N200: =MIN(YEAR(H200)-YEAR(G200)+1,E200) -> 0 | O200: =MIN(((YEAR(H200)-YEAR(G200))*12+(MONTH(H200)-MONTH(G200))+1)/12,E200) -> 0 | P200: =MIN(IF(L200="HAYIR",N200,O200),E200) -> 0 | Q200: =IF(D200="250- Arazi ve Arsalar",0,IF(N200=E200,J200,IF(AND(K200="NORMAL AMORTİSMAN",L200="HAYIR"),J200*F200*N200,IF(AND(K200="NORMAL AMORTİSMAN",L200="EVET"),J200*F200*O200,IF(AND(K200="AZALAN BAKİYELERE GÖRE AMORTİSMAN",L200="HAYIR",E200<=4), VDB(J200,0,4,0,N200,2,TRUE),IF(AND(K200="AZALAN BAKİYELERE GÖRE AMORTİSMAN",L200="HAYIR",AND(E200>4,N200<E200)), VDB(J200,0,E200,0,N200,2,TRUE),IF(AND(K200="AZALAN BAKİYELERE GÖRE AMORTİSMAN",L200="EVET",N200=1),(DDB(J200,0,IF(E200<=4,4,E200),1,2)/12)*(12-MONTH(G200)+1),IF(AND(K200="AZALAN BAKİYELERE GÖRE AMORTİSMAN",L200="EVET",N200=2),(DDB(J200,0,IF(E200<=4,4,E200),1,2)/12)*(12-MONTH(G200)+1)+DDB(J200,0,IF(E200<=4,4,E200),2,2),IF(AND(K200="AZALAN BAKİYELERE GÖRE AMORTİSMAN",L200="EVET",N200=3),(DDB(J200,0,IF(E200<=4,4,E200),1,2)/12)*(12-MONTH(G200)+1)+DDB(J200,0,IF(E200<=4,4,E200),2,2)+DDB(J200,0,IF(E200<=4,4,E200),3,2),IF(AND(K200="AZALAN BAKİYELERE GÖRE AMORTİSMAN",L200="EVET",N200=4),(DDB(J200,0,IF(E200<=4,4,E200),1,2)/12)*(12-MONTH(G200)+1)+DDB(J200,0,IF(E200<=4,4,E200),2,2)+DDB(J200,0,IF(E200<=4,4,E200),3,2)+DDB(J200,0,IF(E200<=4,4,E200),4,2),IF(AND(K200="AZALAN BAKİYELERE GÖRE AMORTİSMAN",L200="EVET",N200>=5),J200,"HATA"))))))))))) -> 0 | R200: ='DOLDURULMASI GEREKEN TABLO'!K214 -> 0 | S200: ='DOLDURULMASI GEREKEN TABLO'!L214 -> 0 | T200: 0 | U200: 0 | V200: 0 | W200: FALSE | X200: =IFERROR(VLOOKUP(W200,'Aylık Yİ-ÜFE'!$D$1:$E$217,2,0),0) -> 0 | Y200: 2021-12 | Z200: =VLOOKUP(Y200,'Aylık Yİ-ÜFE'!$D$1:$E$217,2,1) -> 1022.25 | AA200: 0 | AB200: ='DOLDURULMASI GEREKEN TABLO'!M214 -> 0 | AC200: =MAX(IF(AB200="EVET",T200*AA200,T200),T200) -> 0 | AD200: =MAX(IF(AB200="EVET",U200*AA200,U200),U200) -> 0 | AE200: 0 | AF200: =IFERROR(IF(AC200-T200<0,0,AC200-T200),0) -> 0 | AG200: =IFERROR(IF(AD200-U200<0,0,AD200-U200),0) -> 0 | AH200: =IFERROR(IF((AF200-AG200)<0,0,(AF200-AG200)),0) -> 0 | AI200: =IFERROR(AH200*2/100,0) -> 0 | AK200: YD YAPILABİLİR | AL200: ='DOLDURULMASI GEREKEN TABLO'!O214 -> 0 | AM200: 0 | AN200: ='DOLDURULMASI GEREKEN TABLO'!N214 -> 0 | AO200: =AD200 -> 0 | AP200: 0 | AQ200: =IF(AND(AK200="YD YAPILABİLİR",AL200="EVET"),(AM200-AN200)*2.2293,AM200-AN200) -> 0 | AR200: 0 | AS200: 0 | AT200: 0 | AU200: 0 | AV200: 0 | AW200: FALSE | AY200: 2022-12-31 | AZ200: =G200 -> 00:00:00 | BA200: 0 | BB200: 0 | BC200: 0 | BD200: =IFERROR(ROUNDDOWN(E200-BC200,0)+1,0) -> 1 | BE200: =(AV200+AH200) -> 0 | BF200: =IFERROR(BE200*23/100,0) -> 0
B201: 195 | C201: ='DOLDURULMASI GEREKEN TABLO'!D215 -> 0 | D201: ='DOLDURULMASI GEREKEN TABLO'!E215 -> 0 | E201: ='DOLDURULMASI GEREKEN TABLO'!F215 -> 0 | F201: 0 | G201: ='DOLDURULMASI GEREKEN TABLO'!G215 -> 00:00:00 | H201: 2021-12-31 | I201: =IF(G201>44561,"2022 YILINDA İKTİSAP EDİLEN İÇİN GEÇİCİ 32 YE GÖRE 2022 YILINDA YD YAPILAMAZ","TARİH UYUMLU") -> TARİH UYUMLU | J201: ='DOLDURULMASI GEREKEN TABLO'!H215 -> 0 | K201: ='DOLDURULMASI GEREKEN TABLO'!I215 -> 0 | L201: ='DOLDURULMASI GEREKEN TABLO'!J215 -> 0 | M201: 44562 | N201: 0 | O201: 0 | P201: 0 | Q201: 0 | R201: ='DOLDURULMASI GEREKEN TABLO'!K215 -> 0 | S201: ='DOLDURULMASI GEREKEN TABLO'!L215 -> 0 | T201: 0 | U201: =Q201 -> 0 | V201: =T201-U201 -> 0 | W201: FALSE | X201: =IFERROR(VLOOKUP(W201,'Aylık Yİ-ÜFE'!$D$1:$E$217,2,0),0) -> 0 | Y201: 2021-12 | Z201: =VLOOKUP(Y201,'Aylık Yİ-ÜFE'!$D$1:$E$217,2,1) -> 1022.25 | AA201: =IFERROR(TRUNC(Z201/X201,5),0) -> 0 | AB201: ='DOLDURULMASI GEREKEN TABLO'!M215 -> 0 | AC201: 0 | AD201: 0 | AE201: =AC201-AD201 -> 0 | AF201: 0 | AG201: 0 | AH201: 0 | AI201: 0 | AK201: YD YAPILABİLİR | AL201: ='DOLDURULMASI GEREKEN TABLO'!O215 -> 0 | AM201: 0 | AN201: ='DOLDURULMASI GEREKEN TABLO'!N215 -> 0 | AO201: 0 | AP201: =AM201-AO201 -> 0 | AQ201: 0 | AR201: =IFERROR(IF(AND(AK201="YD YAPILABİLİR",AL201="EVET"),AO201*2.2293,AO201),0) -> 0 | AS201: =AQ201-AR201 -> 0 | AT201: =AQ201-AM201 -> 0 | AU201: =AR201-AO201 -> 0 | AV201: =IF(AT201-AU201<0,0,AT201-AU201) -> 0 | AW201: FALSE | AY201: 2022-12-31 | AZ201: 00:00:00 | BA201: 0 | BB201: 0 | BC201: 0 | BD201: 1 | BE201: 0 | BF201: 0
... 924 more rows

Sheet Hesaplar İtibariyle YD Artışı
B3: GEÇİCİ 32 (TAŞINMAZ VE ATİKLER) | C3: YD Öncesi Net Değer | D3: YD Sonrası Net Değer | E3: YD DEĞER ARTIŞI TUTARLARI | G3: MÜK. 298/Ç (ATİKLER) | H3: YD Öncesi Net Değer | I3: YD Sonrası Net Değer | J3: YD DEĞER ARTIŞI TUTARLARI
B4: 250- Arazi ve Arsalar | C4: =SUMIF('YD HESAPLAMA TABLOSU'!D7:D10006,'Hesaplar İtibariyle YD Artışı '!B4:B19,'YD HESAPLAMA TABLOSU'!V7:V10006) -> 10000000 | D4: =SUMIF('YD HESAPLAMA TABLOSU'!D7:D10006,'Hesaplar İtibariyle YD Artışı '!B4:B19,'YD HESAPLAMA TABLOSU'!AE7:AE10006) -> 18412900 | E4: =D4-C4 -> 8412900
B5: 251- Yer altı Yerüstü Düzenleri | C5: 0 | D5: 0 | E5: =D5-C5 -> 0 | G5: 251- Yer altı Yerüstü Düzenleri | H5: =SUMIF('YD HESAPLAMA TABLOSU'!D7:D10006,'Hesaplar İtibariyle YD Artışı '!G5:G19,'YD HESAPLAMA TABLOSU'!AP7:AP10006) -> 0 | I5: =SUMIF('YD HESAPLAMA TABLOSU'!D7:D10006,'Hesaplar İtibariyle YD Artışı '!G5:G19,'YD HESAPLAMA TABLOSU'!AS7:AS10006) -> 0 | J5: =I5-H5 -> 0
B6: 252- Binalar | C6: 410355.18 | D6: 1627107.531 | E6: 1216752.351 | G6: 252- Binalar | H6: 1627107.531 | I6: 3627310.82 | J6: =I6-H6 -> 2000203.288
B7: 253- Tesis Makine ve Cihazlar | C7: 56314.06902 | D7: 251274.5023 | E7: 194960.4332 | G7: 253- Tesis Makine ve Cihazlar | H7: 251274.5023 | I7: 560166.2479 | J7: 308891.7456
B8: 254- Taşıtlar | C8: 262933.3333 | D8: 387550.5867 | E8: 124617.2533 | G8: 254- Taşıtlar | H8: 387550.5867 | I8: 863966.5229 | J8: 476415.9362
B9: 255- Demirbaşlar | C9: 17320 | D9: 25276.8524 | E9: 7956.8524 | G9: 255- Demirbaşlar | H9: 25276.8524 | I9: 56349.68706 | J9: 31072.83466
B10: 256- Diğer Maddi Duran Varlıklar | C10: 0 | D10: 0 | E10: 0 | G10: 256- Diğer Maddi Duran Varlıklar | H10: 0 | I10: 0 | J10: 0
B11: 260- Haklar | C11: 0 | D11: 0 | E11: 0 | G11: 260- Haklar | H11: 0 | I11: 0 | J11: 0
B12: 261- Şerefiye | C12: 0 | D12: 0 | E12: 0 | G12: 261- Şerefiye | H12: 0 | I12: 0 | J12: 0
B13: 262- Kuruluş Ve Örgütlenme Giderleri | C13: 0 | D13: 0 | E13: 0 | G13: 262- Kuruluş Ve Örgütlenme Giderleri | H13: 0 | I13: 0 | J13: 0
B14: 263- Araştırma ve Geliştirme Giderleri | C14: 0 | D14: 0 | E14: 0 | G14: 263- Araştırma ve Geliştirme Giderleri | H14: 0 | I14: 0 | J14: 0
B15: 264- Özel Maliyetler | C15: 0 | D15: 0 | E15: 0 | G15: 264- Özel Maliyetler | H15: 0 | I15: 0 | J15: 0
B16: 267- Diğer Maddi Olmayan Duran Varlıklar | C16: 0 | D16: 0 | E16: 0 | G16: 267- Diğer Maddi Olmayan Duran Varlıklar | H16: 0 | I16: 0 | J16: 0
B17: 271- Arama Giderleri | C17: 0 | D17: 0 | E17: 0 | G17: 271- Arama Giderleri | H17: 0 | I17: 0 | J17: 0
B18: 272- Hazırlık Ve Geliştirme Giderleri | C18: 0 | D18: 0 | E18: 0 | G18: 272- Hazırlık Ve Geliştirme Giderleri | H18: 0 | I18: 0 | J18: 0
B19: 277- Diğer Özel Tükenmeye Tabi Varlıklar | C19: 0 | D19: 0 | E19: 0 | G19: 277- Diğer Özel Tükenmeye Tabi Varlıklar | H19: 0 | I19: 0 | J19: 0
B21: TOPLAM | C21: =SUM(C4:C20) -> 10746922.58 | D21: =SUM(D4:D20) -> 20704109.47 | E21: =SUM(E4:E20) -> 9957186.89 | G21: TOPLAM | H21: =SUM(H5:H20) -> 2291209.473 | I21: =SUM(I5:I20) -> 5107793.277 | J21: =SUM(J5:J20) -> 2816583.805
B22: VERGİLİ YD YAPILABİLİR | D22: VERGİ % 2 | E22: =E21*2/100 -> 199143.7378 | G22: VERGİSİZ YD YAPILABİLİR.
B23: 298 Ç Yapılmadan Önce Sadece Bir Kez Yapılabilir. Herhangi Bir İktisadi Kıymet İçin Dahi 298 Ç Yapıldıktan Sonra İse Geçici 32 ye Göre YD Yapılamaz. 31.12.2023'te Kapsamdaki tüm işletmeler bilançolarına Enflasyon Düzeltmesi yapacaklardır. Bunun için herhangi bir vergi yükü oluşmayacaktır. 2023 Enf.Düz. sonra da Mük.298 Ç Yapılmadan önce Geçici 32 yapılabilir. Bu nedenle; İşletmeye avantajları ile getireceği vergi yükü kıyaslanarak Geçici 32 yapılmasına karar verilmelidir. İktisadi kıymetlerini yakın zamanda satmayacak işletmelerde Geçici 32 uygulamasına göre YD yapılmasının vergisel avantaj etkisinin az olacağı değerlendirilmektedir. Ancak yakın zamanda satılması düşünülen bir iktisadi kıymet için Geçici 32 yapılarak satılmasında satış kazancı azalacağından vergi avantajı etkisi daha fazla olabilecektir. | G23: 1.1.2022 den itibaren Geçici Vergi Dönemleri dahil sürekli YD imkanı gelmiştir. Dileyen kapsamdaki mükellefler yararlanabilir. Zorunlu Değildir. Enflasyon Düzeltmesi yapılmayan yıllarda yapılabileceğinden, 312.2023 tarihli bilançolar YD yapılamayacaktır. Yararlanma hakkı olan bir yılda yararlanılmadığında, izleyen yıllarda daha sonra geçmiş yıl için YD yapılamaz (Geçici 32 ile getirilen vergili YD yapma imkanı hariç-298 Ç Hiç Başlanmamış İse). Mük. 298 Ç yapmadan önce Geçici 32 deki YD yapma imkanı vardır. Eğer Geçici 32 yapmadan Mük. 298 Ç yapılırsa (herhangi bir iktisadi kıymet için dahi yapılsa), Geçici 32 yapma hakkı tamamen sona erer.
B26: SONUÇ | G26: GİDER ETKİSİ TOPLAMI (2022 VE KALAN AMORTİSMAN SÜRESİNE TEKABÜL EDEN)
B27: AVANTAJLAR: | G27: ='YD HESAPLAMA TABLOSU'!AH3 -> 9957186.89 | H27: Geçici 32 Nedeniyle
B29: 522 - ÖZ KAYNAK ARTIŞ ETKİSİ (Fin.Gid.Kısıtlaması ve Örtülü Serm. İçin olumlu etki eder) | C29: =G31 -> 12773770.7 | D29: 522 nolu hesaba Geçici 32 ve 298 Ç nedeniyle yazılan Net Değer Artış Tutarları | G29: ='YD HESAPLAMA TABLOSU'!AV3 -> 2816583.805 | H29: Mük. 298 Ç Nedeniyle
B31: KALAN KULLANIM SÜRESİNDE FAZLA AMORTİSMAN GİDERİ YAZABİLME YADA SATILMASI HALİNDE SATIŞ KAZANCI AZALTIM ETKİSİ (SATILMAYACAK İSE) | C31: =C29 -> 12773770.7 | G31: =G27+G29 -> 12773770.7 | H31: TOPLAM
C32: Gider Artırımı
B33: DEZAVANTAJLAR
B34: GEÇİCİ 32 YD NEDENİYLE ÖDENMESİ GEREKEN VERGİ TUTARI | C34: =E22 -> 199143.7378
B37: VARSAYIMLAR:
B38: Satış kazancı azaltım etkisinde, 298 Ç nedeniyle oluşan değer artışının sermayaye eklendiği varsayılmıştır. Aksi takdirde 298 Ç nedeniyle oluşan değer artışı tutarının birikmiş amortisman gibi değerlendirilerek satış karının tespitinde dikkate alınması gerekir.
B39: Belirtilen YD uygulamaları sonucunda oluşan avantajlar 31.12.2023 tarihli bilançoların Enflasyon Düzeltmesine tabi tutulması zorunluluğu da dikkate alındığında 31.12.2023 tarihine kadar yapılacak YD uygulamalarında etkisi ortaya çıkacaktır.

Sheet BEYAN EKİ LİSTE GEÇ 32
A1: YENİDEN DEĞERLEME DEĞER ARTIŞ VERGİSİ BEYANNAMESİ EKİ
A2: Sıra | B2: İktisadi Kıymetin Niteliği | C2: İktisadi Kıymet | D2: İktisap Tarihi | E2: Amortisman Oranı (%) | F2: Yeniden Değerleme Öncesi | I2: Yeniden Değerleme Sonrası | L2: Net Değer Artışı
F3: Maliyet Bedeli | G3: Birikmiş Amortisman | H3: Net Bilanço Aktif Değeri | I3: Maliyet Bedeli | J3: Birikmiş Amortisman | K3: Net Bilanço Aktif Değeri
A4: 1 | B4: ='DOLDURULMASI GEREKEN TABLO'!C21 -> Makinalar | C4: =CONCATENATE('YD HESAPLAMA TABLOSU'!D7,"-",'YD HESAPLAMA TABLOSU'!C7) -> 253- Tesis Makine ve Cihazlar-Kesim Makinası | D4: ='YD HESAPLAMA TABLOSU'!G7 -> 2013-12-18 | E4: ='YD HESAPLAMA TABLOSU'!F7 -> 0.1 | F4: ='YD HESAPLAMA TABLOSU'!T7 -> 419572.51 | G4: ='YD HESAPLAMA TABLOSU'!U7 -> 363258.441 | H4: ='YD HESAPLAMA TABLOSU'!V7 -> 56314.06902 | I4: ='YD HESAPLAMA TABLOSU'!AC7 -> 1872140.931 | J4: ='YD HESAPLAMA TABLOSU'!AD7 -> 1620866.429 | K4: ='YD HESAPLAMA TABLOSU'!AE7 -> 251274.5023 | L4: ='YD HESAPLAMA TABLOSU'!AH7 -> 194960.4332
A5: 2 | B5: ='DOLDURULMASI GEREKEN TABLO'!C22 -> Taşıtlar | C5: =CONCATENATE('YD HESAPLAMA TABLOSU'!D8,"-",'YD HESAPLAMA TABLOSU'!C8) -> 254- Taşıtlar-Otomobil | D5: ='YD HESAPLAMA TABLOSU'!G8 -> 2018-05-18 | E5: ='YD HESAPLAMA TABLOSU'!F8 -> 0.2 | F5: ='YD HESAPLAMA TABLOSU'!T8 -> 1000000 | G5: ='YD HESAPLAMA TABLOSU'!U8 -> 737066.6667 | H5: ='YD HESAPLAMA TABLOSU'!V8 -> 262933.3333 | I5: ='YD HESAPLAMA TABLOSU'!AC8 -> 1473950 | J5: ='YD HESAPLAMA TABLOSU'!AD8 -> 1086399.413 | K5: ='YD HESAPLAMA TABLOSU'!AE8 -> 387550.5867 | L5: ='YD HESAPLAMA TABLOSU'!AH8 -> 124617.2533
A6: 3 | B6: ='DOLDURULMASI GEREKEN TABLO'!C23 -> Demirbaşlar | C6: =CONCATENATE('YD HESAPLAMA TABLOSU'!D9,"-",'YD HESAPLAMA TABLOSU'!C9) -> 255- Demirbaşlar-Cep Telofonu Araç Kiti | D6: ='YD HESAPLAMA TABLOSU'!G9 -> 2019-09-01 | E6: ='YD HESAPLAMA TABLOSU'!F9 -> 0.25 | F6: ='YD HESAPLAMA TABLOSU'!T9 -> 3000 | G6: ='YD HESAPLAMA TABLOSU'!U9 -> 3000 | H6: ='YD HESAPLAMA TABLOSU'!V9 -> 0 | I6: ='YD HESAPLAMA TABLOSU'!AC9 -> 6795.21 | J6: ='YD HESAPLAMA TABLOSU'!AD9 -> 6795.21 | K6: ='YD HESAPLAMA TABLOSU'!AE9 -> 0 | L6: ='YD HESAPLAMA TABLOSU'!AH9 -> 0
A7: 4 | B7: ='DOLDURULMASI GEREKEN TABLO'!C24 -> Demirbaşlar | C7: =CONCATENATE('YD HESAPLAMA TABLOSU'!D10,"-",'YD HESAPLAMA TABLOSU'!C10) -> 255- Demirbaşlar-Masa | D7: ='YD HESAPLAMA TABLOSU'!G10 -> 2021-12-10 | E7: ='YD HESAPLAMA TABLOSU'!F10 -> 0.2 | F7: ='YD HESAPLAMA TABLOSU'!T10 -> 10000 | G7: ='YD HESAPLAMA TABLOSU'!U10 -> 2000 | H7: ='YD HESAPLAMA TABLOSU'!V10 -> 8000 | I7: ='YD HESAPLAMA TABLOSU'!AC10 -> 10000 | J7: ='YD HESAPLAMA TABLOSU'!AD10 -> 2000 | K7: ='YD HESAPLAMA TABLOSU'!AE10 -> 8000 | L7: ='YD HESAPLAMA TABLOSU'!AH10 -> 0
A8: 5 | B8: ='DOLDURULMASI GEREKEN TABLO'!C25 -> Amortismana tabi olmayan gayrimenkul (boş arazi ve boş arsalar) | C8: =CONCATENATE('YD HESAPLAMA TABLOSU'!D11,"-",'YD HESAPLAMA TABLOSU'!C11) -> 250- Arazi ve Arsalar-Arsa | D8: ='YD HESAPLAMA TABLOSU'!G11 -> 2020-10-10 | E8: ='YD HESAPLAMA TABLOSU'!F11 -> 0 | F8: ='YD HESAPLAMA TABLOSU'!T11 -> 10000000 | G8: ='YD HESAPLAMA TABLOSU'!U11 -> 0 | H8: ='YD HESAPLAMA TABLOSU'!V11 -> 10000000 | I8: ='YD HESAPLAMA TABLOSU'!AC11 -> 18412900 | J8: ='YD HESAPLAMA TABLOSU'!AD11 -> 0 | K8: ='YD HESAPLAMA TABLOSU'!AE11 -> 18412900 | L8: ='YD HESAPLAMA TABLOSU'!AH11 -> 8412900
A9: 6 | B9: ='DOLDURULMASI GEREKEN TABLO'!C26 -> Amortismana tabi gayrimenkul (gayrimenkullerin mütemmim cüzüleri ve teferruatı dahil) | C9: =CONCATENATE('YD HESAPLAMA TABLOSU'!D12,"-",'YD HESAPLAMA TABLOSU'!C12) -> 252- Binalar-daire | D9: ='YD HESAPLAMA TABLOSU'!G12 -> 2016-06-03 | E9: ='YD HESAPLAMA TABLOSU'!F12 -> 0.0303030303 | F9: ='YD HESAPLAMA TABLOSU'!T12 -> 501545.22 | G9: ='YD HESAPLAMA TABLOSU'!U12 -> 91190.04 | H9: ='YD HESAPLAMA TABLOSU'!V12 -> 410355.18 | I9: ='YD HESAPLAMA TABLOSU'!AC12 -> 1988686.983 | J9: ='YD HESAPLAMA TABLOSU'!AD12 -> 361579.4514 | K9: ='YD HESAPLAMA TABLOSU'!AE12 -> 1627107.531 | L9: ='YD HESAPLAMA TABLOSU'!AH12 -> 1216752.351
A10: 7 | B10: ='DOLDURULMASI GEREKEN TABLO'!C27 -> Demirbaşlar | C10: =CONCATENATE('YD HESAPLAMA TABLOSU'!D13,"-",'YD HESAPLAMA TABLOSU'!C13) -> 255- Demirbaşlar-Cep Telofonu Araç Kiti | D10: ='YD HESAPLAMA TABLOSU'!G13 -> 2021-08-05 | E10: ='YD HESAPLAMA TABLOSU'!F13 -> 0.25 | F10: ='YD HESAPLAMA TABLOSU'!T13 -> 10000 | G10: ='YD HESAPLAMA TABLOSU'!U13 -> 5000 | H10: ='YD HESAPLAMA TABLOSU'!V13 -> 5000 | I10: ='YD HESAPLAMA TABLOSU'!AC13 -> 13784.7 | J10: ='YD HESAPLAMA TABLOSU'!AD13 -> 6892.35 | K10: ='YD HESAPLAMA TABLOSU'!AE13 -> 6892.35 | L10: ='YD HESAPLAMA TABLOSU'!AH13 -> 1892.35
A11: 8 | B11: ='DOLDURULMASI GEREKEN TABLO'!C28 -> Demirbaşlar | C11: =CONCATENATE('YD HESAPLAMA TABLOSU'!D14,"-",'YD HESAPLAMA TABLOSU'!C14) -> 255- Demirbaşlar-Bilgisayar | D11: ='YD HESAPLAMA TABLOSU'!G14 -> 2019-01-20 | E11: ='YD HESAPLAMA TABLOSU'!F14 -> 0.2 | F11: ='YD HESAPLAMA TABLOSU'!T14 -> 20000 | G11: ='YD HESAPLAMA TABLOSU'!U14 -> 15680 | H11: ='YD HESAPLAMA TABLOSU'!V14 -> 4320 | I11: ='YD HESAPLAMA TABLOSU'!AC14 -> 48076.4 | J11: ='YD HESAPLAMA TABLOSU'!AD14 -> 37691.8976 | K11: ='YD HESAPLAMA TABLOSU'!AE14 -> 10384.5024 | L11: ='YD HESAPLAMA TABLOSU'!AH14 -> 6064.5024
A12: 9 | B12: ='DOLDURULMASI GEREKEN TABLO'!C29 -> 0 | C12: =CONCATENATE('YD HESAPLAMA TABLOSU'!D15,"-",'YD HESAPLAMA TABLOSU'!C15) -> 0-0 | D12: ='YD HESAPLAMA TABLOSU'!G15 -> 00:00:00 | E12: ='YD HESAPLAMA TABLOSU'!F15 -> 0 | F12: ='YD HESAPLAMA TABLOSU'!T15 -> 0 | G12: ='YD HESAPLAMA TABLOSU'!U15 -> 0 | H12: ='YD HESAPLAMA TABLOSU'!V15 -> 0 | I12: ='YD HESAPLAMA TABLOSU'!AC15 -> 0 | J12: ='YD HESAPLAMA TABLOSU'!AD15 -> 0 | K12: ='YD HESAPLAMA TABLOSU'!AE15 -> 0 | L12: ='YD HESAPLAMA TABLOSU'!AH15 -> 0
A13: 10 | B13: ='DOLDURULMASI GEREKEN TABLO'!C30 -> 0 | C13: =CONCATENATE('YD HESAPLAMA TABLOSU'!D16,"-",'YD HESAPLAMA TABLOSU'!C16) -> 0-0 | D13: ='YD HESAPLAMA TABLOSU'!G16 -> 00:00:00 | E13: ='YD HESAPLAMA TABLOSU'!F16 -> 0 | F13: ='YD HESAPLAMA TABLOSU'!T16 -> 0 | G13: ='YD HESAPLAMA TABLOSU'!U16 -> 0 | H13: ='YD HESAPLAMA TABLOSU'!V16 -> 0 | I13: ='YD HESAPLAMA TABLOSU'!AC16 -> 0 | J13: ='YD HESAPLAMA TABLOSU'!AD16 -> 0 | K13: ='YD HESAPLAMA TABLOSU'!AE16 -> 0 | L13: ='YD HESAPLAMA TABLOSU'!AH16 -> 0
A14: 11 | B14: ='DOLDURULMASI GEREKEN TABLO'!C31 -> 0 | C14: =CONCATENATE('YD HESAPLAMA TABLOSU'!D17,"-",'YD HESAPLAMA TABLOSU'!C17) -> 0-0 | D14: ='YD HESAPLAMA TABLOSU'!G17 -> 00:00:00 | E14: ='YD HESAPLAMA TABLOSU'!F17 -> 0 | F14: ='YD HESAPLAMA TABLOSU'!T17 -> 0 | G14: ='YD HESAPLAMA TABLOSU'!U17 -> 0 | H14: ='YD HESAPLAMA TABLOSU'!V17 -> 0 | I14: ='YD HESAPLAMA TABLOSU'!AC17 -> 0 | J14: ='YD HESAPLAMA TABLOSU'!AD17 -> 0 | K14: ='YD HESAPLAMA TABLOSU'!AE17 -> 0 | L14: ='YD HESAPLAMA TABLOSU'!AH17 -> 0
A15: 12 | B15: ='DOLDURULMASI GEREKEN TABLO'!C32 -> 0 | C15: =CONCATENATE('YD HESAPLAMA TABLOSU'!D18,"-",'YD HESAPLAMA TABLOSU'!C18) -> 0-0 | D15: ='YD HESAPLAMA TABLOSU'!G18 -> 00:00:00 | E15: ='YD HESAPLAMA TABLOSU'!F18 -> 0 | F15: ='YD HESAPLAMA TABLOSU'!T18 -> 0 | G15: ='YD HESAPLAMA TABLOSU'!U18 -> 0 | H15: ='YD HESAPLAMA TABLOSU'!V18 -> 0 | I15: ='YD HESAPLAMA TABLOSU'!AC18 -> 0 | J15: ='YD HESAPLAMA TABLOSU'!AD18 -> 0 | K15: ='YD HESAPLAMA TABLOSU'!AE18 -> 0 | L15: ='YD HESAPLAMA TABLOSU'!AH18 -> 0
A16: 13 | B16: ='DOLDURULMASI GEREKEN TABLO'!C33 -> 0 | C16: =CONCATENATE('YD HESAPLAMA TABLOSU'!D19,"-",'YD HESAPLAMA TABLOSU'!C19) -> 0-0 | D16: ='YD HESAPLAMA TABLOSU'!G19 -> 00:00:00 | E16: ='YD HESAPLAMA TABLOSU'!F19 -> 0 | F16: ='YD HESAPLAMA TABLOSU'!T19 -> 0 | G16: ='YD HESAPLAMA TABLOSU'!U19 -> 0 | H16: ='YD HESAPLAMA TABLOSU'!V19 -> 0 | I16: ='YD HESAPLAMA TABLOSU'!AC19 -> 0 | J16: ='YD HESAPLAMA TABLOSU'!AD19 -> 0 | K16: ='YD HESAPLAMA TABLOSU'!AE19 -> 0 | L16: ='YD HESAPLAMA TABLOSU'!AH19 -> 0
A17: 14 | B17: ='DOLDURULMASI GEREKEN TABLO'!C34 -> 0 | C17: =CONCATENATE('YD HESAPLAMA TABLOSU'!D20,"-",'YD HESAPLAMA TABLOSU'!C20) -> 0-0 | D17: ='YD HESAPLAMA TABLOSU'!G20 -> 00:00:00 | E17: ='YD HESAPLAMA TABLOSU'!F20 -> 0 | F17: ='YD HESAPLAMA TABLOSU'!T20 -> 0 | G17: ='YD HESAPLAMA TABLOSU'!U20 -> 0 | H17: ='YD HESAPLAMA TABLOSU'!V20 -> 0 | I17: ='YD HESAPLAMA TABLOSU'!AC20 -> 0 | J17: ='YD HESAPLAMA TABLOSU'!AD20 -> 0 | K17: ='YD HESAPLAMA TABLOSU'!AE20 -> 0 | L17: ='YD HESAPLAMA TABLOSU'!AH20 -> 0
A18: 15 | B18: ='DOLDURULMASI GEREKEN TABLO'!C35 -> 0 | C18: =CONCATENATE('YD HESAPLAMA TABLOSU'!D21,"-",'YD HESAPLAMA TABLOSU'!C21) -> 0-0 | D18: ='YD HESAPLAMA TABLOSU'!G21 -> 00:00:00 | E18: ='YD HESAPLAMA TABLOSU'!F21 -> 0 | F18: ='YD HESAPLAMA TABLOSU'!T21 -> 0 | G18: ='YD HESAPLAMA TABLOSU'!U21 -> 0 | H18: ='YD HESAPLAMA TABLOSU'!V21 -> 0 | I18: ='YD HESAPLAMA TABLOSU'!AC21 -> 0 | J18: ='YD HESAPLAMA TABLOSU'!AD21 -> 0 | K18: ='YD HESAPLAMA TABLOSU'!AE21 -> 0 | L18: ='YD HESAPLAMA TABLOSU'!AH21 -> 0
A19: 16 | B19: ='DOLDURULMASI GEREKEN TABLO'!C36 -> 0 | C19: =CONCATENATE('YD HESAPLAMA TABLOSU'!D22,"-",'YD HESAPLAMA TABLOSU'!C22) -> 0-0 | D19: ='YD HESAPLAMA TABLOSU'!G22 -> 00:00:00 | E19: ='YD HESAPLAMA TABLOSU'!F22 -> 0 | F19: ='YD HESAPLAMA TABLOSU'!T22 -> 0 | G19: ='YD HESAPLAMA TABLOSU'!U22 -> 0 | H19: ='YD HESAPLAMA TABLOSU'!V22 -> 0 | I19: ='YD HESAPLAMA TABLOSU'!AC22 -> 0 | J19: ='YD HESAPLAMA TABLOSU'!AD22 -> 0 | K19: ='YD HESAPLAMA TABLOSU'!AE22 -> 0 | L19: ='YD HESAPLAMA TABLOSU'!AH22 -> 0
A20: 17 | B20: ='DOLDURULMASI GEREKEN TABLO'!C37 -> 0 | C20: =CONCATENATE('YD HESAPLAMA TABLOSU'!D23,"-",'YD HESAPLAMA TABLOSU'!C23) -> 0-0 | D20: ='YD HESAPLAMA TABLOSU'!G23 -> 00:00:00 | E20: ='YD HESAPLAMA TABLOSU'!F23 -> 0 | F20: ='YD HESAPLAMA TABLOSU'!T23 -> 0 | G20: ='YD HESAPLAMA TABLOSU'!U23 -> 0 | H20: ='YD HESAPLAMA TABLOSU'!V23 -> 0 | I20: ='YD HESAPLAMA TABLOSU'!AC23 -> 0 | J20: ='YD HESAPLAMA TABLOSU'!AD23 -> 0 | K20: ='YD HESAPLAMA TABLOSU'!AE23 -> 0 | L20: ='YD HESAPLAMA TABLOSU'!AH23 -> 0
A21: 18 | B21: ='DOLDURULMASI GEREKEN TABLO'!C38 -> 0 | C21: =CONCATENATE('YD HESAPLAMA TABLOSU'!D24,"-",'YD HESAPLAMA TABLOSU'!C24) -> 0-0 | D21: ='YD HESAPLAMA TABLOSU'!G24 -> 00:00:00 | E21: ='YD HESAPLAMA TABLOSU'!F24 -> 0 | F21: ='YD HESAPLAMA TABLOSU'!T24 -> 0 | G21: ='YD HESAPLAMA TABLOSU'!U24 -> 0 | H21: ='YD HESAPLAMA TABLOSU'!V24 -> 0 | I21: ='YD HESAPLAMA TABLOSU'!AC24 -> 0 | J21: ='YD HESAPLAMA TABLOSU'!AD24 -> 0 | K21: ='YD HESAPLAMA TABLOSU'!AE24 -> 0 | L21: ='YD HESAPLAMA TABLOSU'!AH24 -> 0
A22: 19 | B22: ='DOLDURULMASI GEREKEN TABLO'!C39 -> 0 | C22: =CONCATENATE('YD HESAPLAMA TABLOSU'!D25,"-",'YD HESAPLAMA TABLOSU'!C25) -> 0-0 | D22: ='YD HESAPLAMA TABLOSU'!G25 -> 00:00:00 | E22: ='YD HESAPLAMA TABLOSU'!F25 -> 0 | F22: ='YD HESAPLAMA TABLOSU'!T25 -> 0 | G22: ='YD HESAPLAMA TABLOSU'!U25 -> 0 | H22: ='YD HESAPLAMA TABLOSU'!V25 -> 0 | I22: ='YD HESAPLAMA TABLOSU'!AC25 -> 0 | J22: ='YD HESAPLAMA TABLOSU'!AD25 -> 0 | K22: ='YD HESAPLAMA TABLOSU'!AE25 -> 0 | L22: ='YD HESAPLAMA TABLOSU'!AH25 -> 0
A23: 20 | B23: ='DOLDURULMASI GEREKEN TABLO'!C40 -> 0 | C23: =CONCATENATE('YD HESAPLAMA TABLOSU'!D26,"-",'YD HESAPLAMA TABLOSU'!C26) -> 0-0 | D23: ='YD HESAPLAMA TABLOSU'!G26 -> 00:00:00 | E23: ='YD HESAPLAMA TABLOSU'!F26 -> 0 | F23: ='YD HESAPLAMA TABLOSU'!T26 -> 0 | G23: ='YD HESAPLAMA TABLOSU'!U26 -> 0 | H23: ='YD HESAPLAMA TABLOSU'!V26 -> 0 | I23: ='YD HESAPLAMA TABLOSU'!AC26 -> 0 | J23: ='YD HESAPLAMA TABLOSU'!AD26 -> 0 | K23: ='YD HESAPLAMA TABLOSU'!AE26 -> 0 | L23: ='YD HESAPLAMA TABLOSU'!AH26 -> 0
A24: 21 | B24: ='DOLDURULMASI GEREKEN TABLO'!C41 -> 0 | C24: =CONCATENATE('YD HESAPLAMA TABLOSU'!D27,"-",'YD HESAPLAMA TABLOSU'!C27) -> 0-0 | D24: ='YD HESAPLAMA TABLOSU'!G27 -> 00:00:00 | E24: ='YD HESAPLAMA TABLOSU'!F27 -> 0 | F24: ='YD HESAPLAMA TABLOSU'!T27 -> 0 | G24: ='YD HESAPLAMA TABLOSU'!U27 -> 0 | H24: ='YD HESAPLAMA TABLOSU'!V27 -> 0 | I24: ='YD HESAPLAMA TABLOSU'!AC27 -> 0 | J24: ='YD HESAPLAMA TABLOSU'!AD27 -> 0 | K24: ='YD HESAPLAMA TABLOSU'!AE27 -> 0 | L24: ='YD HESAPLAMA TABLOSU'!AH27 -> 0
